Workbook

Sheet Overview
A2: CDCM Annual Review Pack
A4: Company: | B4: ='CDCM Forecast Data'!E3 -> WPD South Wales
A5: Date of Issue: | B5: ='CDCM Forecast Data'!E4 -> 2018-01-01
A7: ="Although every effort has been made to ensure the accuracy of the information provided in this annual review pack, " & 'CDCM Forecast Data'!E3 & " does not accept any liability for the accuracy of the information contained herein and, in particular, " & 'CDCM Forecast Data'!E3 & " or any of its employees, shall not be held liable for any misstatement or opinion on which the recipient of this statement relies or seeks to rely." -> Although every effort has been made to ensure the accuracy of the information provided in this annual review pack, WPD South Wales does not accept any liability for the accuracy of the information contained herein and, in particular, WPD South Wales or any of its employees, shall not be held liable for any misstatement or opinion on which the recipient of this statement relies or seeks to rely.
A12: Contents:
A14: Sheet Name | B14: Detail
A15: Commentary | B15: This sheet contains the DNO's commentary on the forecast input CDCM data for the forecast over the 5 year period.
A16: CDCM Forecast Data | B16: This sheet contains historical and forecast data for all CDCM inputs except for volume data (table 1053) and matrix of applicability data (table 1025 - 1028). The RPI forecast is seperated out and listed as a standalone assumption. Any forecasts that relate to RPI will be linked to this row. Comments are provided alongside each forecast explaining any assumptions made by the DNO.
A17: Table 1 | B17: This sheet contains the DNO's table 1 produced in accordance with DCUSA Schedule 15 "cost information table".
A18: Mat of App | B18: This sheet contains the forecast CDCM matrix of applicability data (table 1025 - 1028). The default value is that the same matrix will be used for each of the five years.
A19: CDCM Volume Forecasts | B19: This sheet contains forecast CDCM volume data (table 1053). The matrix at the top can be used to apply different growth rates to groups of customers.
A20: CDCM Timebands | B20: Contains the time bands that the DNO plans to use for the coming year and advance warning of any changes.
A21: CDCM Input Sheet (Y) | B21: This sheet contains the CDCM input sheet for base year 0 (Y) in a format that can be copy and pasted (paste-value) into the CDCM spreadsheet model.
A22: CDCM Input Sheet (Y + 1) | B22: This sheet contains the CDCM input sheet for base year +1 (Y+1) in a format that can be copy and pasted (paste-value) into the CDCM spreadsheet model.
A23: CDCM Input Sheet (Y + 2) | B23: This sheet contains the CDCM input sheet for base year +2 (Y+2) in a format that can be copy and pasted (paste-value) into the CDCM spreadsheet model.
A24: CDCM Input Sheet (Y + 3) | B24: This sheet contains the CDCM input sheet for base year +3 (Y+3) in a format that can be copy and pasted (paste-value) into the CDCM spreadsheet model.
A25: CDCM Input Sheet (Y + 4) | B25: This sheet contains the CDCM input sheet for base year +4 (Y+4) in a format that can be copy and pasted (paste-value) into the CDCM spreadsheet model.
A26: Tariffs ARP | B26: This sheet contains the CDCM tariffs that are produced from the CDCM input data, after the Macro on this sheet has been run. It contains the tariffs for each of the 5 years.
A29: This document, model or dataset has been prepared by or for Reckon LLP on the instructions of the DCUSA Panel or
A30: one of its working groups. Only the DCUSA Panel and its working groups have authority to approve this
A31: material as meeting their requirements. Reckon LLP makes no representation about the suitability of this
A32: material for the purposes of complying with any licence conditions or furthering any relevant objective.

Sheet Commentary
B3: ='CDCM Forecast Data'!E3 -> WPD South Wales

Sheet CDCM Forecast Data
D3: Company: | E3: WPD South Wales
D4: Date of Issue: | E4: 2018-01-01
D5: Status | E5: ARP
C9: Historical CDCM Input Data (Actuals) | E9: ="CDCM Values - "&E5 -> CDCM Values - ARP | F9: Forecast CDCM Values
B10: Year Ref -> | C10: Y-2 | D10: Y-1 | E10: Y | F10: Y+1 | G10: Y+2 | H10: Y+3 | I10: Y+4
B11: Charging Year -> | C11: 2017/18 | D11: 2018/19 | E11: 2019/20 | F11: 2020/21 | G11: 2021/22 | H11: 2022/23 | I11: 2023/24
B12: DPCR -> | C12: RIIO - ED1 | D12: RIIO - ED1 | E12: RIIO - ED1 | F12: RIIO - ED1 | G12: RIIO - ED1 | H12: RIIO - ED1 | I12: RIIO - ED2 | J12: Assumptions
B13: RPI Forecast: | D13: 0.03479036574 | E13: 0.03103448276 | F13: 0.03177257525 | G13: 0.03079416532 | H13: 0.03144654088 | I13: 0.031
A14: 1 | B14: 1000 Company name, charging year and model version
A15: 2 | B15: Company | C15: =E3 -> WPD South Wales | D15: =C15 -> WPD South Wales | E15: =D15 -> WPD South Wales | F15: WPD South Wales | G15: WPD South Wales | H15: WPD South Wales | I15: WPD South Wales
A16: 3 | B16: Year | C16: =C11 -> 2017/18 | D16: =D11 -> 2018/19 | E16: 2019/20 | F16: 2020/21 | G16: 2021/22 | H16: 2022/23 | I16: 2023/24
A17: 4 | B17: Version | C17: Finals | D17: Finals | E17: Finals | F17: Forecast | G17: Forecast | H17: Forecast | I17: Forecast
A18: 5 | B18: 1010 Financial and general assumptions
A19: 6 | B19: Rate of return | C19: 0.0431 | D19: 0.0421 | E19: 0.0408 | F19: 0.0421 | G19: 0.0421 | H19: 0.0421 | I19: 0.0421
A20: 7 | B20: Annualisation period (years) | C20: 40 | D20: 40 | E20: 40 | F20: 40 | G20: 40 | H20: 40 | I20: 40
A21: 8 | B21: Power factor | C21: 0.95 | D21: 0.95 | E21: 0.95 | F21: 0.95 | G21: 0.95 | H21: 0.95 | I21: 0.95
A22: 9 | B22: Days in the charging period | C22: 365 | D22: 365 | E22: 366 | F22: 365 | G22: 365 | H22: 365 | I22: 366
A23: 10 | B23: 1017 Diversity allowance between top and bottom of network level
A24: 11 | B24: GSPs | C24: 0.06382978723 | D24: 0.06382978723 | E24: 0.06382978723 | F24: =E24 -> 0.06382978723 | G24: =F24 -> 0.06382978723 | H24: 0.06382978723 | I24: 0.06382978723
A25: 12 | B25: 132kV | C25: 0.053 | D25: 0.053 | E25: 0.053 | F25: =E25 -> 0.053 | G25: 0.053 | H25: 0.053 | I25: 0.053
A26: 13 | B26: EHV | C26: 0.099 | D26: 0.099 | E26: 0.099 | F26: 0.099 | G26: 0.099 | H26: 0.099 | I26: 0.099
A27: 14 | B27: HV | C27: 0.37 | D27: 0.37 | E27: 0.37 | F27: 0.37 | G27: 0.37 | H27: 0.37 | I27: 0.37
A28: 15 | B28: 1018 Proportion of relevant load going through 132kV/HV direct transformation | C28: 0.3 | D28: 0.3 | E28: 0.3 | F28: 0.3 | G28: 0.3 | H28: 0.3 | I28: 0.3
A29: 16 | B29: 1019 Network model GSP demand (MW) | C29: 500 | D29: 500 | E29: 500 | F29: 500 | G29: 500 | H29: 500 | I29: 500
A30: 17 | B30: 1020 Gross asset cost by network level (£)
A31: 18 | B31: 132kV | C31: 133758717.9 | D31: 137871798.5 | E31: 134609065.4 | F31: =E31*(1+F$13) -> 138885942.1 | G31: =F31*(1+G$13) -> 143162818.7 | H31: 147664794.1 | I31: 152242402.8
A32: 19 | B32: 132kV/EHV | C32: 11814327.31 | D32: 12177617.88 | E32: 12891261.17 | F32: 13300849.74 | G32: 13710438.3 | H32: 14141584.16 | I32: 14579973.27
A33: 20 | B33: EHV | C33: 35057444.53 | D33: 36135460.95 | E33: 33912714.89 | F33: 34990209.18 | G33: 36067703.47 | H33: 37201907.98 | I33: 38355167.13
A34: 21 | B34: EHV/HV | C34: 30499732.64 | D34: 31437599.42 | E34: 29229119.31 | F34: 30157803.7 | G34: 31086488.1 | H34: 32064050.61 | I34: 33058036.18
A35: 22 | B35: 132kV/HV | C35: 9821372.785 | D35: 10123380 | E35: 10770472.3 | F35: 11112677.94 | G35: 11454883.58 | H35: 11815100.05 | I35: 12181368.15
A36: 23 | B36: HV | C36: 147122629.8 | D36: 151646650.7 | E36: 152618877.9 | F36: 157467972.7 | G36: 162317067.5 | H36: 167421377.8 | I36: 172611440.5
A37: 24 | B37: HV/LV | C37: 56838107.74 | D37: 58585879.55 | E37: 57495908.47 | F37: 59322701.55 | G37: 61149494.63 | H37: 63072434.71 | I37: 65027680.19
A38: 25 | B38: LV circuits | C38: 117060731.6 | D38: 120660349.1 | E38: 129636887.9 | F38: 133755785.7 | G38: 137874683.5 | H38: 142210365.3 | I38: 146618886.7
A39: 26 | B39: 1022 LV service model asset cost (£)
A40: 27 | B40: LV service model 1 | C40: 5262.160904 | D40: 5423.972352 | E40: 4357.3283 | F40: =E40*(1+F$13) -> 4495.771841 | G40: 4634.215383 | H40: 4779.945426 | I40: 4928.123734
A41: 28 | B41: LV service model 2 | C41: 591.9404912 | D41: 610.1426613 | E41: 664.3320883 | F41: 685.4396296 | G41: 706.5471709 | H41: 728.7656354 | I41: 751.3573701
A42: 29 | B42: LV service model 3 | C42: 720.6833308 | D42: 742.8443432 | E42: 768.3550333 | F42: 792.7676514 | G42: 817.1802696 | H42: 842.8777623 | I42: 869.006973
A43: 30 | B43: LV service model 4 | C43: 534.4731483 | D43: 550.9081976 | E43: 557.61394 | F43: 575.3307709 | G43: 593.0476017 | H43: 611.6968974 | I43: 630.6595012
A44: 31 | B44: LV service model 5 | C44: 1214.976409 | D44: 1252.336934 | E44: 1230.218011 | F44: 1269.305205 | G44: 1308.392399 | H44: 1349.536814 | I44: 1391.372456
A45: 32 | B45: LV service model 6 | C45: 935.7907338 | D45: 964.5662989 | E45: 960.3594 | F45: 990.8724913 | G45: 1021.385583 | H45: 1053.504626 | I45: 1086.163269
A46: 33 | B46: LV service model 7 | C46: 0 | D46: 0 | E46: 0 | F46: 0 | G46: 0 | H46: 0 | I46: 0
A47: 34 | B47: LV service model 8 | C47: 489.4240134 | D47: 504.4738018 | E47: 525.61262 | F47: 542.3126865 | G47: 559.012753 | H47: 576.5917704 | I47: 594.4661153
A48: 35 | B48: 1023 HV service model asset cost (£)
A49: 36 | B49: HV service model 1 | C49: 9284.129939 | D49: 9569.616935 | E49: 10371.62568 | F49: =E49*(1+F$13) -> 10701.15894 | G49: 11030.69219 | H49: 11377.56931 | I49: 11730.27396
A50: 37 | B50: HV service model 2 | C50: 4476.192672 | D50: 4613.835597 | E50: 4264 | F50: 4399.478261 | G50: 4534.956522 | H50: 4677.565217 | I50: 4822.569739
A51: 38 | B51: HV service model 3 | C51: 0 | D51: 0 | E51: 0 | F51: 0 | G51: 0 | H51: 0 | I51: 0
A52: 39 | B52: HV service model 4 | C52: 0 | D52: 0 | E52: 0 | F52: 0 | G52: 0 | H52: 0 | I52: 0
A53: 40 | B53: HV service model 5 | C53: 0 | D53: 0 | E53: 0 | F53: 0 | G53: 0 | H53: 0 | I53: 0
A54: 41 | B54: 1025 Matrix of applicability of LV service models to tariffs with fixed charges
A55: 42 | B55: 1026 Matrix of applicability of LV service models to unmetered tariffs
A56: 43 | B56: 1028 Matrix of applicability of HV service models to tariffs with fixed charges
A57: 44 | B57: 1032 Loss adjustment factors to transmission
A58: 45 | B58: 132kV | C58: 1.009 | D58: 1.009 | E58: 1.009 | F58: =E58 -> 1.009 | G58: 1.009 | H58: 1.009 | I58: 1.009
A59: 46 | B59: 132kV/EHV | C59: 1.014 | D59: 1.014 | E59: 1.013 | F59: 1.013 | G59: 1.013 | H59: 1.013 | I59: 1.013
A60: 47 | B60: EHV | C60: 1.026 | D60: 1.026 | E60: 1.024 | F60: 1.024 | G60: 1.024 | H60: 1.024 | I60: 1.024
A61: 48 | B61: EHV/HV | C61: 1.033 | D61: 1.033 | E61: 1.032 | F61: 1.032 | G61: 1.032 | H61: 1.032 | I61: 1.032
A62: 49 | B62: HV | C62: 1.043 | D62: 1.043 | E62: 1.041 | F62: 1.041 | G62: 1.041 | H62: 1.041 | I62: 1.041
A63: 50 | B63: HV/LV | C63: 1.063 | D63: 1.063 | E63: 1.059 | F63: 1.059 | G63: 1.059 | H63: 1.059 | I63: 1.059
A64: 51 | B64: LV circuits | C64: 1.084 | D64: 1.084 | E64: 1.077 | F64: 1.077 | G64: 1.077 | H64: 1.077 | I64: 1.077
A65: 52 | B65: 1037 Embedded network (LDNO) discounts
A66: 53 | B66: LDNO LV: LV user | C66: 0.3206706331 | D66: 0.3265203519 | E66: 0.3199255301 | F66: =E66 -> 0.3199255301 | G66: 0.3199255301 | H66: 0.3199255301 | I66: 0.3199255301
A67: 54 | B67: LDNO HV: LV user | C67: 0.6401612438 | D67: 0.6369651795 | E67: 0.6334761221 | F67: 0.6334761221 | G67: 0.6334761221 | H67: 0.6334761221 | I67: 0.6334761221
A68: 55 | B68: LDNO HV: LV sub user | C68: 0.4512196943 | D68: 0.4442337423 | E68: 0.4384885799 | F68: 0.4384885799 | G68: 0.4384885799 | H68: 0.4384885799 | I68: 0.4384885799
A69: 56 | B69: LDNO HV: HV user | C69: 0.3401876092 | D69: 0.3299493231 | E69: 0.3226874527 | F69: 0.3226874527 | G69: 0.3226874527 | H69: 0.3226874527 | I69: 0.3226874527
A70: 57 | B70: 1041 Load profile data for demand users: coincidence factor
A71: 58 | B71: Domestic Unrestricted | C71: 0.8836671545 | D71: 0.8925890111 | E71: 0.9157074753 | F71: =E71 -> 0.9157074753 | G71: 0.9157074753 | H71: 0.9157074753 | I71: 0.9157074753
A72: 59 | B72: Domestic Two Rate | C72: 0.3160482598 | D72: 0.3381021485 | E72: 0.3567074092 | F72: 0.3567074092 | G72: 0.3567074092 | H72: 0.3567074092 | I72: 0.3567074092
A73: 60 | B73: Domestic Off Peak (related MPAN) | C73: 0
A74: 61 | B74: Small Non Domestic Unrestricted | C74: 0.6047974328 | D74: 0.5576602857 | E74: 0.5092286883 | F74: =E74 -> 0.5092286883 | G74: 0.5092286883 | H74: 0.5092286883 | I74: 0.5092286883
A75: 62 | B75: Small Non Domestic Two Rate | C75: 0.7440618065 | D75: 0.7369766679 | E75: 0.7364077701 | F75: 0.7364077701 | G75: 0.7364077701 | H75: 0.7364077701 | I75: 0.7364077701
A76: 63 | B76: Small Non Domestic Off Peak (related MPAN) | C76: 0
A77: 64 | B77: LV Medium Non-Domestic | C77: 0.7485066529 | D77: 0.716354546 | E77: 0.716354546 | F77: =E77 -> 0.716354546 | G77: 0.716354546 | H77: 0.716354546 | I77: 0.716354546
A78: 65 | B78: LV Sub Medium Non-Domestic | C78: 0.7485066529 | D78: 0.716354546 | E78: 0.716354546 | F78: 0.716354546 | G78: 0.716354546 | H78: 0.716354546 | I78: 0.716354546
A79: 66 | B79: HV Medium Non-Domestic | C79: 0.5012726352 | D79: 0.4954831119 | E79: 0.4954831119 | F79: 0.4954831119 | G79: 0.4954831119 | H79: 0.4954831119 | I79: 0.4954831119
A80: 67 | B80: LV Network Domestic | C80: 0.8515297377 | D80: 0.861195103 | E80: 0.8840580388 | F80: 0.8840580388 | G80: 0.8840580388 | H80: 0.8840580388 | I80: 0.8840580388
A81: 68 | B81: LV Network Non-Domestic Non-CT | C81: 0.6290130968 | D81: 0.5888403007 | E81: 0.5487311983 | F81: 0.5487311983 | G81: 0.5487311983 | H81: 0.5487311983 | I81: 0.5487311983
A82: 69 | B82: LV HH Metered | C82: 0.7602834676 | D82: 0.740232814 | E82: 0.740232814 | F82: 0.740232814 | G82: 0.740232814 | H82: 0.740232814 | I82: 0.740232814
A83: 70 | B83: LV Sub HH Metered | C83: 0.7602834676 | D83: 0.7407017687 | E83: 0.7199425784 | F83: 0.7199425784 | G83: 0.7199425784 | H83: 0.7199425784 | I83: 0.7199425784
A84: 71 | B84: HV HH Metered | C84: 0.8417046494 | D84: 0.820514762 | E84: 0.7989789566 | F84: 0.7989789566 | G84: 0.7989789566 | H84: 0.7989789566 | I84: 0.7989789566
A85: 72 | B85: NHH UMS category A | C85: 1 | D85: 1 | E85: 1 | F85: 1 | G85: 1 | H85: 1 | I85: 1
A86: 73 | B86: NHH UMS category B | C86: 0.9767182093 | D86: 0.9828346759 | E86: 0.9828346759 | F86: 0.9828346759 | G86: 0.9828346759 | H86: 0.9828346759 | I86: 0.9828346759
A87: 74 | B87: NHH UMS category C | C87: 0.5331096977 | D87: 0.7465365514 | E87: 0.7826086957 | F87: 0.7826086957 | G87: 0.7826086957 | H87: 0.7826086957 | I87: 0.7826086957
A88: 75 | B88: NHH UMS category D | C88: 0 | D88: 0 | E88: 0 | F88: 0 | G88: 0 | H88: 0 | I88: 0
A89: 76 | B89: LV UMS (Pseudo HH Metered) | C89: 0.9653276569 | D89: 0.961630254 | E89: 0.9477164255 | F89: 0.9477164255 | G89: 0.9477164255 | H89: 0.9477164255 | I89: 0.9477164255
A90: 77 | B90: 1041 Load profile data for demand users: load factor
A91: 78 | B91: Domestic Unrestricted | C91: 0.4440943126 | D91: 0.437409514 | E91: 0.4308052566 | F91: =E91 -> 0.4308052566 | G91: 0.4308052566 | H91: 0.4308052566 | I91: 0.4308052566
A92: 79 | B92: Domestic Two Rate | C92: 0.2650916607 | D92: 0.2744596515 | E92: 0.2769210098 | F92: 0.2769210098 | G92: 0.2769210098 | H92: 0.2769210098 | I92: 0.2769210098
A93: 80 | B93: Domestic Off Peak (related MPAN) | C93: 0.1863716231 | D93: 0.1896615582 | E93: 0.1956368053 | F93: 0.1956368053 | G93: 0.1956368053 | H93: 0.1956368053 | I93: 0.1956368053
A94: 81 | B94: Small Non Domestic Unrestricted | C94: 0.4177161127 | D94: 0.4181920917 | E94: 0.4165839085 | F94: 0.4165839085 | G94: 0.4165839085 | H94: 0.4165839085 | I94: 0.4165839085
A95: 82 | B95: Small Non Domestic Two Rate | C95: 0.5728234065 | D95: 0.5820451187 | E95: 0.5852649537 | F95: 0.5852649537 | G95: 0.5852649537 | H95: 0.5852649537 | I95: 0.5852649537
A96: 83 | B96: Small Non Domestic Off Peak (related MPAN) | C96: 0.1998889788 | D96: 0.2014949177 | E96: 0.2022777614 | F96: 0.2022777614 | G96: 0.2022777614 | H96: 0.2022777614 | I96: 0.2022777614
A97: 84 | B97: LV Medium Non-Domestic | C97: 0.5488533432 | D97: 0.5424317404 | E97: 0.5424317404 | F97: 0.5424317404 | G97: 0.5424317404 | H97: 0.5424317404 | I97: 0.5424317404
A98: 85 | B98: LV Sub Medium Non-Domestic | C98: 0.5488533432 | D98: 0.5424317404 | E98: 0.5424317404 | F98: 0.5424317404 | G98: 0.5424317404 | H98: 0.5424317404 | I98: 0.5424317404
A99: 86 | B99: HV Medium Non-Domestic | C99: 0.3563110848 | D99: 0.4157772318 | E99: 0.4157772318 | F99: 0.4157772318 | G99: 0.4157772318 | H99: 0.4157772318 | I99: 0.4157772318
A100: 87 | B100: LV Network Domestic | C100: 0.4337159746 | D100: 0.427948971 | E100: 0.4218698608 | F100: 0.4218698608 | G100: 0.4218698608 | H100: 0.4218698608 | I100: 0.4218698608
A101: 88 | B101: LV Network Non-Domestic Non-CT | C101: 0.443772233 | D101: 0.445767484 | E101: 0.4450046047 | F101: 0.4450046047 | G101: 0.4450046047 | H101: 0.4450046047 | I101: 0.4450046047
A102: 89 | B102: LV HH Metered | C102: 0.5898743286 | D102: 0.5877566842 | E102: 0.5877566842 | F102: 0.5877566842 | G102: 0.5877566842 | H102: 0.5877566842 | I102: 0.5877566842
A103: 90 | B103: LV Sub HH Metered | C103: 0.5898743286 | D103: 0.5881479691 | E103: 0.5962079802 | F103: 0.5962079802 | G103: 0.5962079802 | H103: 0.5962079802 | I103: 0.5962079802
A104: 91 | B104: HV HH Metered | C104: 0.7379933176 | D104: 0.7348294733 | E104: 0.7321391305 | F104: 0.7321391305 | G104: 0.7321391305 | H104: 0.7321391305 | I104: 0.7321391305
A105: 92 | B105: NHH UMS category A | C105: 1 | D105: 1 | E105: 1 | F105: 1 | G105: 1 | H105: 1 | I105: 1
A106: 93 | B106: NHH UMS category B | C106: 0.4751862168 | D106: 0.4749623463 | E106: 0.4753987679 | F106: 0.4753987679 | G106: 0.4753987679 | H106: 0.4753987679 | I106: 0.4753987679
A107: 94 | B107: NHH UMS category C | C107: 0.244083768 | D107: 0.2620948193 | E107: 0.2733634899 | F107: =E107 -> 0.2733634899 | G107: 0.2733634899 | H107: 0.2733634899 | I107: 0.2733634899
A108: 95 | B108: NHH UMS category D | C108: 0.5155189536 | D108: 0.515542486 | E108: 0.5155660185 | F108: 0.5155660185 | G108: 0.5155660185 | H108: 0.5155660185 | I108: 0.5155660185
A109: 96 | B109: LV UMS (Pseudo HH Metered) | C109: 0.4671795638 | D109: 0.4584492601 | E109: 0.4501908686 | F109: 0.4501908686 | G109: 0.4501908686 | H109: 0.4501908686 | I109: 0.4501908686
A110: 97 | B110: 1053. Volume forecasts for the charging year
A111: 98 | B111: 1055 Transmission exit charges (£/year) | C111: 11444160.81 | D111: 11262189.06 | E111: 11342977.3 | F111: 11703372.9 | G111: 12063768.5 | H111: 12613692.29 | I111: =H111*(1+I$13) -> 13004716.75
A112: 99 | B112: 1059 Other Expenditure (£/year)
A113: 100 | B113: Direct cost (£/year) | C113: 18253433.83 | D113: 23157412.41 | E113: 24823838.65 | F113: 25612555.93 | G113: 26401273.21 | H113: 27231501.93 | I113: 28075678.49
A114: 101 | B114: Indirect cost (£/year) | C114: 61291884.86 | D114: 65849516.19 | E114: 66956805.21 | F114: 69084195.34 | G114: 71211585.47 | H114: 73450943.51 | I114: 75727922.76
A115: 102 | B115: Indirect cost proportion | C115: 0.6 | D115: 0.6 | E115: 0.6 | F115: 0.6 | G115: 0.6 | H115: 0.6 | I115: 0.6
A116: 103 | B116: Network rates (£/year) | C116: 21274812 | D116: 13690350.44 | E116: 14127199.32 | F116: 14551015.3 | G116: 14987545.76 | H116: 15437172.13 | I116: 15915724.47
A117: 104 | B117: 1060 Customer contributions under current connection charging policy
A118: 105 | B118: LV network
A119: 106 | B119: Assets 132kV | C119: 0 | D119: 0 | E119: 0 | F119: =E119 -> 0 | G119: 0 | H119: 0 | I119: 0
A120: 107 | B120: Assets 132kV/EHV | C120: 0 | D120: 0 | E120: 0 | F120: 0 | G120: 0 | H120: 0 | I120: 0
A121: 108 | B121: Assets EHV | C121: 0 | D121: 0 | E121: 0 | F121: 0 | G121: 0 | H121: 0 | I121: 0
A122: 109 | B122: Assets EHV/HV | C122: 0.75 | D122: 0.75 | E122: 0.75 | F122: 0.75 | G122: 0.75 | H122: 0.75 | I122: 0.75
A123: 110 | B123: Assets 132kV/HV | C123: 0.75 | D123: 0.75 | E123: 0.75 | F123: 0.75 | G123: 0.75 | H123: 0.75 | I123: 0.75
A124: 111 | B124: Assets HV | C124: 0.75 | D124: 0.75 | E124: 0.75 | F124: 0.75 | G124: 0.75 | H124: 0.75 | I124: 0.75
A125: 112 | B125: Assets HV/LV | C125: 0.95 | D125: 0.95 | E125: 0.95 | F125: 0.95 | G125: 0.95 | H125: 0.95 | I125: 0.95
A126: 113 | B126: Assets LV circuits | C126: 0.95 | D126: 0.95 | E126: 0.95 | F126: 0.95 | G126: 0.95 | H126: 0.95 | I126: 0.95
A127: 114 | B127: LV substation
A128: 115 | B128: Assets 132kV | C128: 0 | D128: 0 | E128: 0 | F128: =E128 -> 0 | G128: 0 | H128: 0 | I128: 0
A129: 116 | B129: Assets 132kV/EHV | C129: 0 | D129: 0 | E129: 0 | F129: 0 | G129: 0 | H129: 0 | I129: 0
A130: 117 | B130: Assets EHV | C130: 0 | D130: 0 | E130: 0 | F130: 0 | G130: 0 | H130: 0 | I130: 0
A131: 118 | B131: Assets EHV/HV | C131: 0.75 | D131: 0.75 | E131: 0.75 | F131: 0.75 | G131: 0.75 | H131: 0.75 | I131: 0.75
A132: 119 | B132: Assets 132kV/HV | C132: 0.75 | D132: 0.75 | E132: 0.75 | F132: 0.75 | G132: 0.75 | H132: 0.75 | I132: 0.75
A133: 120 | B133: Assets HV | C133: 0.75 | D133: 0.75 | E133: 0.75 | F133: 0.75 | G133: 0.75 | H133: 0.75 | I133: 0.75
A134: 121 | B134: Assets HV/LV | C134: 0.95 | D134: 0.95 | E134: 0.95 | F134: 0.95 | G134: 0.95 | H134: 0.95 | I134: 0.95
A135: 122 | B135: HV network
A136: 123 | B136: Assets 132kV | C136: 0 | D136: 0 | E136: 0 | F136: =E136 -> 0 | G136: 0 | H136: 0 | I136: 0
A137: 124 | B137: Assets 132kV/EHV | C137: 0.36 | D137: 0.36 | E137: 0.36 | F137: 0.36 | G137: 0.36 | H137: 0.36 | I137: 0.36
A138: 125 | B138: Assets EHV | C138: 0.36 | D138: 0.36 | E138: 0.36 | F138: 0.36 | G138: 0.36 | H138: 0.36 | I138: 0.36
A139: 126 | B139: Assets EHV/HV | C139: 0.91 | D139: 0.91 | E139: 0.91 | F139: 0.91 | G139: 0.91 | H139: 0.91 | I139: 0.91
A140: 127 | B140: Assets 132kV/HV | C140: 0.91 | D140: 0.91 | E140: 0.91 | F140: 0.91 | G140: 0.91 | H140: 0.91 | I140: 0.91
A141: 128 | B141: Assets HV | C141: 0.91 | D141: 0.91 | E141: 0.91 | F141: 0.91 | G141: 0.91 | H141: 0.91 | I141: 0.91
A142: 129 | B142: HV substation
A143: 130 | B143: Assets 132kV | C143: 0 | D143: 0 | E143: 0 | F143: =E143 -> 0 | G143: 0 | H143: 0 | I143: 0
A144: 131 | B144: Assets 132kV/EHV | C144: 0.36 | D144: 0.36 | E144: 0.36 | F144: 0.36 | G144: 0.36 | H144: 0.36 | I144: 0.36
A145: 132 | B145: Assets EHV | C145: 0.36 | D145: 0.36 | E145: 0.36 | F145: 0.36 | G145: 0.36 | H145: 0.36 | I145: 0.36
A146: 133 | B146: Assets EHV/HV | C146: 0.91 | D146: 0.91 | E146: 0.91 | F146: 0.91 | G146: 0.91 | H146: 0.91 | I146: 0.91
A147: 134 | B147: 1061 Average split of rate 1 units by distribution time band
A148: 135 | B148: RED
A149: 136 | B149: Domestic Unrestricted | C149: 0.1126758163 | D149: 0.1126755606 | E149: 0.1123907055 | F149: =E149 -> 0.1123907055 | G149: 0.1123907055 | H149: 0.1123907055 | I149: 0.1123907055
A150: 137 | B150: Domestic Two Rate | C150: 0.1325992941 | D150: 0.1335815843 | E150: 0.1338426513 | F150: 0.1338426513 | G150: 0.1338426513 | H150: 0.1338426513 | I150: 0.1338426513
A151: 138 | B151: Domestic Off Peak (related MPAN) | C151: 2.308973979e-06 | D151: 2.025214734e-06 | E151: 2.025214734e-06 | F151: 2.025214734e-06 | G151: 2.025214734e-06 | H151: 2.025214734e-06 | I151: 2.025214734e-06
A152: 139 | B152: Small Non Domestic Unrestricted | C152: 0.07129309792 | D152: 0.07200605097 | E152: 0.07252185348 | F152: 0.07252185348 | G152: 0.07252185348 | H152: 0.07252185348 | I152: 0.07252185348
A153: 140 | B153: Small Non Domestic Two Rate | C153: 0.09932805691 | D153: 0.1008012076 | E153: 0.1025605465 | F153: 0.1025605465 | G153: 0.1025605465 | H153: 0.1025605465 | I153: 0.1025605465
A154: 141 | B154: Small Non Domestic Off Peak (related MPAN) | C154: 0.0001495254202 | D154: 0.0001535028502 | E154: 0.0001049548366 | F154: 0.0001049548366 | G154: 0.0001049548366 | H154: 0.0001049548366 | I154: 0.0001049548366
A155: 142 | B155: LV Medium Non-Domestic | C155: 0.1040375874 | D155: 0.1047277834 | E155: 0.1049294958 | F155: 0.1049294958 | G155: 0.1049294958 | H155: 0.1049294958 | I155: 0.1049294958
A156: 143 | B156: LV Sub Medium Non-Domestic | C156: 0.1004580633 | D156: 0.09966217557 | E156: 0.100232529 | F156: 0.100232529 | G156: 0.100232529 | H156: 0.100232529 | I156: 0.100232529
A157: 144 | B157: HV Medium Non-Domestic | C157: 0.09881162887 | D157: 0.09934777167 | E157: 0.09979665962 | F157: 0.09979665962 | G157: 0.09979665962 | H157: 0.09979665962 | I157: 0.09979665962
A158: 145 | B158: AMBER
A159: 146 | B159: Domestic Unrestricted | C159: 0.5036538505 | D159: 0.5033010592 | E159: 0.5021999614 | F159: =E159 -> 0.5021999614 | G159: 0.5021999614 | H159: 0.5021999614 | I159: 0.5021999614
A160: 147 | B160: Domestic Two Rate | C160: 0.5821746111 | D160: 0.5857261577 | E160: 0.5885786491 | F160: 0.5885786491 | G160: 0.5885786491 | H160: 0.5885786491 | I160: 0.5885786491
A161: 148 | B161: Domestic Off Peak (related MPAN) | C161: 0.1704497576 | D161: 0.1684558038 | E161: 0.1682805478 | F161: 0.1682805478 | G161: 0.1682805478 | H161: 0.1682805478 | I161: 0.1682805478
A162: 149 | B162: Small Non Domestic Unrestricted | C162: 0.5816906528 | D162: 0.5798679947 | E162: 0.5786751905 | F162: 0.5786751905 | G162: 0.5786751905 | H162: 0.5786751905 | I162: 0.5786751905
A163: 150 | B163: Small Non Domestic Two Rate | C163: 0.664231454 | D163: 0.6634020497 | E163: 0.6610461702 | F163: 0.6610461702 | G163: 0.6610461702 | H163: 0.6610461702 | I163: 0.6610461702
A164: 151 | B164: Small Non Domestic Off Peak (related MPAN) | C164: 0.1755247011 | D164: 0.1777963753 | E164: 0.175699299 | F164: 0.175699299 | G164: 0.175699299 | H164: 0.175699299 | I164: 0.175699299
A165: 152 | B165: LV Medium Non-Domestic | C165: 0.6750633216 | D165: 0.6742642204 | E165: 0.673679717 | F165: 0.673679717 | G165: 0.673679717 | H165: 0.673679717 | I165: 0.673679717
A166: 153 | B166: LV Sub Medium Non-Domestic | C166: 0.6848938762 | D166: 0.6878179842 | E166: 0.685423438 | F166: 0.685423438 | G166: 0.685423438 | H166: 0.685423438 | I166: 0.685423438
A167: 154 | B167: HV Medium Non-Domestic | C167: 0.6943302736 | D167: 0.693925719 | E167: 0.693854193 | F167: 0.693854193 | G167: 0.693854193 | H167: 0.693854193 | I167: 0.693854193
A168: 155 | B168: GREEN
A169: 156 | B169: Domestic Unrestricted | C169: 0.3836703332 | D169: 0.3840233802 | E169: 0.3854093331 | F169: =E169 -> 0.3854093331 | G169: 0.3854093331 | H169: 0.3854093331 | I169: 0.3854093331
A170: 157 | B170: Domestic Two Rate | C170: 0.2852260949 | D170: 0.280692258 | E170: 0.2775786997 | F170: 0.2775786997 | G170: 0.2775786997 | H170: 0.2775786997 | I170: 0.2775786997
A171: 158 | B171: Domestic Off Peak (related MPAN) | C171: 0.8295479335 | D171: 0.831542171 | E171: 0.831717427 | F171: 0.831717427 | G171: 0.831717427 | H171: 0.831717427 | I171: 0.831717427
A172: 159 | B172: Small Non Domestic Unrestricted | C172: 0.3470162493 | D172: 0.3481259543 | E172: 0.348802956 | F172: 0.348802956 | G172: 0.348802956 | H172: 0.348802956 | I172: 0.348802956
A173: 160 | B173: Small Non Domestic Two Rate | C173: 0.2364404891 | D173: 0.2357967427 | E173: 0.2363932833 | F173: 0.2363932833 | G173: 0.2363932833 | H173: 0.2363932833 | I173: 0.2363932833
A174: 161 | B174: Small Non Domestic Off Peak (related MPAN) | C174: 0.8243257735 | D174: 0.8220501219 | E174: 0.8241957461 | F174: 0.8241957461 | G174: 0.8241957461 | H174: 0.8241957461 | I174: 0.8241957461
A175: 162 | B175: LV Medium Non-Domestic | C175: 0.220899091 | D175: 0.2210079962 | E175: 0.2213907873 | F175: 0.2213907873 | G175: 0.2213907873 | H175: 0.2213907873 | I175: 0.2213907873
A176: 163 | B176: LV Sub Medium Non-Domestic | C176: 0.2146480605 | D176: 0.2125198402 | E176: 0.214344033 | F176: 0.214344033 | G176: 0.214344033 | H176: 0.214344033 | I176: 0.214344033
A177: 164 | B177: HV Medium Non-Domestic | C177: 0.2068580975 | D177: 0.2067265094 | E177: 0.2063491474 | F177: 0.2063491474 | G177: 0.2063491474 | H177: 0.2063491474 | I177: 0.2063491474
A178: 165 | B178: 1062 Average split of rate 2 units by distribution time band
A179: 166 | B179: RED
A180: 167 | B180: Domestic Two Rate | C180: 0 | D180: 0 | E180: 0 | F180: =E180 -> 0 | G180: 0 | H180: 0 | I180: 0
A181: 168 | B181: Small Non Domestic Two Rate | C181: 0 | D181: 0 | E181: 0 | F181: 0 | G181: 0 | H181: 0 | I181: 0
A182: 169 | B182: LV Medium Non-Domestic | C182: 0 | D182: 0 | E182: 0 | F182: 0 | G182: 0 | H182: 0 | I182: 0
A183: 170 | B183: LV Sub Medium Non-Domestic | C183: 0 | D183: 0 | E183: 0 | F183: 0 | G183: 0 | H183: 0 | I183: 0
A184: 171 | B184: HV Medium Non-Domestic | C184: 0 | D184: 0 | E184: 0 | F184: 0 | G184: 0 | H184: 0 | I184: 0
A185: 172 | B185: AMBER
A186: 173 | B186: Domestic Two Rate | C186: 0.0296997098 | D186: 0.03146556701 | E186: 0.03214120975 | F186: =E186 -> 0.03214120975 | G186: 0.03214120975 | H186: 0.03214120975 | I186: 0.03214120975
A187: 174 | B187: Small Non Domestic Two Rate | C187: 0.06096912644 | D187: 0.06331332049 | E187: 0.06425696893 | F187: 0.06425696893 | G187: 0.06425696893 | H187: 0.06425696893 | I187: 0.06425696893
A188: 175 | B188: LV Medium Non-Domestic | C188: 0.006029332197 | D188: 0.007246115031 | E188: 0.008673122684 | F188: 0.008673122684 | G188: 0.008673122684 | H188: 0.008673122684 | I188: 0.008673122684
A189: 176 | B189: LV Sub Medium Non-Domestic | C189: 0.001699813363 | D189: 0 | E189: 0 | F189: 0 | G189: 0 | H189: 0 | I189: 0
A190: 177 | B190: HV Medium Non-Domestic | C190: 0 | D190: 0 | E190: 0 | F190: 0 | G190: 0 | H190: 0 | I190: 0
A191: 178 | B191: GREEN
A192: 179 | B192: Domestic Two Rate | C192: 0.9703002902 | D192: 0.968534433 | E192: 0.9678587903 | F192: =E192 -> 0.9678587903 | G192: 0.9678587903 | H192: 0.9678587903 | I192: 0.9678587903
A193: 180 | B193: Small Non Domestic Two Rate | C193: 0.9390308736 | D193: 0.9366866795 | E193: 0.9357430311 | F193: 0.9357430311 | G193: 0.9357430311 | H193: 0.9357430311 | I193: 0.9357430311
A194: 181 | B194: LV Medium Non-Domestic | C194: 0.9939706678 | D194: 0.992753885 | E194: 0.9913268773 | F194: 0.9913268773 | G194: 0.9913268773 | H194: 0.9913268773 | I194: 0.9913268773
A195: 182 | B195: LV Sub Medium Non-Domestic | C195: 0.9983001866 | D195: 1 | E195: 1 | F195: 1 | G195: 1 | H195: 1 | I195: 1
A196: 183 | B196: HV Medium Non-Domestic | C196: 1 | D196: 1 | E196: 1 | F196: 1 | G196: 1 | H196: 1 | I196: 1
A197: 184 | B197: 1064. Average split of rate 1 units by special distribution time band
A198: 185 | B198: BLACK
A199: 186 | B199: NHH UMS category A | C199: 0.02187975647 | D199: 0.02166974408 | E199: 0.0215746147 | F199: =E199 -> 0.0215746147 | G199: 0.0215746147 | H199: 0.0215746147 | I199: 0.0215746147
A200: 187 | B200: NHH UMS category B | C200: 0.04279438148 | D200: 0.04227149232 | E200: 0.04203512099 | F200: 0.04203512099 | G200: 0.04203512099 | H200: 0.04203512099 | I200: 0.04203512099
A201: 188 | B201: NHH UMS category C | C201: 0.07277369998 | D201: 0.0700377786 | E201: 0.0711505055 | F201: 0.0711505055 | G201: 0.0711505055 | H201: 0.0711505055 | I201: 0.0711505055
A202: 189 | B202: NHH UMS category D | C202: 0.00225671726 | D202: 0.002246816796 | E202: 0.002246816796 | F202: 0.002246816796 | G202: 0.002246816796 | H202: 0.002246816796 | I202: 0.002246816796
A203: 190 | B203: YELLOW
A204: 191 | B204: NHH UMS category A | C204: 0.4810502283 | D204: 0.481675587 | E204: 0.4817707164 | F204: =E204 -> 0.4817707164 | G204: 0.4817707164 | H204: 0.4817707164 | I204: 0.4817707164
A205: 192 | B205: NHH UMS category B | C205: 0.1969643534 | D205: 0.1963487969 | E205: 0.1950812857 | F205: 0.1950812857 | G205: 0.1950812857 | H205: 0.1950812857 | I205: 0.1950812857
... 66 more rows

Sheet Table 1
A1: Schedule 15 table 1
A2: ="Company Name: "&'CDCM Forecast Data'!E3 -> Company Name: WPD South Wales
A3: Date:
A5: Description | B5: Licence Term | C5: CRC | K5: Assumptions
A6: Regulatory Year | D6: t-2 | E6: t-1 | F6: t | G6: t+1 | H6: t+2 | I6: t+3 | J6: t+4
A7: Regulatory Year | D7: ='CDCM Forecast Data'!C11 -> 2017/18 | E7: ='CDCM Forecast Data'!D11 -> 2018/19 | F7: ='CDCM Forecast Data'!E11 -> 2019/20 | G7: ='CDCM Forecast Data'!F11 -> 2020/21 | H7: ='CDCM Forecast Data'!G11 -> 2021/22 | I7: ='CDCM Forecast Data'!H11 -> 2022/23 | J7: ='CDCM Forecast Data'!I11 -> 2023/24
A8: Base Demand Revenue Before Inflation (A1) | B8: PU | C8: CRC2A | D8: 208.2 | E8: 210.3 | F8: 212.4 | G8: 214.5 | H8: 216.7 | I8: 218.9 | J8: 218.9
A9: Annual Iteration adjustment before inflation (A2) | B9: MOD | C9: CRC2A | D9: -2.943743654 | E9: -5.035301642 | F9: -5.535800007 | G9: -9.814953356 | H9: -11.90377557 | I9: -14.16945319 | J9: 0
A10: RPI True-up before inflation (A3) | B10: TRU | C10: CRC2A | D10: -4.38172579 | E10: -0.8013657116 | F10: 0.1509316385 | G10: 0 | H10: 0 | I10: 0 | J10: 0
A11: Price index adjustment (RPI index) (A4) | B11: RPIF | C11: CRC2A | D11: 1.121 | E11: =(1+'CDCM Forecast Data'!D13)*D11 -> 1.16 | F11: =(1+'CDCM Forecast Data'!E13)*E11 -> 1.196 | G11: =(1+'CDCM Forecast Data'!F13)*F11 -> 1.234 | H11: =(1+'CDCM Forecast Data'!G13)*G11 -> 1.272 | I11: =(1+'CDCM Forecast Data'!H13)*H11 -> 1.312 | J11: =(1+'CDCM Forecast Data'!I13)*I11 -> 1.352672
A12: Base Demand Revenue (A): [A = (A1 + A2 + A3) * A4] | B12: BR | C12: CRC2A | D12: =(D8+D9+D10)*D11 -> 225.1803488 | E12: =(E8+E9+E10)*E11 -> 237.1774659 | F12: 247.5900974 | G12: 252.5813476 | H12: 260.5007975 | I12: 268.6064774 | J12: 296.0999008 | K12: A = (A1 + A2 + A3) * A4
A13: Pass-Through Licence Fees (B1) | B13: LF | C13: CRC2B | D13: 0.1729948735 | E13: 0.04158650666 | F13: 0.2316967843 | G13: 0.2380992307 | H13: 0.2441904091 | I13: 0.2507405784 | J13: 0.2507405784
A14: Pass-Through Business Rates (B2) | B14: RB | C14: CRC2B | D14: 0.07526362012 | E14: -0.1658965845 | F14: -9.400410292 | G14: -9.610553467 | H14: -9.8573391 | I14: -10.14993612 | J14: -10.14993612
A15: Pass-Through Transmission Connection Point Charges (B3) | B15: TB | C15: CRC2B | D15: 3.558256462 | E15: 1.520982879 | F15: 1.096102427 | G15: 1.165955256 | H15: 1.19578333 | I15: 1.227859051 | J15: 1.227859051
A16: Pass-through Smart Meter Communication Licence Costs (B4) | B16: SMC | C16: CRC2B | D16: 0.0006897101798 | E16: 0.27096229 | F16: 0.319944644 | G16: 0.5871527016 | H16: 0.5655619302 | I16: 0.7639240996 | J16: 0.7639240996
A17: Pass-through Smart Meter IT Costs (B5) | B17: SMIT | C17: CRC2B | D17: -0.06668795835 | E17: -0.04965786587 | F17: 0.1745179608 | G17: -0.155169175 | H17: 0.2564423253 | I17: -0.3189959835 | J17: -0.3189959835
A18: Pass-through Ring Fence Costs | B18: RF | C18: CRC2B | D18: 0.01470680074 | E18: 0.01527428149 | F18: 0.01570353338 | G18: 0.01613746703 | H18: 0.0165503041 | I18: 0.01699424986 | J18: 0.01699424986
A19: Pass-Through Others (B5) | B19: HB, SEC, UNC | C19: CRC2B
A20: Allowed Pass-Through Items (B): [B = B1 + B2 + B3 +B4 + B5 + B6 + B7] | B20: PT | C20: CRC2B | D20: =SUM(D13:D19) -> 3.755223508 | E20: =SUM(E13:E19) -> 1.633251507 | F20: -7.562444943 | G20: -7.758377987 | H20: -7.578810801 | I20: -8.20941413 | J20: -8.20941413 | K20: B = B1 + B2 + B3 +B4 + B5 + B6 + B7
A21: Broad Measure of Customer Service incentive (C1) | B21: BM | C21: CRC2C | D21: 2.748341007 | E21: 2.560190411 | F21: 2.961516851 | G21: 3.06248584 | H21: 3.157528504 | I21: 3.257851316 | J21: 3.257851316
A22: Quality of Service incentive (C2) | B22: IQ | C22: CRC2D | D22: 5.217799153 | E22: 5.858639013 | F22: 3.029726537 | G22: 3.115465316 | H22: 2.622224999 | I22: 2.243560294 | J22: 2.243560294
A23: Connections Engagement incentive (C3) | B23: ICE | C23: CRC2E | D23: 0 | E23: 0 | F23: 0 | G23: 0 | H23: 0 | I23: 0 | J23: 0
A24: Time to Connect incentive (C4) | B24: TTC | C24: CRC2F | D24: 0.4846707849 | E24: 0.7233601994 | F24: 0.829538002 | G24: 0.85782 | H24: 0.884442 | I24: 0.912543 | J24: 0.912543
A25: Losses Discretionary Reward incentive (C5) | B25: LDR | C25: CRC2G | D25: 0.04484 | E25: 0 | F25: 0.04784 | G25: 0 | H25: 0.05088 | I25: 0 | J25: 0
A26: Network Innovation Allowance (C6) | B26: NIA | C26: CRC2H | D26: 0.9123569787 | E26: 0.8373569787 | F26: 0.7536212808 | G26: 0.6782591527 | H26: 0.5426073222 | I26: 0.3798251255 | J26: 0.3798251255
A27: Low Carbon Network Fund - Tier 1 unrecoverable (C7) | B27: LCN1 | C27: CRC2J | D27: 0 | E27: 0 | F27: 0 | G27: 0 | H27: 0 | I27: 0 | J27: 0
A28: Low Carbon Network Fund - Tier 2 & Discretionary Funding (C7) | B28: LCN2 | C28: CRC2J | D28: 0.5564073295 | E28: 0.1189073295 | F28: 0.1189073295 | G28: 0.1189073295 | H28: 0.1189073295 | I28: 0.1189073295 | J28: 0.1189073295
A29: Connection Guaranteed Standards Systems & Processes penalty (C8) | B29: AUM, CGSRA | C29: CRC2K-L | D29: 0 | E29: 0 | F29: 0 | G29: 0 | H29: 0 | I29: 0 | J29: 0
A30: Residual Losses and Growth Incentive - Losses (C9) | B30: PPL | C30: CRC2M | D30: 0 | E30: 0 | F30: 0 | G30: 0 | H30: 0 | I30: 0 | J30: 0
A31: Residual Losses and Growth Incentive - Growth (C9) | B31: GTA | C31: CRC2M | D31: 0 | E31: 0 | F31: 0 | G31: 0 | H31: 0 | I31: 0 | J31: 0
A32: Incentive Revenue and Other Adjustments (C): [C = C1 + C2 + C3 + C4 + C5 + C6 + C7 + C8 + C9] | D32: =SUM(D21:D31) -> 9.964415254 | E32: 10.09845393 | F32: 7.74115 | G32: 7.832937638 | H32: 7.376590155 | I32: 6.912687065 | J32: 6.912687065 | K32: C = C1 + C2 + C3 + C4 + C5 + C6 + C7 + C8 + C9
A33: Correction Factor (D) | B33: -K | C33: CRC2A | D33: 3.235255024 | E33: -1.601650319 | F33: 8.062118452 | G33: -1.227878057 | H33: 0.003986430775 | I33: 0 | J33: 0
A34: Total allowed Revenue (E): [E = A + B + C + D] | B34: AR | C34: CRC2A | D34: =D12+D20+D32+D33 -> 242.1352425 | E34: =E12+E20+E32+E33 -> 247.307521 | F34: 255.8309209 | G34: 251.4280292 | H34: 260.3025633 | I34: 267.3097503 | J34: 294.8031737 | K34: E = A + B + C + D
A35: Other 1. Excluded services - Top-up, standby, and enhanced system security (F1) (see note 1) | B35: DRS4 | C35: CRC5C | D35: 0 | E35: 0 | F35: 0 | G35: 0 | H35: 0 | I35: 0 | J35: 0
A36: Other 2. Excluded services - Revenue protection services (F2) (see note 1) | B36: DRS5 | C36: CRC5C | D36: 0 | E36: 0 | F36: 0 | G36: 0 | H36: 0 | I36: 0 | J36: 0
A37: Other 3. Excluded services - Miscellaneous (F3) (see note 1) | B37: DRS9 | C37: CRC5C | D37: 0 | E37: 0 | F37: 0 | G37: 0 | H37: 0 | I37: 0 | J37: 0
A38: Other 4. - blank or if required please provide description (F4) | D38: 0 | E38: 0 | F38: 0 | G38: 0 | H38: 0 | I38: 0 | J38: 0
A39: Other 5. - blank or if required please provide description (F5) | D39: 0 | E39: 0 | F39: 0 | G39: 0 | H39: 0 | I39: 0 | J39: 0
A40: Total Other Revenue to be recovered by Use of System Charges (F): [F = F1 + F2 + F3 + F4 +F5] | D40: =SUM(D35:D39) -> 0 | E40: =SUM(E35:E39) -> 0 | F40: 0 | G40: 0 | H40: 0 | I40: 0 | J40: 0 | K40: F = F1 + F2 + F3 + F4 +F5
A41: Total Revenue for Use of System Charges (G): [G=E + F] | D41: =D34+D40 -> 242.1352425 | E41: =E34+E40 -> 247.307521 | F41: 255.8309209 | G41: 251.4280292 | H41: 260.3025633 | I41: 267.3097503 | J41: 294.8031737 | K41: G = E + F
A42: 1. Revenue raised outside CDCM - EDCM and Certain Interconnector Revenue (H1) | D42: 13.99330916 | E42: 17.13609487 | F42: 16.64917267 | G42: 16.36263769 | H42: 16.94018184 | I42: 17.39620126 | J42: 19.18544062
A43: 2. Revenue raised outside CDCM - Voluntary under-recovery (H2)
A44: 3. Revenue raised outside CDCM - blank or if required please provide description (H3)
A45: 4. Revenue raised outside CDCM - blank or if required please provide description (H4)
A46: Total Revenue to be raised outside the CDCM (H): [H = H1 + H2 + H3 + H4] | D46: =D42+D43+D44+D45 -> 13.99330916 | E46: =E42+E43+E44+E45 -> 17.13609487 | F46: 16.64917267 | G46: 16.36263769 | H46: 16.94018184 | I46: 17.39620126 | J46: 19.18544062 | K46: H = H1 + H2 + H3 + H4
A47: Latest forecast of CDCM Revenue (I): [I = G - H] | D47: =D41-D46 -> 228.1419334 | E47: 230.1714261 | F47: 239.1817483 | G47: 235.0653915 | H47: 243.3623814 | I47: 249.9135491 | J47: 275.6177331 | K47: I = G - H
A48: CDCM Revenue Used in Charging Model [Equal to I] | D48: =D47 -> 228.1419334 | E48: =E47 -> 230.1714261 | F48: 239.1817483 | G48: 235.0653915 | H48: 243.3623814 | I48: 249.9135491 | J48: 275.6177331 | K48: Equal to I
A49: Final Collected Revenue Forecast (J) | D49: 234.3749823 | E49: 248.487719 | F49: 255.8270893 | G49: 251.4280292 | H49: 260.3025633 | I49: 267.3097503 | J49: 294.8031737
A50: Forecast Over / (Under) Recovery [being (J - F - E + H2] | D50: =D49-D40-D34+D43 -> -7.760260273 | E50: 1.180198055 | F50: -0.003831632809 | G50: -2.842170943e-14 | H50: 0 | I50: -5.684341886e-14 | J50: 0 | K50: J - F - E + H2
A51: Forecast overall percentage change to Allowed Revenue (K) | E51: =E34/D34-1 -> 0.02136111371 | F51: =F34/E34-1 -> 0.03446478261 | G51: -0.01721016275 | H51: 0.0352965186 | I51: 0.02691939332 | J51: 0.1028523028
A52: Overall % change to Use of System Charges effective 1st April of Regulatory Year to balance (L) | E52: =E49/D49-1 -> 0.06021434814 | F52: 0.02953614887 | G52: -0.01719544309 | H52: 0.0352965186 | I52: 0.02691939332 | J52: 0.1028523028
A53: Note 1: Cost categories associated with excluded services should only be populated if the Company recovers the costs of providing these services from Use of System Charges

Sheet Smoothed Input Details
A1: DNO | B1: =+'CDCM Forecast Data'!E3 -> WPD South Wales
A2: Charges for (year Y) | B2: =+'CDCM Forecast Data'!E11 -> 2019/20
A4: Year charges are set (year Y - 2) | B4: =+'CDCM Forecast Data'!C11 -> 2017/18
A6: Year to which input data relates
A7: Year Y - 3 | B7: 2016/17
A8: Year Y - 4 | B8: 2015/16
A9: Year Y - 5 | B9: 2014/15
A11: 1041 - load profile for demand users - coincidence factors
A12: Charges for year Y are set in Y-2 using historical data for the previous three years
B14: Y - 5 | C14: Y - 4 | D14: Y - 3 | E14: Information to be used calculating tariffs in year t
A15: Domestic Unrestricted | B15: 0.9065154485 | C15: 0.8981177875 | D15: 0.9424891898 | E15: =AVERAGE(B15:D15) -> 0.9157074753
A16: Domestic Two Rate | B16: 0.3398795701 | C16: 0.3672585624 | D16: 0.362984095 | E16: =AVERAGE(B16:D16) -> 0.3567074092
A17: Domestic Off Peak (related MPAN) | B17: 0 | C17: 0 | D17: 0
A18: Small Non Domestic Unrestricted | B18: 0.5745512147 | C18: 0.4812491816 | D18: 0.4718856685 | E18: =AVERAGE(B18:D18) -> 0.5092286883
A19: Small Non Domestic Two Rate | B19: 0.7270907953 | C19: 0.736081153 | D19: 0.7460513619 | E19: =AVERAGE(B19:D19) -> 0.7364077701
A20: Small Non Domestic Off Peak (related MPAN) | B20: 0 | C20: 0 | D20: 0
A21: LV Medium Non-Domestic | B21: 0.7636805803 | C21: 0.7074609046 | D21: 0.6779221532 | E21: =AVERAGE(B21:D21) -> 0.716354546
A22: LV Sub Medium Non-Domestic | B22: 0.7636805803 | C22: 0.7074609046 | D22: 0.6779221532 | E22: 0.716354546
A23: HV Medium Non-Domestic | B23: 0.6083497241 | C23: 0.5449785454 | D23: 0.3331210662 | E23: 0.4954831119
A24: LV Network Domestic | B24: 0.8744336881 | C24: 0.8680616277 | D24: 0.9096788007 | E24: =AVERAGE(B24:D24) -> 0.8840580388
A25: LV Network Non-Domestic Non-CT | B25: 0.6010752074 | C25: 0.5255600504 | D25: 0.519558337 | E25: 0.5487311983
A26: LV HH Metered | B26: 0.7856149887 | C26: 0.7561969423 | D26: 0.6788865108 | E26: 0.740232814
A27: LV Sub HH Metered | B27: 0.7561969423 | C27: 0.680293375 | D27: 0.7233374178 | E27: 0.7199425784
A28: HV HH Metered | B28: 0.8406857139 | C28: 0.7565510735 | D28: 0.7997000823 | E28: 0.7989789566
A29: NHH UMS category A | B29: 1 | C29: 1 | D29: 1 | E29: =AVERAGE(B29:D29) -> 1
A30: NHH UMS category B | B30: 0.9485040276 | C30: 1 | D30: 1 | E30: 0.9828346759
A31: NHH UMS category C | B31: 0.347826087 | C31: 1 | D31: 1 | E31: =AVERAGE(B31:D31) -> 0.7826086957
A32: NHH UMS category D | B32: 0 | C32: 0 | D32: 0 | E32: 0
A33: LV UMS (Pseudo HH Metered) | B33: 0.9578001511 | C33: 0.9462622375 | D33: 0.9390868878 | E33: 0.9477164255
A37: 1041 - load profile for demand users - load factors
A38: Charges for year Y are set in Y-2 using historical data for the previous three years
B41: Y - 5 | C41: Y - 4 | D41: Y - 3 | E41: Information to be used calculating tariffs in year t
A42: Domestic Unrestricted | B42: 0.4416141564 | C42: 0.41913692 | D42: 0.4316646934 | E42: =AVERAGE(B42:D42) -> 0.4308052566
A43: Domestic Two Rate | B43: 0.2683842794 | C43: 0.2812850856 | D43: 0.2810936643 | E43: 0.2769210098
A44: Domestic Off Peak (related MPAN) | B44: 0.1950687516 | C44: 0.191154909 | D44: 0.2006867554 | E44: 0.1956368053
A45: Small Non Domestic Unrestricted | B45: 0.4246249083 | C45: 0.4100186166 | D45: 0.4151082006 | E45: 0.4165839085
A46: Small Non Domestic Two Rate | B46: 0.5769412773 | C46: 0.5884669736 | D46: 0.5903866103 | E46: 0.5852649537
A47: Small Non Domestic Off Peak (related MPAN) | B47: 0.1916472982 | C47: 0.2039211677 | D47: 0.2112648182 | E47: 0.2022777614
A48: LV Medium Non-Domestic | B48: 0.5438716299 | C48: 0.5520047071 | D48: 0.5314188841 | E48: 0.5424317404
A49: LV Sub Medium Non-Domestic | B49: 0.5438716299 | C49: 0.5520047071 | D49: 0.5314188841 | E49: 0.5424317404
A50: HV Medium Non-Domestic | B50: 0.4398105179 | C50: 0.3906737865 | D50: 0.4168473908 | E50: 0.4157772318
A51: LV Network Domestic | B51: 0.4315733357 | C51: 0.4111154235 | D51: 0.4229208232 | E51: =AVERAGE(B51:D51) -> 0.4218698608
A52: LV Network Non-Domestic Non-CT | B52: 0.4501409585 | C52: 0.4401619963 | D52: 0.4447108594 | E52: 0.4450046047
A53: LV HH Metered | B53: 0.5944962809 | C53: 0.5863015157 | D53: 0.5824722558 | E53: 0.5877566842
A54: LV Sub HH Metered | B54: 0.5863015157 | C54: 0.5836461108 | D54: 0.6186763141 | E54: 0.5962079802
A55: HV HH Metered | B55: 0.7407844884 | C55: 0.7244218271 | D55: 0.7312110758 | E55: 0.7321391305
A56: NHH UMS category A | B56: 1 | C56: 1 | D56: 1 | E56: 1
A57: NHH UMS category B | B57: 0.4801820441 | C57: 0.4720166916 | D57: 0.473997568 | E57: 0.4753987679
A58: NHH UMS category C | B58: 0.2497885475 | C58: 0.2952645321 | D58: 0.27503739 | E58: 0.2733634899
A59: NHH UMS category D | B59: 0.5155189536 | C59: 0.5155895509 | D59: 0.5155895509 | E59: 0.5155660185
A60: LV UMS (Pseudo HH Metered) | B60: 0.4654167605 | C60: 0.4467555008 | D60: 0.4384003445 | E60: 0.4501908686
A64: 1061 - Average split of rate 1 units by distribution time band
A65: Charges for year Y are set in Y-2 using historical data for the previous three years
B68: Y - 5 | E68: Y - 4 | H68: Y - 3 | K68: Information to be used calculating tariffs in year t
B69: Red | C69: Amber | D69: Green | E69: Red | F69: Amber | G69: Green | H69: Red | I69: Amber | J69: Green | K69: Red | L69: Amber | M69: Green
A70: Domestic Unrestricted | B70: 0.1123653139 | C70: 0.5029494661 | D70: 0.38468522 | E70: 0.1128658966 | F70: 0.5026825212 | G70: 0.3844515822 | H70: 0.111940906 | I70: 0.5009678969 | J70: 0.3870911971 | K70: =AVERAGE(B70,E70,H70) -> 0.1123907055 | L70: 0.5021999614 | M70: 0.3854093331
A71: Domestic Two Rate | B71: 0.1333562829 | C71: 0.5867575468 | D71: 0.2798861703 | E71: 0.1344953378 | F71: 0.5896648715 | G71: 0.2758397907 | H71: 0.1336763332 | I71: 0.5893135289 | J71: 0.277010138 | K71: =AVERAGE(B71,E71,H71) -> 0.1338426513 | L71: =AVERAGE(C71,F71,I71) -> 0.5885786491 | M71: =AVERAGE(D71,G71,J71) -> 0.2775786997
A72: Domestic Off Peak (related MPAN) | B72: 6.075644201e-06 | C72: 0.1676294538 | D72: 0.8323644706 | E72: 0 | F72: 0.166885406 | G72: 0.833114594 | H72: 0 | I72: 0.1703267835 | J72: 0.8296732165 | K72: 2.025214734e-06 | L72: 0.1682805478 | M72: 0.831717427
A73: Small Non Domestic Unrestricted | B73: 0.07208478552 | C73: 0.578485288 | D73: 0.3494299265 | E73: 0.07270691316 | F73: 0.5779820685 | G73: 0.3493110183 | H73: 0.07277386178 | I73: 0.5795582151 | J73: 0.3476679232 | K73: 0.07252185348 | L73: 0.5786751905 | M73: 0.348802956
A74: Small Non Domestic Two Rate | B74: 0.1004907042 | C74: 0.6647670715 | D74: 0.2347422243 | E74: 0.103059158 | F74: 0.6608533136 | G74: 0.2360875284 | H74: 0.1041317773 | I74: 0.6575181254 | J74: 0.2383500973 | K74: 0.1025605465 | L74: 0.6610461702 | M74: 0.2363932833
A75: Small Non Domestic Off Peak (related MPAN) | B75: 0.0001794771863 | C75: 0.1796438775 | D75: 0.8201766453 | E75: 0.0001008206282 | F75: 0.1775709777 | G75: 0.8223282016 | H75: 3.456669532e-05 | I75: 0.1698830419 | J75: 0.8300823914 | K75: 0.0001049548366 | L75: 0.175699299 | M75: 0.8241957461
A76: LV Medium Non-Domestic | B76: 0.1045995333 | C76: 0.674181672 | D76: 0.2212187947 | E76: 0.1052696346 | F76: 0.6734825506 | G76: 0.2212478148 | H76: 0.1049193194 | I76: 0.6733749283 | J76: 0.2217057523 | K76: 0.1049294958 | L76: 0.673679717 | M76: 0.2213907873
A77: LV Sub Medium Non-Domestic | B77: 0.09988810328 | C77: 0.6870420584 | D77: 0.2130698383 | E77: 0.1008113834 | F77: 0.6846521783 | G77: 0.2145364382 | H77: 0.09999810039 | I77: 0.6845760772 | J77: 0.2154258224 | K77: 0.100232529 | L77: 0.685423438 | M77: 0.214344033
A78: HV Medium Non-Domestic | B78: 0.09994426299 | C78: 0.6928231198 | D78: 0.2072326172 | E78: 0.09983457689 | F78: 0.6936127658 | G78: 0.2065526573 | H78: 0.09961113899 | I78: 0.6951266934 | J78: 0.2052621676 | K78: 0.09979665962 | L78: 0.693854193 | M78: 0.2063491474
A82: 1062 - Average split of rate 2 units by distribution time band
A83: Charges for year Y are set in Y-2 using historical data for the previous three years
B86: Y - 5 | E86: Y - 4 | H86: Y - 3 | K86: Information to be used calculating tariffs in year t
B87: Red | C87: Amber | D87: Green | E87: Red | F87: Amber | G87: Green | H87: Red | I87: Amber | J87: Green | K87: Red | L87: Amber | M87: Green
A88: Domestic Two Rate | B88: 0 | C88: 0.03072110529 | D88: 0.9692788947 | E88: 0 | F88: 0.03308288137 | G88: 0.9669171186 | H88: 0 | I88: 0.03261964258 | J88: 0.9673803574 | K88: =AVERAGE(B88,E88,H88) -> 0 | L88: 0.03214120975 | M88: 0.9678587903
A89: Small Non Domestic Two Rate | B89: 0 | C89: 0.06295421054 | D89: 0.9370457895 | E89: 0 | F89: 0.06553764144 | G89: 0.9344623586 | H89: 0 | I89: 0.06427905481 | J89: 0.9357209452 | K89: 0 | L89: 0.06425696893 | M89: 0.9357430311
A90: LV Medium Non-Domestic | B90: 0 | C90: 0.007238559754 | D90: 0.9927614402 | E90: 0 | F90: 0.00874978859 | G90: 0.9912502114 | H90: 0 | I90: 0.01003101971 | J90: 0.9899689803 | K90: 0 | L90: 0.008673122684 | M90: 0.9913268773
A91: LV Sub Medium Non-Domestic | B91: 0 | C91: 0 | D91: 1 | E91: 0 | F91: 0 | G91: 1 | H91: 0 | I91: 0 | J91: 1 | K91: 0 | L91: 0 | M91: 1
A92: HV Medium Non-Domestic | B92: 0 | C92: 0 | D92: 1 | E92: 0 | F92: 0 | G92: 1 | H92: 0 | I92: 0 | J92: 1 | K92: 0 | L92: 0 | M92: 1
A96: 1064. Average split of rate 1 units by special distribution time band
A97: Charges for year Y are set in Y-2 using historical data for the previous three years
B100: Y - 5 | E100: Y - 4 | H100: Y - 3 | K100: Information to be used calculating tariffs in year t
B101: Black | C101: Yellow | D101: Green | E101: Black | F101: Yellow | G101: Green | H101: Black | I101: Yellow | J101: Green | K101: Red | L101: Amber | M101: Green
A102: NHH UMS category A | B102: 0.02140410959 | C102: 0.4818493151 | D102: 0.4967465753 | E102: 0.02163023679 | F102: 0.4818989071 | G102: 0.4964708561 | H102: 0.02168949772 | I102: 0.4815639269 | J102: 0.4967465753 | K102: =AVERAGE(B102,E102,H102) -> 0.0215746147 | L102: =AVERAGE(C102,F102,I102) -> 0.4817707164 | M102: =AVERAGE(D102,G102,J102) -> 0.4966546689
A103: NHH UMS category B | B103: 0.04129882184 | C103: 0.2019857944 | D103: 0.7567153838 | E103: 0.04231033279 | F103: 0.1921723576 | G103: 0.7655173096 | H103: 0.04249620833 | I103: 0.1910857052 | J103: 0.7664180865 | K103: 0.04203512099 | L103: 0.1950812857 | M103: 0.7628835933
A104: NHH UMS category C | B104: 0.07416643228 | C104: 0.3121186822 | D104: 0.6137148855 | E104: 0.06444912062 | F104: 0.3632355511 | G104: 0.5723153282 | H104: 0.07483596361 | I104: 0.3569782536 | J104: 0.5681857828 | K104: 0.0711505055 | L104: 0.344110829 | M104: 0.5847386655
A105: NHH UMS category D | B105: 0.002322927927 | C105: 0.7438920779 | D105: 0.2537849942 | E105: 0.002177881813 | F105: 0.7440940664 | G105: 0.2537280517 | H105: 0.002239640647 | I105: 0.7446648013 | J105: 0.2530955581 | K105: 0.002246816796 | L105: 0.7442169819 | M105: 0.2535362013
A109: 1069 - Peaking probabilities by network level
A110: Charges for year Y are set in Y-2 using historical data for the previous three years
B113: Y - 5 | F113: Y - 4 | J113: Y - 3 | N113: Information to be used calculating tariffs in year t
B114: Red | C114: Amber | D114: Green | E114: Black | F114: Red | G114: Amber | H114: Green | I114: Black | J114: Red | K114: Amber | L114: Green | M114: Black | N114: Red | O114: Amber | P114: Green | Q114: Black
A115: GSPs | B115: 0.5169874341 | C115: 0.4817792868 | D115: 0.001233279087 | E115: 0.3847547824 | F115: 0.7149148502 | G115: 0.2065664891 | H115: 0.0785186608 | I115: 0.6253341535 | J115: 0.7904037559 | K115: 0.2095962441 | L115: 0 | M115: 0.7072728825 | N115: =AVERAGE(B115,F115,J115) -> 0.6741020134 | O115: =AVERAGE(C115,G115,K115) -> 0.2993140067 | P115: =AVERAGE(D115,H115,L115) -> 0.02658397996 | Q115: =AVERAGE(E115,I115,M115) -> 0.5724539395
A116: 132kV | B116: 0.6526350772 | C116: 0.3126733077 | D116: 0.03469161503 | E116: 0.609941248 | F116: 0.5201514014 | G116: 0.2524958253 | H116: 0.2273527732 | I116: 0.4757294745 | J116: 0.5958587148 | K116: 0.2716445681 | L116: 0.1324967171 | M116: 0.5279925904 | N116: 0.5895483978 | O116: 0.2789379004 | P116: 0.1315137018 | Q116: 0.537887771
A117: 132kV/EHV | B117: 0.6526350772 | C117: 0.3126733077 | D117: 0.03469161503 | E117: 0.609941248 | F117: 0.5201514014 | G117: 0.2524958253 | H117: 0.2273527732 | I117: 0.4757294745 | J117: 0.5958587148 | K117: 0.2716445681 | L117: 0.1324967171 | M117: 0.5279925904 | N117: 0.5895483978 | O117: 0.2789379004 | P117: 0.1315137018 | Q117: 0.537887771
A118: EHV | B118: 0.4896382544 | C118: 0.362405211 | D118: 0.1479565346 | E118: 0.4427178498 | F118: 0.6118472101 | G118: 0.3230823314 | H118: 0.06507045844 | I118: 0.5871545957 | J118: 0.6563438059 | K118: 0.303452888 | L118: 0.04020330609 | M118: 0.4839497997 | N118: 0.5859430901 | O118: 0.3296468102 | P118: 0.0844100997 | Q118: 0.504607415
A119: EHV/HV | B119: 0.4896382544 | C119: 0.362405211 | D119: 0.1479565346 | E119: 0.4427178498 | F119: 0.6118472101 | G119: 0.3230823314 | H119: 0.06507045844 | I119: 0.5871545957 | J119: 0.6563438059 | K119: 0.303452888 | L119: 0.04020330609 | M119: 0.4839497997 | N119: 0.5859430901 | O119: 0.3296468102 | P119: 0.0844100997 | Q119: 0.504607415
A120: 132kV/HV | B120: 0.6526350772 | C120: 0.3126733077 | D120: 0.03469161503 | E120: 0.609941248 | F120: 0.5201514014 | G120: 0.2524958253 | H120: 0.2273527732 | I120: 0.4757294745 | J120: 0.5958587148 | K120: 0.2716445681 | L120: 0.1324967171 | M120: 0.5279925904 | N120: 0.5895483978 | O120: 0.2789379004 | P120: 0.1315137018 | Q120: 0.537887771
A121: HV | B121: 0.4896382544 | C121: 0.362405211 | D121: 0.1479565346 | E121: 0.4427178498 | F121: 0.6118472101 | G121: 0.3230823314 | H121: 0.06507045844 | I121: 0.5871545957 | J121: 0.6563438059 | K121: 0.303452888 | L121: 0.04020330609 | M121: 0.4839497997 | N121: 0.5859430901 | O121: 0.3296468102 | P121: 0.0844100997 | Q121: 0.504607415
A122: HV/LV | B122: 0.4896382544 | C122: 0.362405211 | D122: 0.1479565346 | E122: 0.4427178498 | F122: 0.6118472101 | G122: 0.3230823314 | H122: 0.06507045844 | I122: 0.5871545957 | J122: 0.6563438059 | K122: 0.303452888 | L122: 0.04020330609 | M122: 0.4839497997 | N122: 0.5859430901 | O122: 0.3296468102 | P122: 0.0844100997 | Q122: 0.504607415
A123: LV circuits | B123: 0.4896382544 | C123: 0.362405211 | D123: 0.1479565346 | E123: 0.4427178498 | F123: 0.6118472101 | G123: 0.3230823314 | H123: 0.06507045844 | I123: 0.5871545957 | J123: 0.6563438059 | K123: 0.303452888 | L123: 0.04020330609 | M123: 0.4839497997 | N123: 0.5859430901 | O123: 0.3296468102 | P123: 0.0844100997 | Q123: 0.504607415

Sheet Mat of App
B3: 1025. Matrix of applicability of LV service models to tariffs with fixed charges
C5: ='CDCM Forecast Data'!$E$11 -> 2019/20 | K5: ='CDCM Forecast Data'!$F$11 -> 2020/21 | S5: ='CDCM Forecast Data'!$G$11 -> 2021/22 | AA5: ='CDCM Forecast Data'!$H$11 -> 2022/23 | AI5: ='CDCM Forecast Data'!$I$11 -> 2023/24
C6: LV service model 1 | D6: LV service model 2 | E6: LV service model 3 | F6: LV service model 4 | G6: LV service model 5 | H6: LV service model 6 | I6: LV service model 7 | J6: LV service model 8 | K6: LV service model 1 | L6: LV service model 2 | M6: LV service model 3 | N6: LV service model 4 | O6: LV service model 5 | P6: LV service model 6 | Q6: LV service model 7 | R6: LV service model 8 | S6: LV service model 1 | T6: LV service model 2 | U6: LV service model 3 | V6: LV service model 4 | W6: LV service model 5 | X6: LV service model 6 | Y6: LV service model 7 | Z6: LV service model 8 | AA6: LV service model 1 | AB6: LV service model 2 | AC6: LV service model 3 | AD6: LV service model 4 | AE6: LV service model 5 | AF6: LV service model 6 | AG6: LV service model 7 | AH6: LV service model 8 | AI6: LV service model 1 | AJ6: LV service model 2 | AK6: LV service model 3 | AL6: LV service model 4 | AM6: LV service model 5 | AN6: LV service model 6 | AO6: LV service model 7 | AP6: LV service model 8
B7: Domestic Unrestricted | C7: 0.05 | D7: 0 | E7: 0 | F7: 0 | G7: 0 | H7: 0 | I7: 0 | J7: 0 | K7: =C7 -> 0.05 | L7: =D7 -> 0 | M7: =E7 -> 0 | N7: =F7 -> 0 | O7: =G7 -> 0 | P7: =H7 -> 0 | Q7: =I7 -> 0 | R7: =J7 -> 0 | S7: =K7 -> 0.05 | T7: =L7 -> 0 | U7: =M7 -> 0 | V7: =N7 -> 0 | W7: =O7 -> 0 | X7: =P7 -> 0 | Y7: =Q7 -> 0 | Z7: =R7 -> 0 | AA7: =S7 -> 0.05 | AB7: =T7 -> 0 | AC7: =U7 -> 0 | AD7: =V7 -> 0 | AE7: =W7 -> 0 | AF7: =X7 -> 0 | AG7: =Y7 -> 0 | AH7: =Z7 -> 0 | AI7: =AA7 -> 0.05 | AJ7: =AB7 -> 0 | AK7: =AC7 -> 0 | AL7: =AD7 -> 0 | AM7: =AE7 -> 0 | AN7: =AF7 -> 0 | AO7: =AG7 -> 0 | AP7: =AH7 -> 0
B8: Domestic Two Rate | C8: 0.05 | D8: 0 | E8: 0 | F8: 0 | G8: 0 | H8: 0 | I8: 0 | J8: 0 | K8: =C8 -> 0.05 | L8: =D8 -> 0 | M8: =E8 -> 0 | N8: =F8 -> 0 | O8: =G8 -> 0 | P8: =H8 -> 0 | Q8: =I8 -> 0 | R8: =J8 -> 0 | S8: =K8 -> 0.05 | T8: =L8 -> 0 | U8: =M8 -> 0 | V8: =N8 -> 0 | W8: =O8 -> 0 | X8: =P8 -> 0 | Y8: =Q8 -> 0 | Z8: =R8 -> 0 | AA8: =S8 -> 0.05 | AB8: =T8 -> 0 | AC8: =U8 -> 0 | AD8: =V8 -> 0 | AE8: =W8 -> 0 | AF8: =X8 -> 0 | AG8: =Y8 -> 0 | AH8: =Z8 -> 0 | AI8: =AA8 -> 0.05 | AJ8: =AB8 -> 0 | AK8: =AC8 -> 0 | AL8: =AD8 -> 0 | AM8: =AE8 -> 0 | AN8: =AF8 -> 0 | AO8: =AG8 -> 0 | AP8: =AH8 -> 0
B9: Small Non Domestic Unrestricted | C9: 0 | D9: 1 | E9: 0 | F9: 0 | G9: 0 | H9: 0 | I9: 0 | J9: 0 | K9: 0 | L9: 1 | M9: 0 | N9: 0 | O9: 0 | P9: 0 | Q9: 0 | R9: 0 | S9: 0 | T9: 1 | U9: 0 | V9: 0 | W9: 0 | X9: 0 | Y9: 0 | Z9: 0 | AA9: 0 | AB9: 1 | AC9: 0 | AD9: 0 | AE9: 0 | AF9: 0 | AG9: 0 | AH9: 0 | AI9: 0 | AJ9: 1 | AK9: 0 | AL9: 0 | AM9: 0 | AN9: 0 | AO9: 0 | AP9: 0
B10: Small Non Domestic Two Rate | C10: 0 | D10: 1 | E10: 0 | F10: 0 | G10: 0 | H10: 0 | I10: 0 | J10: 0 | K10: 0 | L10: 1 | M10: 0 | N10: 0 | O10: 0 | P10: 0 | Q10: 0 | R10: 0 | S10: 0 | T10: 1 | U10: 0 | V10: 0 | W10: 0 | X10: 0 | Y10: 0 | Z10: 0 | AA10: 0 | AB10: 1 | AC10: 0 | AD10: 0 | AE10: 0 | AF10: 0 | AG10: 0 | AH10: 0 | AI10: 0 | AJ10: 1 | AK10: 0 | AL10: 0 | AM10: 0 | AN10: 0 | AO10: 0 | AP10: 0
B11: LV Medium Non-Domestic | C11: 0 | D11: 0 | E11: 1 | F11: 0 | G11: 0 | H11: 0 | I11: 0 | J11: 0 | K11: 0 | L11: 0 | M11: 1 | N11: 0 | O11: 0 | P11: 0 | Q11: 0 | R11: 0 | S11: 0 | T11: 0 | U11: 1 | V11: 0 | W11: 0 | X11: 0 | Y11: 0 | Z11: 0 | AA11: 0 | AB11: 0 | AC11: 1 | AD11: 0 | AE11: 0 | AF11: 0 | AG11: 0 | AH11: 0 | AI11: 0 | AJ11: 0 | AK11: 1 | AL11: 0 | AM11: 0 | AN11: 0 | AO11: 0 | AP11: 0
B12: LV Sub Medium Non-Domestic | C12: 0 | D12: 0 | E12: 0 | F12: 1 | G12: 0 | H12: 0 | I12: 0 | J12: 0 | K12: 0 | L12: 0 | M12: 0 | N12: 1 | O12: 0 | P12: 0 | Q12: 0 | R12: 0 | S12: 0 | T12: 0 | U12: 0 | V12: 1 | W12: 0 | X12: 0 | Y12: 0 | Z12: 0 | AA12: 0 | AB12: 0 | AC12: 0 | AD12: 1 | AE12: 0 | AF12: 0 | AG12: 0 | AH12: 0 | AI12: 0 | AJ12: 0 | AK12: 0 | AL12: 1 | AM12: 0 | AN12: 0 | AO12: 0 | AP12: 0
B13: LV Network Domestic | C13: 0.05 | D13: 0 | E13: 0 | F13: 0 | G13: 0 | H13: 0 | I13: 0 | J13: 0 | K13: 0.05 | L13: 0 | M13: 0 | N13: 0 | O13: 0 | P13: 0 | Q13: 0 | R13: 0 | S13: 0.05 | T13: 0 | U13: 0 | V13: 0 | W13: 0 | X13: 0 | Y13: 0 | Z13: 0 | AA13: 0.05 | AB13: 0 | AC13: 0 | AD13: 0 | AE13: 0 | AF13: 0 | AG13: 0 | AH13: 0 | AI13: 0.05 | AJ13: 0 | AK13: 0 | AL13: 0 | AM13: 0 | AN13: 0 | AO13: 0 | AP13: 0
B14: LV Network Non-Domestic Non-CT | C14: 0 | D14: 1 | E14: 0 | F14: 0 | G14: 0 | H14: 0 | I14: 0 | J14: 0 | K14: 0 | L14: 1 | M14: 0 | N14: 0 | O14: 0 | P14: 0 | Q14: 0 | R14: 0 | S14: 0 | T14: 1 | U14: 0 | V14: 0 | W14: 0 | X14: 0 | Y14: 0 | Z14: 0 | AA14: 0 | AB14: 1 | AC14: 0 | AD14: 0 | AE14: 0 | AF14: 0 | AG14: 0 | AH14: 0 | AI14: 0 | AJ14: 1 | AK14: 0 | AL14: 0 | AM14: 0 | AN14: 0 | AO14: 0 | AP14: 0
B15: LV HH Metered | C15: 0 | D15: 0 | E15: 0 | F15: 0 | G15: 1 | H15: 0 | I15: 0 | J15: 0 | K15: 0 | L15: 0 | M15: 0 | N15: 0 | O15: 1 | P15: 0 | Q15: 0 | R15: 0 | S15: 0 | T15: 0 | U15: 0 | V15: 0 | W15: 1 | X15: 0 | Y15: 0 | Z15: 0 | AA15: 0 | AB15: 0 | AC15: 0 | AD15: 0 | AE15: 1 | AF15: 0 | AG15: 0 | AH15: 0 | AI15: 0 | AJ15: 0 | AK15: 0 | AL15: 0 | AM15: 1 | AN15: 0 | AO15: 0 | AP15: 0
B16: LV Sub HH Metered | C16: 0 | D16: 0 | E16: 0 | F16: 0 | G16: 0 | H16: 1 | I16: 0 | J16: 0 | K16: 0 | L16: 0 | M16: 0 | N16: 0 | O16: 0 | P16: 1 | Q16: 0 | R16: 0 | S16: 0 | T16: 0 | U16: 0 | V16: 0 | W16: 0 | X16: 1 | Y16: 0 | Z16: 0 | AA16: 0 | AB16: 0 | AC16: 0 | AD16: 0 | AE16: 0 | AF16: 1 | AG16: 0 | AH16: 0 | AI16: 0 | AJ16: 0 | AK16: 0 | AL16: 0 | AM16: 0 | AN16: 1 | AO16: 0 | AP16: 0
B17: LV Generation NHH or Aggregate HH | C17: 0 | D17: 0 | E17: 0 | F17: 0 | G17: 0 | H17: 0 | I17: 1 | J17: 0 | K17: 0 | L17: 0 | M17: 0 | N17: 0 | O17: 0 | P17: 0 | Q17: 1 | R17: 0 | S17: 0 | T17: 0 | U17: 0 | V17: 0 | W17: 0 | X17: 0 | Y17: 1 | Z17: 0 | AA17: 0 | AB17: 0 | AC17: 0 | AD17: 0 | AE17: 0 | AF17: 0 | AG17: 1 | AH17: 0 | AI17: 0 | AJ17: 0 | AK17: 0 | AL17: 0 | AM17: 0 | AN17: 0 | AO17: 1 | AP17: 0
B18: LV Sub Generation NHH | C18: 0 | D18: 0 | E18: 0 | F18: 0 | G18: 0 | H18: 0 | I18: 1 | J18: 0 | K18: 0 | L18: 0 | M18: 0 | N18: 0 | O18: 0 | P18: 0 | Q18: 1 | R18: 0 | S18: 0 | T18: 0 | U18: 0 | V18: 0 | W18: 0 | X18: 0 | Y18: 1 | Z18: 0 | AA18: 0 | AB18: 0 | AC18: 0 | AD18: 0 | AE18: 0 | AF18: 0 | AG18: 1 | AH18: 0 | AI18: 0 | AJ18: 0 | AK18: 0 | AL18: 0 | AM18: 0 | AN18: 0 | AO18: 1 | AP18: 0
B19: LV Generation Intermittent | C19: 0 | D19: 0 | E19: 0 | F19: 0 | G19: 0 | H19: 0 | I19: 1 | J19: 0 | K19: 0 | L19: 0 | M19: 0 | N19: 0 | O19: 0 | P19: 0 | Q19: 1 | R19: 0 | S19: 0 | T19: 0 | U19: 0 | V19: 0 | W19: 0 | X19: 0 | Y19: 1 | Z19: 0 | AA19: 0 | AB19: 0 | AC19: 0 | AD19: 0 | AE19: 0 | AF19: 0 | AG19: 1 | AH19: 0 | AI19: 0 | AJ19: 0 | AK19: 0 | AL19: 0 | AM19: 0 | AN19: 0 | AO19: 1 | AP19: 0
B20: LV Generation Intermittent no RP charge | C20: 0 | D20: 0 | E20: 0 | F20: 0 | G20: 0 | H20: 0 | I20: 1 | J20: 0 | K20: 0 | L20: 0 | M20: 0 | N20: 0 | O20: 0 | P20: 0 | Q20: 1 | R20: 0 | S20: 0 | T20: 0 | U20: 0 | V20: 0 | W20: 0 | X20: 0 | Y20: 1 | Z20: 0 | AA20: 0 | AB20: 0 | AC20: 0 | AD20: 0 | AE20: 0 | AF20: 0 | AG20: 1 | AH20: 0 | AI20: 0 | AJ20: 0 | AK20: 0 | AL20: 0 | AM20: 0 | AN20: 0 | AO20: 1 | AP20: 0
B21: LV Generation Non-Intermittent | C21: 0 | D21: 0 | E21: 0 | F21: 0 | G21: 0 | H21: 0 | I21: 0 | J21: 0 | K21: 0 | L21: 0 | M21: 0 | N21: 0 | O21: 0 | P21: 0 | Q21: 0 | R21: 0 | S21: 0 | T21: 0 | U21: 0 | V21: 0 | W21: 0 | X21: 0 | Y21: 0 | Z21: 0 | AA21: 0 | AB21: 0 | AC21: 0 | AD21: 0 | AE21: 0 | AF21: 0 | AG21: 0 | AH21: 0 | AI21: 0 | AJ21: 0 | AK21: 0 | AL21: 0 | AM21: 0 | AN21: 0 | AO21: 0 | AP21: 0
B22: LV Generation Non-Intermittent no RP charge | C22: 0 | D22: 0 | E22: 0 | F22: 0 | G22: 0 | H22: 0 | I22: 0 | J22: 0 | K22: 0 | L22: 0 | M22: 0 | N22: 0 | O22: 0 | P22: 0 | Q22: 0 | R22: 0 | S22: 0 | T22: 0 | U22: 0 | V22: 0 | W22: 0 | X22: 0 | Y22: 0 | Z22: 0 | AA22: 0 | AB22: 0 | AC22: 0 | AD22: 0 | AE22: 0 | AF22: 0 | AG22: 0 | AH22: 0 | AI22: 0 | AJ22: 0 | AK22: 0 | AL22: 0 | AM22: 0 | AN22: 0 | AO22: 0 | AP22: 0
B23: LV Sub Generation Intermittent | C23: 0 | D23: 0 | E23: 0 | F23: 0 | G23: 0 | H23: 0 | I23: 0 | J23: 0 | K23: 0 | L23: 0 | M23: 0 | N23: 0 | O23: 0 | P23: 0 | Q23: 0 | R23: 0 | S23: 0 | T23: 0 | U23: 0 | V23: 0 | W23: 0 | X23: 0 | Y23: 0 | Z23: 0 | AA23: 0 | AB23: 0 | AC23: 0 | AD23: 0 | AE23: 0 | AF23: 0 | AG23: 0 | AH23: 0 | AI23: 0 | AJ23: 0 | AK23: 0 | AL23: 0 | AM23: 0 | AN23: 0 | AO23: 0 | AP23: 0
B24: LV Sub Generation Intermittent no RP charge | C24: 0 | D24: 0 | E24: 0 | F24: 0 | G24: 0 | H24: 0 | I24: 0 | J24: 0 | K24: 0 | L24: 0 | M24: 0 | N24: 0 | O24: 0 | P24: 0 | Q24: 0 | R24: 0 | S24: 0 | T24: 0 | U24: 0 | V24: 0 | W24: 0 | X24: 0 | Y24: 0 | Z24: 0 | AA24: 0 | AB24: 0 | AC24: 0 | AD24: 0 | AE24: 0 | AF24: 0 | AG24: 0 | AH24: 0 | AI24: 0 | AJ24: 0 | AK24: 0 | AL24: 0 | AM24: 0 | AN24: 0 | AO24: 0 | AP24: 0
B25: LV Sub Generation Non-Intermittent | C25: 0 | D25: 0 | E25: 0 | F25: 0 | G25: 0 | H25: 0 | I25: 0 | J25: 0 | K25: 0 | L25: 0 | M25: 0 | N25: 0 | O25: 0 | P25: 0 | Q25: 0 | R25: 0 | S25: 0 | T25: 0 | U25: 0 | V25: 0 | W25: 0 | X25: 0 | Y25: 0 | Z25: 0 | AA25: 0 | AB25: 0 | AC25: 0 | AD25: 0 | AE25: 0 | AF25: 0 | AG25: 0 | AH25: 0 | AI25: 0 | AJ25: 0 | AK25: 0 | AL25: 0 | AM25: 0 | AN25: 0 | AO25: 0 | AP25: 0
B26: LV Sub Generation Non-Intermittent no RP charge | C26: 0 | D26: 0 | E26: 0 | F26: 0 | G26: 0 | H26: 0 | I26: 0 | J26: 0 | K26: 0 | L26: 0 | M26: 0 | N26: 0 | O26: 0 | P26: 0 | Q26: 0 | R26: 0 | S26: 0 | T26: 0 | U26: 0 | V26: 0 | W26: 0 | X26: 0 | Y26: 0 | Z26: 0 | AA26: 0 | AB26: 0 | AC26: 0 | AD26: 0 | AE26: 0 | AF26: 0 | AG26: 0 | AH26: 0 | AI26: 0 | AJ26: 0 | AK26: 0 | AL26: 0 | AM26: 0 | AN26: 0 | AO26: 0 | AP26: 0
B28: 1026. Matrix of applicability of LV service models to unmetered tariffs
B30: Source: service models
B31: Proportion of service model involved in connecting load of 1 MWh/year | C31: ='CDCM Forecast Data'!$E$11 -> 2019/20 | K31: ='CDCM Forecast Data'!$F$11 -> 2020/21 | S31: ='CDCM Forecast Data'!$G$11 -> 2021/22 | AA31: ='CDCM Forecast Data'!$H$11 -> 2022/23 | AI31: ='CDCM Forecast Data'!$I$11 -> 2023/24
C32: LV service model 1 | D32: LV service model 2 | E32: LV service model 3 | F32: LV service model 4 | G32: LV service model 5 | H32: LV service model 6 | I32: LV service model 7 | J32: LV service model 8 | K32: LV service model 1 | L32: LV service model 2 | M32: LV service model 3 | N32: LV service model 4 | O32: LV service model 5 | P32: LV service model 6 | Q32: LV service model 7 | R32: LV service model 8 | S32: LV service model 1 | T32: LV service model 2 | U32: LV service model 3 | V32: LV service model 4 | W32: LV service model 5 | X32: LV service model 6 | Y32: LV service model 7 | Z32: LV service model 8 | AA32: LV service model 1 | AB32: LV service model 2 | AC32: LV service model 3 | AD32: LV service model 4 | AE32: LV service model 5 | AF32: LV service model 6 | AG32: LV service model 7 | AH32: LV service model 8 | AI32: LV service model 1 | AJ32: LV service model 2 | AK32: LV service model 3 | AL32: LV service model 4 | AM32: LV service model 5 | AN32: LV service model 6 | AO32: LV service model 7 | AP32: LV service model 8
B33: All LV unmetered tariffs | C33: 0 | D33: 0 | E33: 0 | F33: 0 | G33: 0 | H33: 0 | I33: 0 | J33: 0.488 | K33: =C33 -> 0 | L33: 0 | M33: 0 | N33: 0 | O33: 0 | P33: 0 | Q33: 0 | R33: 0.488 | S33: =K33 -> 0 | T33: =L33 -> 0 | U33: =M33 -> 0 | V33: =N33 -> 0 | W33: =O33 -> 0 | X33: =P33 -> 0 | Y33: =Q33 -> 0 | Z33: =R33 -> 0.488 | AA33: =S33 -> 0 | AB33: =T33 -> 0 | AC33: =U33 -> 0 | AD33: =V33 -> 0 | AE33: =W33 -> 0 | AF33: =X33 -> 0 | AG33: =Y33 -> 0 | AH33: =Z33 -> 0.488 | AI33: =AA33 -> 0 | AJ33: =AB33 -> 0 | AK33: =AC33 -> 0 | AL33: =AD33 -> 0 | AM33: =AE33 -> 0 | AN33: =AF33 -> 0 | AO33: =AG33 -> 0 | AP33: =AH33 -> 0.488
B35: 1028. Matrix of applicability of HV service models to tariffs with fixed charges
C36: ='CDCM Forecast Data'!$E$11 -> 2019/20 | H36: =+'CDCM Forecast Data'!F11 -> 2020/21 | M36: =+'CDCM Forecast Data'!G11 -> 2021/22 | R36: =+'CDCM Forecast Data'!H11 -> 2022/23 | W36: =+'CDCM Forecast Data'!I11 -> 2023/24
C37: HV service model 1 | D37: HV service model 2 | E37: HV service model 3 | F37: HV service model 4 | G37: HV service model 5 | H37: HV service model 1 | I37: HV service model 2 | J37: HV service model 3 | K37: HV service model 4 | L37: HV service model 5 | M37: HV service model 1 | N37: HV service model 2 | O37: HV service model 3 | P37: HV service model 4 | Q37: HV service model 5 | R37: HV service model 1 | S37: HV service model 2 | T37: HV service model 3 | U37: HV service model 4 | V37: HV service model 5 | W37: HV service model 1 | X37: HV service model 2 | Y37: HV service model 3 | Z37: HV service model 4 | AA37: HV service model 5
B38: HV Medium Non-Domestic | C38: 1 | D38: 0 | E38: 0 | F38: 0 | G38: 0 | H38: =C38 -> 1 | I38: =D38 -> 0 | J38: =E38 -> 0 | K38: =F38 -> 0 | L38: =G38 -> 0 | M38: =H38 -> 1 | N38: =I38 -> 0 | O38: =J38 -> 0 | P38: =K38 -> 0 | Q38: =L38 -> 0 | R38: =M38 -> 1 | S38: =N38 -> 0 | T38: =O38 -> 0 | U38: =P38 -> 0 | V38: =Q38 -> 0 | W38: =R38 -> 1 | X38: =S38 -> 0 | Y38: =T38 -> 0 | Z38: =U38 -> 0 | AA38: =V38 -> 0
B39: HV HH Metered | C39: 1 | D39: 0 | E39: 0 | F39: 0 | G39: 0 | H39: =C39 -> 1 | I39: =D39 -> 0 | J39: =E39 -> 0 | K39: =F39 -> 0 | L39: =G39 -> 0 | M39: =H39 -> 1 | N39: =I39 -> 0 | O39: =J39 -> 0 | P39: =K39 -> 0 | Q39: =L39 -> 0 | R39: =M39 -> 1 | S39: =N39 -> 0 | T39: =O39 -> 0 | U39: =P39 -> 0 | V39: =Q39 -> 0 | W39: =R39 -> 1 | X39: =S39 -> 0 | Y39: =T39 -> 0 | Z39: =U39 -> 0 | AA39: =V39 -> 0
B40: HV Generation Intermittent | C40: 0 | D40: 1 | E40: 0 | F40: 0 | G40: 0 | H40: 0 | I40: 1 | J40: 0 | K40: 0 | L40: 0 | M40: 0 | N40: 1 | O40: 0 | P40: 0 | Q40: 0 | R40: 0 | S40: 1 | T40: 0 | U40: 0 | V40: 0 | W40: 0 | X40: 1 | Y40: 0 | Z40: 0 | AA40: 0
B41: HV Generation Intermittent no RP charge | C41: 0 | D41: 1 | E41: 0 | F41: 0 | G41: 0 | H41: 0 | I41: 1 | J41: 0 | K41: 0 | L41: 0 | M41: 0 | N41: 1 | O41: 0 | P41: 0 | Q41: 0 | R41: 0 | S41: 1 | T41: 0 | U41: 0 | V41: 0 | W41: 0 | X41: 1 | Y41: 0 | Z41: 0 | AA41: 0
B42: HV Generation Non-Intermittent | C42: 0 | D42: 1 | E42: 0 | F42: 0 | G42: 0 | H42: 0 | I42: 1 | J42: 0 | K42: 0 | L42: 0 | M42: 0 | N42: 1 | O42: 0 | P42: 0 | Q42: 0 | R42: 0 | S42: 1 | T42: 0 | U42: 0 | V42: 0 | W42: 0 | X42: 1 | Y42: 0 | Z42: 0 | AA42: 0
B43: HV Generation Non-Intermittent no RP charge | C43: 0 | D43: 1 | E43: 0 | F43: 0 | G43: 0 | H43: 0 | I43: 1 | J43: 0 | K43: 0 | L43: 0 | M43: 0 | N43: 1 | O43: 0 | P43: 0 | Q43: 0 | R43: 0 | S43: 1 | T43: 0 | U43: 0 | V43: 0 | W43: 0 | X43: 1 | Y43: 0 | Z43: 0 | AA43: 0

Sheet CDCM Volume Forecasts
G3: Growth Rates (%)
G4: VOLUME - RED BAND | L4: VOLUME - AMBER BAND | P4: VOLUME - GREEN BAND | T4: CUSTOMER NUMBERS | X4: IMPORT CAPACITY | AB4: EXCEEDED CAPACITY | AF4: REACTIVE POWER
G5: Y | H5: Y + 1 | I5: Y + 2 | J5: Y + 3 | K5: Y + 4 | L5: Y + 1 | M5: Y + 2 | N5: Y + 3 | O5: Y + 4 | P5: Y + 1 | Q5: Y + 2 | R5: Y + 3 | S5: Y + 4 | T5: Y + 1 | U5: Y + 2 | V5: Y + 3 | W5: Y + 4 | X5: Y + 1 | Y5: Y + 2 | Z5: Y + 3 | AA5: Y + 4 | AB5: Y + 1 | AC5: Y + 2 | AD5: Y + 3 | AE5: Y + 4 | AF5: Y + 1 | AG5: Y + 2 | AH5: Y + 3 | AI5: Y + 4
E6: Customer Category | F6: Description | G6: =+'CDCM Forecast Data'!E11 -> 2019/20 | H6: =+'CDCM Forecast Data'!F11 -> 2020/21 | I6: =+'CDCM Forecast Data'!G11 -> 2021/22 | J6: =+'CDCM Forecast Data'!H11 -> 2022/23 | K6: =+'CDCM Forecast Data'!I11 -> 2023/24 | L6: =+H6 -> 2020/21 | M6: 2021/22 | N6: 2022/23 | O6: 2023/24 | P6: 2020/21 | Q6: 2021/22 | R6: 2022/23 | S6: 2023/24 | T6: 2020/21 | U6: 2021/22 | V6: 2022/23 | W6: 2023/24 | X6: 2020/21 | Y6: 2021/22 | Z6: 2022/23 | AA6: 2023/24 | AB6: =+T6 -> 2020/21 | AC6: 2021/22 | AD6: 2022/23 | AE6: 2023/24 | AF6: 2020/21 | AG6: 2021/22 | AH6: 2022/23 | AI6: 2023/24 | AJ6: Assumptions
E7: 1 | F7: Aggregated demand
E8: 2 | F8: Site-specific demand
E9: 3 | F9: Not used
E10: 4 | F10: Generation
E11: 5 | F11: Not used
E12: 6 | F12: Not used
E13: 7 | F13: Not used
E14: 8 | F14: Not used
E15: 9 | F15: Not used
E16: 10 | F16: Not used
E18: Summary Data | F18: Year | G18: =G6 -> 2019/20 | H18: =H6 -> 2020/21 | I18: =I6 -> 2021/22 | J18: =J6 -> 2022/23 | K18: =K6 -> 2023/24
F19: Total Volume | G19: =SUM(D29:F136) -> 8803981.855 | H19: =SUM(K29:M136) -> 8803981.855 | I19: =SUM(R29:T136) -> 8803981.855 | J19: =SUM(Y29:AA136) -> 8803981.855 | K19: =SUM(AF29:AH136) -> 8803981.855
F20: No. of MPANs | G20: =SUM(G29:G136) -> 1149616.211 | H20: =SUM(N29:N136) -> 1149616.211 | I20: =SUM(U29:U136) -> 1149616.211 | J20: =SUM(AB29:AB136) -> 1149616.211 | K20: =SUM(AI29:AI136) -> 1149616.211
F21: Total Import Capacity | G21: =SUM(H29:H136) -> 1422732.995 | H21: =SUM(O29:O136) -> 1422732.995 | I21: =SUM(V29:V136) -> 1422732.995 | J21: =SUM(AC29:AC136) -> 1422732.995 | K21: =SUM(AJ29:AJ136) -> 1422732.995
F22: Total exceeded capacity | G22: =SUM(I29:I136) -> 63952.95164 | H22: =SUM(P29:P136) -> 63952.95164 | I22: =SUM(W29:W136) -> 63952.95164 | J22: =SUM(AD29:AD136) -> 63952.95164 | K22: =SUM(AK29:AK136) -> 63952.95164
F23: Total Reactive | G23: =SUM(J29:J136) -> 240122.753 | H23: =SUM(Q29:Q136) -> 240122.753 | I23: =SUM(X29:X136) -> 240122.753 | J23: =SUM(AE29:AE136) -> 240122.753 | K23: =SUM(AL29:AL136) -> 240122.753
C26: 1053. Volume forecasts for the charging year: | D26: =G6& " - ("&G5&")" -> 2019/20 - (Y) | K26: =H6& " - ("&H5&")" -> 2020/21 - (Y + 1) | R26: =I6& " - ("&I5&")" -> 2021/22 - (Y + 2) | Y26: =J6& " - ("&J5&")" -> 2022/23 - (Y + 3) | AF26: =K6& " - ("&K5&")" -> 2023/24 - (Y + 4)
B27: Customer Category | C27: Tariff | D27: Rate 1 units (MWh) | E27: Rate 2 units (MWh) | F27: Rate 3 units (MWh) | G27: MPANs | H27: Import capacity (kVA) | I27: Exceeded capacity (kVA) | J27: Reactive power units (MVArh) | K27: Rate 1 units (MWh) | L27: Rate 2 units (MWh) | M27: Rate 3 units (MWh) | N27: MPANs | O27: Import capacity (kVA) | P27: Exceeded capacity (kVA) | Q27: Reactive power units (MVArh) | R27: Rate 1 units (MWh) | S27: Rate 2 units (MWh) | T27: Rate 3 units (MWh) | U27: MPANs | V27: Import capacity (kVA) | W27: Exceeded capacity (kVA) | X27: Reactive power units (MVArh) | Y27: Rate 1 units (MWh) | Z27: Rate 2 units (MWh) | AA27: Rate 3 units (MWh) | AB27: MPANs | AC27: Import capacity (kVA) | AD27: Exceeded capacity (kVA) | AE27: Reactive power units (MVArh) | AF27: Rate 1 units (MWh) | AG27: Rate 2 units (MWh) | AH27: Rate 3 units (MWh) | AI27: MPANs | AJ27: Import capacity (kVA) | AK27: Exceeded capacity (kVA) | AL27: Reactive power units (MVArh)
A28: 1 | C28: > Domestic Unrestricted
A29: =A28+1 -> 2 | B29: 1 | C29: Domestic Unrestricted | D29: 3137701.408 | E29: 0 | F29: 0 | G29: 998882.407 | H29: 0 | I29: 0 | J29: 0 | K29: =IF(D29,((VLOOKUP($B29,$E$7:$AI$16,4)+1)*D29),) -> 3137701.408 | L29: =IF(E29,((VLOOKUP($B29,$E$7:$AI$16,8)+1)*E29),) -> 0 | M29: =IF(F29,((VLOOKUP($B29,$E$7:$AI$16,12)+1)*F29),) -> 0 | N29: =IF(G29,((VLOOKUP($B29,$E$7:$AI$16,16)+1)*G29),) -> 998882.407 | O29: =IF(H29,((VLOOKUP($B29,$E$7:$AI$16,20)+1)*H29),) -> 0 | R29: =IF(D29,((VLOOKUP($B29,$E$7:$AI$16,5)+1)*K29),) -> 3137701.408 | S29: =IF(E29,((VLOOKUP($B29,$E$7:$AI$16,5+4)+1)*L29),) -> 0 | T29: =IF(F29,((VLOOKUP($B29,$E$7:$AI$16,5+8)+1)*M29),) -> 0 | U29: =IF(G29,((VLOOKUP($B29,$E$7:$AI$16,5+12)+1)*N29),) -> 998882.407 | V29: =IF(H29,((VLOOKUP($B29,$E$7:$AI$16,5+16)+1)*O29),) -> 0 | Y29: =IF(D29,((VLOOKUP($B29,$E$7:$AI$16,6)+1)*R29),) -> 3137701.408 | Z29: =IF(E29,((VLOOKUP($B29,$E$7:$AI$16,6+4)+1)*S29),) -> 0 | AA29: =IF(F29,((VLOOKUP($B29,$E$7:$AI$16,6+8)+1)*T29),) -> 0 | AB29: =IF(G29,((VLOOKUP($B29,$E$7:$AI$16,6+12)+1)*U29),) -> 998882.407 | AC29: =IF(H29,((VLOOKUP($B29,$E$7:$AI$16,6+16)+1)*V29),) -> 0 | AF29: =IF(D29,((VLOOKUP($B29,$E$7:$AI$16,7)+1)*Y29),) -> 3137701.408 | AG29: =IF(E29,((VLOOKUP($B29,$E$7:$AI$16,7+4)+1)*Z29),) -> 0 | AH29: =IF(F29,((VLOOKUP($B29,$E$7:$AI$16,7+8)+1)*AA29),) -> 0 | AI29: =IF(G29,((VLOOKUP($B29,$E$7:$AI$16,7+12)+1)*AB29),) -> 998882.407 | AJ29: =IF(H29,((VLOOKUP($B29,$E$7:$AI$16,7+16)+1)*AC29),) -> 0
A30: =A29+1 -> 3 | B30: 1 | C30: LDNO LV: Domestic Unrestricted | D30: 3748.253398 | E30: 0 | F30: 0 | G30: 1534.903725 | H30: 0 | I30: 0 | J30: 0 | K30: =IF(D30,((VLOOKUP($B30,$E$7:$AI$16,4)+1)*D30),) -> 3748.253398 | L30: =IF(E30,((VLOOKUP($B30,$E$7:$AI$16,8)+1)*E30),) -> 0 | M30: =IF(F30,((VLOOKUP($B30,$E$7:$AI$16,12)+1)*F30),) -> 0 | N30: =IF(G30,((VLOOKUP($B30,$E$7:$AI$16,16)+1)*G30),) -> 1534.903725 | O30: =IF(H30,((VLOOKUP($B30,$E$7:$AI$16,20)+1)*H30),) -> 0 | R30: =IF(D30,((VLOOKUP($B30,$E$7:$AI$16,5)+1)*K30),) -> 3748.253398 | S30: =IF(E30,((VLOOKUP($B30,$E$7:$AI$16,5+4)+1)*L30),) -> 0 | T30: =IF(F30,((VLOOKUP($B30,$E$7:$AI$16,5+8)+1)*M30),) -> 0 | U30: =IF(G30,((VLOOKUP($B30,$E$7:$AI$16,5+12)+1)*N30),) -> 1534.903725 | V30: =IF(H30,((VLOOKUP($B30,$E$7:$AI$16,5+16)+1)*O30),) -> 0 | Y30: =IF(D30,((VLOOKUP($B30,$E$7:$AI$16,6)+1)*R30),) -> 3748.253398 | Z30: =IF(E30,((VLOOKUP($B30,$E$7:$AI$16,6+4)+1)*S30),) -> 0 | AA30: =IF(F30,((VLOOKUP($B30,$E$7:$AI$16,6+8)+1)*T30),) -> 0 | AB30: =IF(G30,((VLOOKUP($B30,$E$7:$AI$16,6+12)+1)*U30),) -> 1534.903725 | AC30: =IF(H30,((VLOOKUP($B30,$E$7:$AI$16,6+16)+1)*V30),) -> 0 | AF30: =IF(D30,((VLOOKUP($B30,$E$7:$AI$16,7)+1)*Y30),) -> 3748.253398 | AG30: =IF(E30,((VLOOKUP($B30,$E$7:$AI$16,7+4)+1)*Z30),) -> 0 | AH30: =IF(F30,((VLOOKUP($B30,$E$7:$AI$16,7+8)+1)*AA30),) -> 0 | AI30: =IF(G30,((VLOOKUP($B30,$E$7:$AI$16,7+12)+1)*AB30),) -> 1534.903725 | AJ30: =IF(H30,((VLOOKUP($B30,$E$7:$AI$16,7+16)+1)*AC30),) -> 0
A31: 4 | B31: 1 | C31: LDNO HV: Domestic Unrestricted | D31: 21538.31146 | E31: 0 | F31: 0 | G31: 9576.463133 | H31: 0 | I31: 0 | J31: 0 | K31: 21538.31146 | L31: 0 | M31: 0 | N31: 9576.463133 | O31: 0 | R31: 21538.31146 | S31: 0 | T31: 0 | U31: 9576.463133 | V31: 0 | Y31: 21538.31146 | Z31: 0 | AA31: 0 | AB31: 9576.463133 | AC31: 0 | AF31: 21538.31146 | AG31: 0 | AH31: 0 | AI31: 9576.463133 | AJ31: 0
A32: 5 | C32: > Domestic Two Rate | D32: 0 | E32: 0 | F32: 0 | G32: 0 | H32: 0 | I32: 0 | J32: 0 | K32: 0 | L32: 0 | M32: 0 | N32: 0 | O32: 0 | R32: 0 | S32: 0 | T32: 0 | U32: 0 | V32: 0 | Y32: 0 | Z32: 0 | AA32: 0 | AB32: 0 | AC32: 0 | AF32: 0 | AG32: 0 | AH32: 0 | AI32: 0 | AJ32: 0
A33: 6 | B33: 1 | C33: Domestic Two Rate | D33: 148595.8148 | E33: 132539.3456 | F33: 0 | G33: 50656.37901 | H33: 0 | I33: 0 | J33: 0 | K33: 148595.8148 | L33: 132539.3456 | M33: 0 | N33: 50656.37901 | O33: 0 | R33: 148595.8148 | S33: 132539.3456 | T33: 0 | U33: 50656.37901 | V33: 0 | Y33: 148595.8148 | Z33: 132539.3456 | AA33: 0 | AB33: 50656.37901 | AC33: 0 | AF33: 148595.8148 | AG33: 132539.3456 | AH33: 0 | AI33: 50656.37901 | AJ33: 0
A34: 7 | B34: 1 | C34: LDNO LV: Domestic Two Rate | D34: 76.31678952 | E34: 16.25200139 | F34: 0 | G34: 32.93642007 | H34: 0 | I34: 0 | J34: 0 | K34: 76.31678952 | L34: 16.25200139 | M34: 0 | N34: 32.93642007 | O34: 0 | R34: 76.31678952 | S34: 16.25200139 | T34: 0 | U34: 32.93642007 | V34: 0 | Y34: 76.31678952 | Z34: 16.25200139 | AA34: 0 | AB34: 32.93642007 | AC34: 0 | AF34: 76.31678952 | AG34: 16.25200139 | AH34: 0 | AI34: 32.93642007 | AJ34: 0
A35: 8 | B35: 1 | C35: LDNO HV: Domestic Two Rate | D35: 307.7377218 | E35: 160.4615525 | F35: 0 | G35: 182.8854175 | H35: 0 | I35: 0 | J35: 0 | K35: 307.7377218 | L35: 160.4615525 | M35: 0 | N35: 182.8854175 | O35: 0 | R35: 307.7377218 | S35: 160.4615525 | T35: 0 | U35: 182.8854175 | V35: 0 | Y35: 307.7377218 | Z35: 160.4615525 | AA35: 0 | AB35: 182.8854175 | AC35: 0 | AF35: 307.7377218 | AG35: 160.4615525 | AH35: 0 | AI35: 182.8854175 | AJ35: 0
A36: 9 | C36: > Domestic Off Peak (related MPAN) | D36: 0 | E36: 0 | F36: 0 | G36: 0 | H36: 0 | I36: 0 | J36: 0 | K36: 0 | L36: 0 | M36: 0 | N36: 0 | O36: 0 | R36: 0 | S36: 0 | T36: 0 | U36: 0 | V36: 0 | Y36: 0 | Z36: 0 | AA36: 0 | AB36: 0 | AC36: 0 | AF36: 0 | AG36: 0 | AH36: 0 | AI36: 0 | AJ36: 0
A37: 10 | B37: 1 | C37: Domestic Off Peak (related MPAN) | D37: 2369.594793 | F37: 0 | G37: 0 | H37: 0 | I37: 0 | J37: 0 | K37: 2369.594793 | L37: 0 | M37: 0 | N37: 0 | O37: 0 | R37: 2369.594793 | S37: 0 | T37: 0 | U37: 0 | V37: 0 | Y37: 2369.594793 | Z37: 0 | AA37: 0 | AB37: 0 | AC37: 0 | AF37: 2369.594793 | AG37: 0 | AH37: 0 | AI37: 0 | AJ37: 0
A38: 11 | B38: 1 | C38: LDNO LV: Domestic Off Peak (related MPAN) | D38: 0 | E38: 0 | F38: 0 | G38: 0 | H38: 0 | I38: 0 | J38: 0 | K38: 0 | L38: 0 | M38: 0 | N38: 0 | O38: 0 | R38: 0 | S38: 0 | T38: 0 | U38: 0 | V38: 0 | Y38: 0 | Z38: 0 | AA38: 0 | AB38: 0 | AC38: 0 | AF38: 0 | AG38: 0 | AH38: 0 | AI38: 0 | AJ38: 0
A39: 12 | B39: 1 | C39: LDNO HV: Domestic Off Peak (related MPAN) | D39: 0 | E39: 0 | F39: 0 | G39: 0 | H39: 0 | I39: 0 | J39: 0 | K39: 0 | L39: 0 | M39: 0 | N39: 0 | O39: 0 | R39: 0 | S39: 0 | T39: 0 | U39: 0 | V39: 0 | Y39: 0 | Z39: 0 | AA39: 0 | AB39: 0 | AC39: 0 | AF39: 0 | AG39: 0 | AH39: 0 | AI39: 0 | AJ39: 0
A40: 13 | C40: > Small Non Domestic Unrestricted | D40: 0 | E40: 0 | F40: 0 | G40: 0 | H40: 0 | I40: 0 | J40: 0 | K40: 0 | L40: 0 | M40: 0 | N40: 0 | O40: 0 | R40: 0 | S40: 0 | T40: 0 | U40: 0 | V40: 0 | Y40: 0 | Z40: 0 | AA40: 0 | AB40: 0 | AC40: 0 | AF40: 0 | AG40: 0 | AH40: 0 | AI40: 0 | AJ40: 0
A41: 14 | B41: 1 | C41: Small Non Domestic Unrestricted | D41: 788341.2966 | E41: 0 | F41: 0 | G41: 64499.40072 | H41: 0 | I41: 0 | J41: 0 | K41: 788341.2966 | L41: 0 | M41: 0 | N41: 64499.40072 | O41: 0 | R41: 788341.2966 | S41: 0 | T41: 0 | U41: 64499.40072 | V41: 0 | Y41: 788341.2966 | Z41: 0 | AA41: 0 | AB41: 64499.40072 | AC41: 0 | AF41: 788341.2966 | AG41: 0 | AH41: 0 | AI41: 64499.40072 | AJ41: 0
A42: 15 | B42: 1 | C42: LDNO LV: Small Non Domestic Unrestricted | D42: 71.63395919 | E42: 0 | F42: 0 | G42: 10.38806408 | H42: 0 | I42: 0 | J42: 0 | K42: 71.63395919 | L42: 0 | M42: 0 | N42: 10.38806408 | O42: 0 | R42: 71.63395919 | S42: 0 | T42: 0 | U42: 10.38806408 | V42: 0 | Y42: 71.63395919 | Z42: 0 | AA42: 0 | AB42: 10.38806408 | AC42: 0 | AF42: 71.63395919 | AG42: 0 | AH42: 0 | AI42: 10.38806408 | AJ42: 0
A43: 16 | B43: 1 | C43: LDNO HV: Small Non Domestic Unrestricted | D43: 4110.730745 | E43: 0 | F43: 0 | G43: 183.2927888 | H43: 0 | I43: 0 | J43: 0 | K43: 4110.730745 | L43: 0 | M43: 0 | N43: 183.2927888 | O43: 0 | R43: 4110.730745 | S43: 0 | T43: 0 | U43: 183.2927888 | V43: 0 | Y43: 4110.730745 | Z43: 0 | AA43: 0 | AB43: 183.2927888 | AC43: 0 | AF43: 4110.730745 | AG43: 0 | AH43: 0 | AI43: 183.2927888 | AJ43: 0
A44: 17 | C44: > Small Non Domestic Two Rate | D44: 0 | E44: 0 | F44: 0 | G44: 0 | H44: 0 | I44: 0 | J44: 0 | K44: 0 | L44: 0 | M44: 0 | N44: 0 | O44: 0 | R44: 0 | S44: 0 | T44: 0 | U44: 0 | V44: 0 | Y44: 0 | Z44: 0 | AA44: 0 | AB44: 0 | AC44: 0 | AF44: 0 | AG44: 0 | AH44: 0 | AI44: 0 | AJ44: 0
A45: 18 | B45: 1 | C45: Small Non Domestic Two Rate | D45: 197413.5436 | E45: 83732.92508 | F45: 0 | G45: 13327.09991 | H45: 0 | I45: 0 | J45: 0 | K45: 197413.5436 | L45: 83732.92508 | M45: 0 | N45: 13327.09991 | O45: 0 | R45: 197413.5436 | S45: 83732.92508 | T45: 0 | U45: 13327.09991 | V45: 0 | Y45: 197413.5436 | Z45: 83732.92508 | AA45: 0 | AB45: 13327.09991 | AC45: 0 | AF45: 197413.5436 | AG45: 83732.92508 | AH45: 0 | AI45: 13327.09991 | AJ45: 0
A46: 19 | B46: 1 | C46: LDNO LV: Small Non Domestic Two Rate | D46: 0 | E46: 0 | F46: 0 | G46: 0 | H46: 0 | I46: 0 | J46: 0 | K46: 0 | L46: 0 | M46: 0 | N46: 0 | O46: 0 | R46: 0 | S46: 0 | T46: 0 | U46: 0 | V46: 0 | Y46: 0 | Z46: 0 | AA46: 0 | AB46: 0 | AC46: 0 | AF46: 0 | AG46: 0 | AH46: 0 | AI46: 0 | AJ46: 0
A47: 20 | B47: 1 | C47: LDNO HV: Small Non Domestic Two Rate | D47: 888.7786027 | E47: 150.5713725 | F47: 0 | G47: 14.47325781 | H47: 0 | I47: 0 | J47: 0 | K47: 888.7786027 | L47: 150.5713725 | M47: 0 | N47: 14.47325781 | O47: 0 | R47: 888.7786027 | S47: 150.5713725 | T47: 0 | U47: 14.47325781 | V47: 0 | Y47: 888.7786027 | Z47: 150.5713725 | AA47: 0 | AB47: 14.47325781 | AC47: 0 | AF47: 888.7786027 | AG47: 150.5713725 | AH47: 0 | AI47: 14.47325781 | AJ47: 0
A48: 21 | C48: > Small Non Domestic Off Peak (related MPAN) | D48: 0 | E48: 0 | F48: 0 | G48: 0 | H48: 0 | I48: 0 | J48: 0 | K48: 0 | L48: 0 | M48: 0 | N48: 0 | O48: 0 | R48: 0 | S48: 0 | T48: 0 | U48: 0 | V48: 0 | Y48: 0 | Z48: 0 | AA48: 0 | AB48: 0 | AC48: 0 | AF48: 0 | AG48: 0 | AH48: 0 | AI48: 0 | AJ48: 0
A49: 22 | B49: 1 | C49: Small Non Domestic Off Peak (related MPAN) | D49: 1373.419906 | F49: 0 | G49: 0 | H49: 0 | I49: 0 | J49: 0 | K49: 1373.419906 | L49: 0 | M49: 0 | N49: 0 | O49: 0 | R49: 1373.419906 | S49: 0 | T49: 0 | U49: 0 | V49: 0 | Y49: 1373.419906 | Z49: 0 | AA49: 0 | AB49: 0 | AC49: 0 | AF49: 1373.419906 | AG49: 0 | AH49: 0 | AI49: 0 | AJ49: 0
A50: 23 | B50: 1 | C50: LDNO LV: Small Non Domestic Off Peak (related MPAN) | D50: 0 | E50: 0 | F50: 0 | G50: 0 | H50: 0 | I50: 0 | J50: 0 | K50: 0 | L50: 0 | M50: 0 | N50: 0 | O50: 0 | R50: 0 | S50: 0 | T50: 0 | U50: 0 | V50: 0 | Y50: 0 | Z50: 0 | AA50: 0 | AB50: 0 | AC50: 0 | AF50: 0 | AG50: 0 | AH50: 0 | AI50: 0 | AJ50: 0
A51: 24 | B51: 1 | C51: LDNO HV: Small Non Domestic Off Peak (related MPAN) | D51: 0 | E51: 0 | F51: 0 | G51: 0 | H51: 0 | I51: 0 | J51: 0 | K51: 0 | L51: 0 | M51: 0 | N51: 0 | O51: 0 | R51: 0 | S51: 0 | T51: 0 | U51: 0 | V51: 0 | Y51: 0 | Z51: 0 | AA51: 0 | AB51: 0 | AC51: 0 | AF51: 0 | AG51: 0 | AH51: 0 | AI51: 0 | AJ51: 0
A52: 25 | C52: > LV Medium Non-Domestic | D52: 0 | E52: 0 | F52: 0 | G52: 0 | H52: 0 | I52: 0 | J52: 0 | K52: 0 | L52: 0 | M52: 0 | N52: 0 | O52: 0 | R52: 0 | S52: 0 | T52: 0 | U52: 0 | V52: 0 | Y52: 0 | Z52: 0 | AA52: 0 | AB52: 0 | AC52: 0 | AF52: 0 | AG52: 0 | AH52: 0 | AI52: 0 | AJ52: 0
A53: 26 | B53: 1 | C53: LV Medium Non-Domestic | D53: 26946.83891 | E53: 7790.303753 | F53: 0 | G53: 782.0146133 | H53: 0 | I53: 0 | J53: 0 | K53: 26946.83891 | L53: 7790.303753 | M53: 0 | N53: 782.0146133 | O53: 0 | R53: 26946.83891 | S53: 7790.303753 | T53: 0 | U53: 782.0146133 | V53: 0 | Y53: 26946.83891 | Z53: 7790.303753 | AA53: 0 | AB53: 782.0146133 | AC53: 0 | AF53: 26946.83891 | AG53: 7790.303753 | AH53: 0 | AI53: 782.0146133 | AJ53: 0
A54: 27 | B54: 1 | C54: LDNO LV: LV Medium Non-Domestic | D54: 0 | E54: 0 | F54: 0 | G54: 0 | H54: 0 | I54: 0 | J54: 0 | K54: 0 | L54: 0 | M54: 0 | N54: 0 | O54: 0 | R54: 0 | S54: 0 | T54: 0 | U54: 0 | V54: 0 | Y54: 0 | Z54: 0 | AA54: 0 | AB54: 0 | AC54: 0 | AF54: 0 | AG54: 0 | AH54: 0 | AI54: 0 | AJ54: 0
A55: 28 | B55: 1 | C55: LDNO HV: LV Medium Non-Domestic | D55: -3.637978807e-15 | E55: 1.818989404e-15 | F55: 0 | G55: 0 | H55: 0 | I55: 0 | J55: 0 | K55: -3.637978807e-15 | L55: 1.818989404e-15 | M55: 0 | N55: 0 | O55: 0 | R55: -3.637978807e-15 | S55: 1.818989404e-15 | T55: 0 | U55: 0 | V55: 0 | Y55: -3.637978807e-15 | Z55: 1.818989404e-15 | AA55: 0 | AB55: 0 | AC55: 0 | AF55: -3.637978807e-15 | AG55: 1.818989404e-15 | AH55: 0 | AI55: 0 | AJ55: 0
A56: 29 | C56: > LV Sub Medium Non-Domestic | D56: 0 | E56: 0 | F56: 0 | G56: 0 | H56: 0 | I56: 0 | J56: 0 | K56: 0 | L56: 0 | M56: 0 | N56: 0 | O56: 0 | R56: 0 | S56: 0 | T56: 0 | U56: 0 | V56: 0 | Y56: 0 | Z56: 0 | AA56: 0 | AB56: 0 | AC56: 0 | AF56: 0 | AG56: 0 | AH56: 0 | AI56: 0 | AJ56: 0
A57: 30 | B57: 1 | C57: LV Sub Medium Non-Domestic | D57: 0.2169613471 | E57: 0.06663332612 | F57: 0 | G57: 0.001985026667 | H57: 0 | I57: 0 | J57: 0 | K57: 0.2169613471 | L57: 0.06663332612 | M57: 0 | N57: 0.001985026667 | O57: 0 | R57: 0.2169613471 | S57: 0.06663332612 | T57: 0 | U57: 0.001985026667 | V57: 0 | Y57: 0.2169613471 | Z57: 0.06663332612 | AA57: 0 | AB57: 0.001985026667 | AC57: 0 | AF57: 0.2169613471 | AG57: 0.06663332612 | AH57: 0 | AI57: 0.001985026667 | AJ57: 0
A58: 31 | C58: > HV Medium Non-Domestic | D58: 0 | E58: 0 | F58: 0 | G58: 0 | H58: 0 | I58: 0 | J58: 0 | K58: 0 | L58: 0 | M58: 0 | N58: 0 | O58: 0 | R58: 0 | S58: 0 | T58: 0 | U58: 0 | V58: 0 | Y58: 0 | Z58: 0 | AA58: 0 | AB58: 0 | AC58: 0 | AF58: 0 | AG58: 0 | AH58: 0 | AI58: 0 | AJ58: 0
A59: 32 | B59: 1 | C59: HV Medium Non-Domestic | D59: 56.5708231 | E59: 27.23780372 | F59: 0 | G59: 3.238266811 | H59: 0 | I59: 0 | J59: 0 | K59: 56.5708231 | L59: 27.23780372 | M59: 0 | N59: 3.238266811 | O59: 0 | R59: 56.5708231 | S59: 27.23780372 | T59: 0 | U59: 3.238266811 | V59: 0 | Y59: 56.5708231 | Z59: 27.23780372 | AA59: 0 | AB59: 3.238266811 | AC59: 0 | AF59: 56.5708231 | AG59: 27.23780372 | AH59: 0 | AI59: 3.238266811 | AJ59: 0
A60: 33 | C60: > LV Network Domestic | D60: 0 | E60: 0 | F60: 0 | G60: 0 | H60: 0 | I60: 0 | J60: 0 | K60: 0 | L60: 0 | M60: 0 | N60: 0 | O60: 0 | R60: 0 | S60: 0 | T60: 0 | U60: 0 | V60: 0 | Y60: 0 | Z60: 0 | AA60: 0 | AB60: 0 | AC60: 0 | AF60: 0 | AG60: 0 | AH60: 0 | AI60: 0 | AJ60: 0
A61: 34 | B61: 1 | C61: LV Network Domestic | D61: 2.012033728 | E61: 10.44829398 | F61: 9.397597107 | G61: 6.633033246 | H61: 0 | I61: 0 | J61: 0 | K61: 2.012033728 | L61: 10.44829398 | M61: 9.397597107 | N61: 6.633033246 | O61: 0 | R61: 2.012033728 | S61: 10.44829398 | T61: 9.397597107 | U61: 6.633033246 | V61: 0 | Y61: 2.012033728 | Z61: 10.44829398 | AA61: 9.397597107 | AB61: 6.633033246 | AC61: 0 | AF61: 2.012033728 | AG61: 10.44829398 | AH61: 9.397597107 | AI61: 6.633033246 | AJ61: 0
A62: 35 | B62: 1 | C62: LDNO LV: LV Network Domestic | D62: 0 | E62: 0 | F62: 0 | G62: 0 | H62: 0 | I62: 0 | J62: 0 | K62: 0 | L62: 0 | M62: 0 | N62: 0 | O62: 0 | R62: 0 | S62: 0 | T62: 0 | U62: 0 | V62: 0 | Y62: 0 | Z62: 0 | AA62: 0 | AB62: 0 | AC62: 0 | AF62: 0 | AG62: 0 | AH62: 0 | AI62: 0 | AJ62: 0
A63: 36 | B63: 1 | C63: LDNO HV: LV Network Domestic | D63: 0 | E63: 0 | F63: 0 | G63: 0 | H63: 0 | I63: 0 | J63: 0 | K63: 0 | L63: 0 | M63: 0 | N63: 0 | O63: 0 | R63: 0 | S63: 0 | T63: 0 | U63: 0 | V63: 0 | Y63: 0 | Z63: 0 | AA63: 0 | AB63: 0 | AC63: 0 | AF63: 0 | AG63: 0 | AH63: 0 | AI63: 0 | AJ63: 0
A64: 37 | C64: > LV Network Non-Domestic Non-CT | D64: 0 | E64: 0 | F64: 0 | G64: 0 | H64: 0 | I64: 0 | J64: 0 | K64: 0 | L64: 0 | M64: 0 | N64: 0 | O64: 0 | R64: 0 | S64: 0 | T64: 0 | U64: 0 | V64: 0 | Y64: 0 | Z64: 0 | AA64: 0 | AB64: 0 | AC64: 0 | AF64: 0 | AG64: 0 | AH64: 0 | AI64: 0 | AJ64: 0
A65: 38 | B65: 1 | C65: LV Network Non-Domestic Non-CT | D65: 12121.70413 | E65: 81006.95198 | F65: 60057.38782 | G65: 2100.892179 | H65: 0 | I65: 0 | J65: 0 | K65: 12121.70413 | L65: 81006.95198 | M65: 60057.38782 | N65: 2100.892179 | O65: 0 | R65: 12121.70413 | S65: 81006.95198 | T65: 60057.38782 | U65: 2100.892179 | V65: 0 | Y65: 12121.70413 | Z65: 81006.95198 | AA65: 60057.38782 | AB65: 2100.892179 | AC65: 0 | AF65: 12121.70413 | AG65: 81006.95198 | AH65: 60057.38782 | AI65: 2100.892179 | AJ65: 0
A66: 39 | B66: 1 | C66: LDNO LV: LV Network Non-Domestic Non-CT | D66: 0 | E66: 0 | F66: 0 | G66: 0 | H66: 0 | I66: 0 | J66: 0 | K66: 0 | L66: 0 | M66: 0 | N66: 0 | O66: 0 | R66: 0 | S66: 0 | T66: 0 | U66: 0 | V66: 0 | Y66: 0 | Z66: 0 | AA66: 0 | AB66: 0 | AC66: 0 | AF66: 0 | AG66: 0 | AH66: 0 | AI66: 0 | AJ66: 0
A67: 40 | B67: 1 | C67: LDNO HV: LV Network Non-Domestic Non-CT | D67: 50.62210439 | E67: 290.2504093 | F67: 161.0849097 | G67: 8.825288101 | H67: 0 | I67: 0 | J67: 0 | K67: 50.62210439 | L67: 290.2504093 | M67: 161.0849097 | N67: 8.825288101 | O67: 0 | R67: 50.62210439 | S67: 290.2504093 | T67: 161.0849097 | U67: 8.825288101 | V67: 0 | Y67: 50.62210439 | Z67: 290.2504093 | AA67: 161.0849097 | AB67: 8.825288101 | AC67: 0 | AF67: 50.62210439 | AG67: 290.2504093 | AH67: 161.0849097 | AI67: 8.825288101 | AJ67: 0
A68: 41 | C68: > LV HH Metered | D68: 0 | E68: 0 | F68: 0 | G68: 0 | H68: 0 | I68: 0 | J68: 0 | K68: 0 | L68: 0 | M68: 0 | N68: 0 | O68: 0 | R68: 0 | S68: 0 | T68: 0 | U68: 0 | V68: 0 | Y68: 0 | Z68: 0 | AA68: 0 | AB68: 0 | AC68: 0 | AF68: 0 | AG68: 0 | AH68: 0 | AI68: 0 | AJ68: 0
A69: 42 | B69: 2 | C69: LV HH Metered | D69: 120521.177 | E69: 767707.2736 | F69: 570489.4375 | G69: 6053.599684 | H69: 725000 | I69: 28587.32249 | J69: 122816.7972 | K69: 120521.177 | L69: 767707.2736 | M69: 570489.4375 | N69: 6053.599684 | O69: 725000 | P69: =IF(I69,((VLOOKUP($B69,$E$7:$AI$16,24)+1)*I69),) -> 28587.32249 | Q69: =IF(J69,((VLOOKUP($B69,$E$7:$AI$16,28)+1)*J69),) -> 122816.7972 | R69: 120521.177 | S69: 767707.2736 | T69: 570489.4375 | U69: 6053.599684 | V69: 725000 | W69: =IF(I69,((VLOOKUP($B69,$E$7:$AI$16,5+20)+1)*P69),) -> 28587.32249 | X69: =IF(J69,((VLOOKUP($B69,$E$7:$AI$16,5+24)+1)*Q69),) -> 122816.7972 | Y69: 120521.177 | Z69: 767707.2736 | AA69: 570489.4375 | AB69: 6053.599684 | AC69: 725000 | AD69: =IF(I69,((VLOOKUP($B69,$E$7:$AI$16,6+20)+1)*W69),) -> 28587.32249 | AE69: =IF(J69,((VLOOKUP($B69,$E$7:$AI$16,6+24)+1)*X69),) -> 122816.7972 | AF69: 120521.177 | AG69: 767707.2736 | AH69: 570489.4375 | AI69: 6053.599684 | AJ69: 725000 | AK69: =IF(I69,((VLOOKUP($B69,$E$7:$AI$16,7+20)+1)*AD69),) -> 28587.32249 | AL69: =IF(J69,((VLOOKUP($B69,$E$7:$AI$16,7+24)+1)*AE69),) -> 122816.7972
A70: 43 | B70: 2 | C70: LDNO LV: LV HH Metered | D70: 26.56323277 | E70: 180.0230628 | F70: 132.9414728 | G70: 2.894651563 | H70: 230.1155295 | I70: 26.72951796 | J70: 8.64161504 | K70: 26.56323277 | L70: 180.0230628 | M70: 132.9414728 | N70: 2.894651563 | O70: 230.1155295 | P70: =IF(I70,((VLOOKUP($B70,$E$7:$AI$16,24)+1)*I70),) -> 26.72951796 | Q70: =IF(J70,((VLOOKUP($B70,$E$7:$AI$16,28)+1)*J70),) -> 8.64161504 | R70: 26.56323277 | S70: 180.0230628 | T70: 132.9414728 | U70: 2.894651563 | V70: 230.1155295 | W70: =IF(I70,((VLOOKUP($B70,$E$7:$AI$16,5+20)+1)*P70),) -> 26.72951796 | X70: =IF(J70,((VLOOKUP($B70,$E$7:$AI$16,5+24)+1)*Q70),) -> 8.64161504 | Y70: 26.56323277 | Z70: 180.0230628 | AA70: 132.9414728 | AB70: 2.894651563 | AC70: 230.1155295 | AD70: =IF(I70,((VLOOKUP($B70,$E$7:$AI$16,6+20)+1)*W70),) -> 26.72951796 | AE70: =IF(J70,((VLOOKUP($B70,$E$7:$AI$16,6+24)+1)*X70),) -> 8.64161504 | AF70: 26.56323277 | AG70: 180.0230628 | AH70: 132.9414728 | AI70: 2.894651563 | AJ70: 230.1155295 | AK70: =IF(I70,((VLOOKUP($B70,$E$7:$AI$16,7+20)+1)*AD70),) -> 26.72951796 | AL70: =IF(J70,((VLOOKUP($B70,$E$7:$AI$16,7+24)+1)*AE70),) -> 8.64161504
A71: 44 | B71: 2 | C71: LDNO HV: LV HH Metered | D71: 5344.984537 | E71: 30055.81136 | F71: 27681.62318 | G71: 132.2861054 | H71: 39629.74012 | I71: 47.24597616 | J71: 1627.863829 | K71: 5344.984537 | L71: 30055.81136 | M71: 27681.62318 | N71: 132.2861054 | O71: 39629.74012 | P71: 47.24597616 | Q71: 1627.863829 | R71: 5344.984537 | S71: 30055.81136 | T71: 27681.62318 | U71: 132.2861054 | V71: 39629.74012 | W71: 47.24597616 | X71: 1627.863829 | Y71: 5344.984537 | Z71: 30055.81136 | AA71: 27681.62318 | AB71: 132.2861054 | AC71: 39629.74012 | AD71: 47.24597616 | AE71: 1627.863829 | AF71: 5344.984537 | AG71: 30055.81136 | AH71: 27681.62318 | AI71: 132.2861054 | AJ71: 39629.74012 | AK71: 47.24597616 | AL71: 1627.863829
A72: 45 | C72: > LV Sub HH Metered | D72: 0 | E72: 0 | F72: 0 | G72: 0 | H72: 0 | I72: 0 | J72: 0 | K72: 0 | L72: 0 | M72: 0 | N72: 0 | O72: 0 | R72: 0 | S72: 0 | T72: 0 | U72: 0 | V72: 0 | Y72: 0 | Z72: 0 | AA72: 0 | AB72: 0 | AC72: 0 | AF72: 0 | AG72: 0 | AH72: 0 | AI72: 0 | AJ72: 0
A73: 46 | B73: 2 | C73: LV Sub HH Metered | D73: 4874.020017 | E73: 29990.72372 | F73: 25258.84703 | G73: 64.98335504 | H73: 23211.75202 | I73: 953.9675292 | J73: 6728.325406 | K73: 4874.020017 | L73: 29990.72372 | M73: 25258.84703 | N73: 64.98335504 | O73: 23211.75202 | P73: =IF(I73,((VLOOKUP($B73,$E$7:$AI$16,24)+1)*I73),) -> 953.9675292 | Q73: =IF(J73,((VLOOKUP($B73,$E$7:$AI$16,28)+1)*J73),) -> 6728.325406 | R73: 4874.020017 | S73: 29990.72372 | T73: 25258.84703 | U73: 64.98335504 | V73: 23211.75202 | W73: =IF(I73,((VLOOKUP($B73,$E$7:$AI$16,5+20)+1)*P73),) -> 953.9675292 | X73: =IF(J73,((VLOOKUP($B73,$E$7:$AI$16,5+24)+1)*Q73),) -> 6728.325406 | Y73: 4874.020017 | Z73: 29990.72372 | AA73: 25258.84703 | AB73: 64.98335504 | AC73: 23211.75202 | AD73: =IF(I73,((VLOOKUP($B73,$E$7:$AI$16,6+20)+1)*W73),) -> 953.9675292 | AE73: =IF(J73,((VLOOKUP($B73,$E$7:$AI$16,6+24)+1)*X73),) -> 6728.325406 | AF73: 4874.020017 | AG73: 29990.72372 | AH73: 25258.84703 | AI73: 64.98335504 | AJ73: 23211.75202 | AK73: =IF(I73,((VLOOKUP($B73,$E$7:$AI$16,7+20)+1)*AD73),) -> 953.9675292 | AL73: =IF(J73,((VLOOKUP($B73,$E$7:$AI$16,7+24)+1)*AE73),) -> 6728.325406
A74: 47 | B74: 2 | C74: LDNO HV: LV Sub HH Metered | D74: 426.4583855 | E74: 2276.573155 | F74: 2031.255156 | G74: 3.486095771 | H74: 2811.357939 | I74: 0 | J74: 78.99136478 | K74: 426.4583855 | L74: 2276.573155 | M74: 2031.255156 | N74: 3.486095771 | O74: 2811.357939 | P74: 0 | Q74: 78.99136478 | R74: 426.4583855 | S74: 2276.573155 | T74: 2031.255156 | U74: 3.486095771 | V74: 2811.357939 | W74: 0 | X74: 78.99136478 | Y74: 426.4583855 | Z74: 2276.573155 | AA74: 2031.255156 | AB74: 3.486095771 | AC74: 2811.357939 | AD74: 0 | AE74: 78.99136478 | AF74: 426.4583855 | AG74: 2276.573155 | AH74: 2031.255156 | AI74: 3.486095771 | AJ74: 2811.357939 | AK74: =IF(I74,((VLOOKUP($B74,$E$7:$AI$16,7+20)+1)*AD74),) -> 0 | AL74: =IF(J74,((VLOOKUP($B74,$E$7:$AI$16,7+24)+1)*AE74),) -> 78.99136478
A75: 48 | C75: > HV HH Metered | D75: 0 | E75: 0 | F75: 0 | G75: 0 | H75: 0 | I75: 0 | J75: 0 | K75: 0 | L75: 0 | M75: 0 | N75: 0 | O75: 0 | R75: 0 | S75: 0 | T75: 0 | U75: 0 | V75: 0 | Y75: 0 | Z75: 0 | AA75: 0 | AB75: 0 | AC75: 0 | AF75: 0 | AG75: 0 | AH75: 0 | AI75: 0 | AJ75: 0
A76: 49 | B76: 2 | C76: HV HH Metered | D76: 146873.8891 | E76: 903198.681 | F76: 842161.3565 | G76: 814.7168057 | H76: 628579.2102 | I76: 34337.68614 | J76: 97134.43631 | K76: 146873.8891 | L76: 903198.681 | M76: 842161.3565 | N76: 814.7168057 | O76: 628579.2102 | P76: =IF(I76,((VLOOKUP($B76,$E$7:$AI$16,24)+1)*I76),) -> 34337.68614 | Q76: =IF(J76,((VLOOKUP($B76,$E$7:$AI$16,28)+1)*J76),) -> 97134.43631 | R76: 146873.8891 | S76: 903198.681 | T76: 842161.3565 | U76: 814.7168057 | V76: 628579.2102 | W76: =IF(I76,((VLOOKUP($B76,$E$7:$AI$16,5+20)+1)*P76),) -> 34337.68614 | X76: =IF(J76,((VLOOKUP($B76,$E$7:$AI$16,5+24)+1)*Q76),) -> 97134.43631 | Y76: 146873.8891 | Z76: 903198.681 | AA76: 842161.3565 | AB76: 814.7168057 | AC76: 628579.2102 | AD76: =IF(I76,((VLOOKUP($B76,$E$7:$AI$16,6+20)+1)*W76),) -> 34337.68614 | AE76: =IF(J76,((VLOOKUP($B76,$E$7:$AI$16,6+24)+1)*X76),) -> 97134.43631 | AF76: 146873.8891 | AG76: 903198.681 | AH76: 842161.3565 | AI76: 814.7168057 | AJ76: 628579.2102 | AK76: =IF(I76,((VLOOKUP($B76,$E$7:$AI$16,7+20)+1)*AD76),) -> 34337.68614 | AL76: =IF(J76,((VLOOKUP($B76,$E$7:$AI$16,7+24)+1)*AE76),) -> 97134.43631
A77: 50 | B77: 2 | C77: LDNO HV: HV HH Metered | D77: 659.3996647 | E77: 3854.650197 | F77: 3181.611943 | G77: 8.333603881 | H77: 3270.819309 | I77: 0 | J77: 290.1979556 | K77: 659.3996647 | L77: 3854.650197 | M77: 3181.611943 | N77: 8.333603881 | O77: 3270.819309 | P77: 0 | Q77: 290.1979556 | R77: 659.3996647 | S77: 3854.650197 | T77: 3181.611943 | U77: 8.333603881 | V77: 3270.819309 | W77: 0 | X77: 290.1979556 | Y77: 659.3996647 | Z77: 3854.650197 | AA77: 3181.611943 | AB77: 8.333603881 | AC77: 3270.819309 | AD77: 0 | AE77: 290.1979556 | AF77: 659.3996647 | AG77: 3854.650197 | AH77: 3181.611943 | AI77: 8.333603881 | AJ77: 3270.819309 | AK77: =IF(I77,((VLOOKUP($B77,$E$7:$AI$16,7+20)+1)*AD77),) -> 0 | AL77: =IF(J77,((VLOOKUP($B77,$E$7:$AI$16,7+24)+1)*AE77),) -> 290.1979556
A78: 51 | C78: > NHH UMS category A | D78: 0 | E78: 0 | F78: 0 | G78: 0 | H78: 0 | I78: 0 | J78: 0 | K78: 0 | L78: 0 | M78: 0 | N78: 0 | O78: 0 | R78: 0 | S78: 0 | T78: 0 | U78: 0 | V78: 0 | Y78: 0 | Z78: 0 | AA78: 0 | AB78: 0 | AC78: 0 | AF78: 0 | AG78: 0 | AH78: 0 | AI78: 0 | AJ78: 0
A79: 52 | B79: 1 | C79: NHH UMS category A | D79: 1811.146729 | E79: 0 | F79: 0 | G79: 0 | H79: 0 | I79: 0 | J79: 0 | K79: 1811.146729 | L79: 0 | M79: 0 | N79: 0 | O79: 0 | R79: 1811.146729 | S79: 0 | T79: 0 | U79: 0 | V79: 0 | Y79: 1811.146729 | Z79: 0 | AA79: 0 | AB79: 0 | AC79: 0 | AF79: 1811.146729 | AG79: 0 | AH79: 0 | AI79: 0 | AJ79: 0
A80: 53 | B80: 1 | C80: LDNO LV: NHH UMS category A | D80: 0 | E80: 0 | F80: 0 | G80: 0 | H80: 0 | I80: 0 | J80: 0 | K80: 0 | L80: 0 | M80: 0 | N80: 0 | O80: 0 | R80: 0 | S80: 0 | T80: 0 | U80: 0 | V80: 0 | Y80: 0 | Z80: 0 | AA80: 0 | AB80: 0 | AC80: 0 | AF80: 0 | AG80: 0 | AH80: 0 | AI80: 0 | AJ80: 0
A81: 54 | B81: 1 | C81: LDNO HV: NHH UMS category A | D81: 72.61193186 | E81: 0 | F81: 0 | G81: 0 | H81: 0 | I81: 0 | J81: 0 | K81: 72.61193186 | L81: 0 | M81: 0 | N81: 0 | O81: 0 | R81: 72.61193186 | S81: 0 | T81: 0 | U81: 0 | V81: 0 | Y81: 72.61193186 | Z81: 0 | AA81: 0 | AB81: 0 | AC81: 0 | AF81: 72.61193186 | AG81: 0 | AH81: 0 | AI81: 0 | AJ81: 0
A82: 55 | C82: > NHH UMS category B | D82: 0 | E82: 0 | F82: 0 | G82: 0 | H82: 0 | I82: 0 | J82: 0 | K82: 0 | L82: 0 | M82: 0 | N82: 0 | O82: 0 | R82: 0 | S82: 0 | T82: 0 | U82: 0 | V82: 0 | Y82: 0 | Z82: 0 | AA82: 0 | AB82: 0 | AC82: 0 | AF82: 0 | AG82: 0 | AH82: 0 | AI82: 0 | AJ82: 0
A83: 56 | B83: 1 | C83: NHH UMS category B | D83: 5391.406227 | E83: 0 | F83: 0 | G83: 0 | H83: 0 | I83: 0 | J83: 0 | K83: 5391.406227 | L83: 0 | M83: 0 | N83: 0 | O83: 0 | R83: 5391.406227 | S83: 0 | T83: 0 | U83: 0 | V83: 0 | Y83: 5391.406227 | Z83: 0 | AA83: 0 | AB83: 0 | AC83: 0 | AF83: 5391.406227 | AG83: 0 | AH83: 0 | AI83: 0 | AJ83: 0
A84: 57 | B84: 1 | C84: LDNO LV: NHH UMS category B | D84: 8.650480011 | E84: 0 | F84: 0 | G84: 0 | H84: 0 | I84: 0 | J84: 0 | K84: 8.650480011 | L84: 0 | M84: 0 | N84: 0 | O84: 0 | R84: 8.650480011 | S84: 0 | T84: 0 | U84: 0 | V84: 0 | Y84: 8.650480011 | Z84: 0 | AA84: 0 | AB84: 0 | AC84: 0 | AF84: 8.650480011 | AG84: 0 | AH84: 0 | AI84: 0 | AJ84: 0
A85: 58 | B85: 1 | C85: LDNO HV: NHH UMS category B | D85: 119.5006233 | E85: 0 | F85: 0 | G85: 0 | H85: 0 | I85: 0 | J85: 0 | K85: 119.5006233 | L85: 0 | M85: 0 | N85: 0 | O85: 0 | R85: 119.5006233 | S85: 0 | T85: 0 | U85: 0 | V85: 0 | Y85: 119.5006233 | Z85: 0 | AA85: 0 | AB85: 0 | AC85: 0 | AF85: 119.5006233 | AG85: 0 | AH85: 0 | AI85: 0 | AJ85: 0
A86: 59 | C86: > NHH UMS category C | D86: 0 | E86: 0 | F86: 0 | G86: 0 | H86: 0 | I86: 0 | J86: 0 | K86: 0 | L86: 0 | M86: 0 | N86: 0 | O86: 0 | R86: 0 | S86: 0 | T86: 0 | U86: 0 | V86: 0 | Y86: 0 | Z86: 0 | AA86: 0 | AB86: 0 | AC86: 0 | AF86: 0 | AG86: 0 | AH86: 0 | AI86: 0 | AJ86: 0
A87: 60 | B87: 1 | C87: NHH UMS category C | D87: 287.5816589 | E87: 0 | F87: 0 | G87: 0 | H87: 0 | I87: 0 | J87: 0 | K87: 287.5816589 | L87: 0 | M87: 0 | N87: 0 | O87: 0 | R87: 287.5816589 | S87: 0 | T87: 0 | U87: 0 | V87: 0 | Y87: 287.5816589 | Z87: 0 | AA87: 0 | AB87: 0 | AC87: 0 | AF87: 287.5816589 | AG87: 0 | AH87: 0 | AI87: 0 | AJ87: 0
A88: 61 | B88: 1 | C88: LDNO LV: NHH UMS category C | D88: 0 | E88: 0 | F88: 0 | G88: 0 | H88: 0 | I88: 0 | J88: 0 | K88: 0 | L88: 0 | M88: 0 | N88: 0 | O88: 0 | R88: 0 | S88: 0 | T88: 0 | U88: 0 | V88: 0 | Y88: 0 | Z88: 0 | AA88: 0 | AB88: 0 | AC88: 0 | AF88: 0 | AG88: 0 | AH88: 0 | AI88: 0 | AJ88: 0
A89: 62 | B89: 1 | C89: LDNO HV: NHH UMS category C | D89: 0 | E89: 0 | F89: 0 | G89: 0 | H89: 0 | I89: 0 | J89: 0 | K89: 0 | L89: 0 | M89: 0 | N89: 0 | O89: 0 | R89: 0 | S89: 0 | T89: 0 | U89: 0 | V89: 0 | Y89: 0 | Z89: 0 | AA89: 0 | AB89: 0 | AC89: 0 | AF89: 0 | AG89: 0 | AH89: 0 | AI89: 0 | AJ89: 0
A90: 63 | C90: > NHH UMS category D | D90: 0 | E90: 0 | F90: 0 | G90: 0 | H90: 0 | I90: 0 | J90: 0 | K90: 0 | L90: 0 | M90: 0 | N90: 0 | O90: 0 | R90: 0 | S90: 0 | T90: 0 | U90: 0 | V90: 0 | Y90: 0 | Z90: 0 | AA90: 0 | AB90: 0 | AC90: 0 | AF90: 0 | AG90: 0 | AH90: 0 | AI90: 0 | AJ90: 0
A91: 64 | B91: 1 | C91: NHH UMS category D | D91: 0 | E91: 0 | F91: 0 | G91: 0 | H91: 0 | I91: 0 | J91: 0 | K91: 0 | L91: 0 | M91: 0 | N91: 0 | O91: 0 | R91: 0 | S91: 0 | T91: 0 | U91: 0 | V91: 0 | Y91: 0 | Z91: 0 | AA91: 0 | AB91: 0 | AC91: 0 | AF91: 0 | AG91: 0 | AH91: 0 | AI91: 0 | AJ91: 0
A92: 65 | B92: 1 | C92: LDNO LV: NHH UMS category D | D92: 0 | E92: 0 | F92: 0 | G92: 0 | H92: 0 | I92: 0 | J92: 0 | K92: 0 | L92: 0 | M92: 0 | N92: 0 | O92: 0 | R92: 0 | S92: 0 | T92: 0 | U92: 0 | V92: 0 | Y92: 0 | Z92: 0 | AA92: 0 | AB92: 0 | AC92: 0 | AF92: 0 | AG92: 0 | AH92: 0 | AI92: 0 | AJ92: 0
A93: 66 | B93: 1 | C93: LDNO HV: NHH UMS category D | D93: 0 | E93: 0 | F93: 0 | G93: 0 | H93: 0 | I93: 0 | J93: 0 | K93: 0 | L93: 0 | M93: 0 | N93: 0 | O93: 0 | R93: 0 | S93: 0 | T93: 0 | U93: 0 | V93: 0 | Y93: 0 | Z93: 0 | AA93: 0 | AB93: 0 | AC93: 0 | AF93: 0 | AG93: 0 | AH93: 0 | AI93: 0 | AJ93: 0
A94: =A93+1 -> 67 | C94: > LV UMS (Pseudo HH Metered) | D94: 0 | E94: 0 | F94: 0 | G94: 0 | H94: 0 | I94: 0 | J94: 0 | K94: =IF(D94,((VLOOKUP($B94,$E$7:$AI$16,4)+1)*D94),) -> 0 | L94: =IF(E94,((VLOOKUP($B94,$E$7:$AI$16,8)+1)*E94),) -> 0 | M94: =IF(F94,((VLOOKUP($B94,$E$7:$AI$16,12)+1)*F94),) -> 0 | N94: =IF(G94,((VLOOKUP($B94,$E$7:$AI$16,16)+1)*G94),) -> 0 | O94: =IF(H94,((VLOOKUP($B94,$E$7:$AI$16,20)+1)*H94),) -> 0 | R94: =IF(D94,((VLOOKUP($B94,$E$7:$AI$16,5)+1)*K94),) -> 0 | S94: =IF(E94,((VLOOKUP($B94,$E$7:$AI$16,5+4)+1)*L94),) -> 0 | T94: =IF(F94,((VLOOKUP($B94,$E$7:$AI$16,5+8)+1)*M94),) -> 0 | U94: =IF(G94,((VLOOKUP($B94,$E$7:$AI$16,5+12)+1)*N94),) -> 0 | V94: =IF(H94,((VLOOKUP($B94,$E$7:$AI$16,5+16)+1)*O94),) -> 0 | Y94: =IF(D94,((VLOOKUP($B94,$E$7:$AI$16,6)+1)*R94),) -> 0 | Z94: =IF(E94,((VLOOKUP($B94,$E$7:$AI$16,6+4)+1)*S94),) -> 0 | AA94: =IF(F94,((VLOOKUP($B94,$E$7:$AI$16,6+8)+1)*T94),) -> 0 | AB94: =IF(G94,((VLOOKUP($B94,$E$7:$AI$16,6+12)+1)*U94),) -> 0 | AC94: =IF(H94,((VLOOKUP($B94,$E$7:$AI$16,6+16)+1)*V94),) -> 0 | AF94: =IF(D94,((VLOOKUP($B94,$E$7:$AI$16,7)+1)*Y94),) -> 0 | AG94: =IF(E94,((VLOOKUP($B94,$E$7:$AI$16,7+4)+1)*Z94),) -> 0 | AH94: =IF(F94,((VLOOKUP($B94,$E$7:$AI$16,7+8)+1)*AA94),) -> 0 | AI94: =IF(G94,((VLOOKUP($B94,$E$7:$AI$16,7+12)+1)*AB94),) -> 0 | AJ94: =IF(H94,((VLOOKUP($B94,$E$7:$AI$16,7+16)+1)*AC94),) -> 0
A95: 68 | B95: 2 | C95: LV UMS (Pseudo HH Metered) | D95: 5390.037125 | E95: 33830.68709 | F95: 82069.28028 | G95: 32.83606557 | H95: 0 | I95: 0 | J95: 0 | K95: 5390.037125 | L95: 33830.68709 | M95: 82069.28028 | N95: 32.83606557 | O95: 0 | R95: 5390.037125 | S95: 33830.68709 | T95: 82069.28028 | U95: 32.83606557 | V95: 0 | Y95: 5390.037125 | Z95: 33830.68709 | AA95: 82069.28028 | AB95: 32.83606557 | AC95: 0 | AF95: 5390.037125 | AG95: 33830.68709 | AH95: 82069.28028 | AI95: 32.83606557 | AJ95: 0
A96: 69 | B96: 2 | C96: LDNO LV: LV UMS (Pseudo HH Metered) | D96: 0 | E96: 0 | F96: 0 | G96: 0 | H96: 0 | I96: 0 | J96: 0 | K96: 0 | L96: 0 | M96: 0 | N96: 0 | O96: 0 | R96: 0 | S96: 0 | T96: 0 | U96: 0 | V96: 0 | Y96: 0 | Z96: 0 | AA96: 0 | AB96: 0 | AC96: 0 | AF96: 0 | AG96: 0 | AH96: 0 | AI96: 0 | AJ96: 0
A97: 70 | B97: 2 | C97: LDNO HV: LV UMS (Pseudo HH Metered) | D97: 0 | E97: 0 | F97: 0 | G97: 0 | H97: 0 | I97: 0 | J97: 0 | K97: 0 | L97: 0 | M97: 0 | N97: 0 | O97: 0 | R97: 0 | S97: 0 | T97: 0 | U97: 0 | V97: 0 | Y97: 0 | Z97: 0 | AA97: 0 | AB97: 0 | AC97: 0 | AF97: 0 | AG97: 0 | AH97: 0 | AI97: 0 | AJ97: 0
A98: 71 | C98: > LV Generation NHH or Aggregate HH | D98: 0 | E98: 0 | F98: 0 | G98: 0 | H98: 0 | I98: 0 | J98: 0 | K98: 0 | L98: 0 | M98: 0 | N98: 0 | O98: 0 | R98: 0 | S98: 0 | T98: 0 | U98: 0 | V98: 0 | Y98: 0 | Z98: 0 | AA98: 0 | AB98: 0 | AC98: 0 | AF98: 0 | AG98: 0 | AH98: 0 | AI98: 0 | AJ98: 0
A99: 72 | B99: 4 | C99: LV Generation NHH or Aggregate HH | D99: 2534.880142 | E99: 0 | F99: 0 | G99: 0 | H99: 0 | I99: 0 | J99: 0 | K99: 2534.880142 | L99: 0 | M99: 0 | N99: 0 | O99: 0 | R99: 2534.880142 | S99: 0 | T99: 0 | U99: 0 | V99: 0 | Y99: 2534.880142 | Z99: 0 | AA99: 0 | AB99: 0 | AC99: 0 | AF99: 2534.880142 | AG99: 0 | AH99: 0 | AI99: 0 | AJ99: 0
A100: 73 | B100: 4 | C100: LDNO LV: LV Generation NHH or Aggregate HH | D100: 0 | E100: 0 | F100: 0 | G100: 0 | H100: 0 | I100: 0 | J100: 0 | K100: 0 | L100: 0 | M100: 0 | N100: 0 | O100: 0 | R100: 0 | S100: 0 | T100: 0 | U100: 0 | V100: 0 | Y100: 0 | Z100: 0 | AA100: 0 | AB100: 0 | AC100: 0 | AF100: 0 | AG100: 0 | AH100: 0 | AI100: 0 | AJ100: 0
A101: 74 | B101: 4 | C101: LDNO HV: LV Generation NHH or Aggregate HH | D101: 0 | E101: 0 | F101: 0 | G101: 0 | H101: 0 | I101: 0 | J101: 0 | K101: 0 | L101: 0 | M101: 0 | N101: 0 | O101: 0 | R101: 0 | S101: 0 | T101: 0 | U101: 0 | V101: 0 | Y101: 0 | Z101: 0 | AA101: 0 | AB101: 0 | AC101: 0 | AF101: 0 | AG101: 0 | AH101: 0 | AI101: 0 | AJ101: 0
A102: 75 | C102: > LV Sub Generation NHH | D102: 0 | E102: 0 | F102: 0 | G102: 0 | H102: 0 | I102: 0 | J102: 0 | K102: 0 | L102: 0 | M102: 0 | N102: 0 | O102: 0 | R102: 0 | S102: 0 | T102: 0 | U102: 0 | V102: 0 | Y102: 0 | Z102: 0 | AA102: 0 | AB102: 0 | AC102: 0 | AF102: 0 | AG102: 0 | AH102: 0 | AI102: 0 | AJ102: 0
A103: 76 | B103: 4 | C103: LV Sub Generation NHH | D103: 0 | E103: 0 | F103: 0 | G103: 0 | H103: 0 | I103: 0 | J103: 0 | K103: 0 | L103: 0 | M103: 0 | N103: 0 | O103: 0 | R103: 0 | S103: 0 | T103: 0 | U103: 0 | V103: 0 | Y103: 0 | Z103: 0 | AA103: 0 | AB103: 0 | AC103: 0 | AF103: 0 | AG103: 0 | AH103: 0 | AI103: 0 | AJ103: 0
A104: 77 | B104: 4 | C104: LDNO HV: LV Sub Generation NHH | D104: 0 | E104: 0 | F104: 0 | G104: 0 | H104: 0 | I104: 0 | J104: 0 | K104: 0 | L104: 0 | M104: 0 | N104: 0 | O104: 0 | R104: 0 | S104: 0 | T104: 0 | U104: 0 | V104: 0 | Y104: 0 | Z104: 0 | AA104: 0 | AB104: 0 | AC104: 0 | AF104: 0 | AG104: 0 | AH104: 0 | AI104: 0 | AJ104: 0
A105: 78 | C105: > LV Generation Intermittent | D105: 0 | E105: 0 | F105: 0 | G105: 0 | H105: 0 | I105: 0 | J105: 0 | K105: 0 | L105: 0 | M105: 0 | N105: 0 | O105: 0 | R105: 0 | S105: 0 | T105: 0 | U105: 0 | V105: 0 | Y105: 0 | Z105: 0 | AA105: 0 | AB105: 0 | AC105: 0 | AF105: 0 | AG105: 0 | AH105: 0 | AI105: 0 | AJ105: 0
A106: 79 | B106: 4 | C106: LV Generation Intermittent | D106: 35860.14794 | E106: 0 | F106: 0 | G106: 452.1634098 | J106: 3381.700951 | K106: 35860.14794 | L106: 0 | M106: 0 | N106: 452.1634098 | O106: 0 | Q106: =IF(J106,((VLOOKUP($B106,$E$7:$AI$16,28)+1)*J106),) -> 3381.700951 | R106: 35860.14794 | S106: 0 | T106: 0 | U106: 452.1634098 | V106: 0 | X106: =IF(J106,((VLOOKUP($B106,$E$7:$AI$16,5+24)+1)*Q106),) -> 3381.700951 | Y106: 35860.14794 | Z106: 0 | AA106: 0 | AB106: 452.1634098 | AC106: 0 | AE106: =IF(J106,((VLOOKUP($B106,$E$7:$AI$16,6+24)+1)*X106),) -> 3381.700951 | AF106: 35860.14794 | AG106: 0 | AH106: 0 | AI106: 452.1634098 | AJ106: 0 | AL106: =IF(J106,((VLOOKUP($B106,$E$7:$AI$16,7+24)+1)*AE106),) -> 3381.700951
A107: 80 | B107: 4 | C107: LDNO LV: LV Generation Intermittent | D107: 0 | E107: 0 | F107: 0 | G107: 0 | J107: 0 | K107: 0 | L107: 0 | M107: 0 | N107: 0 | O107: 0 | Q107: 0 | R107: 0 | S107: 0 | T107: 0 | U107: 0 | V107: 0 | X107: 0 | Y107: 0 | Z107: 0 | AA107: 0 | AB107: 0 | AC107: 0 | AE107: 0 | AF107: 0 | AG107: 0 | AH107: 0 | AI107: 0 | AJ107: 0 | AL107: 0
A108: 81 | B108: 4 | C108: LDNO HV: LV Generation Intermittent | D108: 527.2147719 | G108: 3.3275 | J108: 91.34960038 | K108: 527.2147719 | L108: 0 | M108: 0 | N108: 3.3275 | O108: 0 | Q108: 91.34960038 | R108: 527.2147719 | S108: 0 | T108: 0 | U108: 3.3275 | V108: 0 | X108: 91.34960038 | Y108: 527.2147719 | Z108: 0 | AA108: 0 | AB108: 3.3275 | AC108: 0 | AE108: 91.34960038 | AF108: 527.2147719 | AG108: 0 | AH108: 0 | AI108: 3.3275 | AJ108: 0 | AL108: 91.34960038
A109: 82 | C109: > LV Generation Intermittent no RP charge | D109: 0 | E109: 0 | F109: 0 | G109: 0 | J109: 0 | K109: 0 | L109: 0 | M109: 0 | N109: 0 | O109: 0 | R109: 0 | S109: 0 | T109: 0 | U109: 0 | V109: 0 | Y109: 0 | Z109: 0 | AA109: 0 | AB109: 0 | AC109: 0 | AF109: 0 | AG109: 0 | AH109: 0 | AI109: 0 | AJ109: 0
A110: 83 | B110: 4 | C110: LV Generation Intermittent no RP charge | D110: 0 | E110: 0 | F110: 0 | G110: 0 | J110: 0 | K110: 0 | L110: 0 | M110: 0 | N110: 0 | O110: 0 | R110: 0 | S110: 0 | T110: 0 | U110: 0 | V110: 0 | Y110: 0 | Z110: 0 | AA110: 0 | AB110: 0 | AC110: 0 | AF110: 0 | AG110: 0 | AH110: 0 | AI110: 0 | AJ110: 0
A111: 84 | C111: > LV Generation Non-Intermittent | D111: 0 | E111: 0 | F111: 0 | G111: 0 | J111: 0 | K111: 0 | L111: 0 | M111: 0 | N111: 0 | O111: 0 | R111: 0 | S111: 0 | T111: 0 | U111: 0 | V111: 0 | Y111: 0 | Z111: 0 | AA111: 0 | AB111: 0 | AC111: 0 | AF111: 0 | AG111: 0 | AH111: 0 | AI111: 0 | AJ111: 0
A112: 85 | B112: 4 | C112: LV Generation Non-Intermittent | D112: 142.5180647 | E112: 995.4361789 | F112: 890.9632901 | G112: 16.13670697 | J112: 561.7177768 | K112: 142.5180647 | L112: 995.4361789 | M112: 890.9632901 | N112: 16.13670697 | O112: 0 | Q112: =IF(J112,((VLOOKUP($B112,$E$7:$AI$16,28)+1)*J112),) -> 561.7177768 | R112: 142.5180647 | S112: 995.4361789 | T112: 890.9632901 | U112: 16.13670697 | V112: 0 | X112: =IF(J112,((VLOOKUP($B112,$E$7:$AI$16,5+24)+1)*Q112),) -> 561.7177768 | Y112: 142.5180647 | Z112: 995.4361789 | AA112: 890.9632901 | AB112: 16.13670697 | AC112: 0 | AE112: =IF(J112,((VLOOKUP($B112,$E$7:$AI$16,6+24)+1)*X112),) -> 561.7177768 | AF112: 142.5180647 | AG112: 995.4361789 | AH112: 890.9632901 | AI112: 16.13670697 | AJ112: 0 | AL112: =IF(J112,((VLOOKUP($B112,$E$7:$AI$16,7+24)+1)*AE112),) -> 561.7177768
A113: 86 | B113: 4 | C113: LDNO LV: LV Generation Non-Intermittent | D113: 0 | E113: 0 | F113: 0 | G113: 0 | J113: 0 | K113: 0 | L113: 0 | M113: 0 | N113: 0 | O113: 0 | Q113: 0 | R113: 0 | S113: 0 | T113: 0 | U113: 0 | V113: 0 | X113: 0 | Y113: 0 | Z113: 0 | AA113: 0 | AB113: 0 | AC113: 0 | AE113: 0 | AF113: 0 | AG113: 0 | AH113: 0 | AI113: 0 | AJ113: 0 | AL113: 0
A114: 87 | B114: 4 | C114: LDNO HV: LV Generation Non-Intermittent | D114: 0 | E114: 0 | F114: 0 | G114: 0 | J114: 0 | K114: 0 | L114: 0 | M114: 0 | N114: 0 | O114: 0 | Q114: 0 | R114: 0 | S114: 0 | T114: 0 | U114: 0 | V114: 0 | X114: 0 | Y114: 0 | Z114: 0 | AA114: 0 | AB114: 0 | AC114: 0 | AE114: 0 | AF114: 0 | AG114: 0 | AH114: 0 | AI114: 0 | AJ114: 0 | AL114: =IF(J114,((VLOOKUP($B114,$E$7:$AI$16,7+24)+1)*AE114),) -> 0
A115: 88 | C115: > LV Generation Non-Intermittent no RP charge | D115: 0 | E115: 0 | F115: 0 | G115: 0 | J115: 0 | K115: 0 | L115: 0 | M115: 0 | N115: 0 | O115: 0 | R115: 0 | S115: 0 | T115: 0 | U115: 0 | V115: 0 | Y115: 0 | Z115: 0 | AA115: 0 | AB115: 0 | AC115: 0 | AF115: 0 | AG115: 0 | AH115: 0 | AI115: 0 | AJ115: 0
A116: 89 | B116: 4 | C116: LV Generation Non-Intermittent no RP charge | D116: 0 | E116: 0 | F116: 0 | G116: 0 | J116: 0 | K116: 0 | L116: 0 | M116: 0 | N116: 0 | O116: 0 | R116: 0 | S116: 0 | T116: 0 | U116: 0 | V116: 0 | Y116: 0 | Z116: 0 | AA116: 0 | AB116: 0 | AC116: 0 | AF116: 0 | AG116: 0 | AH116: 0 | AI116: 0 | AJ116: 0
A117: 90 | C117: > LV Sub Generation Intermittent | D117: 0 | E117: 0 | F117: 0 | G117: 0 | J117: 0 | K117: 0 | L117: 0 | M117: 0 | N117: 0 | O117: 0 | R117: 0 | S117: 0 | T117: 0 | U117: 0 | V117: 0 | Y117: 0 | Z117: 0 | AA117: 0 | AB117: 0 | AC117: 0 | AF117: 0 | AG117: 0 | AH117: 0 | AI117: 0 | AJ117: 0
A118: 91 | B118: 4 | C118: LV Sub Generation Intermittent | D118: 278.7113402 | E118: 0 | F118: 0 | G118: 6.453196721 | J118: 1.13436 | K118: 278.7113402 | L118: 0 | M118: 0 | N118: 6.453196721 | O118: 0 | Q118: =IF(J118,((VLOOKUP($B118,$E$7:$AI$16,28)+1)*J118),) -> 1.13436 | R118: 278.7113402 | S118: 0 | T118: 0 | U118: 6.453196721 | V118: 0 | X118: =IF(J118,((VLOOKUP($B118,$E$7:$AI$16,5+24)+1)*Q118),) -> 1.13436 | Y118: 278.7113402 | Z118: 0 | AA118: 0 | AB118: 6.453196721 | AC118: 0 | AE118: =IF(J118,((VLOOKUP($B118,$E$7:$AI$16,6+24)+1)*X118),) -> 1.13436 | AF118: 278.7113402 | AG118: 0 | AH118: 0 | AI118: 6.453196721 | AJ118: 0 | AL118: =IF(J118,((VLOOKUP($B118,$E$7:$AI$16,7+24)+1)*AE118),) -> 1.13436
A119: 92 | B119: 4 | C119: LDNO HV: LV Sub Generation Intermittent | D119: 0 | E119: 0 | F119: 0 | G119: 0 | J119: 0 | K119: 0 | L119: 0 | M119: 0 | N119: 0 | O119: 0 | Q119: 0 | R119: 0 | S119: 0 | T119: 0 | U119: 0 | V119: 0 | X119: 0 | Y119: 0 | Z119: 0 | AA119: 0 | AB119: 0 | AC119: 0 | AE119: 0 | AF119: 0 | AG119: 0 | AH119: 0 | AI119: 0 | AJ119: 0 | AL119: 0
A120: 93 | C120: > LV Sub Generation Intermittent no RP charge | D120: 0 | E120: 0 | F120: 0 | G120: 0 | J120: 0 | K120: 0 | L120: 0 | M120: 0 | N120: 0 | O120: 0 | R120: 0 | S120: 0 | T120: 0 | U120: 0 | V120: 0 | Y120: 0 | Z120: 0 | AA120: 0 | AB120: 0 | AC120: 0 | AF120: 0 | AG120: 0 | AH120: 0 | AI120: 0 | AJ120: 0
A121: 94 | B121: 4 | C121: LV Sub Generation Intermittent no RP charge | D121: 0 | E121: 0 | F121: 0 | G121: 0 | J121: 0 | K121: 0 | L121: 0 | M121: 0 | N121: 0 | O121: 0 | R121: 0 | S121: 0 | T121: 0 | U121: 0 | V121: 0 | Y121: 0 | Z121: 0 | AA121: 0 | AB121: 0 | AC121: 0 | AF121: 0 | AG121: 0 | AH121: 0 | AI121: 0 | AJ121: 0
A122: 95 | C122: > LV Sub Generation Non-Intermittent | D122: 0 | E122: 0 | F122: 0 | G122: 0 | J122: 0 | K122: 0 | L122: 0 | M122: 0 | N122: 0 | O122: 0 | R122: 0 | S122: 0 | T122: 0 | U122: 0 | V122: 0 | Y122: 0 | Z122: 0 | AA122: 0 | AB122: 0 | AC122: 0 | AF122: 0 | AG122: 0 | AH122: 0 | AI122: 0 | AJ122: 0
A123: 96 | B123: 4 | C123: LV Sub Generation Non-Intermittent | D123: 17.02299923 | E123: 129.3992755 | F123: 135.566655 | G123: 1.291327869 | J123: 0 | K123: 17.02299923 | L123: 129.3992755 | M123: 135.566655 | N123: 1.291327869 | O123: 0 | Q123: =IF(J123,((VLOOKUP($B123,$E$7:$AI$16,28)+1)*J123),) -> 0 | R123: 17.02299923 | S123: 129.3992755 | T123: 135.566655 | U123: 1.291327869 | V123: 0 | X123: =IF(J123,((VLOOKUP($B123,$E$7:$AI$16,5+24)+1)*Q123),) -> 0 | Y123: 17.02299923 | Z123: 129.3992755 | AA123: 135.566655 | AB123: 1.291327869 | AC123: 0 | AE123: =IF(J123,((VLOOKUP($B123,$E$7:$AI$16,6+24)+1)*X123),) -> 0 | AF123: 17.02299923 | AG123: 129.3992755 | AH123: 135.566655 | AI123: 1.291327869 | AJ123: 0 | AL123: =IF(J123,((VLOOKUP($B123,$E$7:$AI$16,7+24)+1)*AE123),) -> 0
A124: 97 | B124: 4 | C124: LDNO HV: LV Sub Generation Non-Intermittent | D124: 0 | E124: 0 | F124: 0 | G124: 0 | J124: 0 | K124: 0 | L124: 0 | M124: 0 | N124: 0 | O124: 0 | Q124: 0 | R124: 0 | S124: 0 | T124: 0 | U124: 0 | V124: 0 | X124: 0 | Y124: 0 | Z124: 0 | AA124: 0 | AB124: 0 | AC124: 0 | AE124: 0 | AF124: 0 | AG124: 0 | AH124: 0 | AI124: 0 | AJ124: 0 | AL124: 0
A125: 98 | C125: > LV Sub Generation Non-Intermittent no RP charge | D125: 0 | E125: 0 | F125: 0 | G125: 0 | J125: 0 | K125: 0 | L125: 0 | M125: 0 | N125: 0 | O125: 0 | R125: 0 | S125: 0 | T125: 0 | U125: 0 | V125: 0 | Y125: 0 | Z125: 0 | AA125: 0 | AB125: 0 | AC125: 0 | AF125: 0 | AG125: 0 | AH125: 0 | AI125: 0 | AJ125: 0
A126: 99 | B126: 4 | C126: LV Sub Generation Non-Intermittent no RP charge | D126: 0 | E126: 0 | F126: 0 | G126: 0 | J126: 0 | K126: 0 | L126: 0 | M126: 0 | N126: 0 | O126: 0 | R126: 0 | S126: 0 | T126: 0 | U126: 0 | V126: 0 | Y126: 0 | Z126: 0 | AA126: 0 | AB126: 0 | AC126: 0 | AF126: 0 | AG126: 0 | AH126: 0 | AI126: 0 | AJ126: 0
A127: 100 | C127: > HV Generation Intermittent | D127: 0 | E127: 0 | F127: 0 | G127: 0 | J127: 0 | K127: 0 | L127: 0 | M127: 0 | N127: 0 | O127: 0 | R127: 0 | S127: 0 | T127: 0 | U127: 0 | V127: 0 | Y127: 0 | Z127: 0 | AA127: 0 | AB127: 0 | AC127: 0 | AF127: 0 | AG127: 0 | AH127: 0 | AI127: 0 | AJ127: 0
A128: 101 | B128: 4 | C128: HV Generation Intermittent | D128: 271418.0748 | E128: 0 | F128: 0 | G128: 174.7238361 | J128: 5712.034575 | K128: 271418.0748 | L128: 0 | M128: 0 | N128: 174.7238361 | O128: 0 | Q128: =IF(J128,((VLOOKUP($B128,$E$7:$AI$16,28)+1)*J128),) -> 5712.034575 | R128: 271418.0748 | S128: 0 | T128: 0 | U128: 174.7238361 | V128: 0 | X128: =IF(J128,((VLOOKUP($B128,$E$7:$AI$16,5+24)+1)*Q128),) -> 5712.034575 | Y128: 271418.0748 | Z128: 0 | AA128: 0 | AB128: 174.7238361 | AC128: 0 | AE128: =IF(J128,((VLOOKUP($B128,$E$7:$AI$16,6+24)+1)*X128),) -> 5712.034575 | AF128: 271418.0748 | AG128: 0 | AH128: 0 | AI128: 174.7238361 | AJ128: 0 | AL128: =IF(J128,((VLOOKUP($B128,$E$7:$AI$16,7+24)+1)*AE128),) -> 5712.034575
A129: 102 | B129: 4 | C129: LDNO HV: HV Generation Intermittent | D129: 0 | G129: 0 | J129: 0 | K129: 0 | L129: 0 | M129: 0 | N129: 0 | O129: 0 | Q129: 0 | R129: 0 | S129: 0 | T129: 0 | U129: 0 | V129: 0 | X129: 0 | Y129: 0 | Z129: 0 | AA129: 0 | AB129: 0 | AC129: 0 | AE129: 0 | AF129: 0 | AG129: 0 | AH129: 0 | AI129: 0 | AJ129: 0 | AL129: 0
A130: 103 | C130: > HV Generation Intermittent no RP charge | D130: 0 | E130: 0 | F130: 0 | G130: 0 | J130: 0 | K130: 0 | L130: 0 | M130: 0 | N130: 0 | O130: 0 | R130: 0 | S130: 0 | T130: 0 | U130: 0 | V130: 0 | Y130: 0 | Z130: 0 | AA130: 0 | AB130: 0 | AC130: 0 | AF130: 0 | AG130: 0 | AH130: 0 | AI130: 0 | AJ130: 0
A131: 104 | B131: 4 | C131: HV Generation Intermittent no RP charge | D131: 0 | E131: 0 | F131: 0 | G131: 0 | J131: 0 | K131: 0 | L131: 0 | M131: 0 | N131: 0 | O131: 0 | R131: 0 | S131: 0 | T131: 0 | U131: 0 | V131: 0 | Y131: 0 | Z131: 0 | AA131: 0 | AB131: 0 | AC131: 0 | AF131: 0 | AG131: 0 | AH131: 0 | AI131: 0 | AJ131: 0
A132: 105 | C132: > HV Generation Non-Intermittent | D132: 0 | E132: 0 | F132: 0 | G132: 0 | J132: 0 | K132: 0 | L132: 0 | M132: 0 | N132: 0 | O132: 0 | R132: 0 | S132: 0 | T132: 0 | U132: 0 | V132: 0 | Y132: 0 | Z132: 0 | AA132: 0 | AB132: 0 | AC132: 0 | AF132: 0 | AG132: 0 | AH132: 0 | AI132: 0 | AJ132: 0
A133: 106 | B133: 4 | C133: HV Generation Non-Intermittent | D133: 27666.34941 | E133: 72721.9732 | F133: 63087.90418 | G133: 46.74373361 | J133: 1689.562124 | K133: 27666.34941 | L133: 72721.9732 | M133: 63087.90418 | N133: 46.74373361 | O133: 0 | Q133: =IF(J133,((VLOOKUP($B133,$E$7:$AI$16,28)+1)*J133),) -> 1689.562124 | R133: 27666.34941 | S133: 72721.9732 | T133: 63087.90418 | U133: 46.74373361 | V133: 0 | X133: =IF(J133,((VLOOKUP($B133,$E$7:$AI$16,5+24)+1)*Q133),) -> 1689.562124 | Y133: 27666.34941 | Z133: 72721.9732 | AA133: 63087.90418 | AB133: 46.74373361 | AC133: 0 | AE133: =IF(J133,((VLOOKUP($B133,$E$7:$AI$16,6+24)+1)*X133),) -> 1689.562124 | AF133: 27666.34941 | AG133: 72721.9732 | AH133: 63087.90418 | AI133: 46.74373361 | AJ133: 0 | AL133: =IF(J133,((VLOOKUP($B133,$E$7:$AI$16,7+24)+1)*AE133),) -> 1689.562124
A134: 107 | B134: 4 | C134: LDNO HV: HV Generation Non-Intermittent | D134: 0 | E134: 0 | F134: 0 | G134: 0 | J134: 0 | K134: 0 | L134: 0 | M134: 0 | N134: 0 | O134: 0 | Q134: 0 | R134: 0 | S134: 0 | T134: 0 | U134: 0 | V134: 0 | X134: 0 | Y134: 0 | Z134: 0 | AA134: 0 | AB134: 0 | AC134: 0 | AE134: 0 | AF134: 0 | AG134: 0 | AH134: 0 | AI134: 0 | AJ134: 0 | AL134: 0
A135: 108 | C135: > HV Generation Non-Intermittent no RP charge | D135: 0 | E135: 0 | F135: 0 | G135: 0 | J135: 0 | K135: 0 | L135: 0 | M135: 0 | N135: 0 | O135: 0 | R135: 0 | S135: 0 | T135: 0 | U135: 0 | V135: 0 | Y135: 0 | Z135: 0 | AA135: 0 | AB135: 0 | AC135: 0 | AF135: 0 | AG135: 0 | AH135: 0 | AI135: 0 | AJ135: 0
A136: 109 | B136: 4 | C136: HV Generation Non-Intermittent no RP charge | D136: 0 | E136: 0 | F136: 0 | G136: 0 | J136: 0 | K136: 0 | L136: 0 | M136: 0 | N136: 0 | O136: 0 | R136: 0 | S136: 0 | T136: 0 | U136: 0 | V136: 0 | Y136: 0 | Z136: 0 | AA136: 0 | AB136: 0 | AC136: 0 | AF136: 0 | AG136: 0 | AH136: 0 | AI136: 0 | AJ136: 0

Sheet CDCM Timebands
B2: CDCM Timebands
C4: 2019/20
C5: WD (incl. bank holidays) | D5: WE | E5: 2020/21 | F5: 2021/22 | G5: 2022/23 | H5: 2023/24
B6: Red | C6: 17:00 - 19:30 | E6: No Change | F6: No Change | G6: No Change | H6: No Change
B8: Amber | C8: 07:30 - 17:00 | D8: 12:00 - 13:00
C9: 19:30 - 22:00
C10: 00.00 - 07.30 | D10: 00:00 - 12:00
B11: Green | C11: 22:00 - 24:00 | D11: 13:00 - 16:00
D12: 21:00 - 24:00
C14: 2019/20
C15: WD (incl. bank holidays) Nov to Feb | D15: WD (incl. bank holidays) Mar to Oct | E15: WE | F15: 2020/21 | G15: 2021/22 | H15: 2022/23 | I15: 2023/24
B16: Black | C16: 17:00 - 19:30 | F16: No Change | G16: No Change | H16: No Change | I16: No Change
B18: Yellow | C18: 07:30 - 17:00 | D18: 07:30 - 22:00 | E18: 12:00 - 13:00
C19: 19:30 - 22:00
B20: Green | C20: 00.00 - 07.30 | D20: 00.00 - 07.30 | E20: 00:00 - 12:00
C21: 22:00 - 24:00 | D21: 22:00 - 24:00 | E21: 13:00 - 16:00
E22: 21:00 - 24:00

Sheet (Y)
A1: Input data (Y)
A4: 1000. Company, charging year, data version
B6: Company | C6: Year | D6: Version
A7: Company, charging year, data version | B7: =VLOOKUP(Vlookup!B7,'CDCM Forecast Data'!$A$14:$I$271,5,FALSE) -> WPD South Wales | C7: =VLOOKUP(Vlookup!C7,'CDCM Forecast Data'!$A$14:$I$271,5,FALSE) -> 2019/20 | D7: =VLOOKUP(Vlookup!D7,'CDCM Forecast Data'!$A$14:$I$271,5,FALSE) -> Finals
A9: 1010. Financial and general assumptions
A11: Sources: financial assumptions; calendar; network model.
A12: These financial assumptions determine the annuity rate applied to convert the asset values of the network model into an annual charge.
B13: Rate of return | C13: Annualisation period (years) | D13: Annuity proportion for customer-contributed assets | E13: Power factor | F13: Days in the charging period
A14: Financial and general assumptions | B14: =VLOOKUP(Vlookup!B14,'CDCM Forecast Data'!$A$14:$I$271,5,FALSE) -> 0.0408 | C14: =VLOOKUP(Vlookup!C14,'CDCM Forecast Data'!$A$14:$I$271,5,FALSE) -> 40 | E14: =VLOOKUP(Vlookup!E14,'CDCM Forecast Data'!$A$14:$I$271,5,FALSE) -> 0.95 | F14: =VLOOKUP(Vlookup!F14,'CDCM Forecast Data'!$A$14:$I$271,5,FALSE) -> 366
A16: 1017. Diversity allowance between top and bottom of network level
A18: Source: operational data analysis and/or network model.
A19: The diversity figure against GSP is the diversity between GSP Group (the whole system) and individual GSPs.
A20: The diversity figure against 132kV is the diversity between GSPs (the top of the 132kV network) and 132kV/EHV bulk supply points (the bottom of the 132kV network).
A21: The diversity figure against EHV is the diversity between 132kV/EHV bulk supply points (the top of the EHV network) and EHV/HV primary substations (the bottom of the EHV network).
A22: The diversity figure against HV is the diversity between EHV/HV primary substations (the top of the HV network) and HV/LV substations (the bottom of the HV network).
B23: Diversity allowance between top and bottom of network level
A24: GSPs | B24: =VLOOKUP(Vlookup!B24,'CDCM Forecast Data'!$A$14:$I$271,5,FALSE) -> 0.06382978723
A25: 132kV | B25: =VLOOKUP(Vlookup!B25,'CDCM Forecast Data'!$A$14:$I$271,5,FALSE) -> 0.053
A26: 132kV/EHV
A27: EHV | B27: =VLOOKUP(Vlookup!B27,'CDCM Forecast Data'!$A$14:$I$271,5,FALSE) -> 0.099
A28: EHV/HV
A29: HV | B29: =VLOOKUP(Vlookup!B29,'CDCM Forecast Data'!$A$14:$I$271,5,FALSE) -> 0.37
A30: HV/LV
A31: LV circuits
A33: 1018. Proportion of relevant load going through 132kV/HV direct transformation
B35: 132kV/HV
A36: EHV/HV | B36: =VLOOKUP(Vlookup!B36,'CDCM Forecast Data'!$A$14:$I$271,5,FALSE) -> 0.3
A38: 1019. Network model GSP peak demand (MW)
B40: Network model GSP peak demand (MW)
A41: Network model GSP peak demand (MW) | B41: =VLOOKUP(Vlookup!B41,'CDCM Forecast Data'!$A$14:$I$271,5,FALSE) -> 500
A43: 1020. Gross asset cost by network level (£)
B45: Gross assets £
A46: 132kV | B46: =VLOOKUP(Vlookup!B46,'CDCM Forecast Data'!$A$14:$I$271,5,FALSE) -> 134609065.4
A47: 132kV/EHV | B47: =VLOOKUP(Vlookup!B47,'CDCM Forecast Data'!$A$14:$I$271,5,FALSE) -> 12891261.17
A48: EHV | B48: =VLOOKUP(Vlookup!B48,'CDCM Forecast Data'!$A$14:$I$271,5,FALSE) -> 33912714.89
A49: EHV/HV | B49: =VLOOKUP(Vlookup!B49,'CDCM Forecast Data'!$A$14:$I$271,5,FALSE) -> 29229119.31
A50: 132kV/HV | B50: =VLOOKUP(Vlookup!B50,'CDCM Forecast Data'!$A$14:$I$271,5,FALSE) -> 10770472.3
A51: HV | B51: =VLOOKUP(Vlookup!B51,'CDCM Forecast Data'!$A$14:$I$271,5,FALSE) -> 152618877.9
A52: HV/LV | B52: =VLOOKUP(Vlookup!B52,'CDCM Forecast Data'!$A$14:$I$271,5,FALSE) -> 57495908.47
A53: LV circuits | B53: =VLOOKUP(Vlookup!B53,'CDCM Forecast Data'!$A$14:$I$271,5,FALSE) -> 129636887.9
A55: 1022. LV service model asset cost (£)
B57: LV service model 1 | C57: LV service model 2 | D57: LV service model 3 | E57: LV service model 4 | F57: LV service model 5 | G57: LV service model 6 | H57: LV service model 7 | I57: LV service model 8
A58: LV service model asset cost (£) | B58: =VLOOKUP(Vlookup!B58,'CDCM Forecast Data'!$A$14:$I$271,5,FALSE) -> 4357.3283 | C58: =VLOOKUP(Vlookup!C58,'CDCM Forecast Data'!$A$14:$I$271,5,FALSE) -> 664.3320883 | D58: =VLOOKUP(Vlookup!D58,'CDCM Forecast Data'!$A$14:$I$271,5,FALSE) -> 768.3550333 | E58: =VLOOKUP(Vlookup!E58,'CDCM Forecast Data'!$A$14:$I$271,5,FALSE) -> 557.61394 | F58: =VLOOKUP(Vlookup!F58,'CDCM Forecast Data'!$A$14:$I$271,5,FALSE) -> 1230.218011 | G58: =VLOOKUP(Vlookup!G58,'CDCM Forecast Data'!$A$14:$I$271,5,FALSE) -> 960.3594 | H58: =VLOOKUP(Vlookup!H58,'CDCM Forecast Data'!$A$14:$I$271,5,FALSE) -> 0 | I58: =VLOOKUP(Vlookup!I58,'CDCM Forecast Data'!$A$14:$I$271,5,FALSE) -> 525.61262
A60: 1023. HV service model asset cost (£)
B62: HV service model 1 | C62: HV service model 2 | D62: HV service model 3 | E62: HV service model 4 | F62: HV service model 5
A63: HV service model asset cost (£) | B63: =VLOOKUP(Vlookup!B63,'CDCM Forecast Data'!$A$14:$I$271,5,FALSE) -> 10371.62568 | C63: =VLOOKUP(Vlookup!C63,'CDCM Forecast Data'!$A$14:$I$271,5,FALSE) -> 4264 | D63: =VLOOKUP(Vlookup!D63,'CDCM Forecast Data'!$A$14:$I$271,5,FALSE) -> 0 | E63: =VLOOKUP(Vlookup!E63,'CDCM Forecast Data'!$A$14:$I$271,5,FALSE) -> 0 | F63: =VLOOKUP(Vlookup!F63,'CDCM Forecast Data'!$A$14:$I$271,5,FALSE) -> 0
A65: 1025. Matrix of applicability of LV service models to tariffs with fixed charges
B66: 2 | C66: =B66+1 -> 3 | D66: 4 | E66: 5 | F66: 6 | G66: 7 | H66: 8 | I66: 9
B67: LV service model 1 | C67: LV service model 2 | D67: LV service model 3 | E67: LV service model 4 | F67: LV service model 5 | G67: LV service model 6 | H67: LV service model 7 | I67: LV service model 8
A68: Domestic Unrestricted | B68: =VLOOKUP($A68,'Mat of App'!$B$7:$AP$43,B$66,FALSE) -> 0.05 | C68: =VLOOKUP($A68,'Mat of App'!$B$7:$AP$43,C$66,FALSE) -> 0 | D68: =VLOOKUP($A68,'Mat of App'!$B$7:$AP$43,D$66,FALSE) -> 0 | E68: =VLOOKUP($A68,'Mat of App'!$B$7:$AP$43,E$66,FALSE) -> 0 | F68: =VLOOKUP($A68,'Mat of App'!$B$7:$AP$43,F$66,FALSE) -> 0 | G68: =VLOOKUP($A68,'Mat of App'!$B$7:$AP$43,G$66,FALSE) -> 0 | H68: =VLOOKUP($A68,'Mat of App'!$B$7:$AP$43,H$66,FALSE) -> 0 | I68: =VLOOKUP($A68,'Mat of App'!$B$7:$AP$43,I$66,FALSE) -> 0
A69: Domestic Two Rate | B69: =VLOOKUP($A69,'Mat of App'!$B$7:$AP$43,B$66,FALSE) -> 0.05 | C69: =VLOOKUP($A69,'Mat of App'!$B$7:$AP$43,C$66,FALSE) -> 0 | D69: =VLOOKUP($A69,'Mat of App'!$B$7:$AP$43,D$66,FALSE) -> 0 | E69: =VLOOKUP($A69,'Mat of App'!$B$7:$AP$43,E$66,FALSE) -> 0 | F69: =VLOOKUP($A69,'Mat of App'!$B$7:$AP$43,F$66,FALSE) -> 0 | G69: =VLOOKUP($A69,'Mat of App'!$B$7:$AP$43,G$66,FALSE) -> 0 | H69: =VLOOKUP($A69,'Mat of App'!$B$7:$AP$43,H$66,FALSE) -> 0 | I69: =VLOOKUP($A69,'Mat of App'!$B$7:$AP$43,I$66,FALSE) -> 0
A70: Small Non Domestic Unrestricted | B70: =VLOOKUP($A70,'Mat of App'!$B$7:$AP$43,B$66,FALSE) -> 0 | C70: =VLOOKUP($A70,'Mat of App'!$B$7:$AP$43,C$66,FALSE) -> 1 | D70: =VLOOKUP($A70,'Mat of App'!$B$7:$AP$43,D$66,FALSE) -> 0 | E70: =VLOOKUP($A70,'Mat of App'!$B$7:$AP$43,E$66,FALSE) -> 0 | F70: =VLOOKUP($A70,'Mat of App'!$B$7:$AP$43,F$66,FALSE) -> 0 | G70: =VLOOKUP($A70,'Mat of App'!$B$7:$AP$43,G$66,FALSE) -> 0 | H70: =VLOOKUP($A70,'Mat of App'!$B$7:$AP$43,H$66,FALSE) -> 0 | I70: =VLOOKUP($A70,'Mat of App'!$B$7:$AP$43,I$66,FALSE) -> 0
A71: Small Non Domestic Two Rate | B71: =VLOOKUP($A71,'Mat of App'!$B$7:$AP$43,B$66,FALSE) -> 0 | C71: =VLOOKUP($A71,'Mat of App'!$B$7:$AP$43,C$66,FALSE) -> 1 | D71: =VLOOKUP($A71,'Mat of App'!$B$7:$AP$43,D$66,FALSE) -> 0 | E71: =VLOOKUP($A71,'Mat of App'!$B$7:$AP$43,E$66,FALSE) -> 0 | F71: =VLOOKUP($A71,'Mat of App'!$B$7:$AP$43,F$66,FALSE) -> 0 | G71: =VLOOKUP($A71,'Mat of App'!$B$7:$AP$43,G$66,FALSE) -> 0 | H71: =VLOOKUP($A71,'Mat of App'!$B$7:$AP$43,H$66,FALSE) -> 0 | I71: =VLOOKUP($A71,'Mat of App'!$B$7:$AP$43,I$66,FALSE) -> 0
A72: LV Medium Non-Domestic | B72: =VLOOKUP($A72,'Mat of App'!$B$7:$AP$43,B$66,FALSE) -> 0 | C72: =VLOOKUP($A72,'Mat of App'!$B$7:$AP$43,C$66,FALSE) -> 0 | D72: =VLOOKUP($A72,'Mat of App'!$B$7:$AP$43,D$66,FALSE) -> 1 | E72: =VLOOKUP($A72,'Mat of App'!$B$7:$AP$43,E$66,FALSE) -> 0 | F72: =VLOOKUP($A72,'Mat of App'!$B$7:$AP$43,F$66,FALSE) -> 0 | G72: =VLOOKUP($A72,'Mat of App'!$B$7:$AP$43,G$66,FALSE) -> 0 | H72: =VLOOKUP($A72,'Mat of App'!$B$7:$AP$43,H$66,FALSE) -> 0 | I72: =VLOOKUP($A72,'Mat of App'!$B$7:$AP$43,I$66,FALSE) -> 0
A73: LV Sub Medium Non-Domestic | B73: =VLOOKUP($A73,'Mat of App'!$B$7:$AP$43,B$66,FALSE) -> 0 | C73: =VLOOKUP($A73,'Mat of App'!$B$7:$AP$43,C$66,FALSE) -> 0 | D73: =VLOOKUP($A73,'Mat of App'!$B$7:$AP$43,D$66,FALSE) -> 0 | E73: =VLOOKUP($A73,'Mat of App'!$B$7:$AP$43,E$66,FALSE) -> 1 | F73: =VLOOKUP($A73,'Mat of App'!$B$7:$AP$43,F$66,FALSE) -> 0 | G73: =VLOOKUP($A73,'Mat of App'!$B$7:$AP$43,G$66,FALSE) -> 0 | H73: =VLOOKUP($A73,'Mat of App'!$B$7:$AP$43,H$66,FALSE) -> 0 | I73: =VLOOKUP($A73,'Mat of App'!$B$7:$AP$43,I$66,FALSE) -> 0
A74: LV Network Domestic | B74: =VLOOKUP($A74,'Mat of App'!$B$7:$AP$43,B$66,FALSE) -> 0.05 | C74: =VLOOKUP($A74,'Mat of App'!$B$7:$AP$43,C$66,FALSE) -> 0 | D74: =VLOOKUP($A74,'Mat of App'!$B$7:$AP$43,D$66,FALSE) -> 0 | E74: =VLOOKUP($A74,'Mat of App'!$B$7:$AP$43,E$66,FALSE) -> 0 | F74: =VLOOKUP($A74,'Mat of App'!$B$7:$AP$43,F$66,FALSE) -> 0 | G74: =VLOOKUP($A74,'Mat of App'!$B$7:$AP$43,G$66,FALSE) -> 0 | H74: =VLOOKUP($A74,'Mat of App'!$B$7:$AP$43,H$66,FALSE) -> 0 | I74: =VLOOKUP($A74,'Mat of App'!$B$7:$AP$43,I$66,FALSE) -> 0
A75: LV Network Non-Domestic Non-CT | B75: =VLOOKUP($A75,'Mat of App'!$B$7:$AP$43,B$66,FALSE) -> 0 | C75: =VLOOKUP($A75,'Mat of App'!$B$7:$AP$43,C$66,FALSE) -> 1 | D75: =VLOOKUP($A75,'Mat of App'!$B$7:$AP$43,D$66,FALSE) -> 0 | E75: =VLOOKUP($A75,'Mat of App'!$B$7:$AP$43,E$66,FALSE) -> 0 | F75: =VLOOKUP($A75,'Mat of App'!$B$7:$AP$43,F$66,FALSE) -> 0 | G75: =VLOOKUP($A75,'Mat of App'!$B$7:$AP$43,G$66,FALSE) -> 0 | H75: =VLOOKUP($A75,'Mat of App'!$B$7:$AP$43,H$66,FALSE) -> 0 | I75: =VLOOKUP($A75,'Mat of App'!$B$7:$AP$43,I$66,FALSE) -> 0
A76: LV HH Metered | B76: =VLOOKUP($A76,'Mat of App'!$B$7:$AP$43,B$66,FALSE) -> 0 | C76: =VLOOKUP($A76,'Mat of App'!$B$7:$AP$43,C$66,FALSE) -> 0 | D76: =VLOOKUP($A76,'Mat of App'!$B$7:$AP$43,D$66,FALSE) -> 0 | E76: =VLOOKUP($A76,'Mat of App'!$B$7:$AP$43,E$66,FALSE) -> 0 | F76: =VLOOKUP($A76,'Mat of App'!$B$7:$AP$43,F$66,FALSE) -> 1 | G76: =VLOOKUP($A76,'Mat of App'!$B$7:$AP$43,G$66,FALSE) -> 0 | H76: =VLOOKUP($A76,'Mat of App'!$B$7:$AP$43,H$66,FALSE) -> 0 | I76: =VLOOKUP($A76,'Mat of App'!$B$7:$AP$43,I$66,FALSE) -> 0
A77: LV Sub HH Metered | B77: =VLOOKUP($A77,'Mat of App'!$B$7:$AP$43,B$66,FALSE) -> 0 | C77: =VLOOKUP($A77,'Mat of App'!$B$7:$AP$43,C$66,FALSE) -> 0 | D77: =VLOOKUP($A77,'Mat of App'!$B$7:$AP$43,D$66,FALSE) -> 0 | E77: =VLOOKUP($A77,'Mat of App'!$B$7:$AP$43,E$66,FALSE) -> 0 | F77: =VLOOKUP($A77,'Mat of App'!$B$7:$AP$43,F$66,FALSE) -> 0 | G77: =VLOOKUP($A77,'Mat of App'!$B$7:$AP$43,G$66,FALSE) -> 1 | H77: =VLOOKUP($A77,'Mat of App'!$B$7:$AP$43,H$66,FALSE) -> 0 | I77: =VLOOKUP($A77,'Mat of App'!$B$7:$AP$43,I$66,FALSE) -> 0
A78: LV Generation NHH or Aggregate HH | B78: =VLOOKUP($A78,'Mat of App'!$B$7:$AP$43,B$66,FALSE) -> 0 | C78: =VLOOKUP($A78,'Mat of App'!$B$7:$AP$43,C$66,FALSE) -> 0 | D78: =VLOOKUP($A78,'Mat of App'!$B$7:$AP$43,D$66,FALSE) -> 0 | E78: =VLOOKUP($A78,'Mat of App'!$B$7:$AP$43,E$66,FALSE) -> 0 | F78: =VLOOKUP($A78,'Mat of App'!$B$7:$AP$43,F$66,FALSE) -> 0 | G78: =VLOOKUP($A78,'Mat of App'!$B$7:$AP$43,G$66,FALSE) -> 0 | H78: =VLOOKUP($A78,'Mat of App'!$B$7:$AP$43,H$66,FALSE) -> 1 | I78: =VLOOKUP($A78,'Mat of App'!$B$7:$AP$43,I$66,FALSE) -> 0
A79: LV Sub Generation NHH | B79: =VLOOKUP($A79,'Mat of App'!$B$7:$AP$43,B$66,FALSE) -> 0 | C79: =VLOOKUP($A79,'Mat of App'!$B$7:$AP$43,C$66,FALSE) -> 0 | D79: =VLOOKUP($A79,'Mat of App'!$B$7:$AP$43,D$66,FALSE) -> 0 | E79: =VLOOKUP($A79,'Mat of App'!$B$7:$AP$43,E$66,FALSE) -> 0 | F79: =VLOOKUP($A79,'Mat of App'!$B$7:$AP$43,F$66,FALSE) -> 0 | G79: =VLOOKUP($A79,'Mat of App'!$B$7:$AP$43,G$66,FALSE) -> 0 | H79: =VLOOKUP($A79,'Mat of App'!$B$7:$AP$43,H$66,FALSE) -> 1 | I79: =VLOOKUP($A79,'Mat of App'!$B$7:$AP$43,I$66,FALSE) -> 0
A80: LV Generation Intermittent | B80: =VLOOKUP($A80,'Mat of App'!$B$7:$AP$43,B$66,FALSE) -> 0 | C80: =VLOOKUP($A80,'Mat of App'!$B$7:$AP$43,C$66,FALSE) -> 0 | D80: =VLOOKUP($A80,'Mat of App'!$B$7:$AP$43,D$66,FALSE) -> 0 | E80: =VLOOKUP($A80,'Mat of App'!$B$7:$AP$43,E$66,FALSE) -> 0 | F80: =VLOOKUP($A80,'Mat of App'!$B$7:$AP$43,F$66,FALSE) -> 0 | G80: =VLOOKUP($A80,'Mat of App'!$B$7:$AP$43,G$66,FALSE) -> 0 | H80: =VLOOKUP($A80,'Mat of App'!$B$7:$AP$43,H$66,FALSE) -> 1 | I80: =VLOOKUP($A80,'Mat of App'!$B$7:$AP$43,I$66,FALSE) -> 0
A81: LV Generation Intermittent no RP charge | B81: =VLOOKUP($A81,'Mat of App'!$B$7:$AP$43,B$66,FALSE) -> 0 | C81: =VLOOKUP($A81,'Mat of App'!$B$7:$AP$43,C$66,FALSE) -> 0 | D81: =VLOOKUP($A81,'Mat of App'!$B$7:$AP$43,D$66,FALSE) -> 0 | E81: =VLOOKUP($A81,'Mat of App'!$B$7:$AP$43,E$66,FALSE) -> 0 | F81: =VLOOKUP($A81,'Mat of App'!$B$7:$AP$43,F$66,FALSE) -> 0 | G81: =VLOOKUP($A81,'Mat of App'!$B$7:$AP$43,G$66,FALSE) -> 0 | H81: =VLOOKUP($A81,'Mat of App'!$B$7:$AP$43,H$66,FALSE) -> 1 | I81: =VLOOKUP($A81,'Mat of App'!$B$7:$AP$43,I$66,FALSE) -> 0
A82: LV Generation Non-Intermittent | B82: =VLOOKUP($A82,'Mat of App'!$B$7:$AP$43,B$66,FALSE) -> 0 | C82: =VLOOKUP($A82,'Mat of App'!$B$7:$AP$43,C$66,FALSE) -> 0 | D82: =VLOOKUP($A82,'Mat of App'!$B$7:$AP$43,D$66,FALSE) -> 0 | E82: =VLOOKUP($A82,'Mat of App'!$B$7:$AP$43,E$66,FALSE) -> 0 | F82: =VLOOKUP($A82,'Mat of App'!$B$7:$AP$43,F$66,FALSE) -> 0 | G82: =VLOOKUP($A82,'Mat of App'!$B$7:$AP$43,G$66,FALSE) -> 0 | H82: =VLOOKUP($A82,'Mat of App'!$B$7:$AP$43,H$66,FALSE) -> 0 | I82: =VLOOKUP($A82,'Mat of App'!$B$7:$AP$43,I$66,FALSE) -> 0
A83: LV Generation Non-Intermittent no RP charge | B83: =VLOOKUP($A83,'Mat of App'!$B$7:$AP$43,B$66,FALSE) -> 0 | C83: =VLOOKUP($A83,'Mat of App'!$B$7:$AP$43,C$66,FALSE) -> 0 | D83: =VLOOKUP($A83,'Mat of App'!$B$7:$AP$43,D$66,FALSE) -> 0 | E83: =VLOOKUP($A83,'Mat of App'!$B$7:$AP$43,E$66,FALSE) -> 0 | F83: =VLOOKUP($A83,'Mat of App'!$B$7:$AP$43,F$66,FALSE) -> 0 | G83: =VLOOKUP($A83,'Mat of App'!$B$7:$AP$43,G$66,FALSE) -> 0 | H83: =VLOOKUP($A83,'Mat of App'!$B$7:$AP$43,H$66,FALSE) -> 0 | I83: =VLOOKUP($A83,'Mat of App'!$B$7:$AP$43,I$66,FALSE) -> 0
A84: LV Sub Generation Intermittent | B84: =VLOOKUP($A84,'Mat of App'!$B$7:$AP$43,B$66,FALSE) -> 0 | C84: =VLOOKUP($A84,'Mat of App'!$B$7:$AP$43,C$66,FALSE) -> 0 | D84: =VLOOKUP($A84,'Mat of App'!$B$7:$AP$43,D$66,FALSE) -> 0 | E84: =VLOOKUP($A84,'Mat of App'!$B$7:$AP$43,E$66,FALSE) -> 0 | F84: =VLOOKUP($A84,'Mat of App'!$B$7:$AP$43,F$66,FALSE) -> 0 | G84: =VLOOKUP($A84,'Mat of App'!$B$7:$AP$43,G$66,FALSE) -> 0 | H84: =VLOOKUP($A84,'Mat of App'!$B$7:$AP$43,H$66,FALSE) -> 0 | I84: =VLOOKUP($A84,'Mat of App'!$B$7:$AP$43,I$66,FALSE) -> 0
A85: LV Sub Generation Intermittent no RP charge | B85: =VLOOKUP($A85,'Mat of App'!$B$7:$AP$43,B$66,FALSE) -> 0 | C85: =VLOOKUP($A85,'Mat of App'!$B$7:$AP$43,C$66,FALSE) -> 0 | D85: =VLOOKUP($A85,'Mat of App'!$B$7:$AP$43,D$66,FALSE) -> 0 | E85: =VLOOKUP($A85,'Mat of App'!$B$7:$AP$43,E$66,FALSE) -> 0 | F85: =VLOOKUP($A85,'Mat of App'!$B$7:$AP$43,F$66,FALSE) -> 0 | G85: =VLOOKUP($A85,'Mat of App'!$B$7:$AP$43,G$66,FALSE) -> 0 | H85: =VLOOKUP($A85,'Mat of App'!$B$7:$AP$43,H$66,FALSE) -> 0 | I85: =VLOOKUP($A85,'Mat of App'!$B$7:$AP$43,I$66,FALSE) -> 0
A86: LV Sub Generation Non-Intermittent | B86: =VLOOKUP($A86,'Mat of App'!$B$7:$AP$43,B$66,FALSE) -> 0 | C86: =VLOOKUP($A86,'Mat of App'!$B$7:$AP$43,C$66,FALSE) -> 0 | D86: =VLOOKUP($A86,'Mat of App'!$B$7:$AP$43,D$66,FALSE) -> 0 | E86: =VLOOKUP($A86,'Mat of App'!$B$7:$AP$43,E$66,FALSE) -> 0 | F86: =VLOOKUP($A86,'Mat of App'!$B$7:$AP$43,F$66,FALSE) -> 0 | G86: =VLOOKUP($A86,'Mat of App'!$B$7:$AP$43,G$66,FALSE) -> 0 | H86: =VLOOKUP($A86,'Mat of App'!$B$7:$AP$43,H$66,FALSE) -> 0 | I86: =VLOOKUP($A86,'Mat of App'!$B$7:$AP$43,I$66,FALSE) -> 0
A87: LV Sub Generation Non-Intermittent no RP charge | B87: =VLOOKUP($A87,'Mat of App'!$B$7:$AP$43,B$66,FALSE) -> 0 | C87: =VLOOKUP($A87,'Mat of App'!$B$7:$AP$43,C$66,FALSE) -> 0 | D87: =VLOOKUP($A87,'Mat of App'!$B$7:$AP$43,D$66,FALSE) -> 0 | E87: =VLOOKUP($A87,'Mat of App'!$B$7:$AP$43,E$66,FALSE) -> 0 | F87: =VLOOKUP($A87,'Mat of App'!$B$7:$AP$43,F$66,FALSE) -> 0 | G87: =VLOOKUP($A87,'Mat of App'!$B$7:$AP$43,G$66,FALSE) -> 0 | H87: =VLOOKUP($A87,'Mat of App'!$B$7:$AP$43,H$66,FALSE) -> 0 | I87: =VLOOKUP($A87,'Mat of App'!$B$7:$AP$43,I$66,FALSE) -> 0
A89: 1026. Matrix of applicability of LV service models to unmetered tariffs
A91: Source: service models
A92: Proportion of service model involved in connecting load of 1 MWh/year
B93: LV service model 1 | C93: LV service model 2 | D93: LV service model 3 | E93: LV service model 4 | F93: LV service model 5 | G93: LV service model 6 | H93: LV service model 7 | I93: LV service model 8
A94: All LV unmetered tariffs | B94: =VLOOKUP($A94,'Mat of App'!$B$7:$AP$43,B$66,FALSE) -> 0 | C94: =VLOOKUP($A94,'Mat of App'!$B$7:$AP$43,C$66,FALSE) -> 0 | D94: =VLOOKUP($A94,'Mat of App'!$B$7:$AP$43,D$66,FALSE) -> 0 | E94: =VLOOKUP($A94,'Mat of App'!$B$7:$AP$43,E$66,FALSE) -> 0 | F94: =VLOOKUP($A94,'Mat of App'!$B$7:$AP$43,F$66,FALSE) -> 0 | G94: =VLOOKUP($A94,'Mat of App'!$B$7:$AP$43,G$66,FALSE) -> 0 | H94: =VLOOKUP($A94,'Mat of App'!$B$7:$AP$43,H$66,FALSE) -> 0 | I94: =VLOOKUP($A94,'Mat of App'!$B$7:$AP$43,I$66,FALSE) -> 0.488
A96: 1028. Matrix of applicability of HV service models to tariffs with fixed charges
B97: 2 | C97: =B97+1 -> 3 | D97: =C97+1 -> 4 | E97: =D97+1 -> 5 | F97: =E97+1 -> 6
B98: HV service model 1 | C98: HV service model 2 | D98: HV service model 3 | E98: HV service model 4 | F98: HV service model 5
A99: HV Medium Non-Domestic | B99: =VLOOKUP($A99,'Mat of App'!$B$7:$AP$43,B$97,FALSE) -> 1 | C99: =VLOOKUP($A99,'Mat of App'!$B$7:$AP$43,C$97,FALSE) -> 0 | D99: =VLOOKUP($A99,'Mat of App'!$B$7:$AP$43,D$97,FALSE) -> 0 | E99: =VLOOKUP($A99,'Mat of App'!$B$7:$AP$43,E$97,FALSE) -> 0 | F99: =VLOOKUP($A99,'Mat of App'!$B$7:$AP$43,F$97,FALSE) -> 0
A100: HV HH Metered | B100: =VLOOKUP($A100,'Mat of App'!$B$7:$AP$43,B$97,FALSE) -> 1 | C100: =VLOOKUP($A100,'Mat of App'!$B$7:$AP$43,C$97,FALSE) -> 0 | D100: =VLOOKUP($A100,'Mat of App'!$B$7:$AP$43,D$97,FALSE) -> 0 | E100: =VLOOKUP($A100,'Mat of App'!$B$7:$AP$43,E$97,FALSE) -> 0 | F100: =VLOOKUP($A100,'Mat of App'!$B$7:$AP$43,F$97,FALSE) -> 0
A101: HV Generation Intermittent | B101: =VLOOKUP($A101,'Mat of App'!$B$7:$AP$43,B$97,FALSE) -> 0 | C101: =VLOOKUP($A101,'Mat of App'!$B$7:$AP$43,C$97,FALSE) -> 1 | D101: =VLOOKUP($A101,'Mat of App'!$B$7:$AP$43,D$97,FALSE) -> 0 | E101: =VLOOKUP($A101,'Mat of App'!$B$7:$AP$43,E$97,FALSE) -> 0 | F101: =VLOOKUP($A101,'Mat of App'!$B$7:$AP$43,F$97,FALSE) -> 0
A102: HV Generation Intermittent no RP charge | B102: =VLOOKUP($A102,'Mat of App'!$B$7:$AP$43,B$97,FALSE) -> 0 | C102: =VLOOKUP($A102,'Mat of App'!$B$7:$AP$43,C$97,FALSE) -> 1 | D102: =VLOOKUP($A102,'Mat of App'!$B$7:$AP$43,D$97,FALSE) -> 0 | E102: =VLOOKUP($A102,'Mat of App'!$B$7:$AP$43,E$97,FALSE) -> 0 | F102: =VLOOKUP($A102,'Mat of App'!$B$7:$AP$43,F$97,FALSE) -> 0
A103: HV Generation Non-Intermittent | B103: =VLOOKUP($A103,'Mat of App'!$B$7:$AP$43,B$97,FALSE) -> 0 | C103: =VLOOKUP($A103,'Mat of App'!$B$7:$AP$43,C$97,FALSE) -> 1 | D103: =VLOOKUP($A103,'Mat of App'!$B$7:$AP$43,D$97,FALSE) -> 0 | E103: =VLOOKUP($A103,'Mat of App'!$B$7:$AP$43,E$97,FALSE) -> 0 | F103: =VLOOKUP($A103,'Mat of App'!$B$7:$AP$43,F$97,FALSE) -> 0
A104: HV Generation Non-Intermittent no RP charge | B104: =VLOOKUP($A104,'Mat of App'!$B$7:$AP$43,B$97,FALSE) -> 0 | C104: =VLOOKUP($A104,'Mat of App'!$B$7:$AP$43,C$97,FALSE) -> 1 | D104: =VLOOKUP($A104,'Mat of App'!$B$7:$AP$43,D$97,FALSE) -> 0 | E104: =VLOOKUP($A104,'Mat of App'!$B$7:$AP$43,E$97,FALSE) -> 0 | F104: =VLOOKUP($A104,'Mat of App'!$B$7:$AP$43,F$97,FALSE) -> 0
A106: 1032. Loss adjustment factors to transmission
A108: Source: losses model or loss adjustment factors at time of system peak.
B109: 132kV | C109: 132kV/EHV | D109: EHV | E109: EHV/HV | F109: HV | G109: HV/LV | H109: LV circuits
A110: Loss adjustment factor | B110: =VLOOKUP(Vlookup!B69,'CDCM Forecast Data'!$A$14:$I$271,5,FALSE) -> 1.009 | C110: =VLOOKUP(Vlookup!C69,'CDCM Forecast Data'!$A$14:$I$271,5,FALSE) -> 1.013 | D110: =VLOOKUP(Vlookup!D69,'CDCM Forecast Data'!$A$14:$I$271,5,FALSE) -> 1.024 | E110: =VLOOKUP(Vlookup!E69,'CDCM Forecast Data'!$A$14:$I$271,5,FALSE) -> 1.032 | F110: =VLOOKUP(Vlookup!F69,'CDCM Forecast Data'!$A$14:$I$271,5,FALSE) -> 1.041 | G110: =VLOOKUP(Vlookup!G69,'CDCM Forecast Data'!$A$14:$I$271,5,FALSE) -> 1.059 | H110: =VLOOKUP(Vlookup!H69,'CDCM Forecast Data'!$A$14:$I$271,5,FALSE) -> 1.077
A112: 1037. Embedded network (LDNO) discounts
A114: Source: separate price control disaggregation model.
B115: No discount | C115: LDNO LV: LV user | D115: LDNO HV: LV user | E115: LDNO HV: LV sub user | F115: LDNO HV: HV user
A116: LDNO discount | C116: =VLOOKUP(Vlookup!C75,'CDCM Forecast Data'!$A$14:$I$271,5,FALSE) -> 0.3199255301 | D116: =VLOOKUP(Vlookup!D75,'CDCM Forecast Data'!$A$14:$I$271,5,FALSE) -> 0.6334761221 | E116: =VLOOKUP(Vlookup!E75,'CDCM Forecast Data'!$A$14:$I$271,5,FALSE) -> 0.4384885799 | F116: =VLOOKUP(Vlookup!F75,'CDCM Forecast Data'!$A$14:$I$271,5,FALSE) -> 0.3226874527
A118: 1041. Load profile data for demand users
A120: Source: load data analysis.
B121: Coincidence factor | C121: Load factor
A122: Domestic Unrestricted | B122: =VLOOKUP(Vlookup!B81,'CDCM Forecast Data'!$A$14:$I$271,5,FALSE) -> 0.9157074753 | C122: =VLOOKUP(Vlookup!C81,'CDCM Forecast Data'!$A$14:$I$271,5,FALSE) -> 0.4308052566
A123: Domestic Two Rate | B123: =VLOOKUP(Vlookup!B82,'CDCM Forecast Data'!$A$14:$I$271,5,FALSE) -> 0.3567074092 | C123: =VLOOKUP(Vlookup!C82,'CDCM Forecast Data'!$A$14:$I$271,5,FALSE) -> 0.2769210098
A124: Domestic Off Peak (related MPAN) | C124: =VLOOKUP(Vlookup!C83,'CDCM Forecast Data'!$A$14:$I$271,5,FALSE) -> 0.1956368053
A125: Small Non Domestic Unrestricted | B125: =VLOOKUP(Vlookup!B84,'CDCM Forecast Data'!$A$14:$I$271,5,FALSE) -> 0.5092286883 | C125: =VLOOKUP(Vlookup!C84,'CDCM Forecast Data'!$A$14:$I$271,5,FALSE) -> 0.4165839085
A126: Small Non Domestic Two Rate | B126: =VLOOKUP(Vlookup!B85,'CDCM Forecast Data'!$A$14:$I$271,5,FALSE) -> 0.7364077701 | C126: =VLOOKUP(Vlookup!C85,'CDCM Forecast Data'!$A$14:$I$271,5,FALSE) -> 0.5852649537
A127: Small Non Domestic Off Peak (related MPAN) | C127: =VLOOKUP(Vlookup!C86,'CDCM Forecast Data'!$A$14:$I$271,5,FALSE) -> 0.2022777614
A128: LV Medium Non-Domestic | B128: =VLOOKUP(Vlookup!B87,'CDCM Forecast Data'!$A$14:$I$271,5,FALSE) -> 0.716354546 | C128: =VLOOKUP(Vlookup!C87,'CDCM Forecast Data'!$A$14:$I$271,5,FALSE) -> 0.5424317404
A129: LV Sub Medium Non-Domestic | B129: =VLOOKUP(Vlookup!B88,'CDCM Forecast Data'!$A$14:$I$271,5,FALSE) -> 0.716354546 | C129: =VLOOKUP(Vlookup!C88,'CDCM Forecast Data'!$A$14:$I$271,5,FALSE) -> 0.5424317404
A130: HV Medium Non-Domestic | B130: =VLOOKUP(Vlookup!B89,'CDCM Forecast Data'!$A$14:$I$271,5,FALSE) -> 0.4954831119 | C130: =VLOOKUP(Vlookup!C89,'CDCM Forecast Data'!$A$14:$I$271,5,FALSE) -> 0.4157772318
A131: LV Network Domestic | B131: =VLOOKUP(Vlookup!B90,'CDCM Forecast Data'!$A$14:$I$271,5,FALSE) -> 0.8840580388 | C131: =VLOOKUP(Vlookup!C90,'CDCM Forecast Data'!$A$14:$I$271,5,FALSE) -> 0.4218698608
A132: LV Network Non-Domestic Non-CT | B132: =VLOOKUP(Vlookup!B91,'CDCM Forecast Data'!$A$14:$I$271,5,FALSE) -> 0.5487311983 | C132: =VLOOKUP(Vlookup!C91,'CDCM Forecast Data'!$A$14:$I$271,5,FALSE) -> 0.4450046047
A133: LV HH Metered | B133: =VLOOKUP(Vlookup!B92,'CDCM Forecast Data'!$A$14:$I$271,5,FALSE) -> 0.740232814 | C133: =VLOOKUP(Vlookup!C92,'CDCM Forecast Data'!$A$14:$I$271,5,FALSE) -> 0.5877566842
A134: LV Sub HH Metered | B134: =VLOOKUP(Vlookup!B93,'CDCM Forecast Data'!$A$14:$I$271,5,FALSE) -> 0.7199425784 | C134: =VLOOKUP(Vlookup!C93,'CDCM Forecast Data'!$A$14:$I$271,5,FALSE) -> 0.5962079802
A135: HV HH Metered | B135: =VLOOKUP(Vlookup!B94,'CDCM Forecast Data'!$A$14:$I$271,5,FALSE) -> 0.7989789566 | C135: =VLOOKUP(Vlookup!C94,'CDCM Forecast Data'!$A$14:$I$271,5,FALSE) -> 0.7321391305
A136: NHH UMS category A | B136: =VLOOKUP(Vlookup!B95,'CDCM Forecast Data'!$A$14:$I$271,5,FALSE) -> 1 | C136: =VLOOKUP(Vlookup!C95,'CDCM Forecast Data'!$A$14:$I$271,5,FALSE) -> 1
A137: NHH UMS category B | B137: =VLOOKUP(Vlookup!B96,'CDCM Forecast Data'!$A$14:$I$271,5,FALSE) -> 0.9828346759 | C137: =VLOOKUP(Vlookup!C96,'CDCM Forecast Data'!$A$14:$I$271,5,FALSE) -> 0.4753987679
A138: NHH UMS category C | B138: =VLOOKUP(Vlookup!B97,'CDCM Forecast Data'!$A$14:$I$271,5,FALSE) -> 0.7826086957 | C138: =VLOOKUP(Vlookup!C97,'CDCM Forecast Data'!$A$14:$I$271,5,FALSE) -> 0.2733634899
A139: NHH UMS category D | B139: =VLOOKUP(Vlookup!B98,'CDCM Forecast Data'!$A$14:$I$271,5,FALSE) -> 0 | C139: =VLOOKUP(Vlookup!C98,'CDCM Forecast Data'!$A$14:$I$271,5,FALSE) -> 0.5155660185
A140: LV UMS (Pseudo HH Metered) | B140: =VLOOKUP(Vlookup!B99,'CDCM Forecast Data'!$A$14:$I$271,5,FALSE) -> 0.9477164255 | C140: =VLOOKUP(Vlookup!C99,'CDCM Forecast Data'!$A$14:$I$271,5,FALSE) -> 0.4501908686
A142: 1053. Volume forecasts for the charging year
B143: 4 | C143: 5 | D143: 6 | E143: 7 | F143: 8 | G143: 9 | H143: 10
A144: Source: forecast.
A145: Please include MPAN counts for tariffs with no fixed charge (e.g. off-peak tariffs),
A146: but exclude MPANs on tariffs with a fixed charge that are not subject to a fixed charge due to a site grouping arrangement.
B147: Rate 1 units (MWh) | C147: Rate 2 units (MWh) | D147: Rate 3 units (MWh) | E147: MPANs | F147: Import capacity (kVA) | G147: Exceeded capacity (kVA) | H147: Reactive power units (MVArh)
A148: > Domestic Unrestricted | B148: =VLOOKUP(Vlookup!$B107,'CDCM Volume Forecasts'!$A$28:$AL$136,B$143,FALSE) -> 0 | C148: =VLOOKUP(Vlookup!$B107,'CDCM Volume Forecasts'!$A$28:$AL$136,C$143,FALSE) -> 0 | D148: =VLOOKUP(Vlookup!$B107,'CDCM Volume Forecasts'!$A$28:$AL$136,D$143,FALSE) -> 0 | E148: =VLOOKUP(Vlookup!$B107,'CDCM Volume Forecasts'!$A$28:$AL$136,E$143,FALSE) -> 0 | F148: =VLOOKUP(Vlookup!$B107,'CDCM Volume Forecasts'!$A$28:$AL$136,F$143,FALSE) -> 0 | H148: =VLOOKUP(Vlookup!$B107,'CDCM Volume Forecasts'!$A$28:$AL$136,G$143,FALSE) -> 0
A149: Domestic Unrestricted | B149: =VLOOKUP(Vlookup!$B108,'CDCM Volume Forecasts'!$A$28:$AL$136,B$143,FALSE) -> 3137701.408 | E149: =VLOOKUP(Vlookup!$B108,'CDCM Volume Forecasts'!$A$28:$AL$136,E$143,FALSE) -> 998882.407
A150: LDNO LV: Domestic Unrestricted | B150: =VLOOKUP(Vlookup!$B109,'CDCM Volume Forecasts'!$A$28:$AL$136,B$143,FALSE) -> 3748.253398 | E150: =VLOOKUP(Vlookup!$B109,'CDCM Volume Forecasts'!$A$28:$AL$136,E$143,FALSE) -> 1534.903725
A151: LDNO HV: Domestic Unrestricted | B151: =VLOOKUP(Vlookup!$B110,'CDCM Volume Forecasts'!$A$28:$AL$136,B$143,FALSE) -> 21538.31146 | E151: =VLOOKUP(Vlookup!$B110,'CDCM Volume Forecasts'!$A$28:$AL$136,E$143,FALSE) -> 9576.463133
A152: > Domestic Two Rate
A153: Domestic Two Rate | B153: =VLOOKUP(Vlookup!$B112,'CDCM Volume Forecasts'!$A$28:$AL$136,B$143,FALSE) -> 148595.8148 | C153: =VLOOKUP(Vlookup!$B112,'CDCM Volume Forecasts'!$A$28:$AL$136,C$143,FALSE) -> 132539.3456 | E153: =VLOOKUP(Vlookup!$B112,'CDCM Volume Forecasts'!$A$28:$AL$136,E$143,FALSE) -> 50656.37901
A154: LDNO LV: Domestic Two Rate | B154: =VLOOKUP(Vlookup!$B113,'CDCM Volume Forecasts'!$A$28:$AL$136,B$143,FALSE) -> 76.31678952 | C154: =VLOOKUP(Vlookup!$B113,'CDCM Volume Forecasts'!$A$28:$AL$136,C$143,FALSE) -> 16.25200139 | E154: =VLOOKUP(Vlookup!$B113,'CDCM Volume Forecasts'!$A$28:$AL$136,E$143,FALSE) -> 32.93642007
A155: LDNO HV: Domestic Two Rate | B155: =VLOOKUP(Vlookup!$B114,'CDCM Volume Forecasts'!$A$28:$AL$136,B$143,FALSE) -> 307.7377218 | C155: =VLOOKUP(Vlookup!$B114,'CDCM Volume Forecasts'!$A$28:$AL$136,C$143,FALSE) -> 160.4615525 | E155: =VLOOKUP(Vlookup!$B114,'CDCM Volume Forecasts'!$A$28:$AL$136,E$143,FALSE) -> 182.8854175
A156: > Domestic Off Peak (related MPAN)
A157: Domestic Off Peak (related MPAN) | B157: =VLOOKUP(Vlookup!$B116,'CDCM Volume Forecasts'!$A$28:$AL$136,B$143,FALSE) -> 2369.594793 | E157: =VLOOKUP(Vlookup!$B116,'CDCM Volume Forecasts'!$A$28:$AL$136,E$143,FALSE) -> 0
A158: LDNO LV: Domestic Off Peak (related MPAN) | B158: =VLOOKUP(Vlookup!$B117,'CDCM Volume Forecasts'!$A$28:$AL$136,B$143,FALSE) -> 0 | E158: =VLOOKUP(Vlookup!$B117,'CDCM Volume Forecasts'!$A$28:$AL$136,E$143,FALSE) -> 0
A159: LDNO HV: Domestic Off Peak (related MPAN) | B159: =VLOOKUP(Vlookup!$B118,'CDCM Volume Forecasts'!$A$28:$AL$136,B$143,FALSE) -> 0 | E159: =VLOOKUP(Vlookup!$B118,'CDCM Volume Forecasts'!$A$28:$AL$136,E$143,FALSE) -> 0
A160: > Small Non Domestic Unrestricted
A161: Small Non Domestic Unrestricted | B161: =VLOOKUP(Vlookup!$B120,'CDCM Volume Forecasts'!$A$28:$AL$136,B$143,FALSE) -> 788341.2966 | E161: =VLOOKUP(Vlookup!$B120,'CDCM Volume Forecasts'!$A$28:$AL$136,E$143,FALSE) -> 64499.40072
A162: LDNO LV: Small Non Domestic Unrestricted | B162: =VLOOKUP(Vlookup!$B121,'CDCM Volume Forecasts'!$A$28:$AL$136,B$143,FALSE) -> 71.63395919 | E162: =VLOOKUP(Vlookup!$B121,'CDCM Volume Forecasts'!$A$28:$AL$136,E$143,FALSE) -> 10.38806408
A163: LDNO HV: Small Non Domestic Unrestricted | B163: =VLOOKUP(Vlookup!$B122,'CDCM Volume Forecasts'!$A$28:$AL$136,B$143,FALSE) -> 4110.730745 | E163: =VLOOKUP(Vlookup!$B122,'CDCM Volume Forecasts'!$A$28:$AL$136,E$143,FALSE) -> 183.2927888
A164: > Small Non Domestic Two Rate
A165: Small Non Domestic Two Rate | B165: =VLOOKUP(Vlookup!$B124,'CDCM Volume Forecasts'!$A$28:$AL$136,B$143,FALSE) -> 197413.5436 | C165: =VLOOKUP(Vlookup!$B124,'CDCM Volume Forecasts'!$A$28:$AL$136,C$143,FALSE) -> 83732.92508 | E165: =VLOOKUP(Vlookup!$B124,'CDCM Volume Forecasts'!$A$28:$AL$136,E$143,FALSE) -> 13327.09991
A166: LDNO LV: Small Non Domestic Two Rate | B166: =VLOOKUP(Vlookup!$B125,'CDCM Volume Forecasts'!$A$28:$AL$136,B$143,FALSE) -> 0 | C166: =VLOOKUP(Vlookup!$B125,'CDCM Volume Forecasts'!$A$28:$AL$136,C$143,FALSE) -> 0 | E166: =VLOOKUP(Vlookup!$B125,'CDCM Volume Forecasts'!$A$28:$AL$136,E$143,FALSE) -> 0
A167: LDNO HV: Small Non Domestic Two Rate | B167: =VLOOKUP(Vlookup!$B126,'CDCM Volume Forecasts'!$A$28:$AL$136,B$143,FALSE) -> 888.7786027 | C167: =VLOOKUP(Vlookup!$B126,'CDCM Volume Forecasts'!$A$28:$AL$136,C$143,FALSE) -> 150.5713725 | E167: =VLOOKUP(Vlookup!$B126,'CDCM Volume Forecasts'!$A$28:$AL$136,E$143,FALSE) -> 14.47325781
A168: > Small Non Domestic Off Peak (related MPAN)
A169: Small Non Domestic Off Peak (related MPAN) | B169: =VLOOKUP(Vlookup!$B128,'CDCM Volume Forecasts'!$A$28:$AL$136,B$143,FALSE) -> 1373.419906 | E169: =VLOOKUP(Vlookup!$B128,'CDCM Volume Forecasts'!$A$28:$AL$136,E$143,FALSE) -> 0
A170: LDNO LV: Small Non Domestic Off Peak (related MPAN) | B170: =VLOOKUP(Vlookup!$B129,'CDCM Volume Forecasts'!$A$28:$AL$136,B$143,FALSE) -> 0 | E170: =VLOOKUP(Vlookup!$B129,'CDCM Volume Forecasts'!$A$28:$AL$136,E$143,FALSE) -> 0
A171: LDNO HV: Small Non Domestic Off Peak (related MPAN) | B171: =VLOOKUP(Vlookup!$B130,'CDCM Volume Forecasts'!$A$28:$AL$136,B$143,FALSE) -> 0 | E171: =VLOOKUP(Vlookup!$B130,'CDCM Volume Forecasts'!$A$28:$AL$136,E$143,FALSE) -> 0
A172: > LV Medium Non-Domestic
A173: LV Medium Non-Domestic | B173: =VLOOKUP(Vlookup!$B132,'CDCM Volume Forecasts'!$A$28:$AL$136,B$143,FALSE) -> 26946.83891 | C173: =VLOOKUP(Vlookup!$B132,'CDCM Volume Forecasts'!$A$28:$AL$136,C$143,FALSE) -> 7790.303753 | E173: =VLOOKUP(Vlookup!$B132,'CDCM Volume Forecasts'!$A$28:$AL$136,E$143,FALSE) -> 782.0146133
A174: LDNO LV: LV Medium Non-Domestic | B174: =VLOOKUP(Vlookup!$B133,'CDCM Volume Forecasts'!$A$28:$AL$136,B$143,FALSE) -> 0 | C174: =VLOOKUP(Vlookup!$B133,'CDCM Volume Forecasts'!$A$28:$AL$136,C$143,FALSE) -> 0 | E174: =VLOOKUP(Vlookup!$B133,'CDCM Volume Forecasts'!$A$28:$AL$136,E$143,FALSE) -> 0
A175: LDNO HV: LV Medium Non-Domestic | B175: =VLOOKUP(Vlookup!$B134,'CDCM Volume Forecasts'!$A$28:$AL$136,B$143,FALSE) -> -3.637978807e-15 | C175: =VLOOKUP(Vlookup!$B134,'CDCM Volume Forecasts'!$A$28:$AL$136,C$143,FALSE) -> 1.818989404e-15 | E175: =VLOOKUP(Vlookup!$B134,'CDCM Volume Forecasts'!$A$28:$AL$136,E$143,FALSE) -> 0
A176: > LV Sub Medium Non-Domestic
A177: LV Sub Medium Non-Domestic | B177: =VLOOKUP(Vlookup!$B136,'CDCM Volume Forecasts'!$A$28:$AL$136,B$143,FALSE) -> 0.2169613471 | C177: =VLOOKUP(Vlookup!$B136,'CDCM Volume Forecasts'!$A$28:$AL$136,C$143,FALSE) -> 0.06663332612 | E177: =VLOOKUP(Vlookup!$B136,'CDCM Volume Forecasts'!$A$28:$AL$136,E$143,FALSE) -> 0.001985026667
A178: > HV Medium Non-Domestic
A179: HV Medium Non-Domestic | B179: =VLOOKUP(Vlookup!$B138,'CDCM Volume Forecasts'!$A$28:$AL$136,B$143,FALSE) -> 56.5708231 | C179: =VLOOKUP(Vlookup!$B138,'CDCM Volume Forecasts'!$A$28:$AL$136,C$143,FALSE) -> 27.23780372 | E179: =VLOOKUP(Vlookup!$B138,'CDCM Volume Forecasts'!$A$28:$AL$136,E$143,FALSE) -> 3.238266811
A180: > LV Network Domestic
A181: LV Network Domestic | B181: =VLOOKUP(Vlookup!$B140,'CDCM Volume Forecasts'!$A$28:$AL$136,B$143,FALSE) -> 2.012033728 | C181: =VLOOKUP(Vlookup!$B140,'CDCM Volume Forecasts'!$A$28:$AL$136,C$143,FALSE) -> 10.44829398 | D181: =VLOOKUP(Vlookup!$B140,'CDCM Volume Forecasts'!$A$28:$AL$136,D$143,FALSE) -> 9.397597107 | E181: =VLOOKUP(Vlookup!$B140,'CDCM Volume Forecasts'!$A$28:$AL$136,E$143,FALSE) -> 6.633033246
A182: LDNO LV: LV Network Domestic | B182: =VLOOKUP(Vlookup!$B141,'CDCM Volume Forecasts'!$A$28:$AL$136,B$143,FALSE) -> 0 | C182: =VLOOKUP(Vlookup!$B141,'CDCM Volume Forecasts'!$A$28:$AL$136,C$143,FALSE) -> 0 | D182: =VLOOKUP(Vlookup!$B141,'CDCM Volume Forecasts'!$A$28:$AL$136,D$143,FALSE) -> 0 | E182: =VLOOKUP(Vlookup!$B141,'CDCM Volume Forecasts'!$A$28:$AL$136,E$143,FALSE) -> 0
A183: LDNO HV: LV Network Domestic | B183: =VLOOKUP(Vlookup!$B142,'CDCM Volume Forecasts'!$A$28:$AL$136,B$143,FALSE) -> 0 | C183: =VLOOKUP(Vlookup!$B142,'CDCM Volume Forecasts'!$A$28:$AL$136,C$143,FALSE) -> 0 | D183: =VLOOKUP(Vlookup!$B142,'CDCM Volume Forecasts'!$A$28:$AL$136,D$143,FALSE) -> 0 | E183: =VLOOKUP(Vlookup!$B142,'CDCM Volume Forecasts'!$A$28:$AL$136,E$143,FALSE) -> 0
A184: > LV Network Non-Domestic Non-CT
A185: LV Network Non-Domestic Non-CT | B185: =VLOOKUP(Vlookup!$B144,'CDCM Volume Forecasts'!$A$28:$AL$136,B$143,FALSE) -> 12121.70413 | C185: =VLOOKUP(Vlookup!$B144,'CDCM Volume Forecasts'!$A$28:$AL$136,C$143,FALSE) -> 81006.95198 | D185: =VLOOKUP(Vlookup!$B144,'CDCM Volume Forecasts'!$A$28:$AL$136,D$143,FALSE) -> 60057.38782 | E185: =VLOOKUP(Vlookup!$B144,'CDCM Volume Forecasts'!$A$28:$AL$136,E$143,FALSE) -> 2100.892179
A186: LDNO LV: LV Network Non-Domestic Non-CT | B186: =VLOOKUP(Vlookup!$B145,'CDCM Volume Forecasts'!$A$28:$AL$136,B$143,FALSE) -> 0 | C186: =VLOOKUP(Vlookup!$B145,'CDCM Volume Forecasts'!$A$28:$AL$136,C$143,FALSE) -> 0 | D186: =VLOOKUP(Vlookup!$B145,'CDCM Volume Forecasts'!$A$28:$AL$136,D$143,FALSE) -> 0 | E186: =VLOOKUP(Vlookup!$B145,'CDCM Volume Forecasts'!$A$28:$AL$136,E$143,FALSE) -> 0
A187: LDNO HV: LV Network Non-Domestic Non-CT | B187: =VLOOKUP(Vlookup!$B146,'CDCM Volume Forecasts'!$A$28:$AL$136,B$143,FALSE) -> 50.62210439 | C187: =VLOOKUP(Vlookup!$B146,'CDCM Volume Forecasts'!$A$28:$AL$136,C$143,FALSE) -> 290.2504093 | D187: =VLOOKUP(Vlookup!$B146,'CDCM Volume Forecasts'!$A$28:$AL$136,D$143,FALSE) -> 161.0849097 | E187: =VLOOKUP(Vlookup!$B146,'CDCM Volume Forecasts'!$A$28:$AL$136,E$143,FALSE) -> 8.825288101
A188: > LV HH Metered
A189: LV HH Metered | B189: =VLOOKUP(Vlookup!$B148,'CDCM Volume Forecasts'!$A$28:$AL$136,B$143,FALSE) -> 120521.177 | C189: =VLOOKUP(Vlookup!$B148,'CDCM Volume Forecasts'!$A$28:$AL$136,C$143,FALSE) -> 767707.2736 | D189: =VLOOKUP(Vlookup!$B148,'CDCM Volume Forecasts'!$A$28:$AL$136,D$143,FALSE) -> 570489.4375 | E189: =VLOOKUP(Vlookup!$B148,'CDCM Volume Forecasts'!$A$28:$AL$136,E$143,FALSE) -> 6053.599684 | F189: =VLOOKUP(Vlookup!$B148,'CDCM Volume Forecasts'!$A$28:$AL$136,F$143,FALSE) -> 725000 | G189: =VLOOKUP(Vlookup!$B148,'CDCM Volume Forecasts'!$A$28:$AL$136,G$143,FALSE) -> 28587.32249 | H189: =VLOOKUP(Vlookup!$B148,'CDCM Volume Forecasts'!$A$28:$AL$136,H$143,FALSE) -> 122816.7972
A190: LDNO LV: LV HH Metered | B190: =VLOOKUP(Vlookup!$B149,'CDCM Volume Forecasts'!$A$28:$AL$136,B$143,FALSE) -> 26.56323277 | C190: =VLOOKUP(Vlookup!$B149,'CDCM Volume Forecasts'!$A$28:$AL$136,C$143,FALSE) -> 180.0230628 | D190: =VLOOKUP(Vlookup!$B149,'CDCM Volume Forecasts'!$A$28:$AL$136,D$143,FALSE) -> 132.9414728 | E190: =VLOOKUP(Vlookup!$B149,'CDCM Volume Forecasts'!$A$28:$AL$136,E$143,FALSE) -> 2.894651563 | F190: =VLOOKUP(Vlookup!$B149,'CDCM Volume Forecasts'!$A$28:$AL$136,F$143,FALSE) -> 230.1155295 | G190: =VLOOKUP(Vlookup!$B149,'CDCM Volume Forecasts'!$A$28:$AL$136,G$143,FALSE) -> 26.72951796 | H190: =VLOOKUP(Vlookup!$B149,'CDCM Volume Forecasts'!$A$28:$AL$136,H$143,FALSE) -> 8.64161504
A191: LDNO HV: LV HH Metered | B191: =VLOOKUP(Vlookup!$B150,'CDCM Volume Forecasts'!$A$28:$AL$136,B$143,FALSE) -> 5344.984537 | C191: =VLOOKUP(Vlookup!$B150,'CDCM Volume Forecasts'!$A$28:$AL$136,C$143,FALSE) -> 30055.81136 | D191: =VLOOKUP(Vlookup!$B150,'CDCM Volume Forecasts'!$A$28:$AL$136,D$143,FALSE) -> 27681.62318 | E191: =VLOOKUP(Vlookup!$B150,'CDCM Volume Forecasts'!$A$28:$AL$136,E$143,FALSE) -> 132.2861054 | F191: =VLOOKUP(Vlookup!$B150,'CDCM Volume Forecasts'!$A$28:$AL$136,F$143,FALSE) -> 39629.74012 | G191: =VLOOKUP(Vlookup!$B150,'CDCM Volume Forecasts'!$A$28:$AL$136,G$143,FALSE) -> 47.24597616 | H191: =VLOOKUP(Vlookup!$B150,'CDCM Volume Forecasts'!$A$28:$AL$136,H$143,FALSE) -> 1627.863829
A192: > LV Sub HH Metered
A193: LV Sub HH Metered | B193: =VLOOKUP(Vlookup!$B152,'CDCM Volume Forecasts'!$A$28:$AL$136,B$143,FALSE) -> 4874.020017 | C193: =VLOOKUP(Vlookup!$B152,'CDCM Volume Forecasts'!$A$28:$AL$136,C$143,FALSE) -> 29990.72372 | D193: =VLOOKUP(Vlookup!$B152,'CDCM Volume Forecasts'!$A$28:$AL$136,D$143,FALSE) -> 25258.84703 | E193: =VLOOKUP(Vlookup!$B152,'CDCM Volume Forecasts'!$A$28:$AL$136,E$143,FALSE) -> 64.98335504 | F193: =VLOOKUP(Vlookup!$B152,'CDCM Volume Forecasts'!$A$28:$AL$136,F$143,FALSE) -> 23211.75202 | G193: =VLOOKUP(Vlookup!$B152,'CDCM Volume Forecasts'!$A$28:$AL$136,G$143,FALSE) -> 953.9675292 | H193: =VLOOKUP(Vlookup!$B152,'CDCM Volume Forecasts'!$A$28:$AL$136,H$143,FALSE) -> 6728.325406
A194: LDNO HV: LV Sub HH Metered | B194: =VLOOKUP(Vlookup!$B153,'CDCM Volume Forecasts'!$A$28:$AL$136,B$143,FALSE) -> 426.4583855 | C194: =VLOOKUP(Vlookup!$B153,'CDCM Volume Forecasts'!$A$28:$AL$136,C$143,FALSE) -> 2276.573155 | D194: =VLOOKUP(Vlookup!$B153,'CDCM Volume Forecasts'!$A$28:$AL$136,D$143,FALSE) -> 2031.255156 | E194: =VLOOKUP(Vlookup!$B153,'CDCM Volume Forecasts'!$A$28:$AL$136,E$143,FALSE) -> 3.486095771 | F194: =VLOOKUP(Vlookup!$B153,'CDCM Volume Forecasts'!$A$28:$AL$136,F$143,FALSE) -> 2811.357939 | G194: =VLOOKUP(Vlookup!$B153,'CDCM Volume Forecasts'!$A$28:$AL$136,G$143,FALSE) -> 0 | H194: =VLOOKUP(Vlookup!$B153,'CDCM Volume Forecasts'!$A$28:$AL$136,H$143,FALSE) -> 78.99136478
A195: > HV HH Metered
A196: HV HH Metered | B196: =VLOOKUP(Vlookup!$B155,'CDCM Volume Forecasts'!$A$28:$AL$136,B$143,FALSE) -> 146873.8891 | C196: =VLOOKUP(Vlookup!$B155,'CDCM Volume Forecasts'!$A$28:$AL$136,C$143,FALSE) -> 903198.681 | D196: =VLOOKUP(Vlookup!$B155,'CDCM Volume Forecasts'!$A$28:$AL$136,D$143,FALSE) -> 842161.3565 | E196: =VLOOKUP(Vlookup!$B155,'CDCM Volume Forecasts'!$A$28:$AL$136,E$143,FALSE) -> 814.7168057 | F196: =VLOOKUP(Vlookup!$B155,'CDCM Volume Forecasts'!$A$28:$AL$136,F$143,FALSE) -> 628579.2102 | G196: =VLOOKUP(Vlookup!$B155,'CDCM Volume Forecasts'!$A$28:$AL$136,G$143,FALSE) -> 34337.68614 | H196: =VLOOKUP(Vlookup!$B155,'CDCM Volume Forecasts'!$A$28:$AL$136,H$143,FALSE) -> 97134.43631
A197: LDNO HV: HV HH Metered | B197: =VLOOKUP(Vlookup!$B156,'CDCM Volume Forecasts'!$A$28:$AL$136,B$143,FALSE) -> 659.3996647 | C197: =VLOOKUP(Vlookup!$B156,'CDCM Volume Forecasts'!$A$28:$AL$136,C$143,FALSE) -> 3854.650197 | D197: =VLOOKUP(Vlookup!$B156,'CDCM Volume Forecasts'!$A$28:$AL$136,D$143,FALSE) -> 3181.611943 | E197: =VLOOKUP(Vlookup!$B156,'CDCM Volume Forecasts'!$A$28:$AL$136,E$143,FALSE) -> 8.333603881 | F197: =VLOOKUP(Vlookup!$B156,'CDCM Volume Forecasts'!$A$28:$AL$136,F$143,FALSE) -> 3270.819309 | G197: =VLOOKUP(Vlookup!$B156,'CDCM Volume Forecasts'!$A$28:$AL$136,G$143,FALSE) -> 0 | H197: =VLOOKUP(Vlookup!$B156,'CDCM Volume Forecasts'!$A$28:$AL$136,H$143,FALSE) -> 290.1979556
A198: > NHH UMS category A
A199: NHH UMS category A | B199: =VLOOKUP(Vlookup!$B158,'CDCM Volume Forecasts'!$A$28:$AL$136,B$143,FALSE) -> 1811.146729 | E199: =VLOOKUP(Vlookup!$B158,'CDCM Volume Forecasts'!$A$28:$AL$136,E$143,FALSE) -> 0
A200: LDNO LV: NHH UMS category A | B200: =VLOOKUP(Vlookup!$B159,'CDCM Volume Forecasts'!$A$28:$AL$136,B$143,FALSE) -> 0 | E200: =VLOOKUP(Vlookup!$B159,'CDCM Volume Forecasts'!$A$28:$AL$136,E$143,FALSE) -> 0
A201: LDNO HV: NHH UMS category A | B201: =VLOOKUP(Vlookup!$B160,'CDCM Volume Forecasts'!$A$28:$AL$136,B$143,FALSE) -> 72.61193186 | E201: =VLOOKUP(Vlookup!$B160,'CDCM Volume Forecasts'!$A$28:$AL$136,E$143,FALSE) -> 0
A202: > NHH UMS category B
A203: NHH UMS category B | B203: =VLOOKUP(Vlookup!$B162,'CDCM Volume Forecasts'!$A$28:$AL$136,B$143,FALSE) -> 5391.406227 | E203: =VLOOKUP(Vlookup!$B162,'CDCM Volume Forecasts'!$A$28:$AL$136,E$143,FALSE) -> 0
A204: LDNO LV: NHH UMS category B | B204: =VLOOKUP(Vlookup!$B163,'CDCM Volume Forecasts'!$A$28:$AL$136,B$143,FALSE) -> 8.650480011 | E204: =VLOOKUP(Vlookup!$B163,'CDCM Volume Forecasts'!$A$28:$AL$136,E$143,FALSE) -> 0
A205: LDNO HV: NHH UMS category B | B205: =VLOOKUP(Vlookup!$B164,'CDCM Volume Forecasts'!$A$28:$AL$136,B$143,FALSE) -> 119.5006233 | E205: =VLOOKUP(Vlookup!$B164,'CDCM Volume Forecasts'!$A$28:$AL$136,E$143,FALSE) -> 0
A206: > NHH UMS category C
A207: NHH UMS category C | B207: =VLOOKUP(Vlookup!$B166,'CDCM Volume Forecasts'!$A$28:$AL$136,B$143,FALSE) -> 287.5816589 | E207: =VLOOKUP(Vlookup!$B166,'CDCM Volume Forecasts'!$A$28:$AL$136,E$143,FALSE) -> 0
A208: LDNO LV: NHH UMS category C | B208: =VLOOKUP(Vlookup!$B167,'CDCM Volume Forecasts'!$A$28:$AL$136,B$143,FALSE) -> 0 | E208: =VLOOKUP(Vlookup!$B167,'CDCM Volume Forecasts'!$A$28:$AL$136,E$143,FALSE) -> 0
A209: LDNO HV: NHH UMS category C | B209: =VLOOKUP(Vlookup!$B168,'CDCM Volume Forecasts'!$A$28:$AL$136,B$143,FALSE) -> 0 | E209: =VLOOKUP(Vlookup!$B168,'CDCM Volume Forecasts'!$A$28:$AL$136,E$143,FALSE) -> 0
A210: > NHH UMS category D
A211: NHH UMS category D | B211: =VLOOKUP(Vlookup!$B170,'CDCM Volume Forecasts'!$A$28:$AL$136,B$143,FALSE) -> 0 | E211: =VLOOKUP(Vlookup!$B170,'CDCM Volume Forecasts'!$A$28:$AL$136,E$143,FALSE) -> 0
A212: LDNO LV: NHH UMS category D | B212: =VLOOKUP(Vlookup!$B171,'CDCM Volume Forecasts'!$A$28:$AL$136,B$143,FALSE) -> 0 | E212: =VLOOKUP(Vlookup!$B171,'CDCM Volume Forecasts'!$A$28:$AL$136,E$143,FALSE) -> 0
A213: LDNO HV: NHH UMS category D | B213: =VLOOKUP(Vlookup!$B172,'CDCM Volume Forecasts'!$A$28:$AL$136,B$143,FALSE) -> 0 | E213: =VLOOKUP(Vlookup!$B172,'CDCM Volume Forecasts'!$A$28:$AL$136,E$143,FALSE) -> 0
A214: > LV UMS (Pseudo HH Metered)
A215: LV UMS (Pseudo HH Metered) | B215: =VLOOKUP(Vlookup!$B174,'CDCM Volume Forecasts'!$A$28:$AL$136,B$143,FALSE) -> 5390.037125 | C215: =VLOOKUP(Vlookup!$B174,'CDCM Volume Forecasts'!$A$28:$AL$136,C$143,FALSE) -> 33830.68709 | D215: =VLOOKUP(Vlookup!$B174,'CDCM Volume Forecasts'!$A$28:$AL$136,D$143,FALSE) -> 82069.28028 | E215: =VLOOKUP(Vlookup!$B174,'CDCM Volume Forecasts'!$A$28:$AL$136,E$143,FALSE) -> 32.83606557
A216: LDNO LV: LV UMS (Pseudo HH Metered) | B216: =VLOOKUP(Vlookup!$B175,'CDCM Volume Forecasts'!$A$28:$AL$136,B$143,FALSE) -> 0 | C216: =VLOOKUP(Vlookup!$B175,'CDCM Volume Forecasts'!$A$28:$AL$136,C$143,FALSE) -> 0 | D216: =VLOOKUP(Vlookup!$B175,'CDCM Volume Forecasts'!$A$28:$AL$136,D$143,FALSE) -> 0 | E216: =VLOOKUP(Vlookup!$B175,'CDCM Volume Forecasts'!$A$28:$AL$136,E$143,FALSE) -> 0
A217: LDNO HV: LV UMS (Pseudo HH Metered) | B217: =VLOOKUP(Vlookup!$B176,'CDCM Volume Forecasts'!$A$28:$AL$136,B$143,FALSE) -> 0 | C217: =VLOOKUP(Vlookup!$B176,'CDCM Volume Forecasts'!$A$28:$AL$136,C$143,FALSE) -> 0 | D217: =VLOOKUP(Vlookup!$B176,'CDCM Volume Forecasts'!$A$28:$AL$136,D$143,FALSE) -> 0 | E217: =VLOOKUP(Vlookup!$B176,'CDCM Volume Forecasts'!$A$28:$AL$136,E$143,FALSE) -> 0
A218: > LV Generation NHH or Aggregate HH
A219: LV Generation NHH or Aggregate HH | B219: =VLOOKUP(Vlookup!$B178,'CDCM Volume Forecasts'!$A$28:$AL$136,B$143,FALSE) -> 2534.880142 | E219: =VLOOKUP(Vlookup!$B178,'CDCM Volume Forecasts'!$A$28:$AL$136,E$143,FALSE) -> 0
A220: LDNO LV: LV Generation NHH or Aggregate HH | B220: =VLOOKUP(Vlookup!$B179,'CDCM Volume Forecasts'!$A$28:$AL$136,B$143,FALSE) -> 0 | E220: =VLOOKUP(Vlookup!$B179,'CDCM Volume Forecasts'!$A$28:$AL$136,E$143,FALSE) -> 0
A221: LDNO HV: LV Generation NHH or Aggregate HH | B221: =VLOOKUP(Vlookup!$B180,'CDCM Volume Forecasts'!$A$28:$AL$136,B$143,FALSE) -> 0 | E221: =VLOOKUP(Vlookup!$B180,'CDCM Volume Forecasts'!$A$28:$AL$136,E$143,FALSE) -> 0
A222: > LV Sub Generation NHH
A223: LV Sub Generation NHH | B223: =VLOOKUP(Vlookup!$B182,'CDCM Volume Forecasts'!$A$28:$AL$136,B$143,FALSE) -> 0 | E223: =VLOOKUP(Vlookup!$B182,'CDCM Volume Forecasts'!$A$28:$AL$136,E$143,FALSE) -> 0
A224: LDNO HV: LV Sub Generation NHH | B224: =VLOOKUP(Vlookup!$B183,'CDCM Volume Forecasts'!$A$28:$AL$136,B$143,FALSE) -> 0 | E224: =VLOOKUP(Vlookup!$B183,'CDCM Volume Forecasts'!$A$28:$AL$136,E$143,FALSE) -> 0
A225: > LV Generation Intermittent
A226: LV Generation Intermittent | B226: =VLOOKUP(Vlookup!$B185,'CDCM Volume Forecasts'!$A$28:$AL$136,B$143,FALSE) -> 35860.14794 | E226: =VLOOKUP(Vlookup!$B185,'CDCM Volume Forecasts'!$A$28:$AL$136,E$143,FALSE) -> 452.1634098 | H226: =VLOOKUP(Vlookup!$B185,'CDCM Volume Forecasts'!$A$28:$AL$136,H$143,FALSE) -> 3381.700951
A227: LDNO LV: LV Generation Intermittent | B227: =VLOOKUP(Vlookup!$B186,'CDCM Volume Forecasts'!$A$28:$AL$136,B$143,FALSE) -> 0 | E227: =VLOOKUP(Vlookup!$B186,'CDCM Volume Forecasts'!$A$28:$AL$136,E$143,FALSE) -> 0 | H227: =VLOOKUP(Vlookup!$B186,'CDCM Volume Forecasts'!$A$28:$AL$136,H$143,FALSE) -> 0
A228: LDNO HV: LV Generation Intermittent | B228: =VLOOKUP(Vlookup!$B187,'CDCM Volume Forecasts'!$A$28:$AL$136,B$143,FALSE) -> 527.2147719 | E228: =VLOOKUP(Vlookup!$B187,'CDCM Volume Forecasts'!$A$28:$AL$136,E$143,FALSE) -> 3.3275 | H228: =VLOOKUP(Vlookup!$B187,'CDCM Volume Forecasts'!$A$28:$AL$136,H$143,FALSE) -> 91.34960038
... 99 more rows

Sheet (Y+1)
A1: Input data (Y+1)
A4: 1000. Company, charging year, data version
B6: Company | C6: Year | D6: Version
A7: Company, charging year, data version | B7: =VLOOKUP(Vlookup!B7,'CDCM Forecast Data'!$A$14:$I$271,6,FALSE) -> WPD South Wales | C7: =VLOOKUP(Vlookup!C7,'CDCM Forecast Data'!$A$14:$I$271,6,FALSE) -> 2020/21 | D7: =VLOOKUP(Vlookup!D7,'CDCM Forecast Data'!$A$14:$I$271,6,FALSE) -> Forecast
A9: 1010. Financial and general assumptions
A11: Sources: financial assumptions; calendar; network model.
A12: These financial assumptions determine the annuity rate applied to convert the asset values of the network model into an annual charge.
B13: Rate of return | C13: Annualisation period (years) | D13: Annuity proportion for customer-contributed assets | E13: Power factor | F13: Days in the charging period
A14: Financial and general assumptions | B14: =VLOOKUP(Vlookup!B14,'CDCM Forecast Data'!$A$14:$I$271,6,FALSE) -> 0.0421 | C14: =VLOOKUP(Vlookup!C14,'CDCM Forecast Data'!$A$14:$I$271,6,FALSE) -> 40 | E14: =VLOOKUP(Vlookup!E14,'CDCM Forecast Data'!$A$14:$I$271,6,FALSE) -> 0.95 | F14: =VLOOKUP(Vlookup!F14,'CDCM Forecast Data'!$A$14:$I$271,6,FALSE) -> 365
A16: 1017. Diversity allowance between top and bottom of network level
A18: Source: operational data analysis and/or network model.
A19: The diversity figure against GSP is the diversity between GSP Group (the whole system) and individual GSPs.
A20: The diversity figure against 132kV is the diversity between GSPs (the top of the 132kV network) and 132kV/EHV bulk supply points (the bottom of the 132kV network).
A21: The diversity figure against EHV is the diversity between 132kV/EHV bulk supply points (the top of the EHV network) and EHV/HV primary substations (the bottom of the EHV network).
A22: The diversity figure against HV is the diversity between EHV/HV primary substations (the top of the HV network) and HV/LV substations (the bottom of the HV network).
B23: Diversity allowance between top and bottom of network level
A24: GSPs | B24: =VLOOKUP(Vlookup!B24,'CDCM Forecast Data'!$A$14:$I$271,6,FALSE) -> 0.06382978723
A25: 132kV | B25: =VLOOKUP(Vlookup!B25,'CDCM Forecast Data'!$A$14:$I$271,6,FALSE) -> 0.053
A26: 132kV/EHV
A27: EHV | B27: =VLOOKUP(Vlookup!B27,'CDCM Forecast Data'!$A$14:$I$271,6,FALSE) -> 0.099
A28: EHV/HV
A29: HV | B29: =VLOOKUP(Vlookup!B29,'CDCM Forecast Data'!$A$14:$I$271,6,FALSE) -> 0.37
A30: HV/LV
A31: LV circuits
A33: 1018. Proportion of relevant load going through 132kV/HV direct transformation
B35: 132kV/HV
A36: EHV/HV | B36: =VLOOKUP(Vlookup!B36,'CDCM Forecast Data'!$A$14:$I$271,6,FALSE) -> 0.3
A38: 1019. Network model GSP peak demand (MW)
B40: Network model GSP peak demand (MW)
A41: Network model GSP peak demand (MW) | B41: =VLOOKUP(Vlookup!B41,'CDCM Forecast Data'!$A$14:$I$271,6,FALSE) -> 500
A43: 1020. Gross asset cost by network level (£)
B45: Gross assets £
A46: 132kV | B46: =VLOOKUP(Vlookup!B46,'CDCM Forecast Data'!$A$14:$I$271,6,FALSE) -> 138885942.1
A47: 132kV/EHV | B47: =VLOOKUP(Vlookup!B47,'CDCM Forecast Data'!$A$14:$I$271,6,FALSE) -> 13300849.74
A48: EHV | B48: =VLOOKUP(Vlookup!B48,'CDCM Forecast Data'!$A$14:$I$271,6,FALSE) -> 34990209.18
A49: EHV/HV | B49: =VLOOKUP(Vlookup!B49,'CDCM Forecast Data'!$A$14:$I$271,6,FALSE) -> 30157803.7
A50: 132kV/HV | B50: =VLOOKUP(Vlookup!B50,'CDCM Forecast Data'!$A$14:$I$271,6,FALSE) -> 11112677.94
A51: HV | B51: =VLOOKUP(Vlookup!B51,'CDCM Forecast Data'!$A$14:$I$271,6,FALSE) -> 157467972.7
A52: HV/LV | B52: =VLOOKUP(Vlookup!B52,'CDCM Forecast Data'!$A$14:$I$271,6,FALSE) -> 59322701.55
A53: LV circuits | B53: =VLOOKUP(Vlookup!B53,'CDCM Forecast Data'!$A$14:$I$271,6,FALSE) -> 133755785.7
A55: 1022. LV service model asset cost (£)
B57: LV service model 1 | C57: LV service model 2 | D57: LV service model 3 | E57: LV service model 4 | F57: LV service model 5 | G57: LV service model 6 | H57: LV service model 7 | I57: LV service model 8
A58: LV service model asset cost (£) | B58: =VLOOKUP(Vlookup!B58,'CDCM Forecast Data'!$A$14:$I$271,6,FALSE) -> 4495.771841 | C58: =VLOOKUP(Vlookup!C58,'CDCM Forecast Data'!$A$14:$I$271,6,FALSE) -> 685.4396296 | D58: =VLOOKUP(Vlookup!D58,'CDCM Forecast Data'!$A$14:$I$271,6,FALSE) -> 792.7676514 | E58: =VLOOKUP(Vlookup!E58,'CDCM Forecast Data'!$A$14:$I$271,6,FALSE) -> 575.3307709 | F58: =VLOOKUP(Vlookup!F58,'CDCM Forecast Data'!$A$14:$I$271,6,FALSE) -> 1269.305205 | G58: =VLOOKUP(Vlookup!G58,'CDCM Forecast Data'!$A$14:$I$271,6,FALSE) -> 990.8724913 | H58: =VLOOKUP(Vlookup!H58,'CDCM Forecast Data'!$A$14:$I$271,6,FALSE) -> 0 | I58: =VLOOKUP(Vlookup!I58,'CDCM Forecast Data'!$A$14:$I$271,6,FALSE) -> 542.3126865
A60: 1023. HV service model asset cost (£)
B62: HV service model 1 | C62: HV service model 2 | D62: HV service model 3 | E62: HV service model 4 | F62: HV service model 5
A63: HV service model asset cost (£) | B63: =VLOOKUP(Vlookup!B63,'CDCM Forecast Data'!$A$14:$I$271,6,FALSE) -> 10701.15894 | C63: =VLOOKUP(Vlookup!C63,'CDCM Forecast Data'!$A$14:$I$271,6,FALSE) -> 4399.478261 | D63: =VLOOKUP(Vlookup!D63,'CDCM Forecast Data'!$A$14:$I$271,6,FALSE) -> 0 | E63: =VLOOKUP(Vlookup!E63,'CDCM Forecast Data'!$A$14:$I$271,6,FALSE) -> 0 | F63: =VLOOKUP(Vlookup!F63,'CDCM Forecast Data'!$A$14:$I$271,6,FALSE) -> 0
A65: 1025. Matrix of applicability of LV service models to tariffs with fixed charges
B66: 10 | C66: =B66+1 -> 11 | D66: 12 | E66: 13 | F66: 14 | G66: 15 | H66: 16 | I66: 17
B67: LV service model 1 | C67: LV service model 2 | D67: LV service model 3 | E67: LV service model 4 | F67: LV service model 5 | G67: LV service model 6 | H67: LV service model 7 | I67: LV service model 8
A68: Domestic Unrestricted | B68: =VLOOKUP($A68,'Mat of App'!$B$7:$AP$43,B$66,FALSE) -> 0.05 | C68: =VLOOKUP($A68,'Mat of App'!$B$7:$AP$43,C$66,FALSE) -> 0 | D68: =VLOOKUP($A68,'Mat of App'!$B$7:$AP$43,D$66,FALSE) -> 0 | E68: =VLOOKUP($A68,'Mat of App'!$B$7:$AP$43,E$66,FALSE) -> 0 | F68: =VLOOKUP($A68,'Mat of App'!$B$7:$AP$43,F$66,FALSE) -> 0 | G68: =VLOOKUP($A68,'Mat of App'!$B$7:$AP$43,G$66,FALSE) -> 0 | H68: =VLOOKUP($A68,'Mat of App'!$B$7:$AP$43,H$66,FALSE) -> 0 | I68: =VLOOKUP($A68,'Mat of App'!$B$7:$AP$43,I$66,FALSE) -> 0
A69: Domestic Two Rate | B69: =VLOOKUP($A69,'Mat of App'!$B$7:$AP$43,B$66,FALSE) -> 0.05 | C69: =VLOOKUP($A69,'Mat of App'!$B$7:$AP$43,C$66,FALSE) -> 0 | D69: =VLOOKUP($A69,'Mat of App'!$B$7:$AP$43,D$66,FALSE) -> 0 | E69: =VLOOKUP($A69,'Mat of App'!$B$7:$AP$43,E$66,FALSE) -> 0 | F69: =VLOOKUP($A69,'Mat of App'!$B$7:$AP$43,F$66,FALSE) -> 0 | G69: =VLOOKUP($A69,'Mat of App'!$B$7:$AP$43,G$66,FALSE) -> 0 | H69: =VLOOKUP($A69,'Mat of App'!$B$7:$AP$43,H$66,FALSE) -> 0 | I69: =VLOOKUP($A69,'Mat of App'!$B$7:$AP$43,I$66,FALSE) -> 0
A70: Small Non Domestic Unrestricted | B70: =VLOOKUP($A70,'Mat of App'!$B$7:$AP$43,B$66,FALSE) -> 0 | C70: =VLOOKUP($A70,'Mat of App'!$B$7:$AP$43,C$66,FALSE) -> 1 | D70: =VLOOKUP($A70,'Mat of App'!$B$7:$AP$43,D$66,FALSE) -> 0 | E70: =VLOOKUP($A70,'Mat of App'!$B$7:$AP$43,E$66,FALSE) -> 0 | F70: =VLOOKUP($A70,'Mat of App'!$B$7:$AP$43,F$66,FALSE) -> 0 | G70: =VLOOKUP($A70,'Mat of App'!$B$7:$AP$43,G$66,FALSE) -> 0 | H70: =VLOOKUP($A70,'Mat of App'!$B$7:$AP$43,H$66,FALSE) -> 0 | I70: =VLOOKUP($A70,'Mat of App'!$B$7:$AP$43,I$66,FALSE) -> 0
A71: Small Non Domestic Two Rate | B71: =VLOOKUP($A71,'Mat of App'!$B$7:$AP$43,B$66,FALSE) -> 0 | C71: =VLOOKUP($A71,'Mat of App'!$B$7:$AP$43,C$66,FALSE) -> 1 | D71: =VLOOKUP($A71,'Mat of App'!$B$7:$AP$43,D$66,FALSE) -> 0 | E71: =VLOOKUP($A71,'Mat of App'!$B$7:$AP$43,E$66,FALSE) -> 0 | F71: =VLOOKUP($A71,'Mat of App'!$B$7:$AP$43,F$66,FALSE) -> 0 | G71: =VLOOKUP($A71,'Mat of App'!$B$7:$AP$43,G$66,FALSE) -> 0 | H71: =VLOOKUP($A71,'Mat of App'!$B$7:$AP$43,H$66,FALSE) -> 0 | I71: =VLOOKUP($A71,'Mat of App'!$B$7:$AP$43,I$66,FALSE) -> 0
A72: LV Medium Non-Domestic | B72: =VLOOKUP($A72,'Mat of App'!$B$7:$AP$43,B$66,FALSE) -> 0 | C72: =VLOOKUP($A72,'Mat of App'!$B$7:$AP$43,C$66,FALSE) -> 0 | D72: =VLOOKUP($A72,'Mat of App'!$B$7:$AP$43,D$66,FALSE) -> 1 | E72: =VLOOKUP($A72,'Mat of App'!$B$7:$AP$43,E$66,FALSE) -> 0 | F72: =VLOOKUP($A72,'Mat of App'!$B$7:$AP$43,F$66,FALSE) -> 0 | G72: =VLOOKUP($A72,'Mat of App'!$B$7:$AP$43,G$66,FALSE) -> 0 | H72: =VLOOKUP($A72,'Mat of App'!$B$7:$AP$43,H$66,FALSE) -> 0 | I72: =VLOOKUP($A72,'Mat of App'!$B$7:$AP$43,I$66,FALSE) -> 0
A73: LV Sub Medium Non-Domestic | B73: =VLOOKUP($A73,'Mat of App'!$B$7:$AP$43,B$66,FALSE) -> 0 | C73: =VLOOKUP($A73,'Mat of App'!$B$7:$AP$43,C$66,FALSE) -> 0 | D73: =VLOOKUP($A73,'Mat of App'!$B$7:$AP$43,D$66,FALSE) -> 0 | E73: =VLOOKUP($A73,'Mat of App'!$B$7:$AP$43,E$66,FALSE) -> 1 | F73: =VLOOKUP($A73,'Mat of App'!$B$7:$AP$43,F$66,FALSE) -> 0 | G73: =VLOOKUP($A73,'Mat of App'!$B$7:$AP$43,G$66,FALSE) -> 0 | H73: =VLOOKUP($A73,'Mat of App'!$B$7:$AP$43,H$66,FALSE) -> 0 | I73: =VLOOKUP($A73,'Mat of App'!$B$7:$AP$43,I$66,FALSE) -> 0
A74: LV Network Domestic | B74: =VLOOKUP($A74,'Mat of App'!$B$7:$AP$43,B$66,FALSE) -> 0.05 | C74: =VLOOKUP($A74,'Mat of App'!$B$7:$AP$43,C$66,FALSE) -> 0 | D74: =VLOOKUP($A74,'Mat of App'!$B$7:$AP$43,D$66,FALSE) -> 0 | E74: =VLOOKUP($A74,'Mat of App'!$B$7:$AP$43,E$66,FALSE) -> 0 | F74: =VLOOKUP($A74,'Mat of App'!$B$7:$AP$43,F$66,FALSE) -> 0 | G74: =VLOOKUP($A74,'Mat of App'!$B$7:$AP$43,G$66,FALSE) -> 0 | H74: =VLOOKUP($A74,'Mat of App'!$B$7:$AP$43,H$66,FALSE) -> 0 | I74: =VLOOKUP($A74,'Mat of App'!$B$7:$AP$43,I$66,FALSE) -> 0
A75: LV Network Non-Domestic Non-CT | B75: =VLOOKUP($A75,'Mat of App'!$B$7:$AP$43,B$66,FALSE) -> 0 | C75: =VLOOKUP($A75,'Mat of App'!$B$7:$AP$43,C$66,FALSE) -> 1 | D75: =VLOOKUP($A75,'Mat of App'!$B$7:$AP$43,D$66,FALSE) -> 0 | E75: =VLOOKUP($A75,'Mat of App'!$B$7:$AP$43,E$66,FALSE) -> 0 | F75: =VLOOKUP($A75,'Mat of App'!$B$7:$AP$43,F$66,FALSE) -> 0 | G75: =VLOOKUP($A75,'Mat of App'!$B$7:$AP$43,G$66,FALSE) -> 0 | H75: =VLOOKUP($A75,'Mat of App'!$B$7:$AP$43,H$66,FALSE) -> 0 | I75: =VLOOKUP($A75,'Mat of App'!$B$7:$AP$43,I$66,FALSE) -> 0
A76: LV HH Metered | B76: =VLOOKUP($A76,'Mat of App'!$B$7:$AP$43,B$66,FALSE) -> 0 | C76: =VLOOKUP($A76,'Mat of App'!$B$7:$AP$43,C$66,FALSE) -> 0 | D76: =VLOOKUP($A76,'Mat of App'!$B$7:$AP$43,D$66,FALSE) -> 0 | E76: =VLOOKUP($A76,'Mat of App'!$B$7:$AP$43,E$66,FALSE) -> 0 | F76: =VLOOKUP($A76,'Mat of App'!$B$7:$AP$43,F$66,FALSE) -> 1 | G76: =VLOOKUP($A76,'Mat of App'!$B$7:$AP$43,G$66,FALSE) -> 0 | H76: =VLOOKUP($A76,'Mat of App'!$B$7:$AP$43,H$66,FALSE) -> 0 | I76: =VLOOKUP($A76,'Mat of App'!$B$7:$AP$43,I$66,FALSE) -> 0
A77: LV Sub HH Metered | B77: =VLOOKUP($A77,'Mat of App'!$B$7:$AP$43,B$66,FALSE) -> 0 | C77: =VLOOKUP($A77,'Mat of App'!$B$7:$AP$43,C$66,FALSE) -> 0 | D77: =VLOOKUP($A77,'Mat of App'!$B$7:$AP$43,D$66,FALSE) -> 0 | E77: =VLOOKUP($A77,'Mat of App'!$B$7:$AP$43,E$66,FALSE) -> 0 | F77: =VLOOKUP($A77,'Mat of App'!$B$7:$AP$43,F$66,FALSE) -> 0 | G77: =VLOOKUP($A77,'Mat of App'!$B$7:$AP$43,G$66,FALSE) -> 1 | H77: =VLOOKUP($A77,'Mat of App'!$B$7:$AP$43,H$66,FALSE) -> 0 | I77: =VLOOKUP($A77,'Mat of App'!$B$7:$AP$43,I$66,FALSE) -> 0
A78: LV Generation NHH or Aggregate HH | B78: =VLOOKUP($A78,'Mat of App'!$B$7:$AP$43,B$66,FALSE) -> 0 | C78: =VLOOKUP($A78,'Mat of App'!$B$7:$AP$43,C$66,FALSE) -> 0 | D78: =VLOOKUP($A78,'Mat of App'!$B$7:$AP$43,D$66,FALSE) -> 0 | E78: =VLOOKUP($A78,'Mat of App'!$B$7:$AP$43,E$66,FALSE) -> 0 | F78: =VLOOKUP($A78,'Mat of App'!$B$7:$AP$43,F$66,FALSE) -> 0 | G78: =VLOOKUP($A78,'Mat of App'!$B$7:$AP$43,G$66,FALSE) -> 0 | H78: =VLOOKUP($A78,'Mat of App'!$B$7:$AP$43,H$66,FALSE) -> 1 | I78: =VLOOKUP($A78,'Mat of App'!$B$7:$AP$43,I$66,FALSE) -> 0
A79: LV Sub Generation NHH | B79: =VLOOKUP($A79,'Mat of App'!$B$7:$AP$43,B$66,FALSE) -> 0 | C79: =VLOOKUP($A79,'Mat of App'!$B$7:$AP$43,C$66,FALSE) -> 0 | D79: =VLOOKUP($A79,'Mat of App'!$B$7:$AP$43,D$66,FALSE) -> 0 | E79: =VLOOKUP($A79,'Mat of App'!$B$7:$AP$43,E$66,FALSE) -> 0 | F79: =VLOOKUP($A79,'Mat of App'!$B$7:$AP$43,F$66,FALSE) -> 0 | G79: =VLOOKUP($A79,'Mat of App'!$B$7:$AP$43,G$66,FALSE) -> 0 | H79: =VLOOKUP($A79,'Mat of App'!$B$7:$AP$43,H$66,FALSE) -> 1 | I79: =VLOOKUP($A79,'Mat of App'!$B$7:$AP$43,I$66,FALSE) -> 0
A80: LV Generation Intermittent | B80: =VLOOKUP($A80,'Mat of App'!$B$7:$AP$43,B$66,FALSE) -> 0 | C80: =VLOOKUP($A80,'Mat of App'!$B$7:$AP$43,C$66,FALSE) -> 0 | D80: =VLOOKUP($A80,'Mat of App'!$B$7:$AP$43,D$66,FALSE) -> 0 | E80: =VLOOKUP($A80,'Mat of App'!$B$7:$AP$43,E$66,FALSE) -> 0 | F80: =VLOOKUP($A80,'Mat of App'!$B$7:$AP$43,F$66,FALSE) -> 0 | G80: =VLOOKUP($A80,'Mat of App'!$B$7:$AP$43,G$66,FALSE) -> 0 | H80: =VLOOKUP($A80,'Mat of App'!$B$7:$AP$43,H$66,FALSE) -> 1 | I80: =VLOOKUP($A80,'Mat of App'!$B$7:$AP$43,I$66,FALSE) -> 0
A81: LV Generation Intermittent no RP charge | B81: =VLOOKUP($A81,'Mat of App'!$B$7:$AP$43,B$66,FALSE) -> 0 | C81: =VLOOKUP($A81,'Mat of App'!$B$7:$AP$43,C$66,FALSE) -> 0 | D81: =VLOOKUP($A81,'Mat of App'!$B$7:$AP$43,D$66,FALSE) -> 0 | E81: =VLOOKUP($A81,'Mat of App'!$B$7:$AP$43,E$66,FALSE) -> 0 | F81: =VLOOKUP($A81,'Mat of App'!$B$7:$AP$43,F$66,FALSE) -> 0 | G81: =VLOOKUP($A81,'Mat of App'!$B$7:$AP$43,G$66,FALSE) -> 0 | H81: =VLOOKUP($A81,'Mat of App'!$B$7:$AP$43,H$66,FALSE) -> 1 | I81: =VLOOKUP($A81,'Mat of App'!$B$7:$AP$43,I$66,FALSE) -> 0
A82: LV Generation Non-Intermittent | B82: =VLOOKUP($A82,'Mat of App'!$B$7:$AP$43,B$66,FALSE) -> 0 | C82: =VLOOKUP($A82,'Mat of App'!$B$7:$AP$43,C$66,FALSE) -> 0 | D82: =VLOOKUP($A82,'Mat of App'!$B$7:$AP$43,D$66,FALSE) -> 0 | E82: =VLOOKUP($A82,'Mat of App'!$B$7:$AP$43,E$66,FALSE) -> 0 | F82: =VLOOKUP($A82,'Mat of App'!$B$7:$AP$43,F$66,FALSE) -> 0 | G82: =VLOOKUP($A82,'Mat of App'!$B$7:$AP$43,G$66,FALSE) -> 0 | H82: =VLOOKUP($A82,'Mat of App'!$B$7:$AP$43,H$66,FALSE) -> 0 | I82: =VLOOKUP($A82,'Mat of App'!$B$7:$AP$43,I$66,FALSE) -> 0
A83: LV Generation Non-Intermittent no RP charge | B83: =VLOOKUP($A83,'Mat of App'!$B$7:$AP$43,B$66,FALSE) -> 0 | C83: =VLOOKUP($A83,'Mat of App'!$B$7:$AP$43,C$66,FALSE) -> 0 | D83: =VLOOKUP($A83,'Mat of App'!$B$7:$AP$43,D$66,FALSE) -> 0 | E83: =VLOOKUP($A83,'Mat of App'!$B$7:$AP$43,E$66,FALSE) -> 0 | F83: =VLOOKUP($A83,'Mat of App'!$B$7:$AP$43,F$66,FALSE) -> 0 | G83: =VLOOKUP($A83,'Mat of App'!$B$7:$AP$43,G$66,FALSE) -> 0 | H83: =VLOOKUP($A83,'Mat of App'!$B$7:$AP$43,H$66,FALSE) -> 0 | I83: =VLOOKUP($A83,'Mat of App'!$B$7:$AP$43,I$66,FALSE) -> 0
A84: LV Sub Generation Intermittent | B84: =VLOOKUP($A84,'Mat of App'!$B$7:$AP$43,B$66,FALSE) -> 0 | C84: =VLOOKUP($A84,'Mat of App'!$B$7:$AP$43,C$66,FALSE) -> 0 | D84: =VLOOKUP($A84,'Mat of App'!$B$7:$AP$43,D$66,FALSE) -> 0 | E84: =VLOOKUP($A84,'Mat of App'!$B$7:$AP$43,E$66,FALSE) -> 0 | F84: =VLOOKUP($A84,'Mat of App'!$B$7:$AP$43,F$66,FALSE) -> 0 | G84: =VLOOKUP($A84,'Mat of App'!$B$7:$AP$43,G$66,FALSE) -> 0 | H84: =VLOOKUP($A84,'Mat of App'!$B$7:$AP$43,H$66,FALSE) -> 0 | I84: =VLOOKUP($A84,'Mat of App'!$B$7:$AP$43,I$66,FALSE) -> 0
A85: LV Sub Generation Intermittent no RP charge | B85: =VLOOKUP($A85,'Mat of App'!$B$7:$AP$43,B$66,FALSE) -> 0 | C85: =VLOOKUP($A85,'Mat of App'!$B$7:$AP$43,C$66,FALSE) -> 0 | D85: =VLOOKUP($A85,'Mat of App'!$B$7:$AP$43,D$66,FALSE) -> 0 | E85: =VLOOKUP($A85,'Mat of App'!$B$7:$AP$43,E$66,FALSE) -> 0 | F85: =VLOOKUP($A85,'Mat of App'!$B$7:$AP$43,F$66,FALSE) -> 0 | G85: =VLOOKUP($A85,'Mat of App'!$B$7:$AP$43,G$66,FALSE) -> 0 | H85: =VLOOKUP($A85,'Mat of App'!$B$7:$AP$43,H$66,FALSE) -> 0 | I85: =VLOOKUP($A85,'Mat of App'!$B$7:$AP$43,I$66,FALSE) -> 0
A86: LV Sub Generation Non-Intermittent | B86: =VLOOKUP($A86,'Mat of App'!$B$7:$AP$43,B$66,FALSE) -> 0 | C86: =VLOOKUP($A86,'Mat of App'!$B$7:$AP$43,C$66,FALSE) -> 0 | D86: =VLOOKUP($A86,'Mat of App'!$B$7:$AP$43,D$66,FALSE) -> 0 | E86: =VLOOKUP($A86,'Mat of App'!$B$7:$AP$43,E$66,FALSE) -> 0 | F86: =VLOOKUP($A86,'Mat of App'!$B$7:$AP$43,F$66,FALSE) -> 0 | G86: =VLOOKUP($A86,'Mat of App'!$B$7:$AP$43,G$66,FALSE) -> 0 | H86: =VLOOKUP($A86,'Mat of App'!$B$7:$AP$43,H$66,FALSE) -> 0 | I86: =VLOOKUP($A86,'Mat of App'!$B$7:$AP$43,I$66,FALSE) -> 0
A87: LV Sub Generation Non-Intermittent no RP charge | B87: =VLOOKUP($A87,'Mat of App'!$B$7:$AP$43,B$66,FALSE) -> 0 | C87: =VLOOKUP($A87,'Mat of App'!$B$7:$AP$43,C$66,FALSE) -> 0 | D87: =VLOOKUP($A87,'Mat of App'!$B$7:$AP$43,D$66,FALSE) -> 0 | E87: =VLOOKUP($A87,'Mat of App'!$B$7:$AP$43,E$66,FALSE) -> 0 | F87: =VLOOKUP($A87,'Mat of App'!$B$7:$AP$43,F$66,FALSE) -> 0 | G87: =VLOOKUP($A87,'Mat of App'!$B$7:$AP$43,G$66,FALSE) -> 0 | H87: =VLOOKUP($A87,'Mat of App'!$B$7:$AP$43,H$66,FALSE) -> 0 | I87: =VLOOKUP($A87,'Mat of App'!$B$7:$AP$43,I$66,FALSE) -> 0
A89: 1026. Matrix of applicability of LV service models to unmetered tariffs
A91: Source: service models
A92: Proportion of service model involved in connecting load of 1 MWh/year
B93: LV service model 1 | C93: LV service model 2 | D93: LV service model 3 | E93: LV service model 4 | F93: LV service model 5 | G93: LV service model 6 | H93: LV service model 7 | I93: LV service model 8
A94: All LV unmetered tariffs | B94: =VLOOKUP($A94,'Mat of App'!$B$7:$AP$43,B$66,FALSE) -> 0 | C94: =VLOOKUP($A94,'Mat of App'!$B$7:$AP$43,C$66,FALSE) -> 0 | D94: =VLOOKUP($A94,'Mat of App'!$B$7:$AP$43,D$66,FALSE) -> 0 | E94: =VLOOKUP($A94,'Mat of App'!$B$7:$AP$43,E$66,FALSE) -> 0 | F94: =VLOOKUP($A94,'Mat of App'!$B$7:$AP$43,F$66,FALSE) -> 0 | G94: =VLOOKUP($A94,'Mat of App'!$B$7:$AP$43,G$66,FALSE) -> 0 | H94: =VLOOKUP($A94,'Mat of App'!$B$7:$AP$43,H$66,FALSE) -> 0 | I94: =VLOOKUP($A94,'Mat of App'!$B$7:$AP$43,I$66,FALSE) -> 0.488
A96: 1028. Matrix of applicability of HV service models to tariffs with fixed charges
B97: 7 | C97: =B97+1 -> 8 | D97: =C97+1 -> 9 | E97: =D97+1 -> 10 | F97: =E97+1 -> 11
B98: HV service model 1 | C98: HV service model 2 | D98: HV service model 3 | E98: HV service model 4 | F98: HV service model 5
A99: HV Medium Non-Domestic | B99: =VLOOKUP($A99,'Mat of App'!$B$7:$AP$43,B$97,FALSE) -> 1 | C99: =VLOOKUP($A99,'Mat of App'!$B$7:$AP$43,C$97,FALSE) -> 0 | D99: =VLOOKUP($A99,'Mat of App'!$B$7:$AP$43,D$97,FALSE) -> 0 | E99: =VLOOKUP($A99,'Mat of App'!$B$7:$AP$43,E$97,FALSE) -> 0 | F99: =VLOOKUP($A99,'Mat of App'!$B$7:$AP$43,F$97,FALSE) -> 0
A100: HV HH Metered | B100: =VLOOKUP($A100,'Mat of App'!$B$7:$AP$43,B$97,FALSE) -> 1 | C100: =VLOOKUP($A100,'Mat of App'!$B$7:$AP$43,C$97,FALSE) -> 0 | D100: =VLOOKUP($A100,'Mat of App'!$B$7:$AP$43,D$97,FALSE) -> 0 | E100: =VLOOKUP($A100,'Mat of App'!$B$7:$AP$43,E$97,FALSE) -> 0 | F100: =VLOOKUP($A100,'Mat of App'!$B$7:$AP$43,F$97,FALSE) -> 0
A101: HV Generation Intermittent | B101: =VLOOKUP($A101,'Mat of App'!$B$7:$AP$43,B$97,FALSE) -> 0 | C101: =VLOOKUP($A101,'Mat of App'!$B$7:$AP$43,C$97,FALSE) -> 1 | D101: =VLOOKUP($A101,'Mat of App'!$B$7:$AP$43,D$97,FALSE) -> 0 | E101: =VLOOKUP($A101,'Mat of App'!$B$7:$AP$43,E$97,FALSE) -> 0 | F101: =VLOOKUP($A101,'Mat of App'!$B$7:$AP$43,F$97,FALSE) -> 0
A102: HV Generation Intermittent no RP charge | B102: =VLOOKUP($A102,'Mat of App'!$B$7:$AP$43,B$97,FALSE) -> 0 | C102: =VLOOKUP($A102,'Mat of App'!$B$7:$AP$43,C$97,FALSE) -> 1 | D102: =VLOOKUP($A102,'Mat of App'!$B$7:$AP$43,D$97,FALSE) -> 0 | E102: =VLOOKUP($A102,'Mat of App'!$B$7:$AP$43,E$97,FALSE) -> 0 | F102: =VLOOKUP($A102,'Mat of App'!$B$7:$AP$43,F$97,FALSE) -> 0
A103: HV Generation Non-Intermittent | B103: =VLOOKUP($A103,'Mat of App'!$B$7:$AP$43,B$97,FALSE) -> 0 | C103: =VLOOKUP($A103,'Mat of App'!$B$7:$AP$43,C$97,FALSE) -> 1 | D103: =VLOOKUP($A103,'Mat of App'!$B$7:$AP$43,D$97,FALSE) -> 0 | E103: =VLOOKUP($A103,'Mat of App'!$B$7:$AP$43,E$97,FALSE) -> 0 | F103: =VLOOKUP($A103,'Mat of App'!$B$7:$AP$43,F$97,FALSE) -> 0
A104: HV Generation Non-Intermittent no RP charge | B104: =VLOOKUP($A104,'Mat of App'!$B$7:$AP$43,B$97,FALSE) -> 0 | C104: =VLOOKUP($A104,'Mat of App'!$B$7:$AP$43,C$97,FALSE) -> 1 | D104: =VLOOKUP($A104,'Mat of App'!$B$7:$AP$43,D$97,FALSE) -> 0 | E104: =VLOOKUP($A104,'Mat of App'!$B$7:$AP$43,E$97,FALSE) -> 0 | F104: =VLOOKUP($A104,'Mat of App'!$B$7:$AP$43,F$97,FALSE) -> 0
A106: 1032. Loss adjustment factors to transmission
A108: Source: losses model or loss adjustment factors at time of system peak.
B109: 132kV | C109: 132kV/EHV | D109: EHV | E109: EHV/HV | F109: HV | G109: HV/LV | H109: LV circuits
A110: Loss adjustment factor | B110: =VLOOKUP(Vlookup!B69,'CDCM Forecast Data'!$A$14:$I$271,6,FALSE) -> 1.009 | C110: =VLOOKUP(Vlookup!C69,'CDCM Forecast Data'!$A$14:$I$271,6,FALSE) -> 1.013 | D110: =VLOOKUP(Vlookup!D69,'CDCM Forecast Data'!$A$14:$I$271,6,FALSE) -> 1.024 | E110: =VLOOKUP(Vlookup!E69,'CDCM Forecast Data'!$A$14:$I$271,6,FALSE) -> 1.032 | F110: =VLOOKUP(Vlookup!F69,'CDCM Forecast Data'!$A$14:$I$271,6,FALSE) -> 1.041 | G110: =VLOOKUP(Vlookup!G69,'CDCM Forecast Data'!$A$14:$I$271,6,FALSE) -> 1.059 | H110: =VLOOKUP(Vlookup!H69,'CDCM Forecast Data'!$A$14:$I$271,6,FALSE) -> 1.077
A112: 1037. Embedded network (LDNO) discounts
A114: Source: separate price control disaggregation model.
B115: No discount | C115: LDNO LV: LV user | D115: LDNO HV: LV user | E115: LDNO HV: LV sub user | F115: LDNO HV: HV user
A116: LDNO discount | C116: =VLOOKUP(Vlookup!C75,'CDCM Forecast Data'!$A$14:$I$271,6,FALSE) -> 0.3199255301 | D116: =VLOOKUP(Vlookup!D75,'CDCM Forecast Data'!$A$14:$I$271,6,FALSE) -> 0.6334761221 | E116: =VLOOKUP(Vlookup!E75,'CDCM Forecast Data'!$A$14:$I$271,6,FALSE) -> 0.4384885799 | F116: =VLOOKUP(Vlookup!F75,'CDCM Forecast Data'!$A$14:$I$271,6,FALSE) -> 0.3226874527
A118: 1041. Load profile data for demand users
A120: Source: load data analysis.
B121: Coincidence factor | C121: Load factor
A122: Domestic Unrestricted | B122: =VLOOKUP(Vlookup!B81,'CDCM Forecast Data'!$A$14:$I$271,6,FALSE) -> 0.9157074753 | C122: =VLOOKUP(Vlookup!C81,'CDCM Forecast Data'!$A$14:$I$271,6,FALSE) -> 0.4308052566
A123: Domestic Two Rate | B123: =VLOOKUP(Vlookup!B82,'CDCM Forecast Data'!$A$14:$I$271,6,FALSE) -> 0.3567074092 | C123: =VLOOKUP(Vlookup!C82,'CDCM Forecast Data'!$A$14:$I$271,6,FALSE) -> 0.2769210098
A124: Domestic Off Peak (related MPAN) | C124: =VLOOKUP(Vlookup!C83,'CDCM Forecast Data'!$A$14:$I$271,6,FALSE) -> 0.1956368053
A125: Small Non Domestic Unrestricted | B125: =VLOOKUP(Vlookup!B84,'CDCM Forecast Data'!$A$14:$I$271,6,FALSE) -> 0.5092286883 | C125: =VLOOKUP(Vlookup!C84,'CDCM Forecast Data'!$A$14:$I$271,6,FALSE) -> 0.4165839085
A126: Small Non Domestic Two Rate | B126: =VLOOKUP(Vlookup!B85,'CDCM Forecast Data'!$A$14:$I$271,6,FALSE) -> 0.7364077701 | C126: =VLOOKUP(Vlookup!C85,'CDCM Forecast Data'!$A$14:$I$271,6,FALSE) -> 0.5852649537
A127: Small Non Domestic Off Peak (related MPAN) | C127: =VLOOKUP(Vlookup!C86,'CDCM Forecast Data'!$A$14:$I$271,6,FALSE) -> 0.2022777614
A128: LV Medium Non-Domestic | B128: =VLOOKUP(Vlookup!B87,'CDCM Forecast Data'!$A$14:$I$271,6,FALSE) -> 0.716354546 | C128: =VLOOKUP(Vlookup!C87,'CDCM Forecast Data'!$A$14:$I$271,6,FALSE) -> 0.5424317404
A129: LV Sub Medium Non-Domestic | B129: =VLOOKUP(Vlookup!B88,'CDCM Forecast Data'!$A$14:$I$271,6,FALSE) -> 0.716354546 | C129: =VLOOKUP(Vlookup!C88,'CDCM Forecast Data'!$A$14:$I$271,6,FALSE) -> 0.5424317404
A130: HV Medium Non-Domestic | B130: =VLOOKUP(Vlookup!B89,'CDCM Forecast Data'!$A$14:$I$271,6,FALSE) -> 0.4954831119 | C130: =VLOOKUP(Vlookup!C89,'CDCM Forecast Data'!$A$14:$I$271,6,FALSE) -> 0.4157772318
A131: LV Network Domestic | B131: =VLOOKUP(Vlookup!B90,'CDCM Forecast Data'!$A$14:$I$271,6,FALSE) -> 0.8840580388 | C131: =VLOOKUP(Vlookup!C90,'CDCM Forecast Data'!$A$14:$I$271,6,FALSE) -> 0.4218698608
A132: LV Network Non-Domestic Non-CT | B132: =VLOOKUP(Vlookup!B91,'CDCM Forecast Data'!$A$14:$I$271,6,FALSE) -> 0.5487311983 | C132: =VLOOKUP(Vlookup!C91,'CDCM Forecast Data'!$A$14:$I$271,6,FALSE) -> 0.4450046047
A133: LV HH Metered | B133: =VLOOKUP(Vlookup!B92,'CDCM Forecast Data'!$A$14:$I$271,6,FALSE) -> 0.740232814 | C133: =VLOOKUP(Vlookup!C92,'CDCM Forecast Data'!$A$14:$I$271,6,FALSE) -> 0.5877566842
A134: LV Sub HH Metered | B134: =VLOOKUP(Vlookup!B93,'CDCM Forecast Data'!$A$14:$I$271,6,FALSE) -> 0.7199425784 | C134: =VLOOKUP(Vlookup!C93,'CDCM Forecast Data'!$A$14:$I$271,6,FALSE) -> 0.5962079802
A135: HV HH Metered | B135: =VLOOKUP(Vlookup!B94,'CDCM Forecast Data'!$A$14:$I$271,6,FALSE) -> 0.7989789566 | C135: =VLOOKUP(Vlookup!C94,'CDCM Forecast Data'!$A$14:$I$271,6,FALSE) -> 0.7321391305
A136: NHH UMS category A | B136: =VLOOKUP(Vlookup!B95,'CDCM Forecast Data'!$A$14:$I$271,6,FALSE) -> 1 | C136: =VLOOKUP(Vlookup!C95,'CDCM Forecast Data'!$A$14:$I$271,6,FALSE) -> 1
A137: NHH UMS category B | B137: =VLOOKUP(Vlookup!B96,'CDCM Forecast Data'!$A$14:$I$271,6,FALSE) -> 0.9828346759 | C137: =VLOOKUP(Vlookup!C96,'CDCM Forecast Data'!$A$14:$I$271,6,FALSE) -> 0.4753987679
A138: NHH UMS category C | B138: =VLOOKUP(Vlookup!B97,'CDCM Forecast Data'!$A$14:$I$271,6,FALSE) -> 0.7826086957 | C138: =VLOOKUP(Vlookup!C97,'CDCM Forecast Data'!$A$14:$I$271,6,FALSE) -> 0.2733634899
A139: NHH UMS category D | B139: =VLOOKUP(Vlookup!B98,'CDCM Forecast Data'!$A$14:$I$271,6,FALSE) -> 0 | C139: =VLOOKUP(Vlookup!C98,'CDCM Forecast Data'!$A$14:$I$271,6,FALSE) -> 0.5155660185
A140: LV UMS (Pseudo HH Metered) | B140: =VLOOKUP(Vlookup!B99,'CDCM Forecast Data'!$A$14:$I$271,6,FALSE) -> 0.9477164255 | C140: =VLOOKUP(Vlookup!C99,'CDCM Forecast Data'!$A$14:$I$271,6,FALSE) -> 0.4501908686
A142: 1053. Volume forecasts for the charging year
B143: 11 | C143: 12 | D143: 13 | E143: 14 | F143: 15 | G143: 16 | H143: 17
A144: Source: forecast.
A145: Please include MPAN counts for tariffs with no fixed charge (e.g. off-peak tariffs),
A146: but exclude MPANs on tariffs with a fixed charge that are not subject to a fixed charge due to a site grouping arrangement.
B147: Rate 1 units (MWh) | C147: Rate 2 units (MWh) | D147: Rate 3 units (MWh) | E147: MPANs | F147: Import capacity (kVA) | G147: Exceeded capacity (kVA) | H147: Reactive power units (MVArh)
A148: > Domestic Unrestricted | B148: =VLOOKUP(Vlookup!$B107,'CDCM Volume Forecasts'!$A$28:$AL$136,B$143,FALSE) -> 0 | C148: =VLOOKUP(Vlookup!$B107,'CDCM Volume Forecasts'!$A$28:$AL$136,C$143,FALSE) -> 0 | D148: =VLOOKUP(Vlookup!$B107,'CDCM Volume Forecasts'!$A$28:$AL$136,D$143,FALSE) -> 0 | E148: =VLOOKUP(Vlookup!$B107,'CDCM Volume Forecasts'!$A$28:$AL$136,E$143,FALSE) -> 0 | F148: =VLOOKUP(Vlookup!$B107,'CDCM Volume Forecasts'!$A$28:$AL$136,F$143,FALSE) -> 0 | H148: =VLOOKUP(Vlookup!$B107,'CDCM Volume Forecasts'!$A$28:$AL$136,G$143,FALSE) -> 0
A149: Domestic Unrestricted | B149: =VLOOKUP(Vlookup!$B108,'CDCM Volume Forecasts'!$A$28:$AL$136,B$143,FALSE) -> 3137701.408 | E149: =VLOOKUP(Vlookup!$B108,'CDCM Volume Forecasts'!$A$28:$AL$136,E$143,FALSE) -> 998882.407
A150: LDNO LV: Domestic Unrestricted | B150: =VLOOKUP(Vlookup!$B109,'CDCM Volume Forecasts'!$A$28:$AL$136,B$143,FALSE) -> 3748.253398 | E150: =VLOOKUP(Vlookup!$B109,'CDCM Volume Forecasts'!$A$28:$AL$136,E$143,FALSE) -> 1534.903725
A151: LDNO HV: Domestic Unrestricted | B151: =VLOOKUP(Vlookup!$B110,'CDCM Volume Forecasts'!$A$28:$AL$136,B$143,FALSE) -> 21538.31146 | E151: =VLOOKUP(Vlookup!$B110,'CDCM Volume Forecasts'!$A$28:$AL$136,E$143,FALSE) -> 9576.463133
A152: > Domestic Two Rate
A153: Domestic Two Rate | B153: =VLOOKUP(Vlookup!$B112,'CDCM Volume Forecasts'!$A$28:$AL$136,B$143,FALSE) -> 148595.8148 | C153: =VLOOKUP(Vlookup!$B112,'CDCM Volume Forecasts'!$A$28:$AL$136,C$143,FALSE) -> 132539.3456 | E153: =VLOOKUP(Vlookup!$B112,'CDCM Volume Forecasts'!$A$28:$AL$136,E$143,FALSE) -> 50656.37901
A154: LDNO LV: Domestic Two Rate | B154: =VLOOKUP(Vlookup!$B113,'CDCM Volume Forecasts'!$A$28:$AL$136,B$143,FALSE) -> 76.31678952 | C154: =VLOOKUP(Vlookup!$B113,'CDCM Volume Forecasts'!$A$28:$AL$136,C$143,FALSE) -> 16.25200139 | E154: =VLOOKUP(Vlookup!$B113,'CDCM Volume Forecasts'!$A$28:$AL$136,E$143,FALSE) -> 32.93642007
A155: LDNO HV: Domestic Two Rate | B155: =VLOOKUP(Vlookup!$B114,'CDCM Volume Forecasts'!$A$28:$AL$136,B$143,FALSE) -> 307.7377218 | C155: =VLOOKUP(Vlookup!$B114,'CDCM Volume Forecasts'!$A$28:$AL$136,C$143,FALSE) -> 160.4615525 | E155: =VLOOKUP(Vlookup!$B114,'CDCM Volume Forecasts'!$A$28:$AL$136,E$143,FALSE) -> 182.8854175
A156: > Domestic Off Peak (related MPAN)
A157: Domestic Off Peak (related MPAN) | B157: =VLOOKUP(Vlookup!$B116,'CDCM Volume Forecasts'!$A$28:$AL$136,B$143,FALSE) -> 2369.594793 | E157: =VLOOKUP(Vlookup!$B116,'CDCM Volume Forecasts'!$A$28:$AL$136,E$143,FALSE) -> 0
A158: LDNO LV: Domestic Off Peak (related MPAN) | B158: =VLOOKUP(Vlookup!$B117,'CDCM Volume Forecasts'!$A$28:$AL$136,B$143,FALSE) -> 0 | E158: =VLOOKUP(Vlookup!$B117,'CDCM Volume Forecasts'!$A$28:$AL$136,E$143,FALSE) -> 0
A159: LDNO HV: Domestic Off Peak (related MPAN) | B159: =VLOOKUP(Vlookup!$B118,'CDCM Volume Forecasts'!$A$28:$AL$136,B$143,FALSE) -> 0 | E159: =VLOOKUP(Vlookup!$B118,'CDCM Volume Forecasts'!$A$28:$AL$136,E$143,FALSE) -> 0
A160: > Small Non Domestic Unrestricted
A161: Small Non Domestic Unrestricted | B161: =VLOOKUP(Vlookup!$B120,'CDCM Volume Forecasts'!$A$28:$AL$136,B$143,FALSE) -> 788341.2966 | E161: =VLOOKUP(Vlookup!$B120,'CDCM Volume Forecasts'!$A$28:$AL$136,E$143,FALSE) -> 64499.40072
A162: LDNO LV: Small Non Domestic Unrestricted | B162: =VLOOKUP(Vlookup!$B121,'CDCM Volume Forecasts'!$A$28:$AL$136,B$143,FALSE) -> 71.63395919 | E162: =VLOOKUP(Vlookup!$B121,'CDCM Volume Forecasts'!$A$28:$AL$136,E$143,FALSE) -> 10.38806408
A163: LDNO HV: Small Non Domestic Unrestricted | B163: =VLOOKUP(Vlookup!$B122,'CDCM Volume Forecasts'!$A$28:$AL$136,B$143,FALSE) -> 4110.730745 | E163: =VLOOKUP(Vlookup!$B122,'CDCM Volume Forecasts'!$A$28:$AL$136,E$143,FALSE) -> 183.2927888
A164: > Small Non Domestic Two Rate
A165: Small Non Domestic Two Rate | B165: =VLOOKUP(Vlookup!$B124,'CDCM Volume Forecasts'!$A$28:$AL$136,B$143,FALSE) -> 197413.5436 | C165: =VLOOKUP(Vlookup!$B124,'CDCM Volume Forecasts'!$A$28:$AL$136,C$143,FALSE) -> 83732.92508 | E165: =VLOOKUP(Vlookup!$B124,'CDCM Volume Forecasts'!$A$28:$AL$136,E$143,FALSE) -> 13327.09991
A166: LDNO LV: Small Non Domestic Two Rate | B166: =VLOOKUP(Vlookup!$B125,'CDCM Volume Forecasts'!$A$28:$AL$136,B$143,FALSE) -> 0 | C166: =VLOOKUP(Vlookup!$B125,'CDCM Volume Forecasts'!$A$28:$AL$136,C$143,FALSE) -> 0 | E166: =VLOOKUP(Vlookup!$B125,'CDCM Volume Forecasts'!$A$28:$AL$136,E$143,FALSE) -> 0
A167: LDNO HV: Small Non Domestic Two Rate | B167: =VLOOKUP(Vlookup!$B126,'CDCM Volume Forecasts'!$A$28:$AL$136,B$143,FALSE) -> 888.7786027 | C167: =VLOOKUP(Vlookup!$B126,'CDCM Volume Forecasts'!$A$28:$AL$136,C$143,FALSE) -> 150.5713725 | E167: =VLOOKUP(Vlookup!$B126,'CDCM Volume Forecasts'!$A$28:$AL$136,E$143,FALSE) -> 14.47325781
A168: > Small Non Domestic Off Peak (related MPAN)
A169: Small Non Domestic Off Peak (related MPAN) | B169: =VLOOKUP(Vlookup!$B128,'CDCM Volume Forecasts'!$A$28:$AL$136,B$143,FALSE) -> 1373.419906 | E169: =VLOOKUP(Vlookup!$B128,'CDCM Volume Forecasts'!$A$28:$AL$136,E$143,FALSE) -> 0
A170: LDNO LV: Small Non Domestic Off Peak (related MPAN) | B170: =VLOOKUP(Vlookup!$B129,'CDCM Volume Forecasts'!$A$28:$AL$136,B$143,FALSE) -> 0 | E170: =VLOOKUP(Vlookup!$B129,'CDCM Volume Forecasts'!$A$28:$AL$136,E$143,FALSE) -> 0
A171: LDNO HV: Small Non Domestic Off Peak (related MPAN) | B171: =VLOOKUP(Vlookup!$B130,'CDCM Volume Forecasts'!$A$28:$AL$136,B$143,FALSE) -> 0 | E171: =VLOOKUP(Vlookup!$B130,'CDCM Volume Forecasts'!$A$28:$AL$136,E$143,FALSE) -> 0
A172: > LV Medium Non-Domestic
A173: LV Medium Non-Domestic | B173: =VLOOKUP(Vlookup!$B132,'CDCM Volume Forecasts'!$A$28:$AL$136,B$143,FALSE) -> 26946.83891 | C173: =VLOOKUP(Vlookup!$B132,'CDCM Volume Forecasts'!$A$28:$AL$136,C$143,FALSE) -> 7790.303753 | E173: =VLOOKUP(Vlookup!$B132,'CDCM Volume Forecasts'!$A$28:$AL$136,E$143,FALSE) -> 782.0146133
A174: LDNO LV: LV Medium Non-Domestic | B174: =VLOOKUP(Vlookup!$B133,'CDCM Volume Forecasts'!$A$28:$AL$136,B$143,FALSE) -> 0 | C174: =VLOOKUP(Vlookup!$B133,'CDCM Volume Forecasts'!$A$28:$AL$136,C$143,FALSE) -> 0 | E174: =VLOOKUP(Vlookup!$B133,'CDCM Volume Forecasts'!$A$28:$AL$136,E$143,FALSE) -> 0
A175: LDNO HV: LV Medium Non-Domestic | B175: =VLOOKUP(Vlookup!$B134,'CDCM Volume Forecasts'!$A$28:$AL$136,B$143,FALSE) -> -3.637978807e-15 | C175: =VLOOKUP(Vlookup!$B134,'CDCM Volume Forecasts'!$A$28:$AL$136,C$143,FALSE) -> 1.818989404e-15 | E175: =VLOOKUP(Vlookup!$B134,'CDCM Volume Forecasts'!$A$28:$AL$136,E$143,FALSE) -> 0
A176: > LV Sub Medium Non-Domestic
A177: LV Sub Medium Non-Domestic | B177: =VLOOKUP(Vlookup!$B136,'CDCM Volume Forecasts'!$A$28:$AL$136,B$143,FALSE) -> 0.2169613471 | C177: =VLOOKUP(Vlookup!$B136,'CDCM Volume Forecasts'!$A$28:$AL$136,C$143,FALSE) -> 0.06663332612 | E177: =VLOOKUP(Vlookup!$B136,'CDCM Volume Forecasts'!$A$28:$AL$136,E$143,FALSE) -> 0.001985026667
A178: > HV Medium Non-Domestic
A179: HV Medium Non-Domestic | B179: =VLOOKUP(Vlookup!$B138,'CDCM Volume Forecasts'!$A$28:$AL$136,B$143,FALSE) -> 56.5708231 | C179: =VLOOKUP(Vlookup!$B138,'CDCM Volume Forecasts'!$A$28:$AL$136,C$143,FALSE) -> 27.23780372 | E179: =VLOOKUP(Vlookup!$B138,'CDCM Volume Forecasts'!$A$28:$AL$136,E$143,FALSE) -> 3.238266811
A180: > LV Network Domestic
A181: LV Network Domestic | B181: =VLOOKUP(Vlookup!$B140,'CDCM Volume Forecasts'!$A$28:$AL$136,B$143,FALSE) -> 2.012033728 | C181: =VLOOKUP(Vlookup!$B140,'CDCM Volume Forecasts'!$A$28:$AL$136,C$143,FALSE) -> 10.44829398 | D181: =VLOOKUP(Vlookup!$B140,'CDCM Volume Forecasts'!$A$28:$AL$136,D$143,FALSE) -> 9.397597107 | E181: =VLOOKUP(Vlookup!$B140,'CDCM Volume Forecasts'!$A$28:$AL$136,E$143,FALSE) -> 6.633033246
A182: LDNO LV: LV Network Domestic | B182: =VLOOKUP(Vlookup!$B141,'CDCM Volume Forecasts'!$A$28:$AL$136,B$143,FALSE) -> 0 | C182: =VLOOKUP(Vlookup!$B141,'CDCM Volume Forecasts'!$A$28:$AL$136,C$143,FALSE) -> 0 | D182: =VLOOKUP(Vlookup!$B141,'CDCM Volume Forecasts'!$A$28:$AL$136,D$143,FALSE) -> 0 | E182: =VLOOKUP(Vlookup!$B141,'CDCM Volume Forecasts'!$A$28:$AL$136,E$143,FALSE) -> 0
A183: LDNO HV: LV Network Domestic | B183: =VLOOKUP(Vlookup!$B142,'CDCM Volume Forecasts'!$A$28:$AL$136,B$143,FALSE) -> 0 | C183: =VLOOKUP(Vlookup!$B142,'CDCM Volume Forecasts'!$A$28:$AL$136,C$143,FALSE) -> 0 | D183: =VLOOKUP(Vlookup!$B142,'CDCM Volume Forecasts'!$A$28:$AL$136,D$143,FALSE) -> 0 | E183: =VLOOKUP(Vlookup!$B142,'CDCM Volume Forecasts'!$A$28:$AL$136,E$143,FALSE) -> 0
A184: > LV Network Non-Domestic Non-CT
A185: LV Network Non-Domestic Non-CT | B185: =VLOOKUP(Vlookup!$B144,'CDCM Volume Forecasts'!$A$28:$AL$136,B$143,FALSE) -> 12121.70413 | C185: =VLOOKUP(Vlookup!$B144,'CDCM Volume Forecasts'!$A$28:$AL$136,C$143,FALSE) -> 81006.95198 | D185: =VLOOKUP(Vlookup!$B144,'CDCM Volume Forecasts'!$A$28:$AL$136,D$143,FALSE) -> 60057.38782 | E185: =VLOOKUP(Vlookup!$B144,'CDCM Volume Forecasts'!$A$28:$AL$136,E$143,FALSE) -> 2100.892179
A186: LDNO LV: LV Network Non-Domestic Non-CT | B186: =VLOOKUP(Vlookup!$B145,'CDCM Volume Forecasts'!$A$28:$AL$136,B$143,FALSE) -> 0 | C186: =VLOOKUP(Vlookup!$B145,'CDCM Volume Forecasts'!$A$28:$AL$136,C$143,FALSE) -> 0 | D186: =VLOOKUP(Vlookup!$B145,'CDCM Volume Forecasts'!$A$28:$AL$136,D$143,FALSE) -> 0 | E186: =VLOOKUP(Vlookup!$B145,'CDCM Volume Forecasts'!$A$28:$AL$136,E$143,FALSE) -> 0
A187: LDNO HV: LV Network Non-Domestic Non-CT | B187: =VLOOKUP(Vlookup!$B146,'CDCM Volume Forecasts'!$A$28:$AL$136,B$143,FALSE) -> 50.62210439 | C187: =VLOOKUP(Vlookup!$B146,'CDCM Volume Forecasts'!$A$28:$AL$136,C$143,FALSE) -> 290.2504093 | D187: =VLOOKUP(Vlookup!$B146,'CDCM Volume Forecasts'!$A$28:$AL$136,D$143,FALSE) -> 161.0849097 | E187: =VLOOKUP(Vlookup!$B146,'CDCM Volume Forecasts'!$A$28:$AL$136,E$143,FALSE) -> 8.825288101
A188: > LV HH Metered
A189: LV HH Metered | B189: =VLOOKUP(Vlookup!$B148,'CDCM Volume Forecasts'!$A$28:$AL$136,B$143,FALSE) -> 120521.177 | C189: =VLOOKUP(Vlookup!$B148,'CDCM Volume Forecasts'!$A$28:$AL$136,C$143,FALSE) -> 767707.2736 | D189: =VLOOKUP(Vlookup!$B148,'CDCM Volume Forecasts'!$A$28:$AL$136,D$143,FALSE) -> 570489.4375 | E189: =VLOOKUP(Vlookup!$B148,'CDCM Volume Forecasts'!$A$28:$AL$136,E$143,FALSE) -> 6053.599684 | F189: =VLOOKUP(Vlookup!$B148,'CDCM Volume Forecasts'!$A$28:$AL$136,F$143,FALSE) -> 725000 | G189: =VLOOKUP(Vlookup!$B148,'CDCM Volume Forecasts'!$A$28:$AL$136,G$143,FALSE) -> 28587.32249 | H189: =VLOOKUP(Vlookup!$B148,'CDCM Volume Forecasts'!$A$28:$AL$136,H$143,FALSE) -> 122816.7972
A190: LDNO LV: LV HH Metered | B190: =VLOOKUP(Vlookup!$B149,'CDCM Volume Forecasts'!$A$28:$AL$136,B$143,FALSE) -> 26.56323277 | C190: =VLOOKUP(Vlookup!$B149,'CDCM Volume Forecasts'!$A$28:$AL$136,C$143,FALSE) -> 180.0230628 | D190: =VLOOKUP(Vlookup!$B149,'CDCM Volume Forecasts'!$A$28:$AL$136,D$143,FALSE) -> 132.9414728 | E190: =VLOOKUP(Vlookup!$B149,'CDCM Volume Forecasts'!$A$28:$AL$136,E$143,FALSE) -> 2.894651563 | F190: =VLOOKUP(Vlookup!$B149,'CDCM Volume Forecasts'!$A$28:$AL$136,F$143,FALSE) -> 230.1155295 | G190: =VLOOKUP(Vlookup!$B149,'CDCM Volume Forecasts'!$A$28:$AL$136,G$143,FALSE) -> 26.72951796 | H190: =VLOOKUP(Vlookup!$B149,'CDCM Volume Forecasts'!$A$28:$AL$136,H$143,FALSE) -> 8.64161504
A191: LDNO HV: LV HH Metered | B191: =VLOOKUP(Vlookup!$B150,'CDCM Volume Forecasts'!$A$28:$AL$136,B$143,FALSE) -> 5344.984537 | C191: =VLOOKUP(Vlookup!$B150,'CDCM Volume Forecasts'!$A$28:$AL$136,C$143,FALSE) -> 30055.81136 | D191: =VLOOKUP(Vlookup!$B150,'CDCM Volume Forecasts'!$A$28:$AL$136,D$143,FALSE) -> 27681.62318 | E191: =VLOOKUP(Vlookup!$B150,'CDCM Volume Forecasts'!$A$28:$AL$136,E$143,FALSE) -> 132.2861054 | F191: =VLOOKUP(Vlookup!$B150,'CDCM Volume Forecasts'!$A$28:$AL$136,F$143,FALSE) -> 39629.74012 | G191: =VLOOKUP(Vlookup!$B150,'CDCM Volume Forecasts'!$A$28:$AL$136,G$143,FALSE) -> 47.24597616 | H191: =VLOOKUP(Vlookup!$B150,'CDCM Volume Forecasts'!$A$28:$AL$136,H$143,FALSE) -> 1627.863829
A192: > LV Sub HH Metered
A193: LV Sub HH Metered | B193: =VLOOKUP(Vlookup!$B152,'CDCM Volume Forecasts'!$A$28:$AL$136,B$143,FALSE) -> 4874.020017 | C193: =VLOOKUP(Vlookup!$B152,'CDCM Volume Forecasts'!$A$28:$AL$136,C$143,FALSE) -> 29990.72372 | D193: =VLOOKUP(Vlookup!$B152,'CDCM Volume Forecasts'!$A$28:$AL$136,D$143,FALSE) -> 25258.84703 | E193: =VLOOKUP(Vlookup!$B152,'CDCM Volume Forecasts'!$A$28:$AL$136,E$143,FALSE) -> 64.98335504 | F193: =VLOOKUP(Vlookup!$B152,'CDCM Volume Forecasts'!$A$28:$AL$136,F$143,FALSE) -> 23211.75202 | G193: =VLOOKUP(Vlookup!$B152,'CDCM Volume Forecasts'!$A$28:$AL$136,G$143,FALSE) -> 953.9675292 | H193: =VLOOKUP(Vlookup!$B152,'CDCM Volume Forecasts'!$A$28:$AL$136,H$143,FALSE) -> 6728.325406
A194: LDNO HV: LV Sub HH Metered | B194: =VLOOKUP(Vlookup!$B153,'CDCM Volume Forecasts'!$A$28:$AL$136,B$143,FALSE) -> 426.4583855 | C194: =VLOOKUP(Vlookup!$B153,'CDCM Volume Forecasts'!$A$28:$AL$136,C$143,FALSE) -> 2276.573155 | D194: =VLOOKUP(Vlookup!$B153,'CDCM Volume Forecasts'!$A$28:$AL$136,D$143,FALSE) -> 2031.255156 | E194: =VLOOKUP(Vlookup!$B153,'CDCM Volume Forecasts'!$A$28:$AL$136,E$143,FALSE) -> 3.486095771 | F194: =VLOOKUP(Vlookup!$B153,'CDCM Volume Forecasts'!$A$28:$AL$136,F$143,FALSE) -> 2811.357939 | G194: =VLOOKUP(Vlookup!$B153,'CDCM Volume Forecasts'!$A$28:$AL$136,G$143,FALSE) -> 0 | H194: =VLOOKUP(Vlookup!$B153,'CDCM Volume Forecasts'!$A$28:$AL$136,H$143,FALSE) -> 78.99136478
A195: > HV HH Metered
A196: HV HH Metered | B196: =VLOOKUP(Vlookup!$B155,'CDCM Volume Forecasts'!$A$28:$AL$136,B$143,FALSE) -> 146873.8891 | C196: =VLOOKUP(Vlookup!$B155,'CDCM Volume Forecasts'!$A$28:$AL$136,C$143,FALSE) -> 903198.681 | D196: =VLOOKUP(Vlookup!$B155,'CDCM Volume Forecasts'!$A$28:$AL$136,D$143,FALSE) -> 842161.3565 | E196: =VLOOKUP(Vlookup!$B155,'CDCM Volume Forecasts'!$A$28:$AL$136,E$143,FALSE) -> 814.7168057 | F196: =VLOOKUP(Vlookup!$B155,'CDCM Volume Forecasts'!$A$28:$AL$136,F$143,FALSE) -> 628579.2102 | G196: =VLOOKUP(Vlookup!$B155,'CDCM Volume Forecasts'!$A$28:$AL$136,G$143,FALSE) -> 34337.68614 | H196: =VLOOKUP(Vlookup!$B155,'CDCM Volume Forecasts'!$A$28:$AL$136,H$143,FALSE) -> 97134.43631
A197: LDNO HV: HV HH Metered | B197: =VLOOKUP(Vlookup!$B156,'CDCM Volume Forecasts'!$A$28:$AL$136,B$143,FALSE) -> 659.3996647 | C197: =VLOOKUP(Vlookup!$B156,'CDCM Volume Forecasts'!$A$28:$AL$136,C$143,FALSE) -> 3854.650197 | D197: =VLOOKUP(Vlookup!$B156,'CDCM Volume Forecasts'!$A$28:$AL$136,D$143,FALSE) -> 3181.611943 | E197: =VLOOKUP(Vlookup!$B156,'CDCM Volume Forecasts'!$A$28:$AL$136,E$143,FALSE) -> 8.333603881 | F197: =VLOOKUP(Vlookup!$B156,'CDCM Volume Forecasts'!$A$28:$AL$136,F$143,FALSE) -> 3270.819309 | G197: =VLOOKUP(Vlookup!$B156,'CDCM Volume Forecasts'!$A$28:$AL$136,G$143,FALSE) -> 0 | H197: =VLOOKUP(Vlookup!$B156,'CDCM Volume Forecasts'!$A$28:$AL$136,H$143,FALSE) -> 290.1979556
A198: > NHH UMS category A
A199: NHH UMS category A | B199: =VLOOKUP(Vlookup!$B158,'CDCM Volume Forecasts'!$A$28:$AL$136,B$143,FALSE) -> 1811.146729 | E199: =VLOOKUP(Vlookup!$B158,'CDCM Volume Forecasts'!$A$28:$AL$136,E$143,FALSE) -> 0
A200: LDNO LV: NHH UMS category A | B200: =VLOOKUP(Vlookup!$B159,'CDCM Volume Forecasts'!$A$28:$AL$136,B$143,FALSE) -> 0 | E200: =VLOOKUP(Vlookup!$B159,'CDCM Volume Forecasts'!$A$28:$AL$136,E$143,FALSE) -> 0
A201: LDNO HV: NHH UMS category A | B201: =VLOOKUP(Vlookup!$B160,'CDCM Volume Forecasts'!$A$28:$AL$136,B$143,FALSE) -> 72.61193186 | E201: =VLOOKUP(Vlookup!$B160,'CDCM Volume Forecasts'!$A$28:$AL$136,E$143,FALSE) -> 0
A202: > NHH UMS category B
A203: NHH UMS category B | B203: =VLOOKUP(Vlookup!$B162,'CDCM Volume Forecasts'!$A$28:$AL$136,B$143,FALSE) -> 5391.406227 | E203: =VLOOKUP(Vlookup!$B162,'CDCM Volume Forecasts'!$A$28:$AL$136,E$143,FALSE) -> 0
A204: LDNO LV: NHH UMS category B | B204: =VLOOKUP(Vlookup!$B163,'CDCM Volume Forecasts'!$A$28:$AL$136,B$143,FALSE) -> 8.650480011 | E204: =VLOOKUP(Vlookup!$B163,'CDCM Volume Forecasts'!$A$28:$AL$136,E$143,FALSE) -> 0
A205: LDNO HV: NHH UMS category B | B205: =VLOOKUP(Vlookup!$B164,'CDCM Volume Forecasts'!$A$28:$AL$136,B$143,FALSE) -> 119.5006233 | E205: =VLOOKUP(Vlookup!$B164,'CDCM Volume Forecasts'!$A$28:$AL$136,E$143,FALSE) -> 0
A206: > NHH UMS category C
A207: NHH UMS category C | B207: =VLOOKUP(Vlookup!$B166,'CDCM Volume Forecasts'!$A$28:$AL$136,B$143,FALSE) -> 287.5816589 | E207: =VLOOKUP(Vlookup!$B166,'CDCM Volume Forecasts'!$A$28:$AL$136,E$143,FALSE) -> 0
A208: LDNO LV: NHH UMS category C | B208: =VLOOKUP(Vlookup!$B167,'CDCM Volume Forecasts'!$A$28:$AL$136,B$143,FALSE) -> 0 | E208: =VLOOKUP(Vlookup!$B167,'CDCM Volume Forecasts'!$A$28:$AL$136,E$143,FALSE) -> 0
A209: LDNO HV: NHH UMS category C | B209: =VLOOKUP(Vlookup!$B168,'CDCM Volume Forecasts'!$A$28:$AL$136,B$143,FALSE) -> 0 | E209: =VLOOKUP(Vlookup!$B168,'CDCM Volume Forecasts'!$A$28:$AL$136,E$143,FALSE) -> 0
A210: > NHH UMS category D
A211: NHH UMS category D | B211: =VLOOKUP(Vlookup!$B170,'CDCM Volume Forecasts'!$A$28:$AL$136,B$143,FALSE) -> 0 | E211: =VLOOKUP(Vlookup!$B170,'CDCM Volume Forecasts'!$A$28:$AL$136,E$143,FALSE) -> 0
A212: LDNO LV: NHH UMS category D | B212: =VLOOKUP(Vlookup!$B171,'CDCM Volume Forecasts'!$A$28:$AL$136,B$143,FALSE) -> 0 | E212: =VLOOKUP(Vlookup!$B171,'CDCM Volume Forecasts'!$A$28:$AL$136,E$143,FALSE) -> 0
A213: LDNO HV: NHH UMS category D | B213: =VLOOKUP(Vlookup!$B172,'CDCM Volume Forecasts'!$A$28:$AL$136,B$143,FALSE) -> 0 | E213: =VLOOKUP(Vlookup!$B172,'CDCM Volume Forecasts'!$A$28:$AL$136,E$143,FALSE) -> 0
A214: > LV UMS (Pseudo HH Metered)
A215: LV UMS (Pseudo HH Metered) | B215: =VLOOKUP(Vlookup!$B174,'CDCM Volume Forecasts'!$A$28:$AL$136,B$143,FALSE) -> 5390.037125 | C215: =VLOOKUP(Vlookup!$B174,'CDCM Volume Forecasts'!$A$28:$AL$136,C$143,FALSE) -> 33830.68709 | D215: =VLOOKUP(Vlookup!$B174,'CDCM Volume Forecasts'!$A$28:$AL$136,D$143,FALSE) -> 82069.28028 | E215: =VLOOKUP(Vlookup!$B174,'CDCM Volume Forecasts'!$A$28:$AL$136,E$143,FALSE) -> 32.83606557
A216: LDNO LV: LV UMS (Pseudo HH Metered) | B216: =VLOOKUP(Vlookup!$B175,'CDCM Volume Forecasts'!$A$28:$AL$136,B$143,FALSE) -> 0 | C216: =VLOOKUP(Vlookup!$B175,'CDCM Volume Forecasts'!$A$28:$AL$136,C$143,FALSE) -> 0 | D216: =VLOOKUP(Vlookup!$B175,'CDCM Volume Forecasts'!$A$28:$AL$136,D$143,FALSE) -> 0 | E216: =VLOOKUP(Vlookup!$B175,'CDCM Volume Forecasts'!$A$28:$AL$136,E$143,FALSE) -> 0
A217: LDNO HV: LV UMS (Pseudo HH Metered) | B217: =VLOOKUP(Vlookup!$B176,'CDCM Volume Forecasts'!$A$28:$AL$136,B$143,FALSE) -> 0 | C217: =VLOOKUP(Vlookup!$B176,'CDCM Volume Forecasts'!$A$28:$AL$136,C$143,FALSE) -> 0 | D217: =VLOOKUP(Vlookup!$B176,'CDCM Volume Forecasts'!$A$28:$AL$136,D$143,FALSE) -> 0 | E217: =VLOOKUP(Vlookup!$B176,'CDCM Volume Forecasts'!$A$28:$AL$136,E$143,FALSE) -> 0
A218: > LV Generation NHH or Aggregate HH
A219: LV Generation NHH or Aggregate HH | B219: =VLOOKUP(Vlookup!$B178,'CDCM Volume Forecasts'!$A$28:$AL$136,B$143,FALSE) -> 2534.880142 | E219: =VLOOKUP(Vlookup!$B178,'CDCM Volume Forecasts'!$A$28:$AL$136,E$143,FALSE) -> 0
A220: LDNO LV: LV Generation NHH or Aggregate HH | B220: =VLOOKUP(Vlookup!$B179,'CDCM Volume Forecasts'!$A$28:$AL$136,B$143,FALSE) -> 0 | E220: =VLOOKUP(Vlookup!$B179,'CDCM Volume Forecasts'!$A$28:$AL$136,E$143,FALSE) -> 0
A221: LDNO HV: LV Generation NHH or Aggregate HH | B221: =VLOOKUP(Vlookup!$B180,'CDCM Volume Forecasts'!$A$28:$AL$136,B$143,FALSE) -> 0 | E221: =VLOOKUP(Vlookup!$B180,'CDCM Volume Forecasts'!$A$28:$AL$136,E$143,FALSE) -> 0
A222: > LV Sub Generation NHH
A223: LV Sub Generation NHH | B223: =VLOOKUP(Vlookup!$B182,'CDCM Volume Forecasts'!$A$28:$AL$136,B$143,FALSE) -> 0 | E223: =VLOOKUP(Vlookup!$B182,'CDCM Volume Forecasts'!$A$28:$AL$136,E$143,FALSE) -> 0
A224: LDNO HV: LV Sub Generation NHH | B224: =VLOOKUP(Vlookup!$B183,'CDCM Volume Forecasts'!$A$28:$AL$136,B$143,FALSE) -> 0 | E224: =VLOOKUP(Vlookup!$B183,'CDCM Volume Forecasts'!$A$28:$AL$136,E$143,FALSE) -> 0
A225: > LV Generation Intermittent
A226: LV Generation Intermittent | B226: =VLOOKUP(Vlookup!$B185,'CDCM Volume Forecasts'!$A$28:$AL$136,B$143,FALSE) -> 35860.14794 | E226: =VLOOKUP(Vlookup!$B185,'CDCM Volume Forecasts'!$A$28:$AL$136,E$143,FALSE) -> 452.1634098 | H226: =VLOOKUP(Vlookup!$B185,'CDCM Volume Forecasts'!$A$28:$AL$136,H$143,FALSE) -> 3381.700951
A227: LDNO LV: LV Generation Intermittent | B227: =VLOOKUP(Vlookup!$B186,'CDCM Volume Forecasts'!$A$28:$AL$136,B$143,FALSE) -> 0 | E227: =VLOOKUP(Vlookup!$B186,'CDCM Volume Forecasts'!$A$28:$AL$136,E$143,FALSE) -> 0 | H227: =VLOOKUP(Vlookup!$B186,'CDCM Volume Forecasts'!$A$28:$AL$136,H$143,FALSE) -> 0
A228: LDNO HV: LV Generation Intermittent | B228: =VLOOKUP(Vlookup!$B187,'CDCM Volume Forecasts'!$A$28:$AL$136,B$143,FALSE) -> 527.2147719 | E228: =VLOOKUP(Vlookup!$B187,'CDCM Volume Forecasts'!$A$28:$AL$136,E$143,FALSE) -> 3.3275 | H228: =VLOOKUP(Vlookup!$B187,'CDCM Volume Forecasts'!$A$28:$AL$136,H$143,FALSE) -> 91.34960038
... 99 more rows

Sheet (Y+2)
A1: Input data (Y+2)
A4: 1000. Company, charging year, data version
B6: Company | C6: Year | D6: Version
A7: Company, charging year, data version | B7: =VLOOKUP(Vlookup!B7,'CDCM Forecast Data'!$A$14:$I$271,7,FALSE) -> WPD South Wales | C7: =VLOOKUP(Vlookup!C7,'CDCM Forecast Data'!$A$14:$I$271,7,FALSE) -> 2021/22 | D7: =VLOOKUP(Vlookup!D7,'CDCM Forecast Data'!$A$14:$I$271,7,FALSE) -> Forecast
A9: 1010. Financial and general assumptions
A11: Sources: financial assumptions; calendar; network model.
A12: These financial assumptions determine the annuity rate applied to convert the asset values of the network model into an annual charge.
B13: Rate of return | C13: Annualisation period (years) | D13: Annuity proportion for customer-contributed assets | E13: Power factor | F13: Days in the charging period
A14: Financial and general assumptions | B14: =VLOOKUP(Vlookup!B14,'CDCM Forecast Data'!$A$14:$I$271,7,FALSE) -> 0.0421 | C14: =VLOOKUP(Vlookup!C14,'CDCM Forecast Data'!$A$14:$I$271,7,FALSE) -> 40 | E14: =VLOOKUP(Vlookup!E14,'CDCM Forecast Data'!$A$14:$I$271,7,FALSE) -> 0.95 | F14: =VLOOKUP(Vlookup!F14,'CDCM Forecast Data'!$A$14:$I$271,7,FALSE) -> 365
A16: 1017. Diversity allowance between top and bottom of network level
A18: Source: operational data analysis and/or network model.
A19: The diversity figure against GSP is the diversity between GSP Group (the whole system) and individual GSPs.
A20: The diversity figure against 132kV is the diversity between GSPs (the top of the 132kV network) and 132kV/EHV bulk supply points (the bottom of the 132kV network).
A21: The diversity figure against EHV is the diversity between 132kV/EHV bulk supply points (the top of the EHV network) and EHV/HV primary substations (the bottom of the EHV network).
A22: The diversity figure against HV is the diversity between EHV/HV primary substations (the top of the HV network) and HV/LV substations (the bottom of the HV network).
B23: Diversity allowance between top and bottom of network level
A24: GSPs | B24: =VLOOKUP(Vlookup!B24,'CDCM Forecast Data'!$A$14:$I$271,7,FALSE) -> 0.06382978723
A25: 132kV | B25: =VLOOKUP(Vlookup!B25,'CDCM Forecast Data'!$A$14:$I$271,7,FALSE) -> 0.053
A26: 132kV/EHV
A27: EHV | B27: =VLOOKUP(Vlookup!B27,'CDCM Forecast Data'!$A$14:$I$271,7,FALSE) -> 0.099
A28: EHV/HV
A29: HV | B29: =VLOOKUP(Vlookup!B29,'CDCM Forecast Data'!$A$14:$I$271,7,FALSE) -> 0.37
A30: HV/LV
A31: LV circuits
A33: 1018. Proportion of relevant load going through 132kV/HV direct transformation
B35: 132kV/HV
A36: EHV/HV | B36: =VLOOKUP(Vlookup!B36,'CDCM Forecast Data'!$A$14:$I$271,7,FALSE) -> 0.3
A38: 1019. Network model GSP peak demand (MW)
B40: Network model GSP peak demand (MW)
A41: Network model GSP peak demand (MW) | B41: =VLOOKUP(Vlookup!B41,'CDCM Forecast Data'!$A$14:$I$271,7,FALSE) -> 500
A43: 1020. Gross asset cost by network level (£)
B45: Gross assets £
A46: 132kV | B46: =VLOOKUP(Vlookup!B46,'CDCM Forecast Data'!$A$14:$I$271,7,FALSE) -> 143162818.7
A47: 132kV/EHV | B47: =VLOOKUP(Vlookup!B47,'CDCM Forecast Data'!$A$14:$I$271,7,FALSE) -> 13710438.3
A48: EHV | B48: =VLOOKUP(Vlookup!B48,'CDCM Forecast Data'!$A$14:$I$271,7,FALSE) -> 36067703.47
A49: EHV/HV | B49: =VLOOKUP(Vlookup!B49,'CDCM Forecast Data'!$A$14:$I$271,7,FALSE) -> 31086488.1
A50: 132kV/HV | B50: =VLOOKUP(Vlookup!B50,'CDCM Forecast Data'!$A$14:$I$271,7,FALSE) -> 11454883.58
A51: HV | B51: =VLOOKUP(Vlookup!B51,'CDCM Forecast Data'!$A$14:$I$271,7,FALSE) -> 162317067.5
A52: HV/LV | B52: =VLOOKUP(Vlookup!B52,'CDCM Forecast Data'!$A$14:$I$271,7,FALSE) -> 61149494.63
A53: LV circuits | B53: =VLOOKUP(Vlookup!B53,'CDCM Forecast Data'!$A$14:$I$271,7,FALSE) -> 137874683.5
A55: 1022. LV service model asset cost (£)
B57: LV service model 1 | C57: LV service model 2 | D57: LV service model 3 | E57: LV service model 4 | F57: LV service model 5 | G57: LV service model 6 | H57: LV service model 7 | I57: LV service model 8
A58: LV service model asset cost (£) | B58: =VLOOKUP(Vlookup!B58,'CDCM Forecast Data'!$A$14:$I$271,7,FALSE) -> 4634.215383 | C58: =VLOOKUP(Vlookup!C58,'CDCM Forecast Data'!$A$14:$I$271,7,FALSE) -> 706.5471709 | D58: =VLOOKUP(Vlookup!D58,'CDCM Forecast Data'!$A$14:$I$271,7,FALSE) -> 817.1802696 | E58: =VLOOKUP(Vlookup!E58,'CDCM Forecast Data'!$A$14:$I$271,7,FALSE) -> 593.0476017 | F58: =VLOOKUP(Vlookup!F58,'CDCM Forecast Data'!$A$14:$I$271,7,FALSE) -> 1308.392399 | G58: =VLOOKUP(Vlookup!G58,'CDCM Forecast Data'!$A$14:$I$271,7,FALSE) -> 1021.385583 | H58: =VLOOKUP(Vlookup!H58,'CDCM Forecast Data'!$A$14:$I$271,7,FALSE) -> 0 | I58: =VLOOKUP(Vlookup!I58,'CDCM Forecast Data'!$A$14:$I$271,7,FALSE) -> 559.012753
A60: 1023. HV service model asset cost (£)
B62: HV service model 1 | C62: HV service model 2 | D62: HV service model 3 | E62: HV service model 4 | F62: HV service model 5
A63: HV service model asset cost (£) | B63: =VLOOKUP(Vlookup!B63,'CDCM Forecast Data'!$A$14:$I$271,7,FALSE) -> 11030.69219 | C63: =VLOOKUP(Vlookup!C63,'CDCM Forecast Data'!$A$14:$I$271,7,FALSE) -> 4534.956522 | D63: =VLOOKUP(Vlookup!D63,'CDCM Forecast Data'!$A$14:$I$271,7,FALSE) -> 0 | E63: =VLOOKUP(Vlookup!E63,'CDCM Forecast Data'!$A$14:$I$271,7,FALSE) -> 0 | F63: =VLOOKUP(Vlookup!F63,'CDCM Forecast Data'!$A$14:$I$271,7,FALSE) -> 0
A65: 1025. Matrix of applicability of LV service models to tariffs with fixed charges
B66: 18 | C66: =B66+1 -> 19 | D66: 20 | E66: 21 | F66: 22 | G66: 23 | H66: 24 | I66: 25
B67: LV service model 1 | C67: LV service model 2 | D67: LV service model 3 | E67: LV service model 4 | F67: LV service model 5 | G67: LV service model 6 | H67: LV service model 7 | I67: LV service model 8
A68: Domestic Unrestricted | B68: =VLOOKUP($A68,'Mat of App'!$B$7:$AP$43,B$66,FALSE) -> 0.05 | C68: =VLOOKUP($A68,'Mat of App'!$B$7:$AP$43,C$66,FALSE) -> 0 | D68: =VLOOKUP($A68,'Mat of App'!$B$7:$AP$43,D$66,FALSE) -> 0 | E68: =VLOOKUP($A68,'Mat of App'!$B$7:$AP$43,E$66,FALSE) -> 0 | F68: =VLOOKUP($A68,'Mat of App'!$B$7:$AP$43,F$66,FALSE) -> 0 | G68: =VLOOKUP($A68,'Mat of App'!$B$7:$AP$43,G$66,FALSE) -> 0 | H68: =VLOOKUP($A68,'Mat of App'!$B$7:$AP$43,H$66,FALSE) -> 0 | I68: =VLOOKUP($A68,'Mat of App'!$B$7:$AP$43,I$66,FALSE) -> 0
A69: Domestic Two Rate | B69: =VLOOKUP($A69,'Mat of App'!$B$7:$AP$43,B$66,FALSE) -> 0.05 | C69: =VLOOKUP($A69,'Mat of App'!$B$7:$AP$43,C$66,FALSE) -> 0 | D69: =VLOOKUP($A69,'Mat of App'!$B$7:$AP$43,D$66,FALSE) -> 0 | E69: =VLOOKUP($A69,'Mat of App'!$B$7:$AP$43,E$66,FALSE) -> 0 | F69: =VLOOKUP($A69,'Mat of App'!$B$7:$AP$43,F$66,FALSE) -> 0 | G69: =VLOOKUP($A69,'Mat of App'!$B$7:$AP$43,G$66,FALSE) -> 0 | H69: =VLOOKUP($A69,'Mat of App'!$B$7:$AP$43,H$66,FALSE) -> 0 | I69: =VLOOKUP($A69,'Mat of App'!$B$7:$AP$43,I$66,FALSE) -> 0
A70: Small Non Domestic Unrestricted | B70: =VLOOKUP($A70,'Mat of App'!$B$7:$AP$43,B$66,FALSE) -> 0 | C70: =VLOOKUP($A70,'Mat of App'!$B$7:$AP$43,C$66,FALSE) -> 1 | D70: =VLOOKUP($A70,'Mat of App'!$B$7:$AP$43,D$66,FALSE) -> 0 | E70: =VLOOKUP($A70,'Mat of App'!$B$7:$AP$43,E$66,FALSE) -> 0 | F70: =VLOOKUP($A70,'Mat of App'!$B$7:$AP$43,F$66,FALSE) -> 0 | G70: =VLOOKUP($A70,'Mat of App'!$B$7:$AP$43,G$66,FALSE) -> 0 | H70: =VLOOKUP($A70,'Mat of App'!$B$7:$AP$43,H$66,FALSE) -> 0 | I70: =VLOOKUP($A70,'Mat of App'!$B$7:$AP$43,I$66,FALSE) -> 0
A71: Small Non Domestic Two Rate | B71: =VLOOKUP($A71,'Mat of App'!$B$7:$AP$43,B$66,FALSE) -> 0 | C71: =VLOOKUP($A71,'Mat of App'!$B$7:$AP$43,C$66,FALSE) -> 1 | D71: =VLOOKUP($A71,'Mat of App'!$B$7:$AP$43,D$66,FALSE) -> 0 | E71: =VLOOKUP($A71,'Mat of App'!$B$7:$AP$43,E$66,FALSE) -> 0 | F71: =VLOOKUP($A71,'Mat of App'!$B$7:$AP$43,F$66,FALSE) -> 0 | G71: =VLOOKUP($A71,'Mat of App'!$B$7:$AP$43,G$66,FALSE) -> 0 | H71: =VLOOKUP($A71,'Mat of App'!$B$7:$AP$43,H$66,FALSE) -> 0 | I71: =VLOOKUP($A71,'Mat of App'!$B$7:$AP$43,I$66,FALSE) -> 0
A72: LV Medium Non-Domestic | B72: =VLOOKUP($A72,'Mat of App'!$B$7:$AP$43,B$66,FALSE) -> 0 | C72: =VLOOKUP($A72,'Mat of App'!$B$7:$AP$43,C$66,FALSE) -> 0 | D72: =VLOOKUP($A72,'Mat of App'!$B$7:$AP$43,D$66,FALSE) -> 1 | E72: =VLOOKUP($A72,'Mat of App'!$B$7:$AP$43,E$66,FALSE) -> 0 | F72: =VLOOKUP($A72,'Mat of App'!$B$7:$AP$43,F$66,FALSE) -> 0 | G72: =VLOOKUP($A72,'Mat of App'!$B$7:$AP$43,G$66,FALSE) -> 0 | H72: =VLOOKUP($A72,'Mat of App'!$B$7:$AP$43,H$66,FALSE) -> 0 | I72: =VLOOKUP($A72,'Mat of App'!$B$7:$AP$43,I$66,FALSE) -> 0
A73: LV Sub Medium Non-Domestic | B73: =VLOOKUP($A73,'Mat of App'!$B$7:$AP$43,B$66,FALSE) -> 0 | C73: =VLOOKUP($A73,'Mat of App'!$B$7:$AP$43,C$66,FALSE) -> 0 | D73: =VLOOKUP($A73,'Mat of App'!$B$7:$AP$43,D$66,FALSE) -> 0 | E73: =VLOOKUP($A73,'Mat of App'!$B$7:$AP$43,E$66,FALSE) -> 1 | F73: =VLOOKUP($A73,'Mat of App'!$B$7:$AP$43,F$66,FALSE) -> 0 | G73: =VLOOKUP($A73,'Mat of App'!$B$7:$AP$43,G$66,FALSE) -> 0 | H73: =VLOOKUP($A73,'Mat of App'!$B$7:$AP$43,H$66,FALSE) -> 0 | I73: =VLOOKUP($A73,'Mat of App'!$B$7:$AP$43,I$66,FALSE) -> 0
A74: LV Network Domestic | B74: =VLOOKUP($A74,'Mat of App'!$B$7:$AP$43,B$66,FALSE) -> 0.05 | C74: =VLOOKUP($A74,'Mat of App'!$B$7:$AP$43,C$66,FALSE) -> 0 | D74: =VLOOKUP($A74,'Mat of App'!$B$7:$AP$43,D$66,FALSE) -> 0 | E74: =VLOOKUP($A74,'Mat of App'!$B$7:$AP$43,E$66,FALSE) -> 0 | F74: =VLOOKUP($A74,'Mat of App'!$B$7:$AP$43,F$66,FALSE) -> 0 | G74: =VLOOKUP($A74,'Mat of App'!$B$7:$AP$43,G$66,FALSE) -> 0 | H74: =VLOOKUP($A74,'Mat of App'!$B$7:$AP$43,H$66,FALSE) -> 0 | I74: =VLOOKUP($A74,'Mat of App'!$B$7:$AP$43,I$66,FALSE) -> 0
A75: LV Network Non-Domestic Non-CT | B75: =VLOOKUP($A75,'Mat of App'!$B$7:$AP$43,B$66,FALSE) -> 0 | C75: =VLOOKUP($A75,'Mat of App'!$B$7:$AP$43,C$66,FALSE) -> 1 | D75: =VLOOKUP($A75,'Mat of App'!$B$7:$AP$43,D$66,FALSE) -> 0 | E75: =VLOOKUP($A75,'Mat of App'!$B$7:$AP$43,E$66,FALSE) -> 0 | F75: =VLOOKUP($A75,'Mat of App'!$B$7:$AP$43,F$66,FALSE) -> 0 | G75: =VLOOKUP($A75,'Mat of App'!$B$7:$AP$43,G$66,FALSE) -> 0 | H75: =VLOOKUP($A75,'Mat of App'!$B$7:$AP$43,H$66,FALSE) -> 0 | I75: =VLOOKUP($A75,'Mat of App'!$B$7:$AP$43,I$66,FALSE) -> 0
A76: LV HH Metered | B76: =VLOOKUP($A76,'Mat of App'!$B$7:$AP$43,B$66,FALSE) -> 0 | C76: =VLOOKUP($A76,'Mat of App'!$B$7:$AP$43,C$66,FALSE) -> 0 | D76: =VLOOKUP($A76,'Mat of App'!$B$7:$AP$43,D$66,FALSE) -> 0 | E76: =VLOOKUP($A76,'Mat of App'!$B$7:$AP$43,E$66,FALSE) -> 0 | F76: =VLOOKUP($A76,'Mat of App'!$B$7:$AP$43,F$66,FALSE) -> 1 | G76: =VLOOKUP($A76,'Mat of App'!$B$7:$AP$43,G$66,FALSE) -> 0 | H76: =VLOOKUP($A76,'Mat of App'!$B$7:$AP$43,H$66,FALSE) -> 0 | I76: =VLOOKUP($A76,'Mat of App'!$B$7:$AP$43,I$66,FALSE) -> 0
A77: LV Sub HH Metered | B77: =VLOOKUP($A77,'Mat of App'!$B$7:$AP$43,B$66,FALSE) -> 0 | C77: =VLOOKUP($A77,'Mat of App'!$B$7:$AP$43,C$66,FALSE) -> 0 | D77: =VLOOKUP($A77,'Mat of App'!$B$7:$AP$43,D$66,FALSE) -> 0 | E77: =VLOOKUP($A77,'Mat of App'!$B$7:$AP$43,E$66,FALSE) -> 0 | F77: =VLOOKUP($A77,'Mat of App'!$B$7:$AP$43,F$66,FALSE) -> 0 | G77: =VLOOKUP($A77,'Mat of App'!$B$7:$AP$43,G$66,FALSE) -> 1 | H77: =VLOOKUP($A77,'Mat of App'!$B$7:$AP$43,H$66,FALSE) -> 0 | I77: =VLOOKUP($A77,'Mat of App'!$B$7:$AP$43,I$66,FALSE) -> 0
A78: LV Generation NHH or Aggregate HH | B78: =VLOOKUP($A78,'Mat of App'!$B$7:$AP$43,B$66,FALSE) -> 0 | C78: =VLOOKUP($A78,'Mat of App'!$B$7:$AP$43,C$66,FALSE) -> 0 | D78: =VLOOKUP($A78,'Mat of App'!$B$7:$AP$43,D$66,FALSE) -> 0 | E78: =VLOOKUP($A78,'Mat of App'!$B$7:$AP$43,E$66,FALSE) -> 0 | F78: =VLOOKUP($A78,'Mat of App'!$B$7:$AP$43,F$66,FALSE) -> 0 | G78: =VLOOKUP($A78,'Mat of App'!$B$7:$AP$43,G$66,FALSE) -> 0 | H78: =VLOOKUP($A78,'Mat of App'!$B$7:$AP$43,H$66,FALSE) -> 1 | I78: =VLOOKUP($A78,'Mat of App'!$B$7:$AP$43,I$66,FALSE) -> 0
A79: LV Sub Generation NHH | B79: =VLOOKUP($A79,'Mat of App'!$B$7:$AP$43,B$66,FALSE) -> 0 | C79: =VLOOKUP($A79,'Mat of App'!$B$7:$AP$43,C$66,FALSE) -> 0 | D79: =VLOOKUP($A79,'Mat of App'!$B$7:$AP$43,D$66,FALSE) -> 0 | E79: =VLOOKUP($A79,'Mat of App'!$B$7:$AP$43,E$66,FALSE) -> 0 | F79: =VLOOKUP($A79,'Mat of App'!$B$7:$AP$43,F$66,FALSE) -> 0 | G79: =VLOOKUP($A79,'Mat of App'!$B$7:$AP$43,G$66,FALSE) -> 0 | H79: =VLOOKUP($A79,'Mat of App'!$B$7:$AP$43,H$66,FALSE) -> 1 | I79: =VLOOKUP($A79,'Mat of App'!$B$7:$AP$43,I$66,FALSE) -> 0
A80: LV Generation Intermittent | B80: =VLOOKUP($A80,'Mat of App'!$B$7:$AP$43,B$66,FALSE) -> 0 | C80: =VLOOKUP($A80,'Mat of App'!$B$7:$AP$43,C$66,FALSE) -> 0 | D80: =VLOOKUP($A80,'Mat of App'!$B$7:$AP$43,D$66,FALSE) -> 0 | E80: =VLOOKUP($A80,'Mat of App'!$B$7:$AP$43,E$66,FALSE) -> 0 | F80: =VLOOKUP($A80,'Mat of App'!$B$7:$AP$43,F$66,FALSE) -> 0 | G80: =VLOOKUP($A80,'Mat of App'!$B$7:$AP$43,G$66,FALSE) -> 0 | H80: =VLOOKUP($A80,'Mat of App'!$B$7:$AP$43,H$66,FALSE) -> 1 | I80: =VLOOKUP($A80,'Mat of App'!$B$7:$AP$43,I$66,FALSE) -> 0
A81: LV Generation Intermittent no RP charge | B81: =VLOOKUP($A81,'Mat of App'!$B$7:$AP$43,B$66,FALSE) -> 0 | C81: =VLOOKUP($A81,'Mat of App'!$B$7:$AP$43,C$66,FALSE) -> 0 | D81: =VLOOKUP($A81,'Mat of App'!$B$7:$AP$43,D$66,FALSE) -> 0 | E81: =VLOOKUP($A81,'Mat of App'!$B$7:$AP$43,E$66,FALSE) -> 0 | F81: =VLOOKUP($A81,'Mat of App'!$B$7:$AP$43,F$66,FALSE) -> 0 | G81: =VLOOKUP($A81,'Mat of App'!$B$7:$AP$43,G$66,FALSE) -> 0 | H81: =VLOOKUP($A81,'Mat of App'!$B$7:$AP$43,H$66,FALSE) -> 1 | I81: =VLOOKUP($A81,'Mat of App'!$B$7:$AP$43,I$66,FALSE) -> 0
A82: LV Generation Non-Intermittent | B82: =VLOOKUP($A82,'Mat of App'!$B$7:$AP$43,B$66,FALSE) -> 0 | C82: =VLOOKUP($A82,'Mat of App'!$B$7:$AP$43,C$66,FALSE) -> 0 | D82: =VLOOKUP($A82,'Mat of App'!$B$7:$AP$43,D$66,FALSE) -> 0 | E82: =VLOOKUP($A82,'Mat of App'!$B$7:$AP$43,E$66,FALSE) -> 0 | F82: =VLOOKUP($A82,'Mat of App'!$B$7:$AP$43,F$66,FALSE) -> 0 | G82: =VLOOKUP($A82,'Mat of App'!$B$7:$AP$43,G$66,FALSE) -> 0 | H82: =VLOOKUP($A82,'Mat of App'!$B$7:$AP$43,H$66,FALSE) -> 0 | I82: =VLOOKUP($A82,'Mat of App'!$B$7:$AP$43,I$66,FALSE) -> 0
A83: LV Generation Non-Intermittent no RP charge | B83: =VLOOKUP($A83,'Mat of App'!$B$7:$AP$43,B$66,FALSE) -> 0 | C83: =VLOOKUP($A83,'Mat of App'!$B$7:$AP$43,C$66,FALSE) -> 0 | D83: =VLOOKUP($A83,'Mat of App'!$B$7:$AP$43,D$66,FALSE) -> 0 | E83: =VLOOKUP($A83,'Mat of App'!$B$7:$AP$43,E$66,FALSE) -> 0 | F83: =VLOOKUP($A83,'Mat of App'!$B$7:$AP$43,F$66,FALSE) -> 0 | G83: =VLOOKUP($A83,'Mat of App'!$B$7:$AP$43,G$66,FALSE) -> 0 | H83: =VLOOKUP($A83,'Mat of App'!$B$7:$AP$43,H$66,FALSE) -> 0 | I83: =VLOOKUP($A83,'Mat of App'!$B$7:$AP$43,I$66,FALSE) -> 0
A84: LV Sub Generation Intermittent | B84: =VLOOKUP($A84,'Mat of App'!$B$7:$AP$43,B$66,FALSE) -> 0 | C84: =VLOOKUP($A84,'Mat of App'!$B$7:$AP$43,C$66,FALSE) -> 0 | D84: =VLOOKUP($A84,'Mat of App'!$B$7:$AP$43,D$66,FALSE) -> 0 | E84: =VLOOKUP($A84,'Mat of App'!$B$7:$AP$43,E$66,FALSE) -> 0 | F84: =VLOOKUP($A84,'Mat of App'!$B$7:$AP$43,F$66,FALSE) -> 0 | G84: =VLOOKUP($A84,'Mat of App'!$B$7:$AP$43,G$66,FALSE) -> 0 | H84: =VLOOKUP($A84,'Mat of App'!$B$7:$AP$43,H$66,FALSE) -> 0 | I84: =VLOOKUP($A84,'Mat of App'!$B$7:$AP$43,I$66,FALSE) -> 0
A85: LV Sub Generation Intermittent no RP charge | B85: =VLOOKUP($A85,'Mat of App'!$B$7:$AP$43,B$66,FALSE) -> 0 | C85: =VLOOKUP($A85,'Mat of App'!$B$7:$AP$43,C$66,FALSE) -> 0 | D85: =VLOOKUP($A85,'Mat of App'!$B$7:$AP$43,D$66,FALSE) -> 0 | E85: =VLOOKUP($A85,'Mat of App'!$B$7:$AP$43,E$66,FALSE) -> 0 | F85: =VLOOKUP($A85,'Mat of App'!$B$7:$AP$43,F$66,FALSE) -> 0 | G85: =VLOOKUP($A85,'Mat of App'!$B$7:$AP$43,G$66,FALSE) -> 0 | H85: =VLOOKUP($A85,'Mat of App'!$B$7:$AP$43,H$66,FALSE) -> 0 | I85: =VLOOKUP($A85,'Mat of App'!$B$7:$AP$43,I$66,FALSE) -> 0
A86: LV Sub Generation Non-Intermittent | B86: =VLOOKUP($A86,'Mat of App'!$B$7:$AP$43,B$66,FALSE) -> 0 | C86: =VLOOKUP($A86,'Mat of App'!$B$7:$AP$43,C$66,FALSE) -> 0 | D86: =VLOOKUP($A86,'Mat of App'!$B$7:$AP$43,D$66,FALSE) -> 0 | E86: =VLOOKUP($A86,'Mat of App'!$B$7:$AP$43,E$66,FALSE) -> 0 | F86: =VLOOKUP($A86,'Mat of App'!$B$7:$AP$43,F$66,FALSE) -> 0 | G86: =VLOOKUP($A86,'Mat of App'!$B$7:$AP$43,G$66,FALSE) -> 0 | H86: =VLOOKUP($A86,'Mat of App'!$B$7:$AP$43,H$66,FALSE) -> 0 | I86: =VLOOKUP($A86,'Mat of App'!$B$7:$AP$43,I$66,FALSE) -> 0
A87: LV Sub Generation Non-Intermittent no RP charge | B87: =VLOOKUP($A87,'Mat of App'!$B$7:$AP$43,B$66,FALSE) -> 0 | C87: =VLOOKUP($A87,'Mat of App'!$B$7:$AP$43,C$66,FALSE) -> 0 | D87: =VLOOKUP($A87,'Mat of App'!$B$7:$AP$43,D$66,FALSE) -> 0 | E87: =VLOOKUP($A87,'Mat of App'!$B$7:$AP$43,E$66,FALSE) -> 0 | F87: =VLOOKUP($A87,'Mat of App'!$B$7:$AP$43,F$66,FALSE) -> 0 | G87: =VLOOKUP($A87,'Mat of App'!$B$7:$AP$43,G$66,FALSE) -> 0 | H87: =VLOOKUP($A87,'Mat of App'!$B$7:$AP$43,H$66,FALSE) -> 0 | I87: =VLOOKUP($A87,'Mat of App'!$B$7:$AP$43,I$66,FALSE) -> 0
A89: 1026. Matrix of applicability of LV service models to unmetered tariffs
A91: Source: service models
A92: Proportion of service model involved in connecting load of 1 MWh/year
B93: LV service model 1 | C93: LV service model 2 | D93: LV service model 3 | E93: LV service model 4 | F93: LV service model 5 | G93: LV service model 6 | H93: LV service model 7 | I93: LV service model 8
A94: All LV unmetered tariffs | B94: =VLOOKUP($A94,'Mat of App'!$B$7:$AP$43,B$66,FALSE) -> 0 | C94: =VLOOKUP($A94,'Mat of App'!$B$7:$AP$43,C$66,FALSE) -> 0 | D94: =VLOOKUP($A94,'Mat of App'!$B$7:$AP$43,D$66,FALSE) -> 0 | E94: =VLOOKUP($A94,'Mat of App'!$B$7:$AP$43,E$66,FALSE) -> 0 | F94: =VLOOKUP($A94,'Mat of App'!$B$7:$AP$43,F$66,FALSE) -> 0 | G94: =VLOOKUP($A94,'Mat of App'!$B$7:$AP$43,G$66,FALSE) -> 0 | H94: =VLOOKUP($A94,'Mat of App'!$B$7:$AP$43,H$66,FALSE) -> 0 | I94: =VLOOKUP($A94,'Mat of App'!$B$7:$AP$43,I$66,FALSE) -> 0.488
A96: 1028. Matrix of applicability of HV service models to tariffs with fixed charges
B97: 12 | C97: =B97+1 -> 13 | D97: =C97+1 -> 14 | E97: =D97+1 -> 15 | F97: =E97+1 -> 16
B98: HV service model 1 | C98: HV service model 2 | D98: HV service model 3 | E98: HV service model 4 | F98: HV service model 5
A99: HV Medium Non-Domestic | B99: =VLOOKUP($A99,'Mat of App'!$B$7:$AP$43,B$97,FALSE) -> 1 | C99: =VLOOKUP($A99,'Mat of App'!$B$7:$AP$43,C$97,FALSE) -> 0 | D99: =VLOOKUP($A99,'Mat of App'!$B$7:$AP$43,D$97,FALSE) -> 0 | E99: =VLOOKUP($A99,'Mat of App'!$B$7:$AP$43,E$97,FALSE) -> 0 | F99: =VLOOKUP($A99,'Mat of App'!$B$7:$AP$43,F$97,FALSE) -> 0
A100: HV HH Metered | B100: =VLOOKUP($A100,'Mat of App'!$B$7:$AP$43,B$97,FALSE) -> 1 | C100: =VLOOKUP($A100,'Mat of App'!$B$7:$AP$43,C$97,FALSE) -> 0 | D100: =VLOOKUP($A100,'Mat of App'!$B$7:$AP$43,D$97,FALSE) -> 0 | E100: =VLOOKUP($A100,'Mat of App'!$B$7:$AP$43,E$97,FALSE) -> 0 | F100: =VLOOKUP($A100,'Mat of App'!$B$7:$AP$43,F$97,FALSE) -> 0
A101: HV Generation Intermittent | B101: =VLOOKUP($A101,'Mat of App'!$B$7:$AP$43,B$97,FALSE) -> 0 | C101: =VLOOKUP($A101,'Mat of App'!$B$7:$AP$43,C$97,FALSE) -> 1 | D101: =VLOOKUP($A101,'Mat of App'!$B$7:$AP$43,D$97,FALSE) -> 0 | E101: =VLOOKUP($A101,'Mat of App'!$B$7:$AP$43,E$97,FALSE) -> 0 | F101: =VLOOKUP($A101,'Mat of App'!$B$7:$AP$43,F$97,FALSE) -> 0
A102: HV Generation Intermittent no RP charge | B102: =VLOOKUP($A102,'Mat of App'!$B$7:$AP$43,B$97,FALSE) -> 0 | C102: =VLOOKUP($A102,'Mat of App'!$B$7:$AP$43,C$97,FALSE) -> 1 | D102: =VLOOKUP($A102,'Mat of App'!$B$7:$AP$43,D$97,FALSE) -> 0 | E102: =VLOOKUP($A102,'Mat of App'!$B$7:$AP$43,E$97,FALSE) -> 0 | F102: =VLOOKUP($A102,'Mat of App'!$B$7:$AP$43,F$97,FALSE) -> 0
A103: HV Generation Non-Intermittent | B103: =VLOOKUP($A103,'Mat of App'!$B$7:$AP$43,B$97,FALSE) -> 0 | C103: =VLOOKUP($A103,'Mat of App'!$B$7:$AP$43,C$97,FALSE) -> 1 | D103: =VLOOKUP($A103,'Mat of App'!$B$7:$AP$43,D$97,FALSE) -> 0 | E103: =VLOOKUP($A103,'Mat of App'!$B$7:$AP$43,E$97,FALSE) -> 0 | F103: =VLOOKUP($A103,'Mat of App'!$B$7:$AP$43,F$97,FALSE) -> 0
A104: HV Generation Non-Intermittent no RP charge | B104: =VLOOKUP($A104,'Mat of App'!$B$7:$AP$43,B$97,FALSE) -> 0 | C104: =VLOOKUP($A104,'Mat of App'!$B$7:$AP$43,C$97,FALSE) -> 1 | D104: =VLOOKUP($A104,'Mat of App'!$B$7:$AP$43,D$97,FALSE) -> 0 | E104: =VLOOKUP($A104,'Mat of App'!$B$7:$AP$43,E$97,FALSE) -> 0 | F104: =VLOOKUP($A104,'Mat of App'!$B$7:$AP$43,F$97,FALSE) -> 0
A106: 1032. Loss adjustment factors to transmission
A108: Source: losses model or loss adjustment factors at time of system peak.
B109: 132kV | C109: 132kV/EHV | D109: EHV | E109: EHV/HV | F109: HV | G109: HV/LV | H109: LV circuits
A110: Loss adjustment factor | B110: =VLOOKUP(Vlookup!B69,'CDCM Forecast Data'!$A$14:$I$271,7,FALSE) -> 1.009 | C110: =VLOOKUP(Vlookup!C69,'CDCM Forecast Data'!$A$14:$I$271,7,FALSE) -> 1.013 | D110: =VLOOKUP(Vlookup!D69,'CDCM Forecast Data'!$A$14:$I$271,7,FALSE) -> 1.024 | E110: =VLOOKUP(Vlookup!E69,'CDCM Forecast Data'!$A$14:$I$271,7,FALSE) -> 1.032 | F110: =VLOOKUP(Vlookup!F69,'CDCM Forecast Data'!$A$14:$I$271,7,FALSE) -> 1.041 | G110: =VLOOKUP(Vlookup!G69,'CDCM Forecast Data'!$A$14:$I$271,7,FALSE) -> 1.059 | H110: =VLOOKUP(Vlookup!H69,'CDCM Forecast Data'!$A$14:$I$271,7,FALSE) -> 1.077
A112: 1037. Embedded network (LDNO) discounts
A114: Source: separate price control disaggregation model.
B115: No discount | C115: LDNO LV: LV user | D115: LDNO HV: LV user | E115: LDNO HV: LV sub user | F115: LDNO HV: HV user
A116: LDNO discount | C116: =VLOOKUP(Vlookup!C75,'CDCM Forecast Data'!$A$14:$I$271,7,FALSE) -> 0.3199255301 | D116: =VLOOKUP(Vlookup!D75,'CDCM Forecast Data'!$A$14:$I$271,7,FALSE) -> 0.6334761221 | E116: =VLOOKUP(Vlookup!E75,'CDCM Forecast Data'!$A$14:$I$271,7,FALSE) -> 0.4384885799 | F116: =VLOOKUP(Vlookup!F75,'CDCM Forecast Data'!$A$14:$I$271,7,FALSE) -> 0.3226874527
A118: 1041. Load profile data for demand users
A120: Source: load data analysis.
B121: Coincidence factor | C121: Load factor
A122: Domestic Unrestricted | B122: =VLOOKUP(Vlookup!B81,'CDCM Forecast Data'!$A$14:$I$271,7,FALSE) -> 0.9157074753 | C122: =VLOOKUP(Vlookup!C81,'CDCM Forecast Data'!$A$14:$I$271,7,FALSE) -> 0.4308052566
A123: Domestic Two Rate | B123: =VLOOKUP(Vlookup!B82,'CDCM Forecast Data'!$A$14:$I$271,7,FALSE) -> 0.3567074092 | C123: =VLOOKUP(Vlookup!C82,'CDCM Forecast Data'!$A$14:$I$271,7,FALSE) -> 0.2769210098
A124: Domestic Off Peak (related MPAN) | C124: =VLOOKUP(Vlookup!C83,'CDCM Forecast Data'!$A$14:$I$271,7,FALSE) -> 0.1956368053
A125: Small Non Domestic Unrestricted | B125: =VLOOKUP(Vlookup!B84,'CDCM Forecast Data'!$A$14:$I$271,7,FALSE) -> 0.5092286883 | C125: =VLOOKUP(Vlookup!C84,'CDCM Forecast Data'!$A$14:$I$271,7,FALSE) -> 0.4165839085
A126: Small Non Domestic Two Rate | B126: =VLOOKUP(Vlookup!B85,'CDCM Forecast Data'!$A$14:$I$271,7,FALSE) -> 0.7364077701 | C126: =VLOOKUP(Vlookup!C85,'CDCM Forecast Data'!$A$14:$I$271,7,FALSE) -> 0.5852649537
A127: Small Non Domestic Off Peak (related MPAN) | C127: =VLOOKUP(Vlookup!C86,'CDCM Forecast Data'!$A$14:$I$271,7,FALSE) -> 0.2022777614
A128: LV Medium Non-Domestic | B128: =VLOOKUP(Vlookup!B87,'CDCM Forecast Data'!$A$14:$I$271,7,FALSE) -> 0.716354546 | C128: =VLOOKUP(Vlookup!C87,'CDCM Forecast Data'!$A$14:$I$271,7,FALSE) -> 0.5424317404
A129: LV Sub Medium Non-Domestic | B129: =VLOOKUP(Vlookup!B88,'CDCM Forecast Data'!$A$14:$I$271,7,FALSE) -> 0.716354546 | C129: =VLOOKUP(Vlookup!C88,'CDCM Forecast Data'!$A$14:$I$271,7,FALSE) -> 0.5424317404
A130: HV Medium Non-Domestic | B130: =VLOOKUP(Vlookup!B89,'CDCM Forecast Data'!$A$14:$I$271,7,FALSE) -> 0.4954831119 | C130: =VLOOKUP(Vlookup!C89,'CDCM Forecast Data'!$A$14:$I$271,7,FALSE) -> 0.4157772318
A131: LV Network Domestic | B131: =VLOOKUP(Vlookup!B90,'CDCM Forecast Data'!$A$14:$I$271,7,FALSE) -> 0.8840580388 | C131: =VLOOKUP(Vlookup!C90,'CDCM Forecast Data'!$A$14:$I$271,7,FALSE) -> 0.4218698608
A132: LV Network Non-Domestic Non-CT | B132: =VLOOKUP(Vlookup!B91,'CDCM Forecast Data'!$A$14:$I$271,7,FALSE) -> 0.5487311983 | C132: =VLOOKUP(Vlookup!C91,'CDCM Forecast Data'!$A$14:$I$271,7,FALSE) -> 0.4450046047
A133: LV HH Metered | B133: =VLOOKUP(Vlookup!B92,'CDCM Forecast Data'!$A$14:$I$271,7,FALSE) -> 0.740232814 | C133: =VLOOKUP(Vlookup!C92,'CDCM Forecast Data'!$A$14:$I$271,7,FALSE) -> 0.5877566842
A134: LV Sub HH Metered | B134: =VLOOKUP(Vlookup!B93,'CDCM Forecast Data'!$A$14:$I$271,7,FALSE) -> 0.7199425784 | C134: =VLOOKUP(Vlookup!C93,'CDCM Forecast Data'!$A$14:$I$271,7,FALSE) -> 0.5962079802
A135: HV HH Metered | B135: =VLOOKUP(Vlookup!B94,'CDCM Forecast Data'!$A$14:$I$271,7,FALSE) -> 0.7989789566 | C135: =VLOOKUP(Vlookup!C94,'CDCM Forecast Data'!$A$14:$I$271,7,FALSE) -> 0.7321391305
A136: NHH UMS category A | B136: =VLOOKUP(Vlookup!B95,'CDCM Forecast Data'!$A$14:$I$271,7,FALSE) -> 1 | C136: =VLOOKUP(Vlookup!C95,'CDCM Forecast Data'!$A$14:$I$271,7,FALSE) -> 1
A137: NHH UMS category B | B137: =VLOOKUP(Vlookup!B96,'CDCM Forecast Data'!$A$14:$I$271,7,FALSE) -> 0.9828346759 | C137: =VLOOKUP(Vlookup!C96,'CDCM Forecast Data'!$A$14:$I$271,7,FALSE) -> 0.4753987679
A138: NHH UMS category C | B138: =VLOOKUP(Vlookup!B97,'CDCM Forecast Data'!$A$14:$I$271,7,FALSE) -> 0.7826086957 | C138: =VLOOKUP(Vlookup!C97,'CDCM Forecast Data'!$A$14:$I$271,7,FALSE) -> 0.2733634899
A139: NHH UMS category D | B139: =VLOOKUP(Vlookup!B98,'CDCM Forecast Data'!$A$14:$I$271,7,FALSE) -> 0 | C139: =VLOOKUP(Vlookup!C98,'CDCM Forecast Data'!$A$14:$I$271,7,FALSE) -> 0.5155660185
A140: LV UMS (Pseudo HH Metered) | B140: =VLOOKUP(Vlookup!B99,'CDCM Forecast Data'!$A$14:$I$271,7,FALSE) -> 0.9477164255 | C140: =VLOOKUP(Vlookup!C99,'CDCM Forecast Data'!$A$14:$I$271,7,FALSE) -> 0.4501908686
A142: 1053. Volume forecasts for the charging year
B143: 18 | C143: 19 | D143: 20 | E143: 21 | F143: 22 | G143: 23 | H143: 24
A144: Source: forecast.
A145: Please include MPAN counts for tariffs with no fixed charge (e.g. off-peak tariffs),
A146: but exclude MPANs on tariffs with a fixed charge that are not subject to a fixed charge due to a site grouping arrangement.
B147: Rate 1 units (MWh) | C147: Rate 2 units (MWh) | D147: Rate 3 units (MWh) | E147: MPANs | F147: Import capacity (kVA) | G147: Exceeded capacity (kVA) | H147: Reactive power units (MVArh)
A148: > Domestic Unrestricted | B148: =VLOOKUP(Vlookup!$B107,'CDCM Volume Forecasts'!$A$28:$AL$136,B$143,FALSE) -> 0 | C148: =VLOOKUP(Vlookup!$B107,'CDCM Volume Forecasts'!$A$28:$AL$136,C$143,FALSE) -> 0 | D148: =VLOOKUP(Vlookup!$B107,'CDCM Volume Forecasts'!$A$28:$AL$136,D$143,FALSE) -> 0 | E148: =VLOOKUP(Vlookup!$B107,'CDCM Volume Forecasts'!$A$28:$AL$136,E$143,FALSE) -> 0 | F148: =VLOOKUP(Vlookup!$B107,'CDCM Volume Forecasts'!$A$28:$AL$136,F$143,FALSE) -> 0 | H148: =VLOOKUP(Vlookup!$B107,'CDCM Volume Forecasts'!$A$28:$AL$136,G$143,FALSE) -> 0
A149: Domestic Unrestricted | B149: =VLOOKUP(Vlookup!$B108,'CDCM Volume Forecasts'!$A$28:$AL$136,B$143,FALSE) -> 3137701.408 | E149: =VLOOKUP(Vlookup!$B108,'CDCM Volume Forecasts'!$A$28:$AL$136,E$143,FALSE) -> 998882.407
A150: LDNO LV: Domestic Unrestricted | B150: =VLOOKUP(Vlookup!$B109,'CDCM Volume Forecasts'!$A$28:$AL$136,B$143,FALSE) -> 3748.253398 | E150: =VLOOKUP(Vlookup!$B109,'CDCM Volume Forecasts'!$A$28:$AL$136,E$143,FALSE) -> 1534.903725
A151: LDNO HV: Domestic Unrestricted | B151: =VLOOKUP(Vlookup!$B110,'CDCM Volume Forecasts'!$A$28:$AL$136,B$143,FALSE) -> 21538.31146 | E151: =VLOOKUP(Vlookup!$B110,'CDCM Volume Forecasts'!$A$28:$AL$136,E$143,FALSE) -> 9576.463133
A152: > Domestic Two Rate
A153: Domestic Two Rate | B153: =VLOOKUP(Vlookup!$B112,'CDCM Volume Forecasts'!$A$28:$AL$136,B$143,FALSE) -> 148595.8148 | C153: =VLOOKUP(Vlookup!$B112,'CDCM Volume Forecasts'!$A$28:$AL$136,C$143,FALSE) -> 132539.3456 | E153: =VLOOKUP(Vlookup!$B112,'CDCM Volume Forecasts'!$A$28:$AL$136,E$143,FALSE) -> 50656.37901
A154: LDNO LV: Domestic Two Rate | B154: =VLOOKUP(Vlookup!$B113,'CDCM Volume Forecasts'!$A$28:$AL$136,B$143,FALSE) -> 76.31678952 | C154: =VLOOKUP(Vlookup!$B113,'CDCM Volume Forecasts'!$A$28:$AL$136,C$143,FALSE) -> 16.25200139 | E154: =VLOOKUP(Vlookup!$B113,'CDCM Volume Forecasts'!$A$28:$AL$136,E$143,FALSE) -> 32.93642007
A155: LDNO HV: Domestic Two Rate | B155: =VLOOKUP(Vlookup!$B114,'CDCM Volume Forecasts'!$A$28:$AL$136,B$143,FALSE) -> 307.7377218 | C155: =VLOOKUP(Vlookup!$B114,'CDCM Volume Forecasts'!$A$28:$AL$136,C$143,FALSE) -> 160.4615525 | E155: =VLOOKUP(Vlookup!$B114,'CDCM Volume Forecasts'!$A$28:$AL$136,E$143,FALSE) -> 182.8854175
A156: > Domestic Off Peak (related MPAN)
A157: Domestic Off Peak (related MPAN) | B157: =VLOOKUP(Vlookup!$B116,'CDCM Volume Forecasts'!$A$28:$AL$136,B$143,FALSE) -> 2369.594793 | E157: =VLOOKUP(Vlookup!$B116,'CDCM Volume Forecasts'!$A$28:$AL$136,E$143,FALSE) -> 0
A158: LDNO LV: Domestic Off Peak (related MPAN) | B158: =VLOOKUP(Vlookup!$B117,'CDCM Volume Forecasts'!$A$28:$AL$136,B$143,FALSE) -> 0 | E158: =VLOOKUP(Vlookup!$B117,'CDCM Volume Forecasts'!$A$28:$AL$136,E$143,FALSE) -> 0
A159: LDNO HV: Domestic Off Peak (related MPAN) | B159: =VLOOKUP(Vlookup!$B118,'CDCM Volume Forecasts'!$A$28:$AL$136,B$143,FALSE) -> 0 | E159: =VLOOKUP(Vlookup!$B118,'CDCM Volume Forecasts'!$A$28:$AL$136,E$143,FALSE) -> 0
A160: > Small Non Domestic Unrestricted
A161: Small Non Domestic Unrestricted | B161: =VLOOKUP(Vlookup!$B120,'CDCM Volume Forecasts'!$A$28:$AL$136,B$143,FALSE) -> 788341.2966 | E161: =VLOOKUP(Vlookup!$B120,'CDCM Volume Forecasts'!$A$28:$AL$136,E$143,FALSE) -> 64499.40072
A162: LDNO LV: Small Non Domestic Unrestricted | B162: =VLOOKUP(Vlookup!$B121,'CDCM Volume Forecasts'!$A$28:$AL$136,B$143,FALSE) -> 71.63395919 | E162: =VLOOKUP(Vlookup!$B121,'CDCM Volume Forecasts'!$A$28:$AL$136,E$143,FALSE) -> 10.38806408
A163: LDNO HV: Small Non Domestic Unrestricted | B163: =VLOOKUP(Vlookup!$B122,'CDCM Volume Forecasts'!$A$28:$AL$136,B$143,FALSE) -> 4110.730745 | E163: =VLOOKUP(Vlookup!$B122,'CDCM Volume Forecasts'!$A$28:$AL$136,E$143,FALSE) -> 183.2927888
A164: > Small Non Domestic Two Rate
A165: Small Non Domestic Two Rate | B165: =VLOOKUP(Vlookup!$B124,'CDCM Volume Forecasts'!$A$28:$AL$136,B$143,FALSE) -> 197413.5436 | C165: =VLOOKUP(Vlookup!$B124,'CDCM Volume Forecasts'!$A$28:$AL$136,C$143,FALSE) -> 83732.92508 | E165: =VLOOKUP(Vlookup!$B124,'CDCM Volume Forecasts'!$A$28:$AL$136,E$143,FALSE) -> 13327.09991
A166: LDNO LV: Small Non Domestic Two Rate | B166: =VLOOKUP(Vlookup!$B125,'CDCM Volume Forecasts'!$A$28:$AL$136,B$143,FALSE) -> 0 | C166: =VLOOKUP(Vlookup!$B125,'CDCM Volume Forecasts'!$A$28:$AL$136,C$143,FALSE) -> 0 | E166: =VLOOKUP(Vlookup!$B125,'CDCM Volume Forecasts'!$A$28:$AL$136,E$143,FALSE) -> 0
A167: LDNO HV: Small Non Domestic Two Rate | B167: =VLOOKUP(Vlookup!$B126,'CDCM Volume Forecasts'!$A$28:$AL$136,B$143,FALSE) -> 888.7786027 | C167: =VLOOKUP(Vlookup!$B126,'CDCM Volume Forecasts'!$A$28:$AL$136,C$143,FALSE) -> 150.5713725 | E167: =VLOOKUP(Vlookup!$B126,'CDCM Volume Forecasts'!$A$28:$AL$136,E$143,FALSE) -> 14.47325781
A168: > Small Non Domestic Off Peak (related MPAN)
A169: Small Non Domestic Off Peak (related MPAN) | B169: =VLOOKUP(Vlookup!$B128,'CDCM Volume Forecasts'!$A$28:$AL$136,B$143,FALSE) -> 1373.419906 | E169: =VLOOKUP(Vlookup!$B128,'CDCM Volume Forecasts'!$A$28:$AL$136,E$143,FALSE) -> 0
A170: LDNO LV: Small Non Domestic Off Peak (related MPAN) | B170: =VLOOKUP(Vlookup!$B129,'CDCM Volume Forecasts'!$A$28:$AL$136,B$143,FALSE) -> 0 | E170: =VLOOKUP(Vlookup!$B129,'CDCM Volume Forecasts'!$A$28:$AL$136,E$143,FALSE) -> 0
A171: LDNO HV: Small Non Domestic Off Peak (related MPAN) | B171: =VLOOKUP(Vlookup!$B130,'CDCM Volume Forecasts'!$A$28:$AL$136,B$143,FALSE) -> 0 | E171: =VLOOKUP(Vlookup!$B130,'CDCM Volume Forecasts'!$A$28:$AL$136,E$143,FALSE) -> 0
A172: > LV Medium Non-Domestic
A173: LV Medium Non-Domestic | B173: =VLOOKUP(Vlookup!$B132,'CDCM Volume Forecasts'!$A$28:$AL$136,B$143,FALSE) -> 26946.83891 | C173: =VLOOKUP(Vlookup!$B132,'CDCM Volume Forecasts'!$A$28:$AL$136,C$143,FALSE) -> 7790.303753 | E173: =VLOOKUP(Vlookup!$B132,'CDCM Volume Forecasts'!$A$28:$AL$136,E$143,FALSE) -> 782.0146133
A174: LDNO LV: LV Medium Non-Domestic | B174: =VLOOKUP(Vlookup!$B133,'CDCM Volume Forecasts'!$A$28:$AL$136,B$143,FALSE) -> 0 | C174: =VLOOKUP(Vlookup!$B133,'CDCM Volume Forecasts'!$A$28:$AL$136,C$143,FALSE) -> 0 | E174: =VLOOKUP(Vlookup!$B133,'CDCM Volume Forecasts'!$A$28:$AL$136,E$143,FALSE) -> 0
A175: LDNO HV: LV Medium Non-Domestic | B175: =VLOOKUP(Vlookup!$B134,'CDCM Volume Forecasts'!$A$28:$AL$136,B$143,FALSE) -> -3.637978807e-15 | C175: =VLOOKUP(Vlookup!$B134,'CDCM Volume Forecasts'!$A$28:$AL$136,C$143,FALSE) -> 1.818989404e-15 | E175: =VLOOKUP(Vlookup!$B134,'CDCM Volume Forecasts'!$A$28:$AL$136,E$143,FALSE) -> 0
A176: > LV Sub Medium Non-Domestic
A177: LV Sub Medium Non-Domestic | B177: =VLOOKUP(Vlookup!$B136,'CDCM Volume Forecasts'!$A$28:$AL$136,B$143,FALSE) -> 0.2169613471 | C177: =VLOOKUP(Vlookup!$B136,'CDCM Volume Forecasts'!$A$28:$AL$136,C$143,FALSE) -> 0.06663332612 | E177: =VLOOKUP(Vlookup!$B136,'CDCM Volume Forecasts'!$A$28:$AL$136,E$143,FALSE) -> 0.001985026667
A178: > HV Medium Non-Domestic
A179: HV Medium Non-Domestic | B179: =VLOOKUP(Vlookup!$B138,'CDCM Volume Forecasts'!$A$28:$AL$136,B$143,FALSE) -> 56.5708231 | C179: =VLOOKUP(Vlookup!$B138,'CDCM Volume Forecasts'!$A$28:$AL$136,C$143,FALSE) -> 27.23780372 | E179: =VLOOKUP(Vlookup!$B138,'CDCM Volume Forecasts'!$A$28:$AL$136,E$143,FALSE) -> 3.238266811
A180: > LV Network Domestic
A181: LV Network Domestic | B181: =VLOOKUP(Vlookup!$B140,'CDCM Volume Forecasts'!$A$28:$AL$136,B$143,FALSE) -> 2.012033728 | C181: =VLOOKUP(Vlookup!$B140,'CDCM Volume Forecasts'!$A$28:$AL$136,C$143,FALSE) -> 10.44829398 | D181: =VLOOKUP(Vlookup!$B140,'CDCM Volume Forecasts'!$A$28:$AL$136,D$143,FALSE) -> 9.397597107 | E181: =VLOOKUP(Vlookup!$B140,'CDCM Volume Forecasts'!$A$28:$AL$136,E$143,FALSE) -> 6.633033246
A182: LDNO LV: LV Network Domestic | B182: =VLOOKUP(Vlookup!$B141,'CDCM Volume Forecasts'!$A$28:$AL$136,B$143,FALSE) -> 0 | C182: =VLOOKUP(Vlookup!$B141,'CDCM Volume Forecasts'!$A$28:$AL$136,C$143,FALSE) -> 0 | D182: =VLOOKUP(Vlookup!$B141,'CDCM Volume Forecasts'!$A$28:$AL$136,D$143,FALSE) -> 0 | E182: =VLOOKUP(Vlookup!$B141,'CDCM Volume Forecasts'!$A$28:$AL$136,E$143,FALSE) -> 0
A183: LDNO HV: LV Network Domestic | B183: =VLOOKUP(Vlookup!$B142,'CDCM Volume Forecasts'!$A$28:$AL$136,B$143,FALSE) -> 0 | C183: =VLOOKUP(Vlookup!$B142,'CDCM Volume Forecasts'!$A$28:$AL$136,C$143,FALSE) -> 0 | D183: =VLOOKUP(Vlookup!$B142,'CDCM Volume Forecasts'!$A$28:$AL$136,D$143,FALSE) -> 0 | E183: =VLOOKUP(Vlookup!$B142,'CDCM Volume Forecasts'!$A$28:$AL$136,E$143,FALSE) -> 0
A184: > LV Network Non-Domestic Non-CT
A185: LV Network Non-Domestic Non-CT | B185: =VLOOKUP(Vlookup!$B144,'CDCM Volume Forecasts'!$A$28:$AL$136,B$143,FALSE) -> 12121.70413 | C185: =VLOOKUP(Vlookup!$B144,'CDCM Volume Forecasts'!$A$28:$AL$136,C$143,FALSE) -> 81006.95198 | D185: =VLOOKUP(Vlookup!$B144,'CDCM Volume Forecasts'!$A$28:$AL$136,D$143,FALSE) -> 60057.38782 | E185: =VLOOKUP(Vlookup!$B144,'CDCM Volume Forecasts'!$A$28:$AL$136,E$143,FALSE) -> 2100.892179
A186: LDNO LV: LV Network Non-Domestic Non-CT | B186: =VLOOKUP(Vlookup!$B145,'CDCM Volume Forecasts'!$A$28:$AL$136,B$143,FALSE) -> 0 | C186: =VLOOKUP(Vlookup!$B145,'CDCM Volume Forecasts'!$A$28:$AL$136,C$143,FALSE) -> 0 | D186: =VLOOKUP(Vlookup!$B145,'CDCM Volume Forecasts'!$A$28:$AL$136,D$143,FALSE) -> 0 | E186: =VLOOKUP(Vlookup!$B145,'CDCM Volume Forecasts'!$A$28:$AL$136,E$143,FALSE) -> 0
A187: LDNO HV: LV Network Non-Domestic Non-CT | B187: =VLOOKUP(Vlookup!$B146,'CDCM Volume Forecasts'!$A$28:$AL$136,B$143,FALSE) -> 50.62210439 | C187: =VLOOKUP(Vlookup!$B146,'CDCM Volume Forecasts'!$A$28:$AL$136,C$143,FALSE) -> 290.2504093 | D187: =VLOOKUP(Vlookup!$B146,'CDCM Volume Forecasts'!$A$28:$AL$136,D$143,FALSE) -> 161.0849097 | E187: =VLOOKUP(Vlookup!$B146,'CDCM Volume Forecasts'!$A$28:$AL$136,E$143,FALSE) -> 8.825288101
A188: > LV HH Metered
A189: LV HH Metered | B189: =VLOOKUP(Vlookup!$B148,'CDCM Volume Forecasts'!$A$28:$AL$136,B$143,FALSE) -> 120521.177 | C189: =VLOOKUP(Vlookup!$B148,'CDCM Volume Forecasts'!$A$28:$AL$136,C$143,FALSE) -> 767707.2736 | D189: =VLOOKUP(Vlookup!$B148,'CDCM Volume Forecasts'!$A$28:$AL$136,D$143,FALSE) -> 570489.4375 | E189: =VLOOKUP(Vlookup!$B148,'CDCM Volume Forecasts'!$A$28:$AL$136,E$143,FALSE) -> 6053.599684 | F189: =VLOOKUP(Vlookup!$B148,'CDCM Volume Forecasts'!$A$28:$AL$136,F$143,FALSE) -> 725000 | G189: =VLOOKUP(Vlookup!$B148,'CDCM Volume Forecasts'!$A$28:$AL$136,G$143,FALSE) -> 28587.32249 | H189: =VLOOKUP(Vlookup!$B148,'CDCM Volume Forecasts'!$A$28:$AL$136,H$143,FALSE) -> 122816.7972
A190: LDNO LV: LV HH Metered | B190: =VLOOKUP(Vlookup!$B149,'CDCM Volume Forecasts'!$A$28:$AL$136,B$143,FALSE) -> 26.56323277 | C190: =VLOOKUP(Vlookup!$B149,'CDCM Volume Forecasts'!$A$28:$AL$136,C$143,FALSE) -> 180.0230628 | D190: =VLOOKUP(Vlookup!$B149,'CDCM Volume Forecasts'!$A$28:$AL$136,D$143,FALSE) -> 132.9414728 | E190: =VLOOKUP(Vlookup!$B149,'CDCM Volume Forecasts'!$A$28:$AL$136,E$143,FALSE) -> 2.894651563 | F190: =VLOOKUP(Vlookup!$B149,'CDCM Volume Forecasts'!$A$28:$AL$136,F$143,FALSE) -> 230.1155295 | G190: =VLOOKUP(Vlookup!$B149,'CDCM Volume Forecasts'!$A$28:$AL$136,G$143,FALSE) -> 26.72951796 | H190: =VLOOKUP(Vlookup!$B149,'CDCM Volume Forecasts'!$A$28:$AL$136,H$143,FALSE) -> 8.64161504
A191: LDNO HV: LV HH Metered | B191: =VLOOKUP(Vlookup!$B150,'CDCM Volume Forecasts'!$A$28:$AL$136,B$143,FALSE) -> 5344.984537 | C191: =VLOOKUP(Vlookup!$B150,'CDCM Volume Forecasts'!$A$28:$AL$136,C$143,FALSE) -> 30055.81136 | D191: =VLOOKUP(Vlookup!$B150,'CDCM Volume Forecasts'!$A$28:$AL$136,D$143,FALSE) -> 27681.62318 | E191: =VLOOKUP(Vlookup!$B150,'CDCM Volume Forecasts'!$A$28:$AL$136,E$143,FALSE) -> 132.2861054 | F191: =VLOOKUP(Vlookup!$B150,'CDCM Volume Forecasts'!$A$28:$AL$136,F$143,FALSE) -> 39629.74012 | G191: =VLOOKUP(Vlookup!$B150,'CDCM Volume Forecasts'!$A$28:$AL$136,G$143,FALSE) -> 47.24597616 | H191: =VLOOKUP(Vlookup!$B150,'CDCM Volume Forecasts'!$A$28:$AL$136,H$143,FALSE) -> 1627.863829
A192: > LV Sub HH Metered
A193: LV Sub HH Metered | B193: =VLOOKUP(Vlookup!$B152,'CDCM Volume Forecasts'!$A$28:$AL$136,B$143,FALSE) -> 4874.020017 | C193: =VLOOKUP(Vlookup!$B152,'CDCM Volume Forecasts'!$A$28:$AL$136,C$143,FALSE) -> 29990.72372 | D193: =VLOOKUP(Vlookup!$B152,'CDCM Volume Forecasts'!$A$28:$AL$136,D$143,FALSE) -> 25258.84703 | E193: =VLOOKUP(Vlookup!$B152,'CDCM Volume Forecasts'!$A$28:$AL$136,E$143,FALSE) -> 64.98335504 | F193: =VLOOKUP(Vlookup!$B152,'CDCM Volume Forecasts'!$A$28:$AL$136,F$143,FALSE) -> 23211.75202 | G193: =VLOOKUP(Vlookup!$B152,'CDCM Volume Forecasts'!$A$28:$AL$136,G$143,FALSE) -> 953.9675292 | H193: =VLOOKUP(Vlookup!$B152,'CDCM Volume Forecasts'!$A$28:$AL$136,H$143,FALSE) -> 6728.325406
A194: LDNO HV: LV Sub HH Metered | B194: =VLOOKUP(Vlookup!$B153,'CDCM Volume Forecasts'!$A$28:$AL$136,B$143,FALSE) -> 426.4583855 | C194: =VLOOKUP(Vlookup!$B153,'CDCM Volume Forecasts'!$A$28:$AL$136,C$143,FALSE) -> 2276.573155 | D194: =VLOOKUP(Vlookup!$B153,'CDCM Volume Forecasts'!$A$28:$AL$136,D$143,FALSE) -> 2031.255156 | E194: =VLOOKUP(Vlookup!$B153,'CDCM Volume Forecasts'!$A$28:$AL$136,E$143,FALSE) -> 3.486095771 | F194: =VLOOKUP(Vlookup!$B153,'CDCM Volume Forecasts'!$A$28:$AL$136,F$143,FALSE) -> 2811.357939 | G194: =VLOOKUP(Vlookup!$B153,'CDCM Volume Forecasts'!$A$28:$AL$136,G$143,FALSE) -> 0 | H194: =VLOOKUP(Vlookup!$B153,'CDCM Volume Forecasts'!$A$28:$AL$136,H$143,FALSE) -> 78.99136478
A195: > HV HH Metered
A196: HV HH Metered | B196: =VLOOKUP(Vlookup!$B155,'CDCM Volume Forecasts'!$A$28:$AL$136,B$143,FALSE) -> 146873.8891 | C196: =VLOOKUP(Vlookup!$B155,'CDCM Volume Forecasts'!$A$28:$AL$136,C$143,FALSE) -> 903198.681 | D196: =VLOOKUP(Vlookup!$B155,'CDCM Volume Forecasts'!$A$28:$AL$136,D$143,FALSE) -> 842161.3565 | E196: =VLOOKUP(Vlookup!$B155,'CDCM Volume Forecasts'!$A$28:$AL$136,E$143,FALSE) -> 814.7168057 | F196: =VLOOKUP(Vlookup!$B155,'CDCM Volume Forecasts'!$A$28:$AL$136,F$143,FALSE) -> 628579.2102 | G196: =VLOOKUP(Vlookup!$B155,'CDCM Volume Forecasts'!$A$28:$AL$136,G$143,FALSE) -> 34337.68614 | H196: =VLOOKUP(Vlookup!$B155,'CDCM Volume Forecasts'!$A$28:$AL$136,H$143,FALSE) -> 97134.43631
A197: LDNO HV: HV HH Metered | B197: =VLOOKUP(Vlookup!$B156,'CDCM Volume Forecasts'!$A$28:$AL$136,B$143,FALSE) -> 659.3996647 | C197: =VLOOKUP(Vlookup!$B156,'CDCM Volume Forecasts'!$A$28:$AL$136,C$143,FALSE) -> 3854.650197 | D197: =VLOOKUP(Vlookup!$B156,'CDCM Volume Forecasts'!$A$28:$AL$136,D$143,FALSE) -> 3181.611943 | E197: =VLOOKUP(Vlookup!$B156,'CDCM Volume Forecasts'!$A$28:$AL$136,E$143,FALSE) -> 8.333603881 | F197: =VLOOKUP(Vlookup!$B156,'CDCM Volume Forecasts'!$A$28:$AL$136,F$143,FALSE) -> 3270.819309 | G197: =VLOOKUP(Vlookup!$B156,'CDCM Volume Forecasts'!$A$28:$AL$136,G$143,FALSE) -> 0 | H197: =VLOOKUP(Vlookup!$B156,'CDCM Volume Forecasts'!$A$28:$AL$136,H$143,FALSE) -> 290.1979556
A198: > NHH UMS category A
A199: NHH UMS category A | B199: =VLOOKUP(Vlookup!$B158,'CDCM Volume Forecasts'!$A$28:$AL$136,B$143,FALSE) -> 1811.146729 | E199: =VLOOKUP(Vlookup!$B158,'CDCM Volume Forecasts'!$A$28:$AL$136,E$143,FALSE) -> 0
A200: LDNO LV: NHH UMS category A | B200: =VLOOKUP(Vlookup!$B159,'CDCM Volume Forecasts'!$A$28:$AL$136,B$143,FALSE) -> 0 | E200: =VLOOKUP(Vlookup!$B159,'CDCM Volume Forecasts'!$A$28:$AL$136,E$143,FALSE) -> 0
A201: LDNO HV: NHH UMS category A | B201: =VLOOKUP(Vlookup!$B160,'CDCM Volume Forecasts'!$A$28:$AL$136,B$143,FALSE) -> 72.61193186 | E201: =VLOOKUP(Vlookup!$B160,'CDCM Volume Forecasts'!$A$28:$AL$136,E$143,FALSE) -> 0
A202: > NHH UMS category B
A203: NHH UMS category B | B203: =VLOOKUP(Vlookup!$B162,'CDCM Volume Forecasts'!$A$28:$AL$136,B$143,FALSE) -> 5391.406227 | E203: =VLOOKUP(Vlookup!$B162,'CDCM Volume Forecasts'!$A$28:$AL$136,E$143,FALSE) -> 0
A204: LDNO LV: NHH UMS category B | B204: =VLOOKUP(Vlookup!$B163,'CDCM Volume Forecasts'!$A$28:$AL$136,B$143,FALSE) -> 8.650480011 | E204: =VLOOKUP(Vlookup!$B163,'CDCM Volume Forecasts'!$A$28:$AL$136,E$143,FALSE) -> 0
A205: LDNO HV: NHH UMS category B | B205: =VLOOKUP(Vlookup!$B164,'CDCM Volume Forecasts'!$A$28:$AL$136,B$143,FALSE) -> 119.5006233 | E205: =VLOOKUP(Vlookup!$B164,'CDCM Volume Forecasts'!$A$28:$AL$136,E$143,FALSE) -> 0
A206: > NHH UMS category C
A207: NHH UMS category C | B207: =VLOOKUP(Vlookup!$B166,'CDCM Volume Forecasts'!$A$28:$AL$136,B$143,FALSE) -> 287.5816589 | E207: =VLOOKUP(Vlookup!$B166,'CDCM Volume Forecasts'!$A$28:$AL$136,E$143,FALSE) -> 0
A208: LDNO LV: NHH UMS category C | B208: =VLOOKUP(Vlookup!$B167,'CDCM Volume Forecasts'!$A$28:$AL$136,B$143,FALSE) -> 0 | E208: =VLOOKUP(Vlookup!$B167,'CDCM Volume Forecasts'!$A$28:$AL$136,E$143,FALSE) -> 0
A209: LDNO HV: NHH UMS category C | B209: =VLOOKUP(Vlookup!$B168,'CDCM Volume Forecasts'!$A$28:$AL$136,B$143,FALSE) -> 0 | E209: =VLOOKUP(Vlookup!$B168,'CDCM Volume Forecasts'!$A$28:$AL$136,E$143,FALSE) -> 0
A210: > NHH UMS category D
A211: NHH UMS category D | B211: =VLOOKUP(Vlookup!$B170,'CDCM Volume Forecasts'!$A$28:$AL$136,B$143,FALSE) -> 0 | E211: =VLOOKUP(Vlookup!$B170,'CDCM Volume Forecasts'!$A$28:$AL$136,E$143,FALSE) -> 0
A212: LDNO LV: NHH UMS category D | B212: =VLOOKUP(Vlookup!$B171,'CDCM Volume Forecasts'!$A$28:$AL$136,B$143,FALSE) -> 0 | E212: =VLOOKUP(Vlookup!$B171,'CDCM Volume Forecasts'!$A$28:$AL$136,E$143,FALSE) -> 0
A213: LDNO HV: NHH UMS category D | B213: =VLOOKUP(Vlookup!$B172,'CDCM Volume Forecasts'!$A$28:$AL$136,B$143,FALSE) -> 0 | E213: =VLOOKUP(Vlookup!$B172,'CDCM Volume Forecasts'!$A$28:$AL$136,E$143,FALSE) -> 0
A214: > LV UMS (Pseudo HH Metered)
A215: LV UMS (Pseudo HH Metered) | B215: =VLOOKUP(Vlookup!$B174,'CDCM Volume Forecasts'!$A$28:$AL$136,B$143,FALSE) -> 5390.037125 | C215: =VLOOKUP(Vlookup!$B174,'CDCM Volume Forecasts'!$A$28:$AL$136,C$143,FALSE) -> 33830.68709 | D215: =VLOOKUP(Vlookup!$B174,'CDCM Volume Forecasts'!$A$28:$AL$136,D$143,FALSE) -> 82069.28028 | E215: =VLOOKUP(Vlookup!$B174,'CDCM Volume Forecasts'!$A$28:$AL$136,E$143,FALSE) -> 32.83606557
A216: LDNO LV: LV UMS (Pseudo HH Metered) | B216: =VLOOKUP(Vlookup!$B175,'CDCM Volume Forecasts'!$A$28:$AL$136,B$143,FALSE) -> 0 | C216: =VLOOKUP(Vlookup!$B175,'CDCM Volume Forecasts'!$A$28:$AL$136,C$143,FALSE) -> 0 | D216: =VLOOKUP(Vlookup!$B175,'CDCM Volume Forecasts'!$A$28:$AL$136,D$143,FALSE) -> 0 | E216: =VLOOKUP(Vlookup!$B175,'CDCM Volume Forecasts'!$A$28:$AL$136,E$143,FALSE) -> 0
A217: LDNO HV: LV UMS (Pseudo HH Metered) | B217: =VLOOKUP(Vlookup!$B176,'CDCM Volume Forecasts'!$A$28:$AL$136,B$143,FALSE) -> 0 | C217: =VLOOKUP(Vlookup!$B176,'CDCM Volume Forecasts'!$A$28:$AL$136,C$143,FALSE) -> 0 | D217: =VLOOKUP(Vlookup!$B176,'CDCM Volume Forecasts'!$A$28:$AL$136,D$143,FALSE) -> 0 | E217: =VLOOKUP(Vlookup!$B176,'CDCM Volume Forecasts'!$A$28:$AL$136,E$143,FALSE) -> 0
A218: > LV Generation NHH or Aggregate HH
A219: LV Generation NHH or Aggregate HH | B219: =VLOOKUP(Vlookup!$B178,'CDCM Volume Forecasts'!$A$28:$AL$136,B$143,FALSE) -> 2534.880142 | E219: =VLOOKUP(Vlookup!$B178,'CDCM Volume Forecasts'!$A$28:$AL$136,E$143,FALSE) -> 0
A220: LDNO LV: LV Generation NHH or Aggregate HH | B220: =VLOOKUP(Vlookup!$B179,'CDCM Volume Forecasts'!$A$28:$AL$136,B$143,FALSE) -> 0 | E220: =VLOOKUP(Vlookup!$B179,'CDCM Volume Forecasts'!$A$28:$AL$136,E$143,FALSE) -> 0
A221: LDNO HV: LV Generation NHH or Aggregate HH | B221: =VLOOKUP(Vlookup!$B180,'CDCM Volume Forecasts'!$A$28:$AL$136,B$143,FALSE) -> 0 | E221: =VLOOKUP(Vlookup!$B180,'CDCM Volume Forecasts'!$A$28:$AL$136,E$143,FALSE) -> 0
A222: > LV Sub Generation NHH
A223: LV Sub Generation NHH | B223: =VLOOKUP(Vlookup!$B182,'CDCM Volume Forecasts'!$A$28:$AL$136,B$143,FALSE) -> 0 | E223: =VLOOKUP(Vlookup!$B182,'CDCM Volume Forecasts'!$A$28:$AL$136,E$143,FALSE) -> 0
A224: LDNO HV: LV Sub Generation NHH | B224: =VLOOKUP(Vlookup!$B183,'CDCM Volume Forecasts'!$A$28:$AL$136,B$143,FALSE) -> 0 | E224: =VLOOKUP(Vlookup!$B183,'CDCM Volume Forecasts'!$A$28:$AL$136,E$143,FALSE) -> 0
A225: > LV Generation Intermittent
A226: LV Generation Intermittent | B226: =VLOOKUP(Vlookup!$B185,'CDCM Volume Forecasts'!$A$28:$AL$136,B$143,FALSE) -> 35860.14794 | E226: =VLOOKUP(Vlookup!$B185,'CDCM Volume Forecasts'!$A$28:$AL$136,E$143,FALSE) -> 452.1634098 | H226: =VLOOKUP(Vlookup!$B185,'CDCM Volume Forecasts'!$A$28:$AL$136,H$143,FALSE) -> 3381.700951
A227: LDNO LV: LV Generation Intermittent | B227: =VLOOKUP(Vlookup!$B186,'CDCM Volume Forecasts'!$A$28:$AL$136,B$143,FALSE) -> 0 | E227: =VLOOKUP(Vlookup!$B186,'CDCM Volume Forecasts'!$A$28:$AL$136,E$143,FALSE) -> 0 | H227: =VLOOKUP(Vlookup!$B186,'CDCM Volume Forecasts'!$A$28:$AL$136,H$143,FALSE) -> 0
A228: LDNO HV: LV Generation Intermittent | B228: =VLOOKUP(Vlookup!$B187,'CDCM Volume Forecasts'!$A$28:$AL$136,B$143,FALSE) -> 527.2147719 | E228: =VLOOKUP(Vlookup!$B187,'CDCM Volume Forecasts'!$A$28:$AL$136,E$143,FALSE) -> 3.3275 | H228: =VLOOKUP(Vlookup!$B187,'CDCM Volume Forecasts'!$A$28:$AL$136,H$143,FALSE) -> 91.34960038
... 99 more rows

Sheet (Y+3)
A1: Input data (Y+3)
A4: 1000. Company, charging year, data version
B6: Company | C6: Year | D6: Version
A7: Company, charging year, data version | B7: =VLOOKUP(Vlookup!B7,'CDCM Forecast Data'!$A$14:$I$271,8,FALSE) -> WPD South Wales | C7: =VLOOKUP(Vlookup!C7,'CDCM Forecast Data'!$A$14:$I$271,8,FALSE) -> 2022/23 | D7: =VLOOKUP(Vlookup!D7,'CDCM Forecast Data'!$A$14:$I$271,8,FALSE) -> Forecast
A9: 1010. Financial and general assumptions
A11: Sources: financial assumptions; calendar; network model.
A12: These financial assumptions determine the annuity rate applied to convert the asset values of the network model into an annual charge.
B13: Rate of return | C13: Annualisation period (years) | D13: Annuity proportion for customer-contributed assets | E13: Power factor | F13: Days in the charging period
A14: Financial and general assumptions | B14: =VLOOKUP(Vlookup!B14,'CDCM Forecast Data'!$A$14:$I$271,8,FALSE) -> 0.0421 | C14: =VLOOKUP(Vlookup!C14,'CDCM Forecast Data'!$A$14:$I$271,8,FALSE) -> 40 | E14: =VLOOKUP(Vlookup!E14,'CDCM Forecast Data'!$A$14:$I$271,8,FALSE) -> 0.95 | F14: =VLOOKUP(Vlookup!F14,'CDCM Forecast Data'!$A$14:$I$271,8,FALSE) -> 365
A16: 1017. Diversity allowance between top and bottom of network level
A18: Source: operational data analysis and/or network model.
A19: The diversity figure against GSP is the diversity between GSP Group (the whole system) and individual GSPs.
A20: The diversity figure against 132kV is the diversity between GSPs (the top of the 132kV network) and 132kV/EHV bulk supply points (the bottom of the 132kV network).
A21: The diversity figure against EHV is the diversity between 132kV/EHV bulk supply points (the top of the EHV network) and EHV/HV primary substations (the bottom of the EHV network).
A22: The diversity figure against HV is the diversity between EHV/HV primary substations (the top of the HV network) and HV/LV substations (the bottom of the HV network).
B23: Diversity allowance between top and bottom of network level
A24: GSPs | B24: =VLOOKUP(Vlookup!B24,'CDCM Forecast Data'!$A$14:$I$271,8,FALSE) -> 0.06382978723
A25: 132kV | B25: =VLOOKUP(Vlookup!B25,'CDCM Forecast Data'!$A$14:$I$271,8,FALSE) -> 0.053
A26: 132kV/EHV
A27: EHV | B27: =VLOOKUP(Vlookup!B27,'CDCM Forecast Data'!$A$14:$I$271,8,FALSE) -> 0.099
A28: EHV/HV
A29: HV | B29: =VLOOKUP(Vlookup!B29,'CDCM Forecast Data'!$A$14:$I$271,8,FALSE) -> 0.37
A30: HV/LV
A31: LV circuits
A33: 1018. Proportion of relevant load going through 132kV/HV direct transformation
B35: 132kV/HV
A36: EHV/HV | B36: =VLOOKUP(Vlookup!B36,'CDCM Forecast Data'!$A$14:$I$271,8,FALSE) -> 0.3
A38: 1019. Network model GSP peak demand (MW)
B40: Network model GSP peak demand (MW)
A41: Network model GSP peak demand (MW) | B41: =VLOOKUP(Vlookup!B41,'CDCM Forecast Data'!$A$14:$I$271,8,FALSE) -> 500
A43: 1020. Gross asset cost by network level (£)
B45: Gross assets £
A46: 132kV | B46: =VLOOKUP(Vlookup!B46,'CDCM Forecast Data'!$A$14:$I$271,8,FALSE) -> 147664794.1
A47: 132kV/EHV | B47: =VLOOKUP(Vlookup!B47,'CDCM Forecast Data'!$A$14:$I$271,8,FALSE) -> 14141584.16
A48: EHV | B48: =VLOOKUP(Vlookup!B48,'CDCM Forecast Data'!$A$14:$I$271,8,FALSE) -> 37201907.98
A49: EHV/HV | B49: =VLOOKUP(Vlookup!B49,'CDCM Forecast Data'!$A$14:$I$271,8,FALSE) -> 32064050.61
A50: 132kV/HV | B50: =VLOOKUP(Vlookup!B50,'CDCM Forecast Data'!$A$14:$I$271,8,FALSE) -> 11815100.05
A51: HV | B51: =VLOOKUP(Vlookup!B51,'CDCM Forecast Data'!$A$14:$I$271,8,FALSE) -> 167421377.8
A52: HV/LV | B52: =VLOOKUP(Vlookup!B52,'CDCM Forecast Data'!$A$14:$I$271,8,FALSE) -> 63072434.71
A53: LV circuits | B53: =VLOOKUP(Vlookup!B53,'CDCM Forecast Data'!$A$14:$I$271,8,FALSE) -> 142210365.3
A55: 1022. LV service model asset cost (£)
B57: LV service model 1 | C57: LV service model 2 | D57: LV service model 3 | E57: LV service model 4 | F57: LV service model 5 | G57: LV service model 6 | H57: LV service model 7 | I57: LV service model 8
A58: LV service model asset cost (£) | B58: =VLOOKUP(Vlookup!B58,'CDCM Forecast Data'!$A$14:$I$271,8,FALSE) -> 4779.945426 | C58: =VLOOKUP(Vlookup!C58,'CDCM Forecast Data'!$A$14:$I$271,8,FALSE) -> 728.7656354 | D58: =VLOOKUP(Vlookup!D58,'CDCM Forecast Data'!$A$14:$I$271,8,FALSE) -> 842.8777623 | E58: =VLOOKUP(Vlookup!E58,'CDCM Forecast Data'!$A$14:$I$271,8,FALSE) -> 611.6968974 | F58: =VLOOKUP(Vlookup!F58,'CDCM Forecast Data'!$A$14:$I$271,8,FALSE) -> 1349.536814 | G58: =VLOOKUP(Vlookup!G58,'CDCM Forecast Data'!$A$14:$I$271,8,FALSE) -> 1053.504626 | H58: =VLOOKUP(Vlookup!H58,'CDCM Forecast Data'!$A$14:$I$271,8,FALSE) -> 0 | I58: =VLOOKUP(Vlookup!I58,'CDCM Forecast Data'!$A$14:$I$271,8,FALSE) -> 576.5917704
A60: 1023. HV service model asset cost (£)
B62: HV service model 1 | C62: HV service model 2 | D62: HV service model 3 | E62: HV service model 4 | F62: HV service model 5
A63: HV service model asset cost (£) | B63: =VLOOKUP(Vlookup!B63,'CDCM Forecast Data'!$A$14:$I$271,8,FALSE) -> 11377.56931 | C63: =VLOOKUP(Vlookup!C63,'CDCM Forecast Data'!$A$14:$I$271,8,FALSE) -> 4677.565217 | D63: =VLOOKUP(Vlookup!D63,'CDCM Forecast Data'!$A$14:$I$271,8,FALSE) -> 0 | E63: =VLOOKUP(Vlookup!E63,'CDCM Forecast Data'!$A$14:$I$271,8,FALSE) -> 0 | F63: =VLOOKUP(Vlookup!F63,'CDCM Forecast Data'!$A$14:$I$271,8,FALSE) -> 0
A65: 1025. Matrix of applicability of LV service models to tariffs with fixed charges
B66: 26 | C66: =B66+1 -> 27 | D66: 28 | E66: 29 | F66: 30 | G66: 31 | H66: 32 | I66: 33
B67: LV service model 1 | C67: LV service model 2 | D67: LV service model 3 | E67: LV service model 4 | F67: LV service model 5 | G67: LV service model 6 | H67: LV service model 7 | I67: LV service model 8
A68: Domestic Unrestricted | B68: =VLOOKUP($A68,'Mat of App'!$B$7:$AP$43,B$66,FALSE) -> 0.05 | C68: =VLOOKUP($A68,'Mat of App'!$B$7:$AP$43,C$66,FALSE) -> 0 | D68: =VLOOKUP($A68,'Mat of App'!$B$7:$AP$43,D$66,FALSE) -> 0 | E68: =VLOOKUP($A68,'Mat of App'!$B$7:$AP$43,E$66,FALSE) -> 0 | F68: =VLOOKUP($A68,'Mat of App'!$B$7:$AP$43,F$66,FALSE) -> 0 | G68: =VLOOKUP($A68,'Mat of App'!$B$7:$AP$43,G$66,FALSE) -> 0 | H68: =VLOOKUP($A68,'Mat of App'!$B$7:$AP$43,H$66,FALSE) -> 0 | I68: =VLOOKUP($A68,'Mat of App'!$B$7:$AP$43,I$66,FALSE) -> 0
A69: Domestic Two Rate | B69: =VLOOKUP($A69,'Mat of App'!$B$7:$AP$43,B$66,FALSE) -> 0.05 | C69: =VLOOKUP($A69,'Mat of App'!$B$7:$AP$43,C$66,FALSE) -> 0 | D69: =VLOOKUP($A69,'Mat of App'!$B$7:$AP$43,D$66,FALSE) -> 0 | E69: =VLOOKUP($A69,'Mat of App'!$B$7:$AP$43,E$66,FALSE) -> 0 | F69: =VLOOKUP($A69,'Mat of App'!$B$7:$AP$43,F$66,FALSE) -> 0 | G69: =VLOOKUP($A69,'Mat of App'!$B$7:$AP$43,G$66,FALSE) -> 0 | H69: =VLOOKUP($A69,'Mat of App'!$B$7:$AP$43,H$66,FALSE) -> 0 | I69: =VLOOKUP($A69,'Mat of App'!$B$7:$AP$43,I$66,FALSE) -> 0
A70: Small Non Domestic Unrestricted | B70: =VLOOKUP($A70,'Mat of App'!$B$7:$AP$43,B$66,FALSE) -> 0 | C70: =VLOOKUP($A70,'Mat of App'!$B$7:$AP$43,C$66,FALSE) -> 1 | D70: =VLOOKUP($A70,'Mat of App'!$B$7:$AP$43,D$66,FALSE) -> 0 | E70: =VLOOKUP($A70,'Mat of App'!$B$7:$AP$43,E$66,FALSE) -> 0 | F70: =VLOOKUP($A70,'Mat of App'!$B$7:$AP$43,F$66,FALSE) -> 0 | G70: =VLOOKUP($A70,'Mat of App'!$B$7:$AP$43,G$66,FALSE) -> 0 | H70: =VLOOKUP($A70,'Mat of App'!$B$7:$AP$43,H$66,FALSE) -> 0 | I70: =VLOOKUP($A70,'Mat of App'!$B$7:$AP$43,I$66,FALSE) -> 0
A71: Small Non Domestic Two Rate | B71: =VLOOKUP($A71,'Mat of App'!$B$7:$AP$43,B$66,FALSE) -> 0 | C71: =VLOOKUP($A71,'Mat of App'!$B$7:$AP$43,C$66,FALSE) -> 1 | D71: =VLOOKUP($A71,'Mat of App'!$B$7:$AP$43,D$66,FALSE) -> 0 | E71: =VLOOKUP($A71,'Mat of App'!$B$7:$AP$43,E$66,FALSE) -> 0 | F71: =VLOOKUP($A71,'Mat of App'!$B$7:$AP$43,F$66,FALSE) -> 0 | G71: =VLOOKUP($A71,'Mat of App'!$B$7:$AP$43,G$66,FALSE) -> 0 | H71: =VLOOKUP($A71,'Mat of App'!$B$7:$AP$43,H$66,FALSE) -> 0 | I71: =VLOOKUP($A71,'Mat of App'!$B$7:$AP$43,I$66,FALSE) -> 0
A72: LV Medium Non-Domestic | B72: =VLOOKUP($A72,'Mat of App'!$B$7:$AP$43,B$66,FALSE) -> 0 | C72: =VLOOKUP($A72,'Mat of App'!$B$7:$AP$43,C$66,FALSE) -> 0 | D72: =VLOOKUP($A72,'Mat of App'!$B$7:$AP$43,D$66,FALSE) -> 1 | E72: =VLOOKUP($A72,'Mat of App'!$B$7:$AP$43,E$66,FALSE) -> 0 | F72: =VLOOKUP($A72,'Mat of App'!$B$7:$AP$43,F$66,FALSE) -> 0 | G72: =VLOOKUP($A72,'Mat of App'!$B$7:$AP$43,G$66,FALSE) -> 0 | H72: =VLOOKUP($A72,'Mat of App'!$B$7:$AP$43,H$66,FALSE) -> 0 | I72: =VLOOKUP($A72,'Mat of App'!$B$7:$AP$43,I$66,FALSE) -> 0
A73: LV Sub Medium Non-Domestic | B73: =VLOOKUP($A73,'Mat of App'!$B$7:$AP$43,B$66,FALSE) -> 0 | C73: =VLOOKUP($A73,'Mat of App'!$B$7:$AP$43,C$66,FALSE) -> 0 | D73: =VLOOKUP($A73,'Mat of App'!$B$7:$AP$43,D$66,FALSE) -> 0 | E73: =VLOOKUP($A73,'Mat of App'!$B$7:$AP$43,E$66,FALSE) -> 1 | F73: =VLOOKUP($A73,'Mat of App'!$B$7:$AP$43,F$66,FALSE) -> 0 | G73: =VLOOKUP($A73,'Mat of App'!$B$7:$AP$43,G$66,FALSE) -> 0 | H73: =VLOOKUP($A73,'Mat of App'!$B$7:$AP$43,H$66,FALSE) -> 0 | I73: =VLOOKUP($A73,'Mat of App'!$B$7:$AP$43,I$66,FALSE) -> 0
A74: LV Network Domestic | B74: =VLOOKUP($A74,'Mat of App'!$B$7:$AP$43,B$66,FALSE) -> 0.05 | C74: =VLOOKUP($A74,'Mat of App'!$B$7:$AP$43,C$66,FALSE) -> 0 | D74: =VLOOKUP($A74,'Mat of App'!$B$7:$AP$43,D$66,FALSE) -> 0 | E74: =VLOOKUP($A74,'Mat of App'!$B$7:$AP$43,E$66,FALSE) -> 0 | F74: =VLOOKUP($A74,'Mat of App'!$B$7:$AP$43,F$66,FALSE) -> 0 | G74: =VLOOKUP($A74,'Mat of App'!$B$7:$AP$43,G$66,FALSE) -> 0 | H74: =VLOOKUP($A74,'Mat of App'!$B$7:$AP$43,H$66,FALSE) -> 0 | I74: =VLOOKUP($A74,'Mat of App'!$B$7:$AP$43,I$66,FALSE) -> 0
A75: LV Network Non-Domestic Non-CT | B75: =VLOOKUP($A75,'Mat of App'!$B$7:$AP$43,B$66,FALSE) -> 0 | C75: =VLOOKUP($A75,'Mat of App'!$B$7:$AP$43,C$66,FALSE) -> 1 | D75: =VLOOKUP($A75,'Mat of App'!$B$7:$AP$43,D$66,FALSE) -> 0 | E75: =VLOOKUP($A75,'Mat of App'!$B$7:$AP$43,E$66,FALSE) -> 0 | F75: =VLOOKUP($A75,'Mat of App'!$B$7:$AP$43,F$66,FALSE) -> 0 | G75: =VLOOKUP($A75,'Mat of App'!$B$7:$AP$43,G$66,FALSE) -> 0 | H75: =VLOOKUP($A75,'Mat of App'!$B$7:$AP$43,H$66,FALSE) -> 0 | I75: =VLOOKUP($A75,'Mat of App'!$B$7:$AP$43,I$66,FALSE) -> 0
A76: LV HH Metered | B76: =VLOOKUP($A76,'Mat of App'!$B$7:$AP$43,B$66,FALSE) -> 0 | C76: =VLOOKUP($A76,'Mat of App'!$B$7:$AP$43,C$66,FALSE) -> 0 | D76: =VLOOKUP($A76,'Mat of App'!$B$7:$AP$43,D$66,FALSE) -> 0 | E76: =VLOOKUP($A76,'Mat of App'!$B$7:$AP$43,E$66,FALSE) -> 0 | F76: =VLOOKUP($A76,'Mat of App'!$B$7:$AP$43,F$66,FALSE) -> 1 | G76: =VLOOKUP($A76,'Mat of App'!$B$7:$AP$43,G$66,FALSE) -> 0 | H76: =VLOOKUP($A76,'Mat of App'!$B$7:$AP$43,H$66,FALSE) -> 0 | I76: =VLOOKUP($A76,'Mat of App'!$B$7:$AP$43,I$66,FALSE) -> 0
A77: LV Sub HH Metered | B77: =VLOOKUP($A77,'Mat of App'!$B$7:$AP$43,B$66,FALSE) -> 0 | C77: =VLOOKUP($A77,'Mat of App'!$B$7:$AP$43,C$66,FALSE) -> 0 | D77: =VLOOKUP($A77,'Mat of App'!$B$7:$AP$43,D$66,FALSE) -> 0 | E77: =VLOOKUP($A77,'Mat of App'!$B$7:$AP$43,E$66,FALSE) -> 0 | F77: =VLOOKUP($A77,'Mat of App'!$B$7:$AP$43,F$66,FALSE) -> 0 | G77: =VLOOKUP($A77,'Mat of App'!$B$7:$AP$43,G$66,FALSE) -> 1 | H77: =VLOOKUP($A77,'Mat of App'!$B$7:$AP$43,H$66,FALSE) -> 0 | I77: =VLOOKUP($A77,'Mat of App'!$B$7:$AP$43,I$66,FALSE) -> 0
A78: LV Generation NHH or Aggregate HH | B78: =VLOOKUP($A78,'Mat of App'!$B$7:$AP$43,B$66,FALSE) -> 0 | C78: =VLOOKUP($A78,'Mat of App'!$B$7:$AP$43,C$66,FALSE) -> 0 | D78: =VLOOKUP($A78,'Mat of App'!$B$7:$AP$43,D$66,FALSE) -> 0 | E78: =VLOOKUP($A78,'Mat of App'!$B$7:$AP$43,E$66,FALSE) -> 0 | F78: =VLOOKUP($A78,'Mat of App'!$B$7:$AP$43,F$66,FALSE) -> 0 | G78: =VLOOKUP($A78,'Mat of App'!$B$7:$AP$43,G$66,FALSE) -> 0 | H78: =VLOOKUP($A78,'Mat of App'!$B$7:$AP$43,H$66,FALSE) -> 1 | I78: =VLOOKUP($A78,'Mat of App'!$B$7:$AP$43,I$66,FALSE) -> 0
A79: LV Sub Generation NHH | B79: =VLOOKUP($A79,'Mat of App'!$B$7:$AP$43,B$66,FALSE) -> 0 | C79: =VLOOKUP($A79,'Mat of App'!$B$7:$AP$43,C$66,FALSE) -> 0 | D79: =VLOOKUP($A79,'Mat of App'!$B$7:$AP$43,D$66,FALSE) -> 0 | E79: =VLOOKUP($A79,'Mat of App'!$B$7:$AP$43,E$66,FALSE) -> 0 | F79: =VLOOKUP($A79,'Mat of App'!$B$7:$AP$43,F$66,FALSE) -> 0 | G79: =VLOOKUP($A79,'Mat of App'!$B$7:$AP$43,G$66,FALSE) -> 0 | H79: =VLOOKUP($A79,'Mat of App'!$B$7:$AP$43,H$66,FALSE) -> 1 | I79: =VLOOKUP($A79,'Mat of App'!$B$7:$AP$43,I$66,FALSE) -> 0
A80: LV Generation Intermittent | B80: =VLOOKUP($A80,'Mat of App'!$B$7:$AP$43,B$66,FALSE) -> 0 | C80: =VLOOKUP($A80,'Mat of App'!$B$7:$AP$43,C$66,FALSE) -> 0 | D80: =VLOOKUP($A80,'Mat of App'!$B$7:$AP$43,D$66,FALSE) -> 0 | E80: =VLOOKUP($A80,'Mat of App'!$B$7:$AP$43,E$66,FALSE) -> 0 | F80: =VLOOKUP($A80,'Mat of App'!$B$7:$AP$43,F$66,FALSE) -> 0 | G80: =VLOOKUP($A80,'Mat of App'!$B$7:$AP$43,G$66,FALSE) -> 0 | H80: =VLOOKUP($A80,'Mat of App'!$B$7:$AP$43,H$66,FALSE) -> 1 | I80: =VLOOKUP($A80,'Mat of App'!$B$7:$AP$43,I$66,FALSE) -> 0
A81: LV Generation Intermittent no RP charge | B81: =VLOOKUP($A81,'Mat of App'!$B$7:$AP$43,B$66,FALSE) -> 0 | C81: =VLOOKUP($A81,'Mat of App'!$B$7:$AP$43,C$66,FALSE) -> 0 | D81: =VLOOKUP($A81,'Mat of App'!$B$7:$AP$43,D$66,FALSE) -> 0 | E81: =VLOOKUP($A81,'Mat of App'!$B$7:$AP$43,E$66,FALSE) -> 0 | F81: =VLOOKUP($A81,'Mat of App'!$B$7:$AP$43,F$66,FALSE) -> 0 | G81: =VLOOKUP($A81,'Mat of App'!$B$7:$AP$43,G$66,FALSE) -> 0 | H81: =VLOOKUP($A81,'Mat of App'!$B$7:$AP$43,H$66,FALSE) -> 1 | I81: =VLOOKUP($A81,'Mat of App'!$B$7:$AP$43,I$66,FALSE) -> 0
A82: LV Generation Non-Intermittent | B82: =VLOOKUP($A82,'Mat of App'!$B$7:$AP$43,B$66,FALSE) -> 0 | C82: =VLOOKUP($A82,'Mat of App'!$B$7:$AP$43,C$66,FALSE) -> 0 | D82: =VLOOKUP($A82,'Mat of App'!$B$7:$AP$43,D$66,FALSE) -> 0 | E82: =VLOOKUP($A82,'Mat of App'!$B$7:$AP$43,E$66,FALSE) -> 0 | F82: =VLOOKUP($A82,'Mat of App'!$B$7:$AP$43,F$66,FALSE) -> 0 | G82: =VLOOKUP($A82,'Mat of App'!$B$7:$AP$43,G$66,FALSE) -> 0 | H82: =VLOOKUP($A82,'Mat of App'!$B$7:$AP$43,H$66,FALSE) -> 0 | I82: =VLOOKUP($A82,'Mat of App'!$B$7:$AP$43,I$66,FALSE) -> 0
A83: LV Generation Non-Intermittent no RP charge | B83: =VLOOKUP($A83,'Mat of App'!$B$7:$AP$43,B$66,FALSE) -> 0 | C83: =VLOOKUP($A83,'Mat of App'!$B$7:$AP$43,C$66,FALSE) -> 0 | D83: =VLOOKUP($A83,'Mat of App'!$B$7:$AP$43,D$66,FALSE) -> 0 | E83: =VLOOKUP($A83,'Mat of App'!$B$7:$AP$43,E$66,FALSE) -> 0 | F83: =VLOOKUP($A83,'Mat of App'!$B$7:$AP$43,F$66,FALSE) -> 0 | G83: =VLOOKUP($A83,'Mat of App'!$B$7:$AP$43,G$66,FALSE) -> 0 | H83: =VLOOKUP($A83,'Mat of App'!$B$7:$AP$43,H$66,FALSE) -> 0 | I83: =VLOOKUP($A83,'Mat of App'!$B$7:$AP$43,I$66,FALSE) -> 0
A84: LV Sub Generation Intermittent | B84: =VLOOKUP($A84,'Mat of App'!$B$7:$AP$43,B$66,FALSE) -> 0 | C84: =VLOOKUP($A84,'Mat of App'!$B$7:$AP$43,C$66,FALSE) -> 0 | D84: =VLOOKUP($A84,'Mat of App'!$B$7:$AP$43,D$66,FALSE) -> 0 | E84: =VLOOKUP($A84,'Mat of App'!$B$7:$AP$43,E$66,FALSE) -> 0 | F84: =VLOOKUP($A84,'Mat of App'!$B$7:$AP$43,F$66,FALSE) -> 0 | G84: =VLOOKUP($A84,'Mat of App'!$B$7:$AP$43,G$66,FALSE) -> 0 | H84: =VLOOKUP($A84,'Mat of App'!$B$7:$AP$43,H$66,FALSE) -> 0 | I84: =VLOOKUP($A84,'Mat of App'!$B$7:$AP$43,I$66,FALSE) -> 0
A85: LV Sub Generation Intermittent no RP charge | B85: =VLOOKUP($A85,'Mat of App'!$B$7:$AP$43,B$66,FALSE) -> 0 | C85: =VLOOKUP($A85,'Mat of App'!$B$7:$AP$43,C$66,FALSE) -> 0 | D85: =VLOOKUP($A85,'Mat of App'!$B$7:$AP$43,D$66,FALSE) -> 0 | E85: =VLOOKUP($A85,'Mat of App'!$B$7:$AP$43,E$66,FALSE) -> 0 | F85: =VLOOKUP($A85,'Mat of App'!$B$7:$AP$43,F$66,FALSE) -> 0 | G85: =VLOOKUP($A85,'Mat of App'!$B$7:$AP$43,G$66,FALSE) -> 0 | H85: =VLOOKUP($A85,'Mat of App'!$B$7:$AP$43,H$66,FALSE) -> 0 | I85: =VLOOKUP($A85,'Mat of App'!$B$7:$AP$43,I$66,FALSE) -> 0
A86: LV Sub Generation Non-Intermittent | B86: =VLOOKUP($A86,'Mat of App'!$B$7:$AP$43,B$66,FALSE) -> 0 | C86: =VLOOKUP($A86,'Mat of App'!$B$7:$AP$43,C$66,FALSE) -> 0 | D86: =VLOOKUP($A86,'Mat of App'!$B$7:$AP$43,D$66,FALSE) -> 0 | E86: =VLOOKUP($A86,'Mat of App'!$B$7:$AP$43,E$66,FALSE) -> 0 | F86: =VLOOKUP($A86,'Mat of App'!$B$7:$AP$43,F$66,FALSE) -> 0 | G86: =VLOOKUP($A86,'Mat of App'!$B$7:$AP$43,G$66,FALSE) -> 0 | H86: =VLOOKUP($A86,'Mat of App'!$B$7:$AP$43,H$66,FALSE) -> 0 | I86: =VLOOKUP($A86,'Mat of App'!$B$7:$AP$43,I$66,FALSE) -> 0
A87: LV Sub Generation Non-Intermittent no RP charge | B87: =VLOOKUP($A87,'Mat of App'!$B$7:$AP$43,B$66,FALSE) -> 0 | C87: =VLOOKUP($A87,'Mat of App'!$B$7:$AP$43,C$66,FALSE) -> 0 | D87: =VLOOKUP($A87,'Mat of App'!$B$7:$AP$43,D$66,FALSE) -> 0 | E87: =VLOOKUP($A87,'Mat of App'!$B$7:$AP$43,E$66,FALSE) -> 0 | F87: =VLOOKUP($A87,'Mat of App'!$B$7:$AP$43,F$66,FALSE) -> 0 | G87: =VLOOKUP($A87,'Mat of App'!$B$7:$AP$43,G$66,FALSE) -> 0 | H87: =VLOOKUP($A87,'Mat of App'!$B$7:$AP$43,H$66,FALSE) -> 0 | I87: =VLOOKUP($A87,'Mat of App'!$B$7:$AP$43,I$66,FALSE) -> 0
A89: 1026. Matrix of applicability of LV service models to unmetered tariffs
A91: Source: service models
A92: Proportion of service model involved in connecting load of 1 MWh/year
B93: LV service model 1 | C93: LV service model 2 | D93: LV service model 3 | E93: LV service model 4 | F93: LV service model 5 | G93: LV service model 6 | H93: LV service model 7 | I93: LV service model 8
A94: All LV unmetered tariffs | B94: =VLOOKUP($A94,'Mat of App'!$B$7:$AP$43,B$66,FALSE) -> 0 | C94: =VLOOKUP($A94,'Mat of App'!$B$7:$AP$43,C$66,FALSE) -> 0 | D94: =VLOOKUP($A94,'Mat of App'!$B$7:$AP$43,D$66,FALSE) -> 0 | E94: =VLOOKUP($A94,'Mat of App'!$B$7:$AP$43,E$66,FALSE) -> 0 | F94: =VLOOKUP($A94,'Mat of App'!$B$7:$AP$43,F$66,FALSE) -> 0 | G94: =VLOOKUP($A94,'Mat of App'!$B$7:$AP$43,G$66,FALSE) -> 0 | H94: =VLOOKUP($A94,'Mat of App'!$B$7:$AP$43,H$66,FALSE) -> 0 | I94: =VLOOKUP($A94,'Mat of App'!$B$7:$AP$43,I$66,FALSE) -> 0.488
A96: 1028. Matrix of applicability of HV service models to tariffs with fixed charges
B97: 17 | C97: =B97+1 -> 18 | D97: =C97+1 -> 19 | E97: =D97+1 -> 20 | F97: =E97+1 -> 21
B98: HV service model 1 | C98: HV service model 2 | D98: HV service model 3 | E98: HV service model 4 | F98: HV service model 5
A99: HV Medium Non-Domestic | B99: =VLOOKUP($A99,'Mat of App'!$B$7:$AP$43,B$97,FALSE) -> 1 | C99: =VLOOKUP($A99,'Mat of App'!$B$7:$AP$43,C$97,FALSE) -> 0 | D99: =VLOOKUP($A99,'Mat of App'!$B$7:$AP$43,D$97,FALSE) -> 0 | E99: =VLOOKUP($A99,'Mat of App'!$B$7:$AP$43,E$97,FALSE) -> 0 | F99: =VLOOKUP($A99,'Mat of App'!$B$7:$AP$43,F$97,FALSE) -> 0
A100: HV HH Metered | B100: =VLOOKUP($A100,'Mat of App'!$B$7:$AP$43,B$97,FALSE) -> 1 | C100: =VLOOKUP($A100,'Mat of App'!$B$7:$AP$43,C$97,FALSE) -> 0 | D100: =VLOOKUP($A100,'Mat of App'!$B$7:$AP$43,D$97,FALSE) -> 0 | E100: =VLOOKUP($A100,'Mat of App'!$B$7:$AP$43,E$97,FALSE) -> 0 | F100: =VLOOKUP($A100,'Mat of App'!$B$7:$AP$43,F$97,FALSE) -> 0
A101: HV Generation Intermittent | B101: =VLOOKUP($A101,'Mat of App'!$B$7:$AP$43,B$97,FALSE) -> 0 | C101: =VLOOKUP($A101,'Mat of App'!$B$7:$AP$43,C$97,FALSE) -> 1 | D101: =VLOOKUP($A101,'Mat of App'!$B$7:$AP$43,D$97,FALSE) -> 0 | E101: =VLOOKUP($A101,'Mat of App'!$B$7:$AP$43,E$97,FALSE) -> 0 | F101: =VLOOKUP($A101,'Mat of App'!$B$7:$AP$43,F$97,FALSE) -> 0
A102: HV Generation Intermittent no RP charge | B102: =VLOOKUP($A102,'Mat of App'!$B$7:$AP$43,B$97,FALSE) -> 0 | C102: =VLOOKUP($A102,'Mat of App'!$B$7:$AP$43,C$97,FALSE) -> 1 | D102: =VLOOKUP($A102,'Mat of App'!$B$7:$AP$43,D$97,FALSE) -> 0 | E102: =VLOOKUP($A102,'Mat of App'!$B$7:$AP$43,E$97,FALSE) -> 0 | F102: =VLOOKUP($A102,'Mat of App'!$B$7:$AP$43,F$97,FALSE) -> 0
A103: HV Generation Non-Intermittent | B103: =VLOOKUP($A103,'Mat of App'!$B$7:$AP$43,B$97,FALSE) -> 0 | C103: =VLOOKUP($A103,'Mat of App'!$B$7:$AP$43,C$97,FALSE) -> 1 | D103: =VLOOKUP($A103,'Mat of App'!$B$7:$AP$43,D$97,FALSE) -> 0 | E103: =VLOOKUP($A103,'Mat of App'!$B$7:$AP$43,E$97,FALSE) -> 0 | F103: =VLOOKUP($A103,'Mat of App'!$B$7:$AP$43,F$97,FALSE) -> 0
A104: HV Generation Non-Intermittent no RP charge | B104: =VLOOKUP($A104,'Mat of App'!$B$7:$AP$43,B$97,FALSE) -> 0 | C104: =VLOOKUP($A104,'Mat of App'!$B$7:$AP$43,C$97,FALSE) -> 1 | D104: =VLOOKUP($A104,'Mat of App'!$B$7:$AP$43,D$97,FALSE) -> 0 | E104: =VLOOKUP($A104,'Mat of App'!$B$7:$AP$43,E$97,FALSE) -> 0 | F104: =VLOOKUP($A104,'Mat of App'!$B$7:$AP$43,F$97,FALSE) -> 0
A106: 1032. Loss adjustment factors to transmission
A108: Source: losses model or loss adjustment factors at time of system peak.
B109: 132kV | C109: 132kV/EHV | D109: EHV | E109: EHV/HV | F109: HV | G109: HV/LV | H109: LV circuits
A110: Loss adjustment factor | B110: =VLOOKUP(Vlookup!B69,'CDCM Forecast Data'!$A$14:$I$271,8,FALSE) -> 1.009 | C110: =VLOOKUP(Vlookup!C69,'CDCM Forecast Data'!$A$14:$I$271,8,FALSE) -> 1.013 | D110: =VLOOKUP(Vlookup!D69,'CDCM Forecast Data'!$A$14:$I$271,8,FALSE) -> 1.024 | E110: =VLOOKUP(Vlookup!E69,'CDCM Forecast Data'!$A$14:$I$271,8,FALSE) -> 1.032 | F110: =VLOOKUP(Vlookup!F69,'CDCM Forecast Data'!$A$14:$I$271,8,FALSE) -> 1.041 | G110: =VLOOKUP(Vlookup!G69,'CDCM Forecast Data'!$A$14:$I$271,8,FALSE) -> 1.059 | H110: =VLOOKUP(Vlookup!H69,'CDCM Forecast Data'!$A$14:$I$271,8,FALSE) -> 1.077
A112: 1037. Embedded network (LDNO) discounts
A114: Source: separate price control disaggregation model.
B115: No discount | C115: LDNO LV: LV user | D115: LDNO HV: LV user | E115: LDNO HV: LV sub user | F115: LDNO HV: HV user
A116: LDNO discount | C116: =VLOOKUP(Vlookup!C75,'CDCM Forecast Data'!$A$14:$I$271,8,FALSE) -> 0.3199255301 | D116: =VLOOKUP(Vlookup!D75,'CDCM Forecast Data'!$A$14:$I$271,8,FALSE) -> 0.6334761221 | E116: =VLOOKUP(Vlookup!E75,'CDCM Forecast Data'!$A$14:$I$271,8,FALSE) -> 0.4384885799 | F116: =VLOOKUP(Vlookup!F75,'CDCM Forecast Data'!$A$14:$I$271,8,FALSE) -> 0.3226874527
A118: 1041. Load profile data for demand users
A120: Source: load data analysis.
B121: Coincidence factor | C121: Load factor
A122: Domestic Unrestricted | B122: =VLOOKUP(Vlookup!B81,'CDCM Forecast Data'!$A$14:$I$271,8,FALSE) -> 0.9157074753 | C122: =VLOOKUP(Vlookup!C81,'CDCM Forecast Data'!$A$14:$I$271,8,FALSE) -> 0.4308052566
A123: Domestic Two Rate | B123: =VLOOKUP(Vlookup!B82,'CDCM Forecast Data'!$A$14:$I$271,8,FALSE) -> 0.3567074092 | C123: =VLOOKUP(Vlookup!C82,'CDCM Forecast Data'!$A$14:$I$271,8,FALSE) -> 0.2769210098
A124: Domestic Off Peak (related MPAN) | C124: =VLOOKUP(Vlookup!C83,'CDCM Forecast Data'!$A$14:$I$271,8,FALSE) -> 0.1956368053
A125: Small Non Domestic Unrestricted | B125: =VLOOKUP(Vlookup!B84,'CDCM Forecast Data'!$A$14:$I$271,8,FALSE) -> 0.5092286883 | C125: =VLOOKUP(Vlookup!C84,'CDCM Forecast Data'!$A$14:$I$271,8,FALSE) -> 0.4165839085
A126: Small Non Domestic Two Rate | B126: =VLOOKUP(Vlookup!B85,'CDCM Forecast Data'!$A$14:$I$271,8,FALSE) -> 0.7364077701 | C126: =VLOOKUP(Vlookup!C85,'CDCM Forecast Data'!$A$14:$I$271,8,FALSE) -> 0.5852649537
A127: Small Non Domestic Off Peak (related MPAN) | C127: =VLOOKUP(Vlookup!C86,'CDCM Forecast Data'!$A$14:$I$271,8,FALSE) -> 0.2022777614
A128: LV Medium Non-Domestic | B128: =VLOOKUP(Vlookup!B87,'CDCM Forecast Data'!$A$14:$I$271,8,FALSE) -> 0.716354546 | C128: =VLOOKUP(Vlookup!C87,'CDCM Forecast Data'!$A$14:$I$271,8,FALSE) -> 0.5424317404
A129: LV Sub Medium Non-Domestic | B129: =VLOOKUP(Vlookup!B88,'CDCM Forecast Data'!$A$14:$I$271,8,FALSE) -> 0.716354546 | C129: =VLOOKUP(Vlookup!C88,'CDCM Forecast Data'!$A$14:$I$271,8,FALSE) -> 0.5424317404
A130: HV Medium Non-Domestic | B130: =VLOOKUP(Vlookup!B89,'CDCM Forecast Data'!$A$14:$I$271,8,FALSE) -> 0.4954831119 | C130: =VLOOKUP(Vlookup!C89,'CDCM Forecast Data'!$A$14:$I$271,8,FALSE) -> 0.4157772318
A131: LV Network Domestic | B131: =VLOOKUP(Vlookup!B90,'CDCM Forecast Data'!$A$14:$I$271,8,FALSE) -> 0.8840580388 | C131: =VLOOKUP(Vlookup!C90,'CDCM Forecast Data'!$A$14:$I$271,8,FALSE) -> 0.4218698608
A132: LV Network Non-Domestic Non-CT | B132: =VLOOKUP(Vlookup!B91,'CDCM Forecast Data'!$A$14:$I$271,8,FALSE) -> 0.5487311983 | C132: =VLOOKUP(Vlookup!C91,'CDCM Forecast Data'!$A$14:$I$271,8,FALSE) -> 0.4450046047
A133: LV HH Metered | B133: =VLOOKUP(Vlookup!B92,'CDCM Forecast Data'!$A$14:$I$271,8,FALSE) -> 0.740232814 | C133: =VLOOKUP(Vlookup!C92,'CDCM Forecast Data'!$A$14:$I$271,8,FALSE) -> 0.5877566842
A134: LV Sub HH Metered | B134: =VLOOKUP(Vlookup!B93,'CDCM Forecast Data'!$A$14:$I$271,8,FALSE) -> 0.7199425784 | C134: =VLOOKUP(Vlookup!C93,'CDCM Forecast Data'!$A$14:$I$271,8,FALSE) -> 0.5962079802
A135: HV HH Metered | B135: =VLOOKUP(Vlookup!B94,'CDCM Forecast Data'!$A$14:$I$271,8,FALSE) -> 0.7989789566 | C135: =VLOOKUP(Vlookup!C94,'CDCM Forecast Data'!$A$14:$I$271,8,FALSE) -> 0.7321391305
A136: NHH UMS category A | B136: =VLOOKUP(Vlookup!B95,'CDCM Forecast Data'!$A$14:$I$271,8,FALSE) -> 1 | C136: =VLOOKUP(Vlookup!C95,'CDCM Forecast Data'!$A$14:$I$271,8,FALSE) -> 1
A137: NHH UMS category B | B137: =VLOOKUP(Vlookup!B96,'CDCM Forecast Data'!$A$14:$I$271,8,FALSE) -> 0.9828346759 | C137: =VLOOKUP(Vlookup!C96,'CDCM Forecast Data'!$A$14:$I$271,8,FALSE) -> 0.4753987679
A138: NHH UMS category C | B138: =VLOOKUP(Vlookup!B97,'CDCM Forecast Data'!$A$14:$I$271,8,FALSE) -> 0.7826086957 | C138: =VLOOKUP(Vlookup!C97,'CDCM Forecast Data'!$A$14:$I$271,8,FALSE) -> 0.2733634899
A139: NHH UMS category D | B139: =VLOOKUP(Vlookup!B98,'CDCM Forecast Data'!$A$14:$I$271,8,FALSE) -> 0 | C139: =VLOOKUP(Vlookup!C98,'CDCM Forecast Data'!$A$14:$I$271,8,FALSE) -> 0.5155660185
A140: LV UMS (Pseudo HH Metered) | B140: =VLOOKUP(Vlookup!B99,'CDCM Forecast Data'!$A$14:$I$271,8,FALSE) -> 0.9477164255 | C140: =VLOOKUP(Vlookup!C99,'CDCM Forecast Data'!$A$14:$I$271,8,FALSE) -> 0.4501908686
A142: 1053. Volume forecasts for the charging year
B143: 25 | C143: 26 | D143: 27 | E143: 28 | F143: 29 | G143: 30 | H143: 31
A144: Source: forecast.
A145: Please include MPAN counts for tariffs with no fixed charge (e.g. off-peak tariffs),
A146: but exclude MPANs on tariffs with a fixed charge that are not subject to a fixed charge due to a site grouping arrangement.
B147: Rate 1 units (MWh) | C147: Rate 2 units (MWh) | D147: Rate 3 units (MWh) | E147: MPANs | F147: Import capacity (kVA) | G147: Exceeded capacity (kVA) | H147: Reactive power units (MVArh)
A148: > Domestic Unrestricted | B148: =VLOOKUP(Vlookup!$B107,'CDCM Volume Forecasts'!$A$28:$AL$136,B$143,FALSE) -> 0 | C148: =VLOOKUP(Vlookup!$B107,'CDCM Volume Forecasts'!$A$28:$AL$136,C$143,FALSE) -> 0 | D148: =VLOOKUP(Vlookup!$B107,'CDCM Volume Forecasts'!$A$28:$AL$136,D$143,FALSE) -> 0 | E148: =VLOOKUP(Vlookup!$B107,'CDCM Volume Forecasts'!$A$28:$AL$136,E$143,FALSE) -> 0 | F148: =VLOOKUP(Vlookup!$B107,'CDCM Volume Forecasts'!$A$28:$AL$136,F$143,FALSE) -> 0 | H148: =VLOOKUP(Vlookup!$B107,'CDCM Volume Forecasts'!$A$28:$AL$136,G$143,FALSE) -> 0
A149: Domestic Unrestricted | B149: =VLOOKUP(Vlookup!$B108,'CDCM Volume Forecasts'!$A$28:$AL$136,B$143,FALSE) -> 3137701.408 | E149: =VLOOKUP(Vlookup!$B108,'CDCM Volume Forecasts'!$A$28:$AL$136,E$143,FALSE) -> 998882.407
A150: LDNO LV: Domestic Unrestricted | B150: =VLOOKUP(Vlookup!$B109,'CDCM Volume Forecasts'!$A$28:$AL$136,B$143,FALSE) -> 3748.253398 | E150: =VLOOKUP(Vlookup!$B109,'CDCM Volume Forecasts'!$A$28:$AL$136,E$143,FALSE) -> 1534.903725
A151: LDNO HV: Domestic Unrestricted | B151: =VLOOKUP(Vlookup!$B110,'CDCM Volume Forecasts'!$A$28:$AL$136,B$143,FALSE) -> 21538.31146 | E151: =VLOOKUP(Vlookup!$B110,'CDCM Volume Forecasts'!$A$28:$AL$136,E$143,FALSE) -> 9576.463133
A152: > Domestic Two Rate
A153: Domestic Two Rate | B153: =VLOOKUP(Vlookup!$B112,'CDCM Volume Forecasts'!$A$28:$AL$136,B$143,FALSE) -> 148595.8148 | C153: =VLOOKUP(Vlookup!$B112,'CDCM Volume Forecasts'!$A$28:$AL$136,C$143,FALSE) -> 132539.3456 | E153: =VLOOKUP(Vlookup!$B112,'CDCM Volume Forecasts'!$A$28:$AL$136,E$143,FALSE) -> 50656.37901
A154: LDNO LV: Domestic Two Rate | B154: =VLOOKUP(Vlookup!$B113,'CDCM Volume Forecasts'!$A$28:$AL$136,B$143,FALSE) -> 76.31678952 | C154: =VLOOKUP(Vlookup!$B113,'CDCM Volume Forecasts'!$A$28:$AL$136,C$143,FALSE) -> 16.25200139 | E154: =VLOOKUP(Vlookup!$B113,'CDCM Volume Forecasts'!$A$28:$AL$136,E$143,FALSE) -> 32.93642007
A155: LDNO HV: Domestic Two Rate | B155: =VLOOKUP(Vlookup!$B114,'CDCM Volume Forecasts'!$A$28:$AL$136,B$143,FALSE) -> 307.7377218 | C155: =VLOOKUP(Vlookup!$B114,'CDCM Volume Forecasts'!$A$28:$AL$136,C$143,FALSE) -> 160.4615525 | E155: =VLOOKUP(Vlookup!$B114,'CDCM Volume Forecasts'!$A$28:$AL$136,E$143,FALSE) -> 182.8854175
A156: > Domestic Off Peak (related MPAN)
A157: Domestic Off Peak (related MPAN) | B157: =VLOOKUP(Vlookup!$B116,'CDCM Volume Forecasts'!$A$28:$AL$136,B$143,FALSE) -> 2369.594793 | E157: =VLOOKUP(Vlookup!$B116,'CDCM Volume Forecasts'!$A$28:$AL$136,E$143,FALSE) -> 0
A158: LDNO LV: Domestic Off Peak (related MPAN) | B158: =VLOOKUP(Vlookup!$B117,'CDCM Volume Forecasts'!$A$28:$AL$136,B$143,FALSE) -> 0 | E158: =VLOOKUP(Vlookup!$B117,'CDCM Volume Forecasts'!$A$28:$AL$136,E$143,FALSE) -> 0
A159: LDNO HV: Domestic Off Peak (related MPAN) | B159: =VLOOKUP(Vlookup!$B118,'CDCM Volume Forecasts'!$A$28:$AL$136,B$143,FALSE) -> 0 | E159: =VLOOKUP(Vlookup!$B118,'CDCM Volume Forecasts'!$A$28:$AL$136,E$143,FALSE) -> 0
A160: > Small Non Domestic Unrestricted
A161: Small Non Domestic Unrestricted | B161: =VLOOKUP(Vlookup!$B120,'CDCM Volume Forecasts'!$A$28:$AL$136,B$143,FALSE) -> 788341.2966 | E161: =VLOOKUP(Vlookup!$B120,'CDCM Volume Forecasts'!$A$28:$AL$136,E$143,FALSE) -> 64499.40072
A162: LDNO LV: Small Non Domestic Unrestricted | B162: =VLOOKUP(Vlookup!$B121,'CDCM Volume Forecasts'!$A$28:$AL$136,B$143,FALSE) -> 71.63395919 | E162: =VLOOKUP(Vlookup!$B121,'CDCM Volume Forecasts'!$A$28:$AL$136,E$143,FALSE) -> 10.38806408
A163: LDNO HV: Small Non Domestic Unrestricted | B163: =VLOOKUP(Vlookup!$B122,'CDCM Volume Forecasts'!$A$28:$AL$136,B$143,FALSE) -> 4110.730745 | E163: =VLOOKUP(Vlookup!$B122,'CDCM Volume Forecasts'!$A$28:$AL$136,E$143,FALSE) -> 183.2927888
A164: > Small Non Domestic Two Rate
A165: Small Non Domestic Two Rate | B165: =VLOOKUP(Vlookup!$B124,'CDCM Volume Forecasts'!$A$28:$AL$136,B$143,FALSE) -> 197413.5436 | C165: =VLOOKUP(Vlookup!$B124,'CDCM Volume Forecasts'!$A$28:$AL$136,C$143,FALSE) -> 83732.92508 | E165: =VLOOKUP(Vlookup!$B124,'CDCM Volume Forecasts'!$A$28:$AL$136,E$143,FALSE) -> 13327.09991
A166: LDNO LV: Small Non Domestic Two Rate | B166: =VLOOKUP(Vlookup!$B125,'CDCM Volume Forecasts'!$A$28:$AL$136,B$143,FALSE) -> 0 | C166: =VLOOKUP(Vlookup!$B125,'CDCM Volume Forecasts'!$A$28:$AL$136,C$143,FALSE) -> 0 | E166: =VLOOKUP(Vlookup!$B125,'CDCM Volume Forecasts'!$A$28:$AL$136,E$143,FALSE) -> 0
A167: LDNO HV: Small Non Domestic Two Rate | B167: =VLOOKUP(Vlookup!$B126,'CDCM Volume Forecasts'!$A$28:$AL$136,B$143,FALSE) -> 888.7786027 | C167: =VLOOKUP(Vlookup!$B126,'CDCM Volume Forecasts'!$A$28:$AL$136,C$143,FALSE) -> 150.5713725 | E167: =VLOOKUP(Vlookup!$B126,'CDCM Volume Forecasts'!$A$28:$AL$136,E$143,FALSE) -> 14.47325781
A168: > Small Non Domestic Off Peak (related MPAN)
A169: Small Non Domestic Off Peak (related MPAN) | B169: =VLOOKUP(Vlookup!$B128,'CDCM Volume Forecasts'!$A$28:$AL$136,B$143,FALSE) -> 1373.419906 | E169: =VLOOKUP(Vlookup!$B128,'CDCM Volume Forecasts'!$A$28:$AL$136,E$143,FALSE) -> 0
A170: LDNO LV: Small Non Domestic Off Peak (related MPAN) | B170: =VLOOKUP(Vlookup!$B129,'CDCM Volume Forecasts'!$A$28:$AL$136,B$143,FALSE) -> 0 | E170: =VLOOKUP(Vlookup!$B129,'CDCM Volume Forecasts'!$A$28:$AL$136,E$143,FALSE) -> 0
A171: LDNO HV: Small Non Domestic Off Peak (related MPAN) | B171: =VLOOKUP(Vlookup!$B130,'CDCM Volume Forecasts'!$A$28:$AL$136,B$143,FALSE) -> 0 | E171: =VLOOKUP(Vlookup!$B130,'CDCM Volume Forecasts'!$A$28:$AL$136,E$143,FALSE) -> 0
A172: > LV Medium Non-Domestic
A173: LV Medium Non-Domestic | B173: =VLOOKUP(Vlookup!$B132,'CDCM Volume Forecasts'!$A$28:$AL$136,B$143,FALSE) -> 26946.83891 | C173: =VLOOKUP(Vlookup!$B132,'CDCM Volume Forecasts'!$A$28:$AL$136,C$143,FALSE) -> 7790.303753 | E173: =VLOOKUP(Vlookup!$B132,'CDCM Volume Forecasts'!$A$28:$AL$136,E$143,FALSE) -> 782.0146133
A174: LDNO LV: LV Medium Non-Domestic | B174: =VLOOKUP(Vlookup!$B133,'CDCM Volume Forecasts'!$A$28:$AL$136,B$143,FALSE) -> 0 | C174: =VLOOKUP(Vlookup!$B133,'CDCM Volume Forecasts'!$A$28:$AL$136,C$143,FALSE) -> 0 | E174: =VLOOKUP(Vlookup!$B133,'CDCM Volume Forecasts'!$A$28:$AL$136,E$143,FALSE) -> 0
A175: LDNO HV: LV Medium Non-Domestic | B175: =VLOOKUP(Vlookup!$B134,'CDCM Volume Forecasts'!$A$28:$AL$136,B$143,FALSE) -> -3.637978807e-15 | C175: =VLOOKUP(Vlookup!$B134,'CDCM Volume Forecasts'!$A$28:$AL$136,C$143,FALSE) -> 1.818989404e-15 | E175: =VLOOKUP(Vlookup!$B134,'CDCM Volume Forecasts'!$A$28:$AL$136,E$143,FALSE) -> 0
A176: > LV Sub Medium Non-Domestic
A177: LV Sub Medium Non-Domestic | B177: =VLOOKUP(Vlookup!$B136,'CDCM Volume Forecasts'!$A$28:$AL$136,B$143,FALSE) -> 0.2169613471 | C177: =VLOOKUP(Vlookup!$B136,'CDCM Volume Forecasts'!$A$28:$AL$136,C$143,FALSE) -> 0.06663332612 | E177: =VLOOKUP(Vlookup!$B136,'CDCM Volume Forecasts'!$A$28:$AL$136,E$143,FALSE) -> 0.001985026667
A178: > HV Medium Non-Domestic
A179: HV Medium Non-Domestic | B179: =VLOOKUP(Vlookup!$B138,'CDCM Volume Forecasts'!$A$28:$AL$136,B$143,FALSE) -> 56.5708231 | C179: =VLOOKUP(Vlookup!$B138,'CDCM Volume Forecasts'!$A$28:$AL$136,C$143,FALSE) -> 27.23780372 | E179: =VLOOKUP(Vlookup!$B138,'CDCM Volume Forecasts'!$A$28:$AL$136,E$143,FALSE) -> 3.238266811
A180: > LV Network Domestic
A181: LV Network Domestic | B181: =VLOOKUP(Vlookup!$B140,'CDCM Volume Forecasts'!$A$28:$AL$136,B$143,FALSE) -> 2.012033728 | C181: =VLOOKUP(Vlookup!$B140,'CDCM Volume Forecasts'!$A$28:$AL$136,C$143,FALSE) -> 10.44829398 | D181: =VLOOKUP(Vlookup!$B140,'CDCM Volume Forecasts'!$A$28:$AL$136,D$143,FALSE) -> 9.397597107 | E181: =VLOOKUP(Vlookup!$B140,'CDCM Volume Forecasts'!$A$28:$AL$136,E$143,FALSE) -> 6.633033246
A182: LDNO LV: LV Network Domestic | B182: =VLOOKUP(Vlookup!$B141,'CDCM Volume Forecasts'!$A$28:$AL$136,B$143,FALSE) -> 0 | C182: =VLOOKUP(Vlookup!$B141,'CDCM Volume Forecasts'!$A$28:$AL$136,C$143,FALSE) -> 0 | D182: =VLOOKUP(Vlookup!$B141,'CDCM Volume Forecasts'!$A$28:$AL$136,D$143,FALSE) -> 0 | E182: =VLOOKUP(Vlookup!$B141,'CDCM Volume Forecasts'!$A$28:$AL$136,E$143,FALSE) -> 0
A183: LDNO HV: LV Network Domestic | B183: =VLOOKUP(Vlookup!$B142,'CDCM Volume Forecasts'!$A$28:$AL$136,B$143,FALSE) -> 0 | C183: =VLOOKUP(Vlookup!$B142,'CDCM Volume Forecasts'!$A$28:$AL$136,C$143,FALSE) -> 0 | D183: =VLOOKUP(Vlookup!$B142,'CDCM Volume Forecasts'!$A$28:$AL$136,D$143,FALSE) -> 0 | E183: =VLOOKUP(Vlookup!$B142,'CDCM Volume Forecasts'!$A$28:$AL$136,E$143,FALSE) -> 0
A184: > LV Network Non-Domestic Non-CT
A185: LV Network Non-Domestic Non-CT | B185: =VLOOKUP(Vlookup!$B144,'CDCM Volume Forecasts'!$A$28:$AL$136,B$143,FALSE) -> 12121.70413 | C185: =VLOOKUP(Vlookup!$B144,'CDCM Volume Forecasts'!$A$28:$AL$136,C$143,FALSE) -> 81006.95198 | D185: =VLOOKUP(Vlookup!$B144,'CDCM Volume Forecasts'!$A$28:$AL$136,D$143,FALSE) -> 60057.38782 | E185: =VLOOKUP(Vlookup!$B144,'CDCM Volume Forecasts'!$A$28:$AL$136,E$143,FALSE) -> 2100.892179
A186: LDNO LV: LV Network Non-Domestic Non-CT | B186: =VLOOKUP(Vlookup!$B145,'CDCM Volume Forecasts'!$A$28:$AL$136,B$143,FALSE) -> 0 | C186: =VLOOKUP(Vlookup!$B145,'CDCM Volume Forecasts'!$A$28:$AL$136,C$143,FALSE) -> 0 | D186: =VLOOKUP(Vlookup!$B145,'CDCM Volume Forecasts'!$A$28:$AL$136,D$143,FALSE) -> 0 | E186: =VLOOKUP(Vlookup!$B145,'CDCM Volume Forecasts'!$A$28:$AL$136,E$143,FALSE) -> 0
A187: LDNO HV: LV Network Non-Domestic Non-CT | B187: =VLOOKUP(Vlookup!$B146,'CDCM Volume Forecasts'!$A$28:$AL$136,B$143,FALSE) -> 50.62210439 | C187: =VLOOKUP(Vlookup!$B146,'CDCM Volume Forecasts'!$A$28:$AL$136,C$143,FALSE) -> 290.2504093 | D187: =VLOOKUP(Vlookup!$B146,'CDCM Volume Forecasts'!$A$28:$AL$136,D$143,FALSE) -> 161.0849097 | E187: =VLOOKUP(Vlookup!$B146,'CDCM Volume Forecasts'!$A$28:$AL$136,E$143,FALSE) -> 8.825288101
A188: > LV HH Metered
A189: LV HH Metered | B189: =VLOOKUP(Vlookup!$B148,'CDCM Volume Forecasts'!$A$28:$AL$136,B$143,FALSE) -> 120521.177 | C189: =VLOOKUP(Vlookup!$B148,'CDCM Volume Forecasts'!$A$28:$AL$136,C$143,FALSE) -> 767707.2736 | D189: =VLOOKUP(Vlookup!$B148,'CDCM Volume Forecasts'!$A$28:$AL$136,D$143,FALSE) -> 570489.4375 | E189: =VLOOKUP(Vlookup!$B148,'CDCM Volume Forecasts'!$A$28:$AL$136,E$143,FALSE) -> 6053.599684 | F189: =VLOOKUP(Vlookup!$B148,'CDCM Volume Forecasts'!$A$28:$AL$136,F$143,FALSE) -> 725000 | G189: =VLOOKUP(Vlookup!$B148,'CDCM Volume Forecasts'!$A$28:$AL$136,G$143,FALSE) -> 28587.32249 | H189: =VLOOKUP(Vlookup!$B148,'CDCM Volume Forecasts'!$A$28:$AL$136,H$143,FALSE) -> 122816.7972
A190: LDNO LV: LV HH Metered | B190: =VLOOKUP(Vlookup!$B149,'CDCM Volume Forecasts'!$A$28:$AL$136,B$143,FALSE) -> 26.56323277 | C190: =VLOOKUP(Vlookup!$B149,'CDCM Volume Forecasts'!$A$28:$AL$136,C$143,FALSE) -> 180.0230628 | D190: =VLOOKUP(Vlookup!$B149,'CDCM Volume Forecasts'!$A$28:$AL$136,D$143,FALSE) -> 132.9414728 | E190: =VLOOKUP(Vlookup!$B149,'CDCM Volume Forecasts'!$A$28:$AL$136,E$143,FALSE) -> 2.894651563 | F190: =VLOOKUP(Vlookup!$B149,'CDCM Volume Forecasts'!$A$28:$AL$136,F$143,FALSE) -> 230.1155295 | G190: =VLOOKUP(Vlookup!$B149,'CDCM Volume Forecasts'!$A$28:$AL$136,G$143,FALSE) -> 26.72951796 | H190: =VLOOKUP(Vlookup!$B149,'CDCM Volume Forecasts'!$A$28:$AL$136,H$143,FALSE) -> 8.64161504
A191: LDNO HV: LV HH Metered | B191: =VLOOKUP(Vlookup!$B150,'CDCM Volume Forecasts'!$A$28:$AL$136,B$143,FALSE) -> 5344.984537 | C191: =VLOOKUP(Vlookup!$B150,'CDCM Volume Forecasts'!$A$28:$AL$136,C$143,FALSE) -> 30055.81136 | D191: =VLOOKUP(Vlookup!$B150,'CDCM Volume Forecasts'!$A$28:$AL$136,D$143,FALSE) -> 27681.62318 | E191: =VLOOKUP(Vlookup!$B150,'CDCM Volume Forecasts'!$A$28:$AL$136,E$143,FALSE) -> 132.2861054 | F191: =VLOOKUP(Vlookup!$B150,'CDCM Volume Forecasts'!$A$28:$AL$136,F$143,FALSE) -> 39629.74012 | G191: =VLOOKUP(Vlookup!$B150,'CDCM Volume Forecasts'!$A$28:$AL$136,G$143,FALSE) -> 47.24597616 | H191: =VLOOKUP(Vlookup!$B150,'CDCM Volume Forecasts'!$A$28:$AL$136,H$143,FALSE) -> 1627.863829
A192: > LV Sub HH Metered
A193: LV Sub HH Metered | B193: =VLOOKUP(Vlookup!$B152,'CDCM Volume Forecasts'!$A$28:$AL$136,B$143,FALSE) -> 4874.020017 | C193: =VLOOKUP(Vlookup!$B152,'CDCM Volume Forecasts'!$A$28:$AL$136,C$143,FALSE) -> 29990.72372 | D193: =VLOOKUP(Vlookup!$B152,'CDCM Volume Forecasts'!$A$28:$AL$136,D$143,FALSE) -> 25258.84703 | E193: =VLOOKUP(Vlookup!$B152,'CDCM Volume Forecasts'!$A$28:$AL$136,E$143,FALSE) -> 64.98335504 | F193: =VLOOKUP(Vlookup!$B152,'CDCM Volume Forecasts'!$A$28:$AL$136,F$143,FALSE) -> 23211.75202 | G193: =VLOOKUP(Vlookup!$B152,'CDCM Volume Forecasts'!$A$28:$AL$136,G$143,FALSE) -> 953.9675292 | H193: =VLOOKUP(Vlookup!$B152,'CDCM Volume Forecasts'!$A$28:$AL$136,H$143,FALSE) -> 6728.325406
